Workbook

Sheet mus_v
A1: Name | B1: As | C1: Es | D1: B | E1: F | F1: C | G1: G | H1: D | I1: A | J1: E | K1: Grafik | L1: As | M1: Es | N1: B | O1: F | P1: C | Q1: G | R1: D | S1: A | T1: E | U1: * | V1: As | W1: Es | X1: B | Y1: F | Z1: C | AA1: G | AB1: D | AC1: A | AD1: E | AE1: Piano
A2: -20 | B2: E | C2: E | D2: E | E2: E | F2: E | G2: E | H2: E | I2: E | J2: E | K2: -20 | L2: E: | M2: E: | N2: E: | O2: E | P2: E | Q2: E | R2: E | S2: E | T2: E | U2: -20 | Y2: x | Z2: x | AA2: x | AB2: x | AC2: x | AD2: x | AE2: -20 | AF2: e
A3: -19 | B3: F | C3: F | D3: F | E3: F | F3: F | G3: (F) | H3: (F) | I3: (F) | J3: (F) | K3: -19 | L3: F | M3: F | N3: F | O3: F | P3: F | Q3: E# | R3: E# | S3: E# | T3: E# | U3: -19 | V3: x | W3: x | X3: x | Y3: x | Z3: x | AE3: -19 | AF3: f
A4: -18 | B4: Fis | C4: Fis | D4: Fis | E4: Fis | F4: Fis | G4: Fis | H4: Fis | I4: Fis | J4: Fis | K4: -18 | L4: F# | M4: F# | N4: F# | O4: F# | P4: F# | Q4: F | R4: F | S4: F | T4: F | U4: -18 | AA4: x | AB4: x | AC4: x | AD4: x | AE4: -18 | AF4: fis
A5: -17 | B5: G | C5: G | D5: G | E5: G | F5: G | G5: G | H5: G | I5: (G) | J5: (G) | K5: -17 | L5: G | M5: G | N5: G | O5: G | P5: G | Q5: G | R5: G | S5: Fx | T5: Fx | U5: -17 | V5: x | W5: x | X5: x | Y5: x | Z5: x | AA5: x | AB5: x | AE5: -17 | AF5: g
A6: -16 | B6: As | C6: As | D6: Gis | E6: Gis | F6: Gis | G6: Gis | H6: Gis | I6: Gis | J6: Gis | K6: -16 | L6: A | M6: A | N6: G# | O6: G# | P6: G# | Q6: G# | R6: G# | S6: G | T6: G | U6: -16 | V6: x | W6: x | AC6: x | AD6: x | AE6: -16 | AF6: gis
A7: -15 | B7: A | C7: A | D7: A | E7: A | F7: A | G7: A | H7: A | I7: A | J7: A | K7: -15 | L7: A: | M7: A: | N7: A | O7: A | P7: A | Q7: A | R7: A | S7: A | T7: A | U7: -15 | X7: x | Y7: x | Z7: x | AA7: x | AB7: x | AC7: x | AD7: x | AE7: -15 | AF7: a
A8: -14 | B8: B | C8: B | D8: B | E8: B | F8: Ais | G8: Ais | H8: Ais | I8: Ais | J8: Ais | K8: -14 | L8: H | M8: H | N8: H | O8: H | P8: A# | Q8: A# | R8: A# | S8: A# | T8: A# | U8: -14 | V8: x | W8: x | X8: x | Y8: x | AE8: -14 | AF8: ais
A9: -13 | B9: H | C9: H | D9: H | E9: H | F9: H | G9: H | H9: H | I9: H | J9: H | K9: -13 | L9: H: | M9: H: | N9: H: | O9: H: | P9: H | Q9: H | R9: H | S9: H | T9: H | U9: -13 | Z9: x | AA9: x | AB9: x | AC9: x | AD9: x | AE9: -13 | AF9: h
A10: -12 | B10: c | C10: c | D10: c | E10: c | F10: c | G10: c | H10: (c) | I10: (c) | J10: (c) | K10: -12 | L10: c | M10: c | N10: c | O10: c | P10: c | Q10: c | R10: h# | S10: h# | T10: h# | U10: -12 | V10: x | W10: x | X10: x | Y10: x | Z10: x | AA10: x | AE10: -12 | AF10: c
A11: -11 | B11: des | C11: cis | D11: cis | E11: cis | F11: cis | G11: cis | H11: cis | I11: cis | J11: cis | K11: -11 | L11: d | M11: c# | N11: c# | O11: c# | P11: c# | Q11: c# | R11: c | S11: c | T11: c | U11: -11 | V11: x | AB11: x | AC11: x | AD11: x | AE11: -11 | AF11: cis
A12: -10 | B12: d | C12: d | D12: d | E12: d | F12: d | G12: d | H12: d | I12: d | J12: (d) | K12: -10 | L12: d: | M12: d | N12: d | O12: d | P12: d | Q12: d | R12: d | S12: d | T12: cx | U12: -10 | W12: x | X12: x | Y12: x | Z12: x | AA12: x | AB12: x | AC12: x | AE12: -10 | AF12: d
A13: -9 | B13: es | C13: es | D13: es | E13: dis | F13: dis | G13: dis | H13: dis | I13: dis | J13: dis | K13: -9 | L13: e | M13: e | N13: e | O13: d# | P13: d# | Q13: d# | R13: d# | S13: d# | T13: d | U13: -9 | V13: x | W13: x | X13: x | AD13: x | AE13: -9 | AF13: dis
A14: -8 | B14: e | C14: e | D14: e | E14: e | F14: e | G14: e | H14: e | I14: e | J14: e | K14: -8 | L14: e: | M14: e: | N14: e: | O14: e | P14: e | Q14: e | R14: e | S14: e | T14: e | U14: -8 | Y14: x | Z14: x | AA14: x | AB14: x | AC14: x | AD14: x | AE14: -8 | AF14: e
A15: -7 | B15: f | C15: f | D15: f | E15: f | F15: f | G15: (f) | H15: (f) | I15: (f) | J15: (f) | K15: -7 | L15: f | M15: f | N15: f | O15: f | P15: f | Q15: e# | R15: e# | S15: e# | T15: e# | U15: -7 | V15: x | W15: x | X15: x | Y15: x | Z15: x | AE15: -7 | AF15: f
A16: -6 | B16: fis | C16: fis | D16: fis | E16: fis | F16: fis | G16: fis | H16: fis | I16: fis | J16: fis | K16: -6 | L16: f# | M16: f# | N16: f# | O16: f# | P16: f# | Q16: f | R16: f | S16: f | T16: f | U16: -6 | AA16: x | AB16: x | AC16: x | AD16: x | AE16: -6 | AF16: fis
A17: -5 | B17: g | C17: g | D17: g | E17: g | F17: g | G17: g | H17: g | I17: (g) | J17: (g) | K17: -5 | L17: g | M17: g | N17: g | O17: g | P17: g | Q17: g | R17: g | S17: fx | T17: fx | U17: -5 | V17: x | W17: x | X17: x | Y17: x | Z17: x | AA17: x | AB17: x | AE17: -5 | AF17: g
A18: -4 | B18: as | C18: as | D18: gis | E18: gis | F18: gis | G18: gis | H18: gis | I18: gis | J18: gis | K18: -4 | L18: a | M18: a | N18: g# | O18: g# | P18: g# | Q18: g# | R18: g# | S18: g | T18: g | U18: -4 | V18: x | W18: x | AC18: x | AD18: x | AE18: -4 | AF18: gis
A19: -3 | B19: a | C19: a | D19: a | E19: a | F19: a | G19: a | H19: a | I19: a | J19: a | K19: -3 | L19: a: | M19: a: | N19: a | O19: a | P19: a | Q19: a | R19: a | S19: a | T19: a | U19: -3 | X19: x | Y19: x | Z19: x | AA19: x | AB19: x | AC19: x | AD19: x | AE19: -3 | AF19: a
A20: -2 | B20: b | C20: b | D20: b | E20: b | F20: ais | G20: ais | H20: ais | I20: ais | J20: ais | K20: -2 | L20: h | M20: h | N20: h | O20: h | P20: a# | Q20: a# | R20: a# | S20: a# | T20: a# | U20: -2 | V20: x | W20: x | X20: x | Y20: x | AE20: -2 | AF20: ais
A21: -1 | B21: h | C21: h | D21: h | E21: h | F21: h | G21: h | H21: h | I21: h | J21: h | K21: -1 | L21: h: | M21: h: | N21: h: | O21: h: | P21: h | Q21: h | R21: h | S21: h | T21: h | U21: -1 | Z21: x | AA21: x | AB21: x | AC21: x | AD21: x | AE21: -1 | AF21: h
A22: 0 | B22: c' | C22: c' | D22: c' | E22: c' | F22: c' | G22: c' | H22: (c') | I22: (c') | J22: (c') | K22: 0 | L22: c' | M22: c' | N22: c' | O22: c' | P22: c' | Q22: c' | R22: h# | S22: h# | T22: h# | U22: 0 | V22: x | W22: x | X22: x | Y22: x | Z22: x | AA22: x | AE22: 0 | AF22: c
A24: 0 | B24: c' | C24: c' | D24: c' | E24: c' | F24: c' | G24: c' | H24: (c') | I24: (c') | J24: (c') | K24: 0 | L24: c' | M24: c' | N24: c' | O24: c' | P24: c' | Q24: c' | R24: h# | S24: h# | T24: h# | U24: 0 | V24: x | W24: x | X24: x | Y24: x | Z24: x | AA24: x | AE24: 0 | AF24: c
A25: 1 | B25: des' | C25: cis' | D25: cis' | E25: cis' | F25: cis' | G25: cis' | H25: cis' | I25: cis' | J25: cis' | K25: 1 | L25: d' | M25: c#' | N25: c#' | O25: c#' | P25: c#' | Q25: c#' | R25: c' | S25: c' | T25: c' | U25: 1 | V25: x | AB25: x | AC25: x | AD25: x | AE25: 1 | AF25: cis
A26: 2 | B26: d' | C26: d' | D26: d' | E26: d' | F26: d' | G26: d' | H26: d' | I26: d' | J26: (d') | K26: 2 | L26: d:' | M26: d' | N26: d' | O26: d' | P26: d' | Q26: d' | R26: d' | S26: d' | T26: cx' | U26: 2 | W26: x | X26: x | Y26: x | Z26: x | AA26: x | AB26: x | AC26: x | AE26: 2 | AF26: d
A27: 3 | B27: es' | C27: es' | D27: es' | E27: dis' | F27: dis' | G27: dis' | H27: dis' | I27: dis' | J27: dis' | K27: 3 | L27: e' | M27: e' | N27: e' | O27: d#' | P27: d#' | Q27: d#' | R27: d#' | S27: d#' | T27: d' | U27: 3 | V27: x | W27: x | X27: x | AD27: x | AE27: 3 | AF27: dis
A28: 4 | B28: e' | C28: e' | D28: e' | E28: e' | F28: e' | G28: e' | H28: e' | I28: e' | J28: e' | K28: 4 | L28: e:' | M28: e:' | N28: e:' | O28: e' | P28: e' | Q28: e' | R28: e' | S28: e' | T28: e' | U28: 4 | Y28: x | Z28: x | AA28: x | AB28: x | AC28: x | AD28: x | AE28: 4 | AF28: e
A29: 5 | B29: f' | C29: f' | D29: f' | E29: f' | F29: f' | G29: (f') | H29: (f') | I29: (f') | J29: (f') | K29: 5 | L29: f' | M29: f' | N29: f' | O29: f' | P29: f' | Q29: e#' | R29: e#' | S29: e#' | T29: e#' | U29: 5 | V29: x | W29: x | X29: x | Y29: x | Z29: x | AE29: 5 | AF29: f
A30: 6 | B30: fis' | C30: fis' | D30: fis' | E30: fis' | F30: fis' | G30: fis' | H30: fis' | I30: fis' | J30: fis' | K30: 6 | L30: f#' | M30: f#' | N30: f#' | O30: f#' | P30: f#' | Q30: f' | R30: f' | S30: f' | T30: f' | U30: 6 | AA30: x | AB30: x | AC30: x | AD30: x | AE30: 6 | AF30: fis
A31: 7 | B31: g' | C31: g' | D31: g' | E31: g' | F31: g' | G31: g' | H31: g' | I31: (g') | J31: (g') | K31: 7 | L31: g' | M31: g' | N31: g' | O31: g' | P31: g' | Q31: g' | R31: g' | S31: fx' | T31: fx' | U31: 7 | V31: x | W31: x | X31: x | Y31: x | Z31: x | AA31: x | AB31: x | AE31: 7 | AF31: g
A32: 8 | B32: as' | C32: as' | D32: gis' | E32: gis' | F32: gis' | G32: gis' | H32: gis' | I32: gis' | J32: gis' | K32: 8 | L32: a' | M32: a' | N32: g#' | O32: g#' | P32: g#' | Q32: g#' | R32: g#' | S32: g' | T32: g' | U32: 8 | V32: x | W32: x | AC32: x | AD32: x | AE32: 8 | AF32: gis
A33: 9 | B33: a' | C33: a' | D33: a' | E33: a' | F33: a' | G33: a' | H33: a' | I33: a' | J33: a' | K33: 9 | L33: a:' | M33: a:' | N33: a' | O33: a' | P33: a' | Q33: a' | R33: a' | S33: a' | T33: a' | U33: 9 | X33: x | Y33: x | Z33: x | AA33: x | AB33: x | AC33: x | AD33: x | AE33: 9 | AF33: a
A34: 10 | B34: b' | C34: b' | D34: b' | E34: b' | F34: ais' | G34: ais' | H34: ais' | I34: ais' | J34: ais' | K34: 10 | L34: h' | M34: h' | N34: h' | O34: h' | P34: a#' | Q34: a#' | R34: a#' | S34: a#' | T34: a#' | U34: 10 | V34: x | W34: x | X34: x | Y34: x | AE34: 10 | AF34: ais
A35: 11 | B35: h' | C35: h' | D35: h' | E35: h' | F35: h' | G35: h' | H35: h' | I35: h' | J35: h' | K35: 11 | L35: h:' | M35: h:' | N35: h:' | O35: h:' | P35: h' | Q35: h' | R35: h' | S35: h' | T35: h' | U35: 11 | Z35: x | AA35: x | AB35: x | AC35: x | AD35: x | AE35: 11 | AF35: h
A36: 12 | B36: c'' | C36: c'' | D36: c'' | E36: c'' | F36: c'' | G36: c'' | H36: (c'') | I36: (c'') | J36: (c'') | K36: 12 | L36: c'' | M36: c'' | N36: c'' | O36: c'' | P36: c'' | Q36: c'' | R36: h#' | S36: h#' | T36: h#' | U36: 12 | V36: x | W36: x | X36: x | Y36: x | Z36: x | AA36: x | AE36: 12 | AF36: c
A37: 13 | B37: des'' | C37: cis'' | D37: cis'' | E37: cis'' | F37: cis'' | G37: cis'' | H37: cis'' | I37: cis'' | J37: cis'' | K37: 13 | L37: d'' | M37: c#'' | N37: c#'' | O37: c#'' | P37: c#'' | Q37: c#'' | R37: c'' | S37: c'' | T37: c'' | U37: 13 | V37: x | AB37: x | AC37: x | AD37: x | AE37: 13 | AF37: cis
A38: 14 | B38: d'' | C38: d'' | D38: d'' | E38: d'' | F38: d'' | G38: d'' | H38: d'' | I38: d'' | J38: (d'') | K38: 14 | L38: d:'' | M38: d'' | N38: d'' | O38: d'' | P38: d'' | Q38: d'' | R38: d'' | S38: d'' | T38: cx'' | U38: 14 | W38: x | X38: x | Y38: x | Z38: x | AA38: x | AB38: x | AC38: x | AE38: 14 | AF38: d
A39: 15 | B39: es'' | C39: es'' | D39: es'' | E39: dis'' | F39: dis'' | G39: dis'' | H39: dis'' | I39: dis'' | J39: dis'' | K39: 15 | L39: e'' | M39: e'' | N39: e'' | O39: d#'' | P39: d#'' | Q39: d#'' | R39: d#'' | S39: d#'' | T39: d'' | U39: 15 | V39: x | W39: x | X39: x | AD39: x | AE39: 15 | AF39: dis
A40: 16 | B40: e'' | C40: e'' | D40: e'' | E40: e'' | F40: e'' | G40: e'' | H40: e'' | I40: e'' | J40: e'' | K40: 16 | L40: e:'' | M40: e:'' | N40: e:'' | O40: e'' | P40: e'' | Q40: e'' | R40: e'' | S40: e'' | T40: e'' | U40: 16 | Y40: x | Z40: x | AA40: x | AB40: x | AC40: x | AD40: x | AE40: 16 | AF40: e
A41: 17 | B41: f'' | C41: f'' | D41: f'' | E41: f'' | F41: f'' | G41: (f'') | H41: (f'') | I41: (f'') | J41: (f'') | K41: 17 | L41: f'' | M41: f'' | N41: f'' | O41: f'' | P41: f'' | Q41: e#'' | R41: e#'' | S41: e#'' | T41: e#'' | U41: 17 | V41: x | W41: x | X41: x | Y41: x | Z41: x | AE41: 17 | AF41: f
A42: 18 | B42: fis'' | C42: fis'' | D42: fis'' | E42: fis'' | F42: fis'' | G42: fis'' | H42: fis'' | I42: fis'' | J42: fis'' | K42: 18 | L42: f#'' | M42: f#'' | N42: f#'' | O42: f#'' | P42: f#'' | Q42: f'' | R42: f'' | S42: f'' | T42: f'' | U42: 18 | AA42: x | AB42: x | AC42: x | AD42: x | AE42: 18 | AF42: fis
A43: 19 | B43: g'' | C43: g'' | D43: g'' | E43: g'' | F43: g'' | G43: g'' | H43: g'' | I43: (g'') | J43: (g'') | K43: 19 | L43: g'' | M43: g'' | N43: g'' | O43: g'' | P43: g'' | Q43: g'' | R43: g'' | S43: fx'' | T43: fx'' | U43: 19 | V43: x | W43: x | X43: x | Y43: x | Z43: x | AA43: x | AB43: x | AE43: 19 | AF43: g
A44: 20 | B44: as'' | C44: as'' | D44: gis'' | E44: gis'' | F44: gis'' | G44: gis'' | H44: gis'' | I44: gis'' | J44: gis'' | K44: 20 | L44: a'' | M44: a'' | N44: g#'' | O44: g#'' | P44: g#'' | Q44: g#'' | R44: g#'' | S44: g'' | T44: g'' | U44: 20 | V44: x | W44: x | AC44: x | AD44: x | AE44: 20 | AF44: gis
A45: 21 | B45: a'' | C45: a'' | D45: a'' | E45: a'' | F45: a'' | G45: a'' | H45: a'' | I45: a'' | J45: a'' | K45: 21 | L45: a:'' | M45: a:'' | N45: a'' | O45: a'' | P45: a'' | Q45: a'' | R45: a'' | S45: a'' | T45: a'' | U45: 21 | X45: x | Y45: x | Z45: x | AA45: x | AB45: x | AC45: x | AD45: x | AE45: 21 | AF45: a
L46: : | M46: Auflösung
L47: * | M47: Kreuz (Doppelkreuz)

Sheet mus_l
C2: Schlüssel | E2: Intervalle (Halbtöne) | G2: Tonarten | I2: Zusatztöne
C3: v | E3: 2 | G3: C | I3: aus
E4: 3
E5: 4
E6: 5
E7: 7
A18: 1 | B18: 2 | C18: 3 | D18: 4 | E18: 5 | F18: 6 | G18: 7 | H18: 8 | I18: 9 | J18: 10 | K18: 11 | L18: 12 | M18: 13 | N18: 14 | O18: 15 | P18: 16 | Q18: 17 | R18: 18
B19: Schlüssel | C19: intervall (halbtöne) | D19: tonart | E19: ton1 | F19: ton2 | G19: bild1 | H19: bild2 | I19: folie1 | J19: folie2 | K19: folie3 | L19: piano1 | M19: piano2 | N19: P-folie1 | O19: P-folie2 | P19: P-folie3 | R19: Tonwert für Tastenausschnitt
B20: v | C20: 2 | D20: C | E20: d'' | F20: e'' | G20: d'' | H20: e'' | I20: $D$8 | J20: $B$64 | K20: $B$68 | L20: 14 | M20: 16 | N20: $L$2 | O20: $J$26 | P20: $J$28 | R20: 16
B21: v | C21: 3 | D21: C | E21: h' | F21: d'' | G21: h' | H21: d'' | I21: $D$8 | J21: $B$58 | K21: $B$64 | L21: 11 | M21: 14 | N21: $L$2 | O21: $J$23 | P21: $J$26 | R21: 14
B22: v | C22: 7 | D22: C | E22: e' | F22: h' | G22: e' | H22: h' | I22: $D$8 | J22: $B$47 | K22: $B$58 | L22: 4 | M22: 11 | N22: $L$2 | O22: $J$16 | P22: $J$23 | R22: 11
B23: v | C23: 2 | D23: C | E23: g'' | F23: a'' | G23: g'' | H23: a'' | I23: $D$8 | J23: $B$73 | K23: $B$76 | L23: 19 | M23: 21 | N23: $M$2 | O23: $J$19 | P23: $J$21 | R23: 21
B24: v | C24: 3 | D24: C | E24: d' | F24: f' | G24: d' | H24: f' | I24: $D$8 | J24: $B$44 | K24: $B$49 | L24: 2 | M24: 5 | N24: $L$2 | O24: $J$14 | P24: $J$17 | R24: 5
B25: v | C25: 2 | D25: C | E25: g' | F25: a' | G25: g' | H25: a' | I25: $D$8 | J25: $B$52 | K25: $B$55 | L25: 7 | M25: 9 | N25: $L$2 | O25: $J$19 | P25: $J$21 | R25: 9
B26: v | C26: 5 | D26: C | E26: c' | F26: f' | G26: c' | H26: f' | I26: $D$8 | J26: $B$40 | K26: $B$49 | L26: 0 | M26: 5 | N26: $L$2 | O26: $J$12 | P26: $J$17 | R26: 5
B27: v | C27: 5 | D27: C | E27: d' | F27: g' | G27: d' | H27: g' | I27: $D$8 | J27: $B$44 | K27: $B$52 | L27: 2 | M27: 7 | N27: $L$2 | O27: $J$14 | P27: $J$19 | R27: 7
B28: v | C28: 7 | D28: C | E28: c' | F28: g' | G28: c' | H28: g' | I28: $D$8 | J28: $B$40 | K28: $B$52 | L28: 0 | M28: 7 | N28: $L$2 | O28: $J$12 | P28: $J$19 | R28: 7
B29: v | C29: 5 | D29: C | E29: e'' | F29: a'' | G29: e'' | H29: a'' | I29: $D$8 | J29: $B$68 | K29: $B$76 | L29: 16 | M29: 21 | N29: $M$2 | O29: $J$16 | P29: $J$21 | R29: 21
B30: v | C30: 2 | D30: C | E30: d' | F30: e' | G30: d' | H30: e' | I30: $D$8 | J30: $B$44 | K30: $B$47 | L30: 2 | M30: 4 | N30: $L$2 | O30: $J$14 | P30: $J$16 | R30: 4
B31: v | C31: 7 | D31: C | E31: a' | F31: e'' | G31: a' | H31: e'' | I31: $D$8 | J31: $B$55 | K31: $B$68 | L31: 9 | M31: 16 | N31: $L$2 | O31: $J$21 | P31: $J$28 | R31: 16
B32: v | C32: 4 | D32: C | E32: f'' | F32: a'' | G32: f'' | H32: a'' | I32: $D$8 | J32: $B$70 | K32: $B$76 | L32: 17 | M32: 21 | N32: $M$2 | O32: $J$17 | P32: $J$21 | R32: 21
B33: v | C33: 3 | D33: C | E33: a' | F33: c'' | G33: a' | H33: c'' | I33: $D$8 | J33: $B$55 | K33: $B$60 | L33: 9 | M33: 12 | N33: $L$2 | O33: $J$21 | P33: $J$24 | R33: 12
B34: v | C34: 3 | D34: C | E34: d'' | F34: f'' | G34: d'' | H34: f'' | I34: $D$8 | J34: $B$64 | K34: $B$70 | L34: 14 | M34: 17 | N34: $M$2 | O34: $J$14 | P34: $J$17 | R34: 17
B35: v | C35: 4 | D35: C | E35: c' | F35: e' | G35: c' | H35: e' | I35: $D$8 | J35: $B$40 | K35: $B$47 | L35: 0 | M35: 4 | N35: $L$2 | O35: $J$12 | P35: $J$16 | R35: 4
B36: v | C36: 5 | D36: C | E36: c'' | F36: f'' | G36: c'' | H36: f'' | I36: $D$8 | J36: $B$60 | K36: $B$70 | L36: 12 | M36: 17 | N36: $M$2 | O36: $J$12 | P36: $J$17 | R36: 17
B37: v | C37: 7 | D37: C | E37: d'' | F37: a'' | G37: d'' | H37: a'' | I37: $D$8 | J37: $B$64 | K37: $B$76 | L37: 14 | M37: 21 | N37: $M$2 | O37: $J$14 | P37: $J$21 | R37: 21
B38: v | C38: 3 | D38: C | E38: e'' | F38: g'' | G38: e'' | H38: g'' | I38: $D$8 | J38: $B$68 | K38: $B$73 | L38: 16 | M38: 19 | N38: $M$2 | O38: $J$16 | P38: $J$19 | R38: 19
B39: v | C39: 4 | D39: C | E39: c'' | F39: e'' | G39: c'' | H39: e'' | I39: $D$8 | J39: $B$60 | K39: $B$68 | L39: 12 | M39: 16 | N39: $L$2 | O39: $J$24 | P39: $J$28 | R39: 16

Sheet mus_gif
A2: Fehler
B3: Noten | D3: violin | E3: bass
A4: E: | C4: As | H4: 1 | K4: -20 | L4: -8 | M4: 4
A5: E | C5: Es | H5: 2 | K5: -19 | L5: -7 | M5: 5
A6: E# | C6: B | H6: 3 | K6: -18 | L6: -6 | M6: 6
A7: F | C7: F | H7: 4 | K7: -17 | L7: -5 | M7: 7
A8: Fx | C8: C | H8: 5 | K8: -16 | L8: -4 | M8: 8
A9: F# | C9: G | H9: 6 | K9: -15 | L9: -3 | M9: 9
A10: G | C10: D | H10: 7 | K10: -14 | L10: -2 | M10: 10
A11: G# | C11: A | H11: 8 | K11: -13 | L11: -1 | M11: 11
A12: A: | C12: E | H12: 9 | K12: -12 | L12: 0 | M12: 12
A13: A | H13: 10 | K13: -11 | L13: 1 | M13: 13
A14: A# | H14: 11 | K14: -10 | L14: 2 | M14: 14
A15: H: | H15: 12 | K15: -9 | L15: 3 | M15: 15
A16: H | H16: 13 | K16: -8 | L16: 4 | M16: 16
A17: H# | H17: 14 | K17: -7 | L17: 5 | M17: 17
A18: c | H18: 15 | K18: -6 | L18: 6 | M18: 18
A19: c# | H19: 16 | K19: -5 | L19: 7 | M19: 19
A20: cx | H20: 17 | K20: -4 | L20: 8 | M20: 20
A21: d: | H21: 18 | K21: -3 | L21: 9 | M21: 21
A22: d | H22: 19 | K22: -2 | L22: 10 | M22: 22
A23: d# | H23: 20 | K23: -1 | L23: 11 | M23: 23
A24: e: | H24: 21 | K24: 0 | L24: 12 | M24: 24
A25: e | H25: 22 | K25: 1 | L25: 13 | M25: 25
A26: e# | H26: 23 | K26: 2 | L26: 14 | M26: 26
A27: f | H27: 24 | K27: 3 | L27: 15 | M27: 27
A28: fx | H28: 25 | K28: 4 | L28: 16 | M28: 28
A29: f#
A30: g
A31: g#
A32: a:
A33: a
A34: a#
A35: h:
A36: h
A37: h#
A38: c'
A39: h#
A40: c'
A41: c#'
A42: cx'
A43: d:'
A44: d'
A45: d#'
A46: e:'
A47: e'
A48: e#'
A49: f'
A50: fx'
A51: f#'
A52: g'
A53: g#'
A54: a:'
A55: a'
A56: a#'
A57: h:'
A58: h'
A59: h#'
A60: c''
A61: c#''
A62: cx''
A63: d:''
A64: d''
A65: dx''
A66: d#''
A67: e:''
A68: e''
A69: e#''
A70: f''
A71: fx''
A72: f#''
A73: g''
A74: g#''
A75: a:''
A76: a''

Sheet musN
B1: musigfix | T1: musigfix | AS1: Tonarten | AT1: As | AU1: 0 | AV1: =IF(AU1=1,AT1,"") ->  | AW1: Zusatztöne | AX1: FALSE
B2: Intervalle: Gr.Sekunden, Kl.Terzen, Gr.Terzen, Quarten, Quinten Violinschlüssel; Tonarten: C | T2: Intervalle: Gr.Sekunden, Kl.Terzen, Gr.Terzen, Quarten, Quinten Violinschlüssel; Tonarten: C | AI2: 0 | AT2: Es | AU2: 0
AT3: B | AU3: 0 | AX3: schlüssel | AZ3: Titel
AT4: F | AU4: 0 | AW4: v | AX4: TRUE | AZ4: Violinschlüssel
J5: C-Dur / a-Moll | O5: Grosse Sekunde | AB5: C-Dur / a-Moll | AG5: Grosse Sekunde | AT5: C | AU5: 1 | AV5: C | AW5: b | AX5: FALSE | AY5: =COUNTIF(AX4:AX5,TRUE) -> 1 | AZ5: Bassschlüssel
AT6: G | AU6: 0 | AX6: Intervalle | AZ6: Titel
AT7: D | AU7: 0 | AW7: 1 | AX7: FALSE | AZ7: Kl.Sekunden
L8: d'' | O8: e'' | AD8: d' | AG8: e' | AT8: A | AU8: 0 | AW8: 2 | AX8: TRUE | AZ8: Gr.Sekunden
AT9: E | AU9: 0 | AW9: 3 | AX9: TRUE | AZ9: Kl.Terzen
J10: C-Dur / a-Moll | O10: Kleine Terz | AB10: C-Dur / a-Moll | AG10: Quinte | AW10: 4 | AX10: TRUE | AZ10: Gr.Terzen
AU11: =SUM(AU1:AU9) -> 1 | AV11: =AV1&AV2&AV3&AV4&AV5&AV6&AV7&AV8&AV9&IF(AX1=TRUE,"(+)","") -> C | AW11: 5 | AX11: TRUE | AZ11: Quarten
AW12: 6 | AX12: FALSE | AZ12: Tritoni
L13: h' | O13: d'' | AD13: a' | AG13: e'' | AW13: 7 | AX13: TRUE | AZ13: Quinten
AW14: 8 | AX14: FALSE | AZ14: Kl.Sexten
J15: C-Dur / a-Moll | O15: Quinte | AB15: C-Dur / a-Moll | AG15: Grosse Terz | AW15: 9 | AX15: FALSE | AZ15: Gr.Sexten
AW16: 10 | AX16: FALSE | AZ16: Kl.Septimen
AW17: 11 | AX17: FALSE | AZ17: Gr.Septimen
L18: e' | O18: h' | AD18: f'' | AG18: a'' | AW18: 12 | AX18: FALSE | AY18: =COUNTIF(AX7:AX18,TRUE) -> 5 | AZ18: Oktaven
J20: C-Dur / a-Moll | O20: Grosse Sekunde | AB20: C-Dur / a-Moll | AG20: Kleine Terz | AW20: Farben | AX20: 2
AI21: blau | AJ21: Quinten
AI22: weiss | AJ22: Quarten | AW22: Tonnamen/Piano | AX22: 2
L23: g'' | O23: a'' | AD23: a' | AG23: c'' | AI23: weiss | AJ23: Gr. Terzen
AI24: weiss | AJ24: Kl. Terzen
J25: C-Dur / a-Moll | O25: Kleine Terz | AB25: C-Dur / a-Moll | AG25: Kleine Terz | AW25: Farbe | AX25: R | AY25: G | AZ25: B
AR26: Quinten | AS26: =VLOOKUP(AI21,$AW$26:$AX$30,2,0) -> 204 | AT26: =VLOOKUP(AI21,$AW$26:$AZ$30,3,0) -> 236 | AU26: =VLOOKUP(AI21,$AW$26:$AZ$30,4,0) -> 255 | AW26: blau | AX26: 204 | AY26: 236 | AZ26: 255
AR27: Quarten | AS27: =VLOOKUP(AI22,$AW$26:$AX$30,2,0) -> 255 | AT27: =VLOOKUP(AI22,$AW$26:$AZ$30,3,0) -> 255 | AU27: =VLOOKUP(AI22,$AW$26:$AZ$30,4,0) -> 255 | AW27: türkis | AX27: 207 | AY27: 253 | AZ27: 245
L28: d' | O28: f' | AD28: d'' | AG28: f'' | AR28: Gr.Terzen | AS28: =VLOOKUP(AI23,$AW$26:$AX$30,2,0) -> 255 | AT28: =VLOOKUP(AI23,$AW$26:$AZ$30,3,0) -> 255 | AU28: =VLOOKUP(AI23,$AW$26:$AZ$30,4,0) -> 255 | AW28: gelb | AX28: 255 | AY28: 255 | AZ28: 204
AR29: Kl.Terzen | AS29: =VLOOKUP(AI24,$AW$26:$AX$30,2,0) -> 255 | AT29: =VLOOKUP(AI24,$AW$26:$AZ$30,3,0) -> 255 | AU29: =VLOOKUP(AI24,$AW$26:$AZ$30,4,0) -> 255 | AW29: orange | AX29: 255 | AY29: 241 | AZ29: 213
J30: C-Dur / a-Moll | O30: Grosse Sekunde | AB30: C-Dur / a-Moll | AG30: Grosse Terz | AW30: weiss | AX30: 255 | AY30: 255 | AZ30: 255
L33: g' | O33: a' | AD33: c' | AG33: e'
J35: C-Dur / a-Moll | O35: Quarte | AB35: C-Dur / a-Moll | AG35: Quarte
L38: c' | O38: f' | AD38: c'' | AG38: f''
J40: C-Dur / a-Moll | O40: Quarte | AB40: C-Dur / a-Moll | AG40: Quinte
L43: d' | O43: g' | AD43: d'' | AG43: a''
J45: C-Dur / a-Moll | O45: Quinte | AB45: C-Dur / a-Moll | AG45: Kleine Terz
L48: c' | O48: g' | AD48: e'' | AG48: g''
J50: C-Dur / a-Moll | O50: Quarte | AB50: C-Dur / a-Moll | AG50: Grosse Terz
L53: e'' | O53: a'' | AD53: c'' | AG53: e''

Sheet musNrad

Sheet ordner
A1: Geometrie Dez23.vfa | B1: =IF(A1="","",LEFT(A1,FIND("#",SUBSTITUTE(A1,".","#",LEN(A1)-LEN(SUBSTITUTE(A1,".",""))))-1)) -> Geometrie Dez23
B2: =IF(A2="","",LEFT(A2,FIND("#",SUBSTITUTE(A2,".","#",LEN(A2)-LEN(SUBSTITUTE(A2,".",""))))-1)) -> 

Sheet sfx

Sheet konstr
A1: Bereich von | D1: bis
A2: zeile | B2: spalte | D2: zeile | E2: spalte | G2: Kopierformel | H2: löschen
A3: 7 | B3: 5 | D3: 34 | E3: 8 | G3: ="Sheets(Ziel).Range(Sheets(Ziel).Cells("&$A3&", "&$B3&"), Sheets(Ziel).Cells("&$D3&", "&$E3&")).Value = Sheets(Quelle).Range(Sheets(Quelle).Cells("&$A3&", "&$B3&"), Sheets(Quelle).Cells("&$D3&", "&$E3&")).Value" -> Sheets(Ziel).Range(Sheets(Ziel).Cells(7, 5), Sheets(Ziel).Cells(34, 8)).Value = Sheets(Quelle).Range(Sheets(Quelle).Cells(7, 5), Sheets(Quelle).Cells(34, 8)).Value | H3: ="Sheets(Ziel).Range(Sheets(Ziel).Cells("&$A3&", "&$B3&"), Sheets(Ziel).Cells("&$D3&", "&$E3&")).Value = """"" -> Sheets(Ziel).Range(Sheets(Ziel).Cells(7, 5), Sheets(Ziel).Cells(34, 8)).Value = ""
A7: Einzelzellen
A8: zeile | B8: spalte
A9: 7 | B9: 4 | G9: ="Sheets(Ziel).Cells("&$A9&", "&$B9&").Value = Sheets(Quelle).Cells("&$A9&", "&$B9&").Value" -> Sheets(Ziel).Cells(7, 4).Value = Sheets(Quelle).Cells(7, 4).Value | H9: ="Sheets(Ziel).Cells("&$A9&", "&$B9&").Value = """"" -> Sheets(Ziel).Cells(7, 4).Value = ""

Sheet impressum
B2: Impressum Jan2024
B4: Worum es geht | C4: Werkzeuge zur nichtgewinnorientierten, freien Nutzung in der pädagogischen Arbeit.
B6: Programmprinzip | C6: Datensicherheit | E6: Programm und Persönliche Daten sind getrennt gespeichert, damit die Programmdatei (schuelfix.xlsm) jederzeit durch eine neuere Version ersetzt werden kann, ohne dass Eingabedaten verloren gehen. Bei jedem Öffnen bzw. Schliessen eines "Werkzeugs" werden die Eingabedaten als Textfile im Unterordner "...\persdaten" geöffnet bzw. gespeichert.
B12: bei Ärger, neuen Ideen… | C12: info@dagotscho.ch | E12: Programmaktualisierungen und Anleitungen: www.dagotscho.ch
B14: Letzte Änderungen | C14: 2022-09-01 | D14: Gruppenfix nach Interessen | E14: • Neu mit maximal 25 Atelier-Angeboten (statt 18)
C16: 2022-10-01 | E16: • Dossierdruck (alle Klassen/Ateliers)
C17: 2023-05-01 | D17: Spinnenfix | E17: • Titel neu mit Datum möglich
C18: 2023-08-01 | D18: Multiplikation indiv. | E18: • Drucken mehrerer verschiedener Blätter auf einmal
C19: 2023-12-01 | D19: Musik-Noten lesen | E19: • Läuft nun auch auf neuster Office-Version
D20: Farben-Rückmeldung | E20: • Beurteilung mit vier Farben (in 1-8 Aspekten)
C21: 2024-01-01 | E21: • Zeilenhöhe wird automatisch angepasst (bei laaaangen Teilaspekten)

Sheet Index
A1: w | P1: aktive Tabelle: | R1: moveafterreturn: | S1: f
P2: sfx:
P3: pfad:
P5: Löschfunktion:
B23: Speicherort:
B24: C:\Users\d.untersee\Desktop\in Arbeit Dani\web\schuelfix

Sheet Klasse
B2: Meine Klasse
C7: Klasse: | F7: . Semester | AL7: Bildschirm
C8: Lehrperson/en: | AL8: 1280
C9: Schuljahr: | E9: ="/" -> / | F9: =RIGHT(D9+1,2) -> 1 | AL9: 800
C12: Name
B13: =IF(OR(C13="",C13="-"),"",B12+1) ->  | G13: Hinweis: Reihenfolge nicht verändern! Bei Fluktuation Person leer lassen bzw. zuunterst anfügen.
B14: =IF(OR(C14="",C14="-"),"",B13+1) -> 
B15: =IF(OR(C15="",C15="-"),"",MAX(B$13:B14)+1) -> 
B16: =IF(OR(C16="",C16="-"),"",MAX(B$13:B15)+1) -> 
B17: =IF(OR(C17="",C17="-"),"",MAX(B$13:B16)+1) -> 
B18: =IF(OR(C18="",C18="-"),"",MAX(B$13:B17)+1) -> 
B19: =IF(OR(C19="",C19="-"),"",MAX(B$13:B18)+1) -> 
B20: =IF(OR(C20="",C20="-"),"",MAX(B$13:B19)+1) -> 
B21: =IF(OR(C21="",C21="-"),"",MAX(B$13:B20)+1) -> 
B22: =IF(OR(C22="",C22="-"),"",MAX(B$13:B21)+1) -> 
B23: =IF(OR(C23="",C23="-"),"",MAX(B$13:B22)+1) -> 
B24: =IF(OR(C24="",C24="-"),"",MAX(B$13:B23)+1) -> 
B25: =IF(OR(C25="",C25="-"),"",MAX(B$13:B24)+1) -> 
B26: =IF(OR(C26="",C26="-"),"",MAX(B$13:B25)+1) -> 
B27: =IF(OR(C27="",C27="-"),"",MAX(B$13:B26)+1) -> 
B28: =IF(OR(C28="",C28="-"),"",MAX(B$13:B27)+1) -> 
B29: =IF(OR(C29="",C29="-"),"",MAX(B$13:B28)+1) -> 
B30: =IF(OR(C30="",C30="-"),"",MAX(B$13:B29)+1) -> 
B31: =IF(OR(C31="",C31="-"),"",MAX(B$13:B30)+1) -> 
B32: =IF(OR(C32="",C32="-"),"",MAX(B$13:B31)+1) -> 
B33: =IF(OR(C33="",C33="-"),"",MAX(B$13:B32)+1) -> 
B34: =IF(OR(C34="",C34="-"),"",MAX(B$13:B33)+1) -> 
B35: =IF(OR(C35="",C35="-"),"",MAX(B$13:B34)+1) -> 
B36: =IF(OR(C36="",C36="-"),"",MAX(B$13:B35)+1) -> 
B37: =IF(OR(C37="",C37="-"),"",MAX(B$13:B36)+1) -> 
B38: =IF(OR(C38="",C38="-"),"",MAX(B$13:B37)+1) -> 
B39: =IF(OR(C39="",C39="-"),"",MAX(B$13:B38)+1) -> 
B40: =IF(OR(C40="",C40="-"),"",MAX(B$13:B39)+1) -> 
A42: Anz. | B42: =MAX(B13:B40) -> 0
A43: Ze. | B43: =MATCH(0,B13:B40,-1) -> 
E54: Datenimport
A69: Programmier-Werkzeuge:
E71: Datenimport
E88: Datenimport-Funktion für alte Versionen

Sheet Ferien
K2: Ferienplan
K7: Kalenderjahre | L7: 2021 | N7: 2022 | P7: 2023 | AT7: Bildschirm
AT8: 1280
K9: Schulstart: | L9: 2021-01-04 | N9: 2022-01-03 | P9: 2023-01-09 | AT9: 800
J12: Winterferien | K12: Ferienanfang: | L12: 2021-01-30 | N12: 2022-01-29 | P12: 2023-01-28
J13: (Sportwoche) | K13: Schulstart: | L13: 2021-02-08 | N13: 2022-02-07 | P13: 2023-02-06
J15: Frühlingsferien | K15: Ferienanfang: | L15: 2021-04-10 | N15: 2022-04-09 | P15: 2023-04-07
K16: Schulstart: | L16: 2021-04-26 | N16: 2022-04-25 | P16: 2023-04-24
J18: Sommerferien | K18: Ferienanfang: | L18: 2021-07-10 | N18: 2022-07-09 | P18: 2023-07-08
K19: Schulstart: | L19: 2021-08-16 | N19: 2022-08-15 | P19: 2023-08-14
J21: Herbstferien | K21: Ferienanfang: | L21: 2021-10-02 | N21: 2022-10-01 | P21: 2023-09-30
K22: Schulstart: | L22: 2021-10-25 | N22: 2022-10-24 | P22: 2023-10-23
J24: Weihnachtferien | K24: Ferienanfang: | L24: 2021-12-18 | N24: 2022-12-24 | P24: 2023-12-23

Sheet Liste
A1: Schreiben | E1: =Klasse!D8 -> 0 | I1: =Klasse!D7&". Klasse" -> . Klasse | K1: =Klasse!E7&". Semester" -> . Semester | N1: =Klasse!D9&"/"&Klasse!F9 -> /1
R2: ab | S2: 1 | U2: =S2 -> 1 | V2: =U2+1 -> 2 | W2: =V2+1 -> 3 | X2: 4 | Y2: 5 | Z2: 6 | AA2: 7 | AB2: 8 | AC2: 9 | AD2: 10 | AE2: 11 | AF2: 12
C4: 1 | D4: 2 | E4: 3 | F4: 4 | G4: 5 | H4: 6 | I4: 7 | J4: 8 | K4: 9 | L4: 10 | M4: 11 | N4: 12 | R4: ab | S4: aug | U4: =S4 -> aug | V4: =VLOOKUP($S$4,$U$6:$AF$16,2,0) -> sep | W4: =VLOOKUP($S$4,$U$6:$AF$16,3,0) -> okt | X4: =VLOOKUP($S$4,$U$6:$AF$16,4,0) -> nov | Y4: =VLOOKUP($S$4,$U$6:$AF$16,5,0) -> dez | Z4: =VLOOKUP($S$4,$U$6:$AF$16,6,0) -> jan | AA4: =VLOOKUP($S$4,$U$6:$AF$16,7,0) -> feb | AB4: =VLOOKUP($S$4,$U$6:$AF$16,8,0) -> mrz | AC4: =VLOOKUP($S$4,$U$6:$AF$16,9,0) -> apr | AD4: =VLOOKUP($S$4,$U$6:$AF$16,10,0) -> mai | AE4: =VLOOKUP($S$4,$U$6:$AF$16,11,0) -> jun | AF4: =VLOOKUP($S$4,$U$6:$AF$16,12,0) -> jul
A5: =IF(Klasse!B13="","",Klasse!B13) ->  | B5: =IF(Klasse!C13="","",Klasse!C13) ->  | U5: jan | V5: feb | W5: mrz | X5: apr | Y5: mai | Z5: jun | AA5: jul | AB5: aug | AC5: sep | AD5: okt | AE5: nov | AF5: dez | AG5: jan | AH5: feb | AI5: mrz | AJ5: apr | AK5: mai | AL5: jun | AM5: jul | AN5: aug | AO5: sep | AP5: okt | AQ5: nov | AR5: dez
A6: =IF(Klasse!B14="","",Klasse!B14) ->  | B6: =IF(Klasse!C14="","",Klasse!C14) ->  | U6: =V5 -> feb | V6: =W5 -> mrz | W6: apr | X6: mai | Y6: jun | Z6: jul | AA6: aug | AB6: sep | AC6: okt | AD6: nov | AE6: dez | AF6: jan
A7: =IF(Klasse!B15="","",Klasse!B15) ->  | B7: =IF(Klasse!C15="","",Klasse!C15) ->  | U7: =W5 -> mrz | V7: =X5 -> apr | W7: mai | X7: jun | Y7: jul | Z7: aug | AA7: sep | AB7: okt | AC7: nov | AD7: dez | AE7: jan | AF7: feb
A8: =IF(Klasse!B16="","",Klasse!B16) ->  | B8: =IF(Klasse!C16="","",Klasse!C16) ->  | U8: =X5 -> apr | V8: =Y5 -> mai | W8: jun | X8: jul | Y8: aug | Z8: sep | AA8: okt | AB8: nov | AC8: dez | AD8: jan | AE8: feb | AF8: mrz
A9: =IF(Klasse!B17="","",Klasse!B17) ->  | B9: =IF(Klasse!C17="","",Klasse!C17) ->  | U9: =Y5 -> mai | V9: =Z5 -> jun | W9: jul | X9: aug | Y9: sep | Z9: okt | AA9: nov | AB9: dez | AC9: jan | AD9: feb | AE9: mrz | AF9: apr
A10: =IF(Klasse!B18="","",Klasse!B18) ->  | B10: =IF(Klasse!C18="","",Klasse!C18) ->  | U10: =Z5 -> jun | V10: =AA5 -> jul | W10: aug | X10: sep | Y10: okt | Z10: nov | AA10: dez | AB10: jan | AC10: feb | AD10: mrz | AE10: apr | AF10: mai
A11: =IF(Klasse!B19="","",Klasse!B19) ->  | B11: =IF(Klasse!C19="","",Klasse!C19) ->  | U11: =AA5 -> jul | V11: =AB5 -> aug | W11: sep | X11: okt | Y11: nov | Z11: dez | AA11: jan | AB11: feb | AC11: mrz | AD11: apr | AE11: mai | AF11: jun
A12: =IF(Klasse!B20="","",Klasse!B20) ->  | B12: =IF(Klasse!C20="","",Klasse!C20) ->  | U12: =AB5 -> aug | V12: =AC5 -> sep | W12: okt | X12: nov | Y12: dez | Z12: jan | AA12: feb | AB12: mrz | AC12: apr | AD12: mai | AE12: jun | AF12: jul
A13: =IF(Klasse!B21="","",Klasse!B21) ->  | B13: =IF(Klasse!C21="","",Klasse!C21) ->  | U13: =AC5 -> sep | V13: =AD5 -> okt | W13: nov | X13: dez | Y13: jan | Z13: feb | AA13: mrz | AB13: apr | AC13: mai | AD13: jun | AE13: jul | AF13: aug
A14: =IF(Klasse!B22="","",Klasse!B22) ->  | B14: =IF(Klasse!C22="","",Klasse!C22) ->  | U14: =AD5 -> okt | V14: =AE5 -> nov | W14: dez | X14: jan | Y14: feb | Z14: mrz | AA14: apr | AB14: mai | AC14: jun | AD14: jul | AE14: aug | AF14: sep
A15: =IF(Klasse!B23="","",Klasse!B23) ->  | B15: =IF(Klasse!C23="","",Klasse!C23) ->  | U15: =AE5 -> nov | V15: =AF5 -> dez | W15: jan | X15: feb | Y15: mrz | Z15: apr | AA15: mai | AB15: jun | AC15: jul | AD15: aug | AE15: sep | AF15: okt
A16: =IF(Klasse!B24="","",Klasse!B24) ->  | B16: =IF(Klasse!C24="","",Klasse!C24) ->  | U16: =AF5 -> dez | V16: =AG5 -> jan | W16: feb | X16: mrz | Y16: apr | Z16: mai | AA16: jun | AB16: jul | AC16: aug | AD16: sep | AE16: okt | AF16: nov
A17: =IF(Klasse!B25="","",Klasse!B25) ->  | B17: =IF(Klasse!C25="","",Klasse!C25) -> 
A18: =IF(Klasse!B26="","",Klasse!B26) ->  | B18: =IF(Klasse!C26="","",Klasse!C26) -> 
A19: =IF(Klasse!B27="","",Klasse!B27) ->  | B19: =IF(Klasse!C27="","",Klasse!C27) -> 
A20: =IF(Klasse!B28="","",Klasse!B28) ->  | B20: =IF(Klasse!C28="","",Klasse!C28) -> 
A21: =IF(Klasse!B29="","",Klasse!B29) ->  | B21: =IF(Klasse!C29="","",Klasse!C29) -> 
A22: =IF(Klasse!B30="","",Klasse!B30) ->  | B22: =IF(Klasse!C30="","",Klasse!C30) -> 
A23: =IF(Klasse!B31="","",Klasse!B31) ->  | B23: =IF(Klasse!C31="","",Klasse!C31) -> 
A24: =IF(Klasse!B32="","",Klasse!B32) ->  | B24: =IF(Klasse!C32="","",Klasse!C32) -> 
A25: =IF(Klasse!B33="","",Klasse!B33) ->  | B25: =IF(Klasse!C33="","",Klasse!C33) -> 
A26: =IF(Klasse!B34="","",Klasse!B34) ->  | B26: =IF(Klasse!C34="","",Klasse!C34) -> 
A27: =IF(Klasse!B35="","",Klasse!B35) ->  | B27: =IF(Klasse!C35="","",Klasse!C35) -> 
A28: =IF(Klasse!B36="","",Klasse!B36) ->  | B28: =IF(Klasse!C36="","",Klasse!C36) -> 
A29: =IF(Klasse!B37="","",Klasse!B37) ->  | B29: =IF(Klasse!C37="","",Klasse!C37) -> 
A30: =IF(Klasse!B38="","",Klasse!B38) ->  | B30: =IF(Klasse!C38="","",Klasse!C38) -> 
A31: =IF(Klasse!B39="","",Klasse!B39) ->  | B31: =IF(Klasse!C39="","",Klasse!C39) -> 
A32: =IF(Klasse!B40="","",Klasse!B40) ->  | B32: =IF(Klasse!C40="","",Klasse!C40) -> 

Sheet Aemtliplan
B1: Klassenliste mit Zufallsstart | F1: Zahlen-Zuordnung mit def. Pers. Und Ämtli mit Leerabstand | Y1: Einbezug von Klassengrösse (Max) = fertige Funktion | AS1: Namen-Zuteilung | BJ1: Namentrennung ---> | BL1: Verteilungsmuster | BN1: Ämtliverteilung | BT1: =Liste!E1 -> 0 | BW1: =Liste!I1 -> . Klasse | BY1: =Liste!N1 -> /1 | CG1: Verteilungsmuster
H2: =IF($CI16="","",$CI16) -> Bücherecke | I2: =IF($CI17="","",$CI17) -> Blumen giessen | J2: =IF($CI18="","",$CI18) -> Verteilen (rechts) | K2: =IF($CI19="","",$CI19) -> Wandtafel (Trocknen) | L2: =IF($CI20="","",$CI20) -> Verteilen (links) | M2: =IF($CI21="","",$CI21) -> Wandtafel (Schwamm) | N2: =IF($CI22="","",$CI22) -> Boden+ Brünneli | O2: =IF($CI23="","",$CI23) -> Finken | P2: =IF($CI24="","",$CI24) -> Karteikarten erstellen | Q2: =IF($CI25="","",$CI25) ->  | R2: =IF($CI26="","",$CI26) ->  | S2: =IF($CI27="","",$CI27) ->  | T2: =IF($CI28="","",$CI28) ->  | U2: =IF($CI29="","",$CI29) ->  | V2: =IF($CI30="","",$CI30) ->  | W2: =IF($CI31="","",$CI31) ->  | AA2: =H2 -> Bücherecke | AB2: Blumen giessen | AC2: Verteilen (rechts) | AD2: Wandtafel (Trocknen) | AE2: Verteilen (links) | AF2: Wandtafel (Schwamm) | AG2: Boden+ Brünneli | AH2: Finken | AI2: =P2 -> Karteikarten erstellen | AU2: =H2 -> Bücherecke | AV2: Blumen giessen | AW2: Verteilen (rechts) | AX2: Wandtafel (Trocknen) | AY2: Verteilen (links) | AZ2: Wandtafel (Schwamm) | BA2: Boden+ Brünneli | BB2: Finken | BC2: Karteikarten erstellen | BP2: =H2 -> Bücherecke | BQ2: Blumen giessen | BR2: Verteilen (rechts) | BS2: Wandtafel (Trocknen) | BT2: Verteilen (links) | BU2: Wandtafel (Schwamm) | BV2: Boden+ Brünneli | BW2: Finken | BX2: Karteikarten erstellen | CC2: =U2 ->  | CH2: erste Wochen-Nr. | CI2: 9
CH3: Anz. Wochen | CI3: 32
CH5: Startzahl (Schülernr.) | CI5: 6
B6: Max
B7: =MAX(B9:B36) -> 0 | CH7: Verteilungsschlüssel | CI7: 3
H8: =IF(H2="","",G8+1) -> 1 | I8: 2 | J8: 3 | K8: 4 | L8: 5 | M8: 6 | N8: 7 | O8: 8 | P8: 9 | AA8: =H8 -> 1 | AB8: =I8 -> 2 | AC8: 3 | AD8: 4 | AE8: 5 | AF8: 6 | AG8: 7 | AH8: 8 | AI8: 9 | AU8: =H8 -> 1 | AV8: 2 | AW8: 3 | AX8: 4 | AY8: 5 | AZ8: 6 | BA8: 7 | BB8: 8 | BC8: 9 | BP8: =AU8 -> 1 | BQ8: 2 | BR8: 3 | BS8: 4 | BT8: 5 | BU8: 6 | BV8: =BA8 -> 7 | BW8: 8 | BX8: 9 | CB8: =BG8 ->  | CH8: (Zahl von 1-9) | CI8: =IF(AQ50=0,"OK","Achtung: Doppelämtli !!!") -> 
B9: =IF(Klasse!B13=0,"",Klasse!B13) ->  | C9: =CI5 -> 6 | D9: =IF(Klasse!C13=0,"",Klasse!C13) ->  | F9: =IF(G9=0,"","Woche") -> Woche | G9: =IF(OR(CI2="",CI2=0),1,CI2) -> 9 | H9: =IF(H$8="","",($G9-1)+H$8+G$8*$CI$7) -> 9 | I9: 13 | J9: 17 | K9: 21 | L9: 25 | M9: 29 | N9: 33 | O9: 37 | P9: 41 | Q9: =IF(Q$8="","",(($G9-1)*7)+Q$8+P$8*$CI$7) ->  | Y9: =F9 -> Woche | Z9: =G9 -> 9 | AA9: =IF(OR(AA$8="",$Z9=""),"",IF(MOD(H9,$B$7)=0,$B$7,IF(H9>$B$7,H9-(INT(H9/$B$7)*$B$7),H9))) ->  | AB9: =IF(OR(AB$8="",$Z9=""),"",IF(MOD(I9,$B$7)=0,$B$7,IF(I9>$B$7,I9-(INT(I9/$B$7)*$B$7),I9))) ->  | AC9: =IF(OR(AC$8="",$Z9=""),"",IF(MOD(J9,$B$7)=0,$B$7,IF(J9>$B$7,J9-(INT(J9/$B$7)*$B$7),J9))) ->  | AD9: =IF(OR(AD$8="",$Z9=""),"",IF(MOD(K9,$B$7)=0,$B$7,IF(K9>$B$7,K9-(INT(K9/$B$7)*$B$7),K9))) ->  | AE9: =IF(OR(AE$8="",$Z9=""),"",IF(MOD(L9,$B$7)=0,$B$7,IF(L9>$B$7,L9-(INT(L9/$B$7)*$B$7),L9))) ->  | AF9: =IF(OR(AF$8="",$Z9=""),"",IF(MOD(M9,$B$7)=0,$B$7,IF(M9>$B$7,M9-(INT(M9/$B$7)*$B$7),M9))) ->  | AG9: =IF(OR(AG$8="",$Z9=""),"",IF(MOD(N9,$B$7)=0,$B$7,IF(N9>$B$7,N9-(INT(N9/$B$7)*$B$7),N9))) ->  | AH9: =IF(OR(AH$8="",$Z9=""),"",IF(MOD(O9,$B$7)=0,$B$7,IF(O9>$B$7,O9-(INT(O9/$B$7)*$B$7),O9))) ->  | AI9: =IF(OR(AI$8="",$Z9=""),"",IF(MOD(P9,$B$7)=0,$B$7,IF(P9>$B$7,P9-(INT(P9/$B$7)*$B$7),P9))) ->  | AJ9: =IF(OR(AJ$8="",$Z9=""),"",IF(MOD(Q9,$B$7)=0,$B$7,IF(Q9>$B$7,Q9-(INT(Q9/$B$7)*$B$7),Q9))) ->  | AK9: =IF(OR(AK$8="",$Z9=""),"",IF(MOD(R9,$B$7)=0,$B$7,IF(R9>$B$7,R9-(INT(R9/$B$7)*$B$7),R9))) ->  | AL9: =IF(OR(AL$8="",$Z9=""),"",IF(MOD(S9,$B$7)=0,$B$7,IF(S9>$B$7,S9-(INT(S9/$B$7)*$B$7),S9))) ->  | AM9: =IF(OR(AM$8="",$Z9=""),"",IF(MOD(T9,$B$7)=0,$B$7,IF(T9>$B$7,T9-(INT(T9/$B$7)*$B$7),T9))) ->  | AN9: =IF(OR(AN$8="",$Z9=""),"",IF(MOD(U9,$B$7)=0,$B$7,IF(U9>$B$7,U9-(INT(U9/$B$7)*$B$7),U9))) ->  | AO9: =IF(OR(AO$8="",$Z9=""),"",IF(MOD(V9,$B$7)=0,$B$7,IF(V9>$B$7,V9-(INT(V9/$B$7)*$B$7),V9))) ->  | AP9: =IF(OR(AP$8="",$Z9=""),"",IF(MOD(W9,$B$7)=0,$B$7,IF(W9>$B$7,W9-(INT(W9/$B$7)*$B$7),W9))) ->  | AQ9: =COUNT(AA9:AP9)-SUM(IF(AA9:AP9="",0,1/COUNTIF(AA9:AP9,AA9:AP9))) ->  | AS9: =F9 -> Woche | AT9: =G9 -> 9 | AU9: =IF(AA9="","",VLOOKUP(AA9,$C$9:$D$36,2,0)) ->  | AV9: =IF(AB9="","",VLOOKUP(AB9,$C$9:$D$36,2,0)) ->  | AW9: =IF(AC9="","",VLOOKUP(AC9,$C$9:$D$36,2,0)) ->  | AX9: =IF(AD9="","",VLOOKUP(AD9,$C$9:$D$36,2,0)) ->  | AY9: =IF(AE9="","",VLOOKUP(AE9,$C$9:$D$36,2,0)) ->  | AZ9: =IF(AF9="","",VLOOKUP(AF9,$C$9:$D$36,2,0)) ->  | BA9: =IF(AG9="","",VLOOKUP(AG9,$C$9:$D$36,2,0)) ->  | BB9: =IF(AH9="","",VLOOKUP(AH9,$C$9:$D$36,2,0)) ->  | BC9: =IF(AI9="","",VLOOKUP(AI9,$C$9:$D$36,2,0)) ->  | BD9: =IF(AJ9="","",VLOOKUP(AJ9,$C$9:$D$36,2,0)) ->  | BE9: =IF(AK9="","",VLOOKUP(AK9,$C$9:$D$36,2,0)) ->  | BF9: =IF(AL9="","",VLOOKUP(AL9,$C$9:$D$36,2,0)) ->  | BG9: =IF(AM9="","",VLOOKUP(AM9,$C$9:$D$36,2,0)) ->  | BH9: =IF(AN9="","",VLOOKUP(AN9,$C$9:$D$36,2,0)) ->  | BI9: =IF(AO9="","",VLOOKUP(AO9,$C$9:$D$36,2,0)) ->  | BJ9: =IF(AP9="","",VLOOKUP(AP9,$C$9:$D$36,2,0)) ->  | BL9: =IF(BO9="","",COUNTIF(BP9:CE9,$BP$9)) -> 9 | BN9: =F9 -> Woche | BO9: =G9 -> 9 | BP9: =IF(AU9="","",IF(AND($CI$12="Ja", ISERROR(MID(AU9,1,FIND(" ",AU9)+1))=FALSE),MID(AU9,1,FIND(" ",AU9)+1),AU9)) ->  | BQ9: =IF(AV9="","",IF(AND($CI$12="Ja", ISERROR(MID(AV9,1,FIND(" ",AV9)+1))=FALSE),MID(AV9,1,FIND(" ",AV9)+1),AV9)) ->  | BR9: =IF(AW9="","",IF(AND($CI$12="Ja", ISERROR(MID(AW9,1,FIND(" ",AW9)+1))=FALSE),MID(AW9,1,FIND(" ",AW9)+1),AW9)) ->  | BS9: =IF(AX9="","",IF(AND($CI$12="Ja", ISERROR(MID(AX9,1,FIND(" ",AX9)+1))=FALSE),MID(AX9,1,FIND(" ",AX9)+1),AX9)) ->  | BT9: =IF(AY9="","",IF(AND($CI$12="Ja", ISERROR(MID(AY9,1,FIND(" ",AY9)+1))=FALSE),MID(AY9,1,FIND(" ",AY9)+1),AY9)) ->  | BU9: =IF(AZ9="","",IF(AND($CI$12="Ja", ISERROR(MID(AZ9,1,FIND(" ",AZ9)+1))=FALSE),MID(AZ9,1,FIND(" ",AZ9)+1),AZ9)) ->  | BV9: =IF(BA9="","",IF(AND($CI$12="Ja", ISERROR(MID(BA9,1,FIND(" ",BA9)+1))=FALSE),MID(BA9,1,FIND(" ",BA9)+1),BA9)) ->  | BW9: =IF(BB9="","",IF(AND($CI$12="Ja", ISERROR(MID(BB9,1,FIND(" ",BB9)+1))=FALSE),MID(BB9,1,FIND(" ",BB9)+1),BB9)) ->  | BX9: =IF(BC9="","",IF(AND($CI$12="Ja", ISERROR(MID(BC9,1,FIND(" ",BC9)+1))=FALSE),MID(BC9,1,FIND(" ",BC9)+1),BC9)) ->  | BY9: =IF(BD9="","",IF(AND($CI$12="Ja", ISERROR(MID(BD9,1,FIND(" ",BD9)+1))=FALSE),MID(BD9,1,FIND(" ",BD9)+1),BD9)) ->  | BZ9: =IF(BE9="","",IF(AND($CI$12="Ja", ISERROR(MID(BE9,1,FIND(" ",BE9)+1))=FALSE),MID(BE9,1,FIND(" ",BE9)+1),BE9)) ->  | CA9: =IF(BF9="","",IF(AND($CI$12="Ja", ISERROR(MID(BF9,1,FIND(" ",BF9)+1))=FALSE),MID(BF9,1,FIND(" ",BF9)+1),BF9)) ->  | CB9: =IF(BG9="","",IF(AND($CI$12="Ja", ISERROR(MID(BG9,1,FIND(" ",BG9)+1))=FALSE),MID(BG9,1,FIND(" ",BG9)+1),BG9)) ->  | CC9: =IF(BH9="","",IF(AND($CI$12="Ja", ISERROR(MID(BH9,1,FIND(" ",BH9)+1))=FALSE),MID(BH9,1,FIND(" ",BH9)+1),BH9)) ->  | CD9: =IF(BI9="","",IF(AND($CI$12="Ja", ISERROR(MID(BI9,1,FIND(" ",BI9)+1))=FALSE),MID(BI9,1,FIND(" ",BI9)+1),BI9)) ->  | CE9: =IF(BJ9="","",IF(AND($CI$12="Ja", ISERROR(MID(BJ9,1,FIND(" ",BJ9)+1))=FALSE),MID(BJ9,1,FIND(" ",BJ9)+1),BJ9)) -> 
B10: =IF(Klasse!B14=0,"",Klasse!B14) ->  | C10: =IF(B10="","",IF(MAX(C$9:C9)+1>$B$7,IF(C9=B$7,1,C9+1),MAX(C$9:C9)+1)) ->  | D10: =IF(Klasse!C14=0,"",Klasse!C14) ->  | G10: =IF(G9="","",IF(G9<$CI$3+$G$9-1,G9+1,"")) -> 10 | H10: =IF(OR($G10="",H$8=""),"",H9+1) -> 10 | I10: =IF(OR($G10="",I$8=""),"",I9+1) -> 14 | J10: =IF(OR($G10="",J$8=""),"",J9+1) -> 18 | K10: =IF(OR($G10="",K$8=""),"",K9+1) -> 22 | L10: =IF(OR($G10="",L$8=""),"",L9+1) -> 26 | M10: =IF(OR($G10="",M$8=""),"",M9+1) -> 30 | N10: =IF(OR($G10="",N$8=""),"",N9+1) -> 34 | O10: =IF(OR($G10="",O$8=""),"",O9+1) -> 38 | P10: =IF(OR($G10="",P$8=""),"",P9+1) -> 42 | Q10: =IF(OR($G10="",Q$8=""),"",Q9+1) ->  | R10: =IF(OR($G10="",R$8=""),"",R9+1) ->  | S10: =IF(OR($G10="",S$8=""),"",S9+1) ->  | T10: =IF(OR($G10="",T$8=""),"",T9+1) ->  | U10: =IF(OR($G10="",U$8=""),"",U9+1) ->  | V10: =IF(OR($G10="",V$8=""),"",V9+1) ->  | W10: =IF(OR($G10="",W$8=""),"",W9+1) ->  | Z10: =G10 -> 10 | AQ10: =COUNT(AA10:AP10)-SUM(IF(AA10:AP10="",0,1/COUNTIF(AA10:AP10,AA10:AP10))) ->  | AT10: =G10 -> 10 | AU10: =IF(AA10="","",VLOOKUP(AA10,$C$9:$D$36,2,0)) ->  | BL10: 9 | BO10: =G10 -> 10 | BP10: =IF(AU10="","",IF(AND($CI$12="Ja", ISERROR(MID(AU10,1,FIND(" ",AU10)+1))=FALSE),MID(AU10,1,FIND(" ",AU10)+1),AU10)) -> 
B11: =IF(Klasse!B15=0,"",Klasse!B15) ->  | C11: =IF(B11="","",IF(MAX(C$9:C10)+1>$B$7,IF(C10=B$7,1,C10+1),MAX(C$9:C10)+1)) ->  | D11: =IF(Klasse!C15=0,"",Klasse!C15) ->  | G11: 11 | H11: =IF(OR($G11="",H$8=""),"",H10+1) -> 11 | I11: 15 | J11: 19 | K11: 23 | L11: 27 | M11: 31 | N11: 35 | O11: 39 | P11: 43 | Z11: 11 | AQ11: =COUNT(AA11:AP11)-SUM(IF(AA11:AP11="",0,1/COUNTIF(AA11:AP11,AA11:AP11))) ->  | AT11: 11 | BL11: 9 | BO11: 11
B12: =IF(Klasse!B16=0,"",Klasse!B16) ->  | C12: =IF(B12="","",IF(MAX(C$9:C11)+1>$B$7,IF(C11=B$7,1,C11+1),MAX(C$9:C11)+1)) ->  | D12: =IF(Klasse!C16=0,"",Klasse!C16) ->  | G12: 12 | H12: 12 | I12: 16 | J12: 20 | K12: 24 | L12: 28 | M12: 32 | N12: 36 | O12: 40 | P12: 44 | Z12: 12 | AQ12: =COUNT(AA12:AP12)-SUM(IF(AA12:AP12="",0,1/COUNTIF(AA12:AP12,AA12:AP12))) ->  | AT12: 12 | BL12: 9 | BO12: 12 | CH12: Namen kürzen | CI12: ja
B13: =IF(Klasse!B17=0,"",Klasse!B17) ->  | C13: =IF(B13="","",IF(MAX(C$9:C12)+1>$B$7,IF(C12=B$7,1,C12+1),MAX(C$9:C12)+1)) ->  | D13: =IF(Klasse!C17=0,"",Klasse!C17) ->  | G13: 13 | H13: 13 | I13: 17 | J13: 21 | K13: 25 | L13: 29 | M13: 33 | N13: 37 | O13: 41 | P13: 45 | Z13: 13 | AQ13: =COUNT(AA13:AP13)-SUM(IF(AA13:AP13="",0,1/COUNTIF(AA13:AP13,AA13:AP13))) ->  | AT13: 13 | BL13: 9 | BO13: 13
B14: =IF(Klasse!B18=0,"",Klasse!B18) ->  | C14: =IF(B14="","",IF(MAX(C$9:C13)+1>$B$7,IF(C13=B$7,1,C13+1),MAX(C$9:C13)+1)) ->  | D14: =IF(Klasse!C18=0,"",Klasse!C18) ->  | G14: 14 | H14: 14 | I14: 18 | J14: 22 | K14: 26 | L14: 30 | M14: 34 | N14: 38 | O14: 42 | P14: 46 | Z14: 14 | AQ14: =COUNT(AA14:AP14)-SUM(IF(AA14:AP14="",0,1/COUNTIF(AA14:AP14,AA14:AP14))) ->  | AT14: 14 | BL14: 9 | BO14: 14
B15: =IF(Klasse!B19=0,"",Klasse!B19) ->  | C15: =IF(B15="","",IF(MAX(C$9:C14)+1>$B$7,IF(C14=B$7,1,C14+1),MAX(C$9:C14)+1)) ->  | D15: =IF(Klasse!C19=0,"",Klasse!C19) ->  | G15: 15 | H15: 15 | I15: 19 | J15: 23 | K15: 27 | L15: 31 | M15: 35 | N15: 39 | O15: 43 | P15: 47 | Z15: 15 | AQ15: =COUNT(AA15:AP15)-SUM(IF(AA15:AP15="",0,1/COUNTIF(AA15:AP15,AA15:AP15))) ->  | AT15: 15 | BL15: 9 | BO15: 15 | CI15: Ämtli
B16: =IF(Klasse!B20=0,"",Klasse!B20) ->  | C16: =IF(B16="","",IF(MAX(C$9:C15)+1>$B$7,IF(C15=B$7,1,C15+1),MAX(C$9:C15)+1)) ->  | D16: =IF(Klasse!C20=0,"",Klasse!C20) ->  | G16: 16 | H16: 16 | I16: 20 | J16: 24 | K16: 28 | L16: 32 | M16: 36 | N16: 40 | O16: 44 | P16: 48 | Z16: 16 | AQ16: =COUNT(AA16:AP16)-SUM(IF(AA16:AP16="",0,1/COUNTIF(AA16:AP16,AA16:AP16))) ->  | AT16: 16 | BL16: 9 | BO16: 16 | CH16: =IF(CI16=0,"",MAX(CH$2:CH2)+1) -> 1 | CI16: Bücherecke
B17: =IF(Klasse!B21=0,"",Klasse!B21) ->  | C17: =IF(B17="","",IF(MAX(C$9:C16)+1>$B$7,IF(C16=B$7,1,C16+1),MAX(C$9:C16)+1)) ->  | D17: =IF(Klasse!C21=0,"",Klasse!C21) ->  | G17: 17 | H17: 17 | I17: 21 | J17: 25 | K17: 29 | L17: 33 | M17: 37 | N17: 41 | O17: 45 | P17: 49 | Z17: 17 | AQ17: =COUNT(AA17:AP17)-SUM(IF(AA17:AP17="",0,1/COUNTIF(AA17:AP17,AA17:AP17))) ->  | AT17: 17 | BL17: 9 | BO17: 17 | CH17: =IF(CI17=0,"",MAX(CH$2:CH16)+1) -> 2 | CI17: Blumen giessen
B18: =IF(Klasse!B22=0,"",Klasse!B22) ->  | C18: =IF(B18="","",IF(MAX(C$9:C17)+1>$B$7,IF(C17=B$7,1,C17+1),MAX(C$9:C17)+1)) ->  | D18: =IF(Klasse!C22=0,"",Klasse!C22) ->  | G18: 18 | H18: 18 | I18: 22 | J18: 26 | K18: 30 | L18: 34 | M18: 38 | N18: 42 | O18: 46 | P18: 50 | Z18: 18 | AQ18: =COUNT(AA18:AP18)-SUM(IF(AA18:AP18="",0,1/COUNTIF(AA18:AP18,AA18:AP18))) ->  | AT18: 18 | BL18: 9 | BO18: 18 | CH18: =IF(CI18=0,"",MAX(CH$2:CH17)+1) -> 3 | CI18: Verteilen (rechts)
B19: =IF(Klasse!B23=0,"",Klasse!B23) ->  | C19: =IF(B19="","",IF(MAX(C$9:C18)+1>$B$7,IF(C18=B$7,1,C18+1),MAX(C$9:C18)+1)) ->  | D19: =IF(Klasse!C23=0,"",Klasse!C23) ->  | G19: 19 | H19: 19 | I19: 23 | J19: 27 | K19: 31 | L19: 35 | M19: 39 | N19: 43 | O19: 47 | P19: 51 | Z19: 19 | AQ19: =COUNT(AA19:AP19)-SUM(IF(AA19:AP19="",0,1/COUNTIF(AA19:AP19,AA19:AP19))) ->  | AT19: 19 | BL19: 9 | BO19: 19 | CH19: =IF(CI19=0,"",MAX(CH$2:CH18)+1) -> 4 | CI19: Wandtafel (Trocknen)
B20: =IF(Klasse!B24=0,"",Klasse!B24) ->  | C20: =IF(B20="","",IF(MAX(C$9:C19)+1>$B$7,IF(C19=B$7,1,C19+1),MAX(C$9:C19)+1)) ->  | D20: =IF(Klasse!C24=0,"",Klasse!C24) ->  | G20: 20 | H20: 20 | I20: 24 | J20: 28 | K20: 32 | L20: 36 | M20: 40 | N20: 44 | O20: 48 | P20: 52 | Z20: 20 | AQ20: =COUNT(AA20:AP20)-SUM(IF(AA20:AP20="",0,1/COUNTIF(AA20:AP20,AA20:AP20))) ->  | AT20: 20 | BL20: 9 | BO20: 20 | CH20: =IF(CI20=0,"",MAX(CH$2:CH19)+1) -> 5 | CI20: Verteilen (links)
B21: =IF(Klasse!B25=0,"",Klasse!B25) ->  | C21: =IF(B21="","",IF(MAX(C$9:C20)+1>$B$7,IF(C20=B$7,1,C20+1),MAX(C$9:C20)+1)) ->  | D21: =IF(Klasse!C25=0,"",Klasse!C25) ->  | G21: 21 | H21: 21 | I21: 25 | J21: 29 | K21: 33 | L21: 37 | M21: 41 | N21: 45 | O21: 49 | P21: 53 | Z21: 21 | AQ21: =COUNT(AA21:AP21)-SUM(IF(AA21:AP21="",0,1/COUNTIF(AA21:AP21,AA21:AP21))) ->  | AT21: 21 | BL21: 9 | BO21: 21 | CH21: =IF(CI21=0,"",MAX(CH$2:CH20)+1) -> 6 | CI21: Wandtafel (Schwamm)
B22: =IF(Klasse!B26=0,"",Klasse!B26) ->  | C22: =IF(B22="","",IF(MAX(C$9:C21)+1>$B$7,IF(C21=B$7,1,C21+1),MAX(C$9:C21)+1)) ->  | D22: =IF(Klasse!C26=0,"",Klasse!C26) ->  | G22: 22 | H22: 22 | I22: 26 | J22: 30 | K22: 34 | L22: 38 | M22: 42 | N22: 46 | O22: 50 | P22: 54 | Z22: 22 | AQ22: =COUNT(AA22:AP22)-SUM(IF(AA22:AP22="",0,1/COUNTIF(AA22:AP22,AA22:AP22))) ->  | AT22: 22 | BL22: 9 | BO22: 22 | CH22: =IF(CI22=0,"",MAX(CH$2:CH21)+1) -> 7 | CI22: Boden+ Brünneli
B23: =IF(Klasse!B27=0,"",Klasse!B27) ->  | C23: =IF(B23="","",IF(MAX(C$9:C22)+1>$B$7,IF(C22=B$7,1,C22+1),MAX(C$9:C22)+1)) ->  | D23: =IF(Klasse!C27=0,"",Klasse!C27) ->  | G23: 23 | H23: 23 | I23: 27 | J23: 31 | K23: 35 | L23: 39 | M23: 43 | N23: 47 | O23: 51 | P23: 55 | Z23: 23 | AQ23: =COUNT(AA23:AP23)-SUM(IF(AA23:AP23="",0,1/COUNTIF(AA23:AP23,AA23:AP23))) ->  | AT23: 23 | BL23: 9 | BO23: 23 | CH23: =IF(CI23=0,"",MAX(CH$2:CH22)+1) -> 8 | CI23: Finken
B24: =IF(Klasse!B28=0,"",Klasse!B28) ->  | C24: =IF(B24="","",IF(MAX(C$9:C23)+1>$B$7,IF(C23=B$7,1,C23+1),MAX(C$9:C23)+1)) ->  | D24: =IF(Klasse!C28=0,"",Klasse!C28) ->  | G24: 24 | H24: 24 | I24: 28 | J24: 32 | K24: 36 | L24: 40 | M24: 44 | N24: 48 | O24: 52 | P24: 56 | Z24: 24 | AQ24: =COUNT(AA24:AP24)-SUM(IF(AA24:AP24="",0,1/COUNTIF(AA24:AP24,AA24:AP24))) ->  | AT24: 24 | BL24: 9 | BO24: 24 | CH24: =IF(CI24=0,"",MAX(CH$2:CH23)+1) -> 9 | CI24: Karteikarten erstellen
B25: =IF(Klasse!B29=0,"",Klasse!B29) ->  | C25: =IF(B25="","",IF(MAX(C$9:C24)+1>$B$7,IF(C24=B$7,1,C24+1),MAX(C$9:C24)+1)) ->  | D25: =IF(Klasse!C29=0,"",Klasse!C29) ->  | G25: 25 | H25: 25 | I25: 29 | J25: 33 | K25: 37 | L25: 41 | M25: 45 | N25: 49 | O25: 53 | P25: 57 | Z25: 25 | AQ25: =COUNT(AA25:AP25)-SUM(IF(AA25:AP25="",0,1/COUNTIF(AA25:AP25,AA25:AP25))) ->  | AT25: 25 | BL25: 9 | BO25: 25 | CH25: =IF(CI25=0,"",MAX(CH$2:CH24)+1) -> 
B26: =IF(Klasse!B30=0,"",Klasse!B30) ->  | C26: =IF(B26="","",IF(MAX(C$9:C25)+1>$B$7,IF(C25=B$7,1,C25+1),MAX(C$9:C25)+1)) ->  | D26: =IF(Klasse!C30=0,"",Klasse!C30) ->  | G26: 26 | H26: 26 | I26: 30 | J26: 34 | K26: 38 | L26: 42 | M26: 46 | N26: 50 | O26: 54 | P26: 58 | Z26: 26 | AQ26: =COUNT(AA26:AP26)-SUM(IF(AA26:AP26="",0,1/COUNTIF(AA26:AP26,AA26:AP26))) ->  | AT26: 26 | BL26: 9 | BO26: 26 | CH26: =IF(CI26=0,"",MAX(CH$2:CH25)+1) -> 
B27: =IF(Klasse!B31=0,"",Klasse!B31) ->  | C27: =IF(B27="","",IF(MAX(C$9:C26)+1>$B$7,IF(C26=B$7,1,C26+1),MAX(C$9:C26)+1)) ->  | D27: =IF(Klasse!C31=0,"",Klasse!C31) ->  | G27: 27 | H27: 27 | I27: 31 | J27: 35 | K27: 39 | L27: 43 | M27: 47 | N27: 51 | O27: 55 | P27: 59 | Z27: 27 | AQ27: =COUNT(AA27:AP27)-SUM(IF(AA27:AP27="",0,1/COUNTIF(AA27:AP27,AA27:AP27))) ->  | AT27: 27 | BL27: 9 | BO27: 27 | CH27: =IF(CI27=0,"",MAX(CH$2:CH26)+1) -> 
B28: =IF(Klasse!B32=0,"",Klasse!B32) ->  | C28: =IF(B28="","",IF(MAX(C$9:C27)+1>$B$7,IF(C27=B$7,1,C27+1),MAX(C$9:C27)+1)) ->  | D28: =IF(Klasse!C32=0,"",Klasse!C32) ->  | G28: 28 | H28: 28 | I28: 32 | J28: 36 | K28: 40 | L28: 44 | M28: 48 | N28: 52 | O28: 56 | P28: 60 | Z28: 28 | AQ28: =COUNT(AA28:AP28)-SUM(IF(AA28:AP28="",0,1/COUNTIF(AA28:AP28,AA28:AP28))) ->  | AT28: 28 | BL28: 9 | BO28: 28 | CH28: =IF(CI28=0,"",MAX(CH$2:CH27)+1) -> 
B29: =IF(Klasse!B33=0,"",Klasse!B33) ->  | C29: =IF(B29="","",IF(MAX(C$9:C28)+1>$B$7,IF(C28=B$7,1,C28+1),MAX(C$9:C28)+1)) ->  | D29: =IF(Klasse!C33=0,"",Klasse!C33) ->  | G29: 29 | H29: 29 | I29: 33 | J29: 37 | K29: 41 | L29: 45 | M29: 49 | N29: 53 | O29: 57 | P29: 61 | Z29: 29 | AQ29: =COUNT(AA29:AP29)-SUM(IF(AA29:AP29="",0,1/COUNTIF(AA29:AP29,AA29:AP29))) ->  | AT29: 29 | BL29: 9 | BO29: 29 | CH29: =IF(CI29=0,"",MAX(CH$2:CH28)+1) -> 
B30: =IF(Klasse!B34=0,"",Klasse!B34) ->  | C30: =IF(B30="","",IF(MAX(C$9:C29)+1>$B$7,IF(C29=B$7,1,C29+1),MAX(C$9:C29)+1)) ->  | D30: =IF(Klasse!C34=0,"",Klasse!C34) ->  | G30: 30 | H30: 30 | I30: 34 | J30: 38 | K30: 42 | L30: 46 | M30: 50 | N30: 54 | O30: 58 | P30: 62 | Z30: 30 | AQ30: =COUNT(AA30:AP30)-SUM(IF(AA30:AP30="",0,1/COUNTIF(AA30:AP30,AA30:AP30))) ->  | AT30: 30 | BL30: 9 | BO30: 30 | CH30: =IF(CI30=0,"",MAX(CH$2:CH29)+1) -> 
B31: =IF(Klasse!B35=0,"",Klasse!B35) ->  | C31: =IF(B31="","",IF(MAX(C$9:C30)+1>$B$7,IF(C30=B$7,1,C30+1),MAX(C$9:C30)+1)) ->  | D31: =IF(Klasse!C35=0,"",Klasse!C35) ->  | G31: 31 | H31: 31 | I31: 35 | J31: 39 | K31: 43 | L31: 47 | M31: 51 | N31: 55 | O31: 59 | P31: 63 | Z31: 31 | AQ31: =COUNT(AA31:AP31)-SUM(IF(AA31:AP31="",0,1/COUNTIF(AA31:AP31,AA31:AP31))) ->  | AT31: 31 | BL31: 9 | BO31: 31 | CH31: =IF(CI31=0,"",MAX(CH$2:CH30)+1) -> 
B32: =IF(Klasse!B36=0,"",Klasse!B36) ->  | C32: =IF(B32="","",IF(MAX(C$9:C31)+1>$B$7,IF(C31=B$7,1,C31+1),MAX(C$9:C31)+1)) ->  | D32: =IF(Klasse!C36=0,"",Klasse!C36) ->  | G32: 32 | H32: 32 | I32: 36 | J32: 40 | K32: 44 | L32: 48 | M32: 52 | N32: 56 | O32: 60 | P32: 64 | Z32: 32 | AQ32: =COUNT(AA32:AP32)-SUM(IF(AA32:AP32="",0,1/COUNTIF(AA32:AP32,AA32:AP32))) ->  | AT32: 32 | BL32: 9 | BO32: 32
B33: =IF(Klasse!B37=0,"",Klasse!B37) ->  | C33: =IF(B33="","",IF(MAX(C$9:C32)+1>$B$7,IF(C32=B$7,1,C32+1),MAX(C$9:C32)+1)) ->  | D33: =IF(Klasse!C37=0,"",Klasse!C37) ->  | G33: 33 | H33: 33 | I33: 37 | J33: 41 | K33: 45 | L33: 49 | M33: 53 | N33: 57 | O33: 61 | P33: 65 | Z33: 33 | AQ33: =COUNT(AA33:AP33)-SUM(IF(AA33:AP33="",0,1/COUNTIF(AA33:AP33,AA33:AP33))) ->  | AT33: 33 | BL33: 9 | BO33: 33
B34: =IF(Klasse!B38=0,"",Klasse!B38) ->  | C34: =IF(B34="","",IF(MAX(C$9:C33)+1>$B$7,IF(C33=B$7,1,C33+1),MAX(C$9:C33)+1)) ->  | D34: =IF(Klasse!C38=0,"",Klasse!C38) ->  | G34: 34 | H34: 34 | I34: 38 | J34: 42 | K34: 46 | L34: 50 | M34: 54 | N34: 58 | O34: 62 | P34: 66 | Z34: 34 | AQ34: =COUNT(AA34:AP34)-SUM(IF(AA34:AP34="",0,1/COUNTIF(AA34:AP34,AA34:AP34))) ->  | AT34: 34 | BL34: 9 | BO34: 34
B35: =IF(Klasse!B39=0,"",Klasse!B39) ->  | C35: =IF(B35="","",IF(MAX(C$9:C34)+1>$B$7,IF(C34=B$7,1,C34+1),MAX(C$9:C34)+1)) ->  | D35: =IF(Klasse!C39=0,"",Klasse!C39) ->  | G35: 35 | H35: 35 | I35: 39 | J35: 43 | K35: 47 | L35: 51 | M35: 55 | N35: 59 | O35: 63 | P35: 67 | Z35: 35 | AQ35: =COUNT(AA35:AP35)-SUM(IF(AA35:AP35="",0,1/COUNTIF(AA35:AP35,AA35:AP35))) ->  | AT35: 35 | BL35: 9 | BO35: 35
B36: =IF(Klasse!B40=0,"",Klasse!B40) ->  | C36: =IF(B36="","",IF(MAX(C$9:C35)+1>$B$7,IF(C35=B$7,1,C35+1),MAX(C$9:C35)+1)) ->  | D36: =IF(Klasse!C40=0,"",Klasse!C40) ->  | G36: 36 | H36: 36 | I36: 40 | J36: 44 | K36: 48 | L36: 52 | M36: 56 | N36: 60 | O36: 64 | P36: 68 | Z36: 36 | AQ36: =COUNT(AA36:AP36)-SUM(IF(AA36:AP36="",0,1/COUNTIF(AA36:AP36,AA36:AP36))) ->  | AT36: 36 | BL36: 9 | BO36: 36
G37: 37 | H37: 37 | I37: 41 | J37: 45 | K37: 49 | L37: 53 | M37: 57 | N37: 61 | O37: 65 | P37: 69 | Z37: 37 | AQ37: =COUNT(AA37:AP37)-SUM(IF(AA37:AP37="",0,1/COUNTIF(AA37:AP37,AA37:AP37))) ->  | AT37: 37 | BL37: 9 | BO37: 37
G38: 38 | H38: 38 | I38: 42 | J38: 46 | K38: 50 | L38: 54 | M38: 58 | N38: 62 | O38: 66 | P38: 70 | Z38: 38 | AQ38: =COUNT(AA38:AP38)-SUM(IF(AA38:AP38="",0,1/COUNTIF(AA38:AP38,AA38:AP38))) ->  | AT38: 38 | BL38: 9 | BO38: 38
G39: 39 | H39: 39 | I39: 43 | J39: 47 | K39: 51 | L39: 55 | M39: 59 | N39: 63 | O39: 67 | P39: 71 | Z39: 39 | AQ39: =COUNT(AA39:AP39)-SUM(IF(AA39:AP39="",0,1/COUNTIF(AA39:AP39,AA39:AP39))) ->  | AT39: 39 | BL39: 9 | BO39: 39
C40: ="Zufallszahl (1-"&MAX($H$8:$AR$8)&")" -> Zufallszahl (1-9) | D40: =INT(RAND()*(MAX($H$8:$AR$8)-1)+1) -> 4 | G40: 40 | H40: 40 | I40: 44 | J40: 48 | K40: 52 | L40: 56 | M40: 60 | N40: 64 | O40: 68 | P40: 72 | Z40: 40 | AQ40: =COUNT(AA40:AP40)-SUM(IF(AA40:AP40="",0,1/COUNTIF(AA40:AP40,AA40:AP40))) ->  | AT40: 40 | BL40: 9 | BO40: 40
AQ41: =COUNT(AA41:AP41)-SUM(IF(AA41:AP41="",0,1/COUNTIF(AA41:AP41,AA41:AP41))) -> 0
AQ42: =COUNT(AA42:AP42)-SUM(IF(AA42:AP42="",0,1/COUNTIF(AA42:AP42,AA42:AP42))) -> 0
AQ43: =COUNT(AA43:AP43)-SUM(IF(AA43:AP43="",0,1/COUNTIF(AA43:AP43,AA43:AP43))) -> 0
AQ44: =COUNT(AA44:AP44)-SUM(IF(AA44:AP44="",0,1/COUNTIF(AA44:AP44,AA44:AP44))) -> 0
AQ45: =COUNT(AA45:AP45)-SUM(IF(AA45:AP45="",0,1/COUNTIF(AA45:AP45,AA45:AP45))) -> 0
AQ46: =COUNT(AA46:AP46)-SUM(IF(AA46:AP46="",0,1/COUNTIF(AA46:AP46,AA46:AP46))) -> 0
AQ47: =COUNT(AA47:AP47)-SUM(IF(AA47:AP47="",0,1/COUNTIF(AA47:AP47,AA47:AP47))) -> 0
AQ48: =COUNT(AA48:AP48)-SUM(IF(AA48:AP48="",0,1/COUNTIF(AA48:AP48,AA48:AP48))) -> 0
AP50: Kontrollsumme: | AQ50: =SUM(AQ9:AQ48) -> 

Sheet Pruefungsbewertung
A1: Prüfungs-Bewertung | E1: Datum: | F1: dez 2020 | Q1: test | R1: Runden | Z1: Kurvenberechnung | AK1: Lineare Berechnung | AZ1: Verteilungs-Diagramm
F2: Geometrie
E3: Thema:
D5: Punktemaximum | F5: 71
D6: davon Zusatzpunkte | F6: 5
D7: Lernziel (%) | F7: 0.6 | G7: =IF(F7="","",(F5-F6)*F7) -> 39.6 | H7: =IF(G7="","","Punkte") -> Punkte
D9: Kurve | F9: 0.6
D10: Notenschritte: | F10: 0.25
R11: runden
F12: Punkte | K12: =IF(F12="Note","","Kurve") -> Kurve | N12: =IF(F12="Note","","Unterschied") -> Unterschied | R12: vorher | S12: nachher | U12: 0.1 | V12: 0.25 | W12: 0.5 | X12: 1
C13: =IF(Klasse!B13="","",Klasse!B13) ->  | D13: =IF(Klasse!C13="","",Klasse!C13) ->  | F13: 37 | H13: =IF(C13="","",IF($F$12="Note",F13,IF(S13>0,S13,""))) ->  | K13: =IF($K$12="","",AI21) -> 3.852807806 | N13: =IF(COUNT(K13:L13)<2,"",ROUND(K13-L13,1)) ->  | R13: =IF($F$12="note",H13,IF($D$9="kurve",K13,L13)) -> 3.852807806 | S13: =IF($F$10=$U$12,U13,IF($F$10=$V$12,V13,IF($F$10=$W$12,W13,X13))) -> 3.75 | U13: =IF(R13="","",ROUND(R13,1)) -> 3.9 | V13: =IF(R13="","",ROUND(R13*4,0)/4) -> 3.75 | W13: =IF(R13="","",ROUND(R13*2,0)/2) -> 4 | X13: =IF(R13="","",ROUND(R13,0)) -> 4 | Z13: Punktemaximum | AA13: =F5 -> 71
C14: =IF(Klasse!B14="","",Klasse!B14) ->  | D14: =IF(Klasse!C14="","",Klasse!C14) ->  | F14: 54 | H14: =IF(C14="","",IF($F$12="Note",F14,IF(S14>0,S14,""))) ->  | K14: =IF($K$12="","",AI22) -> 4.963963653 | R14: =IF($F$12="note",H14,IF($D$9="kurve",K14,L14)) -> 4.963963653 | S14: 5 | U14: =IF(R14="","",ROUND(R14,1)) -> 5 | V14: =IF(R14="","",ROUND(R14*4,0)/4) -> 5 | W14: =IF(R14="","",ROUND(R14*2,0)/2) -> 5 | X14: =IF(R14="","",ROUND(R14,0)) -> 5 | Z14: davon Zusatzpunkte | AA14: =F6 -> 5 | AL14: Punktemaximum | AM14: =F5 -> 71
C15: =IF(Klasse!B15="","",Klasse!B15) ->  | D15: =IF(Klasse!C15="","",Klasse!C15) ->  | F15: 52 | K15: 4.813492882 | R15: 4.813492882 | S15: 4.75 | U15: 4.8 | V15: 4.75 | W15: 5 | X15: 5 | Z15: Lernziel | AA15: =F7 -> 0.6 | AB15: =AA15*AA18 -> 39.6 | AL15: davon Zusatzpunkte: | AM15: =F6 -> 5
C16: =IF(Klasse!B16="","",Klasse!B16) ->  | D16: =IF(Klasse!C16="","",Klasse!C16) ->  | F16: 46 | K16: 4.395492455 | R16: 4.395492455 | S16: 4.5 | U16: 4.4 | V16: 4.5 | W16: 4.5 | X16: 4 | Z16: kurve | AA16: =F9 -> 0.6 | AL16: Lernziel: | AM16: =F7 -> 0.6 | AN16: =ROUND((AM14-AM15)*AM16*2,0)/2 -> 39.5
C17: =IF(Klasse!B17="","",Klasse!B17) ->  | D17: =IF(Klasse!C17="","",Klasse!C17) ->  | F17: 50 | K17: 4.668733934 | R17: 4.668733934 | S17: 4.75 | U17: 4.7 | V17: 4.75 | W17: 4.5 | X17: 5 | AL17: Notenschritt pro 1/2 Punkt: | AM17: =(20/((AL23-AN16)*2))/10 -> 0.03773584906
C18: =IF(Klasse!B18="","",Klasse!B18) ->  | D18: =IF(Klasse!C18="","",Klasse!C18) ->  | F18: 46 | K18: 4.395492455 | R18: 4.395492455 | S18: 4.5 | U18: 4.4 | V18: 4.5 | W18: 4.5 | X18: 4 | Z18: P(max) | AA18: =AA13-AA14 -> 66
C19: =IF(Klasse!B19="","",Klasse!B19) ->  | D19: =IF(Klasse!C19="","",Klasse!C19) ->  | F19: 66 | K19: 6 | R19: 6 | S19: 6 | U19: 6 | V19: 6 | W19: 6 | X19: 6
C20: =IF(Klasse!B20="","",Klasse!B20) ->  | D20: =IF(Klasse!C20="","",Klasse!C20) ->  | F20: 59 | K20: 5.366630785 | R20: 5.366630785 | S20: 5.25 | U20: 5.4 | V20: 5.25 | W20: 5.5 | X20: 5 | AC20: Punkte | AD20: Note | AH20: Punkte | AI20: Note
C21: =IF(Klasse!B21="","",Klasse!B21) ->  | D21: =IF(Klasse!C21="","",Klasse!C21) ->  | F21: 49 | K21: 4.598428311 | R21: 4.598428311 | S21: 4.5 | U21: 4.6 | V21: 4.5 | W21: 4.5 | X21: 5 | AH21: =(IF(F13=0,"",F13)) -> 37 | AI21: =IF(AH21="","",IF(AH21>$AA$13-$AA$14,6,VLOOKUP(AH21,$AC$22:$AD$200,2,0))) -> 3.852807806
C22: =IF(Klasse!B22="","",Klasse!B22) ->  | D22: =IF(Klasse!C22="","",Klasse!C22) ->  | F22: 52 | K22: 4.813492882 | R22: 4.813492882 | S22: 4.75 | U22: 4.8 | V22: 4.75 | W22: 5 | X22: 5 | Z22: =AA18-AB15 -> 26.4 | AA22: =(2/(1-$AA$16^(-1)))*(1-$AA$16^((-1*Z22)/($AA$18-$AB$15))) -> 2 | AC22: =$AB$15+Z22 -> 66 | AD22: =4+AA22 -> 6 | AH22: =(IF(F14=0,"",F14)) -> 54 | AI22: =IF(AH22="","",IF(AH22>$AA$13-$AA$14,6,VLOOKUP(AH22,$AC$22:$AD$200,2,0))) -> 4.963963653 | AL22: Punkte | AN22: Note: | AW22: Punkte | AX22: Note | AZ22: 1/2 Note | BA22: u3 | BE22: Anzahl
C23: =IF(Klasse!B23="","",Klasse!B23) ->  | D23: =IF(Klasse!C23="","",Klasse!C23) ->  | F23: 39 | K23: 3.965372377 | R23: 3.965372377 | S23: 4 | U23: 4 | V23: 4 | W23: 4 | X23: 4 | Z23: =Z22-0.5 -> 25.9 | AA23: =(2/(1-$AA$16^(-1)))*(1-$AA$16^((-1*Z23)/($AA$18-$AB$15))) -> 1.951859609 | AC23: =IF(OR(AC22=0,AC22=""),"",$AB$15+Z23) -> 65.5 | AD23: =IF(AC23="","",4+AA23) -> 5.951859609 | AH23: 52 | AI23: =IF(AH23="","",IF(AH23>$AA$13-$AA$14,6,VLOOKUP(AH23,$AC$22:$AD$200,2,0))) -> 4.813492882 | AL23: =AM14-AM15 -> 66 | AN23: =6-($AM$17*(($AL$23-AL23)*2)) -> 6 | AW23: =IF(F13="","",F13) -> 37 | AX23: =IF(AW23="","",IF(AW23>$AL$23,6,ROUND(VLOOKUP(AW23,$AL$23:$AN$200,3,0),1))) -> 3.8 | AZ23: =W13 -> 4 | BA23: =IF(AZ23<3,1,0) -> 0 | BD23: u3 | BE23: =SUMIF(AZ23:AZ50,0-3) -> 0
C24: =IF(Klasse!B24="","",Klasse!B24) ->  | D24: =IF(Klasse!C24="","",Klasse!C24) ->  | F24: 38 | K24: 3.908545593 | R24: 3.908545593 | S24: 4 | U24: 3.9 | V24: 4 | W24: 4 | X24: 4 | Z24: 25.4 | AA24: 1.904182718 | AC24: =IF(OR(AC23=0,AC23=""),"",$AB$15+Z24) -> 65 | AD24: =IF(AC24="","",4+AA24) -> 5.904182718 | AH24: 46 | AI24: 4.395492455 | AL24: =IF(OR(AL23=0,AL23=""),"",AL23-0.5) -> 65.5 | AN24: =IF(AL24="","",6-($AM$17*(($AL$23-AL24)*2))) -> 5.962264151 | AW24: =IF(F14="","",F14) -> 54 | AX24: =IF(AW24="","",IF(AW24>$AL$23,6,ROUND(VLOOKUP(AW24,$AL$23:$AN$200,3,0),1))) -> 5.1 | AZ24: =W14 -> 5 | BA24: =IF(AZ24<3,1,0) -> 0 | BD24: 3 | BE24: =COUNTIF($AZ$23:$AZ$50,BD24) -> 0
C25: =IF(Klasse!B25="","",Klasse!B25) ->  | D25: =IF(Klasse!C25="","",Klasse!C25) ->  | F25: 60 | K25: 5.451945447 | R25: 5.451945447 | S25: 5.5 | U25: 5.5 | V25: 5.5 | W25: 5.5 | X25: 5 | Z25: 24.9 | AA25: 1.856964864 | AC25: 64.5 | AD25: 5.856964864 | AH25: =(IF(F17=0,"",F17)) -> 50 | AI25: 4.668733934 | AL25: =IF(OR(AL24=0,AL24=""),"",AL24-0.5) -> 65 | AN25: =IF(AL25="","",6-($AM$17*(($AL$23-AL25)*2))) -> 5.924528302 | AW25: 52 | AX25: 4.9 | AZ25: 5 | BA25: 0 | BD25: 3.5 | BE25: 0
C26: =IF(Klasse!B26="","",Klasse!B26) ->  | D26: =IF(Klasse!C26="","",Klasse!C26) ->  | F26: 50 | K26: 4.668733934 | R26: 4.668733934 | S26: 4.75 | U26: 4.7 | V26: 4.75 | W26: 4.5 | X26: 5 | Z26: 24.4 | AA26: 1.810201627 | AC26: 64 | AD26: 5.810201627 | AH26: 46 | AI26: 4.395492455 | AL26: 64.5 | AN26: 5.886792453 | AW26: 46 | AX26: 4.5 | AZ26: 4.5 | BA26: 0 | BD26: 4 | BE26: 4
C27: =IF(Klasse!B27="","",Klasse!B27) ->  | D27: =IF(Klasse!C27="","",Klasse!C27) ->  | F27: 52 | K27: 4.813492882 | R27: 4.813492882 | S27: 4.75 | U27: 4.8 | V27: 4.75 | W27: 5 | X27: 5 | Z27: 23.9 | AA27: 1.76388863 | AC27: 63.5 | AD27: 5.76388863 | AH27: 66 | AI27: 6 | AL27: 64 | AN27: 5.849056604 | AW27: 50 | AX27: 4.8 | AZ27: 4.5 | BA27: 0 | BD27: 4.5 | BE27: 6
C28: =IF(Klasse!B28="","",Klasse!B28) ->  | D28: =IF(Klasse!C28="","",Klasse!C28) ->  | F28: 55 | K28: 5.041411057 | R28: 5.041411057 | S28: 5 | U28: 5 | V28: 5 | W28: 5 | X28: 5 | Z28: 23.4 | AA28: 1.718021538 | AC28: 63 | AD28: 5.718021538 | AH28: 59 | AI28: 5.366630785 | AL28: 63.5 | AN28: 5.811320755 | AW28: 46 | AX28: 4.5 | AZ28: 4.5 | BA28: 0 | BD28: 5 | BE28: 7
C29: =IF(Klasse!B29="","",Klasse!B29) ->  | D29: =IF(Klasse!C29="","",Klasse!C29) ->  | F29: 40 | K29: 4.023309435 | R29: 4.023309435 | S29: 4 | U29: 4 | V29: 4 | W29: 4 | X29: 4 | Z29: 22.9 | AA29: 1.672596058 | AC29: 62.5 | AD29: 5.672596058 | AH29: 49 | AI29: 4.598428311 | AL29: 63 | AN29: 5.773584906 | AW29: 66 | AX29: 6 | AZ29: 6 | BA29: 0 | BD29: 5.5 | BE29: 3
C30: =IF(Klasse!B30="","",Klasse!B30) ->  | D30: =IF(Klasse!C30="","",Klasse!C30) ->  | F30: 58 | K30: 5.282951047 | R30: 5.282951047 | S30: 5.25 | U30: 5.3 | V30: 5.25 | W30: 5.5 | X30: 5 | Z30: 22.4 | AA30: 1.627607939 | AC30: 62 | AD30: 5.627607939 | AH30: 52 | AI30: 4.813492882 | AL30: 62.5 | AN30: 5.735849057 | AW30: 59 | AX30: 5.5 | AZ30: 5.5 | BA30: 0 | BD30: 6 | BE30: 1
C31: =IF(Klasse!B31="","",Klasse!B31) ->  | D31: =IF(Klasse!C31="","",Klasse!C31) ->  | F31: 52 | K31: 4.813492882 | R31: 4.813492882 | S31: 4.75 | U31: 4.8 | V31: 4.75 | W31: 5 | X31: 5 | Z31: 21.9 | AA31: 1.583052968 | AC31: 61.5 | AD31: 5.583052968 | AH31: 39 | AI31: 3.965372377 | AL31: 62 | AN31: 5.698113208 | AW31: 49 | AX31: 4.7 | AZ31: 4.5 | BA31: 0 | BE31: =SUM(BE23:BE30) -> 21
C32: =IF(Klasse!B32="","",Klasse!B32) ->  | D32: =IF(Klasse!C32="","",Klasse!C32) ->  | F32: 47 | K32: 4.461833143 | R32: 4.461833143 | S32: 4.5 | U32: 4.5 | V32: 4.5 | W32: 4.5 | X32: 4 | Z32: 21.4 | AA32: 1.538926976 | AC32: 61 | AD32: 5.538926976 | AH32: 38 | AI32: 3.908545593 | AL32: 61.5 | AN32: 5.660377358 | AW32: 52 | AX32: 4.9 | AZ32: 5 | BA32: 0
C33: =IF(Klasse!B33="","",Klasse!B33) ->  | D33: =IF(Klasse!C33="","",Klasse!C33) ->  | F33: 53 | K33: 4.888000408 | R33: 4.888000408 | S33: 5 | U33: 4.9 | V33: 5 | W33: 5 | X33: 5 | Z33: 20.9 | AA33: 1.495225832 | AC33: 60.5 | AD33: 5.495225832 | AH33: 60 | AI33: 5.451945447 | AL33: 61 | AN33: 5.622641509 | AW33: 39 | AX33: 4 | AZ33: 4 | BA33: 0
C34: =IF(Klasse!B34="","",Klasse!B34) ->  | D34: =IF(Klasse!C34="","",Klasse!C34) ->  | Z34: 20.4 | AA34: 1.451945447 | AC34: 60 | AD34: 5.451945447 | AH34: 50 | AI34: 4.668733934 | AL34: 60.5 | AN34: 5.58490566 | AW34: 38 | AX34: 3.9 | AZ34: 4 | BA34: 0
C35: =IF(Klasse!B35="","",Klasse!B35) ->  | D35: =IF(Klasse!C35="","",Klasse!C35) ->  | L35: =IF($L$12="","",AX45) ->  | Z35: 19.9 | AA35: 1.409081769 | AC35: 59.5 | AD35: 5.409081769 | AH35: 52 | AI35: 4.813492882 | AL35: 60 | AN35: 5.547169811 | AW35: 60 | AX35: 5.5 | AZ35: 5.5 | BA35: 0
C36: =IF(Klasse!B36="","",Klasse!B36) ->  | D36: =IF(C36="","",Klasse!C36) ->  | Z36: 19.4 | AA36: 1.366630785 | AC36: 59 | AD36: 5.366630785 | AH36: 55 | AI36: 5.041411057 | AL36: 59.5 | AN36: 5.509433962 | AW36: 50 | AX36: 4.8 | AZ36: 4.5 | BA36: 0
C37: =IF(Klasse!B37="","",Klasse!B37) ->  | D37: =IF(Klasse!C37="","",Klasse!C37) ->  | Z37: 18.9 | AA37: 1.324588523 | AC37: 58.5 | AD37: 5.324588523 | AH37: 40 | AI37: 4.023309435 | AL37: 59 | AN37: 5.471698113 | AW37: 52 | AX37: 4.9 | AZ37: 5 | BA37: 0
C38: =IF(Klasse!B38="","",Klasse!B38) ->  | D38: =IF(Klasse!C38="","",Klasse!C38) ->  | Z38: 18.4 | AA38: 1.282951047 | AC38: 58 | AD38: 5.282951047 | AH38: 58 | AI38: 5.282951047 | AL38: 58.5 | AN38: 5.433962264 | AW38: 55 | AX38: 5.2 | AZ38: 5 | BA38: 0
C39: =IF(Klasse!B39="","",Klasse!B39) ->  | D39: =IF(Klasse!C39="","",Klasse!C39) ->  | Z39: 17.9 | AA39: 1.241714459 | AC39: 57.5 | AD39: 5.241714459 | AH39: 52 | AI39: 4.813492882 | AL39: 58 | AN39: 5.396226415 | AW39: 40 | AX39: 4 | AZ39: 4 | BA39: 0
C40: =IF(Klasse!B40="","",Klasse!B40) ->  | D40: =IF(Klasse!C40="","",Klasse!C40) ->  | Z40: 17.4 | AA40: 1.200874901 | AC40: 57 | AD40: 5.200874901 | AH40: 47 | AI40: 4.461833143 | AL40: 57.5 | AN40: 5.358490566 | AW40: 58 | AX40: 5.4 | AZ40: 5.5 | BA40: 0
H41: =IF(C41="","",IF($F$12="Note",F41,IF(S41>0,S41,""))) ->  | Z41: 16.9 | AA41: 1.16042855 | AC41: 56.5 | AD41: 5.16042855 | AH41: 53 | AI41: 4.888000408 | AL41: 57 | AN41: 5.320754717 | AW41: 52 | AX41: 4.9 | AZ41: 5 | BA41: 0
E42: Schnitt: | F42: =AVERAGE(F13:F40) -> 50.23809524 | H42: =AVERAGE(H13:H40) ->  | K42: =IF(K12="","",AVERAGE(K13:K40)) -> 4.72322016 | L42: =IF(L12="","",AVERAGE(L13:L40)) ->  | N42: =IF(N12="","",AVERAGE(N13:N40)) ->  | Z42: 16.4 | AA42: 1.120371619 | AC42: 56 | AD42: 5.120371619 | AL42: 56.5 | AN42: 5.283018868 | AW42: 47 | AX42: 4.6 | AZ42: 4.5 | BA42: 0
Z43: 15.9 | AA43: 1.080700359 | AC43: 55.5 | AD43: 5.080700359 | AL43: 56 | AN43: 5.245283019 | AW43: 53 | AX43: 5 | AZ43: 5 | BA43: 0
Z44: 15.4 | AA44: 1.041411057 | AC44: 55 | AD44: 5.041411057 | AL44: 55.5 | AN44: 5.20754717 | BA44: 0
Z45: 14.9 | AA45: 1.002500036 | AC45: 54.5 | AD45: 5.002500036 | AL45: 55 | AN45: 5.169811321 | BA45: 0
Z46: 14.4 | AA46: 0.9639636527 | AC46: 54 | AD46: 4.963963653 | AL46: 54.5 | AN46: 5.132075472 | BA46: 0
Z47: 13.9 | AA47: 0.9257983011 | AC47: 53.5 | AD47: 4.925798301 | AL47: 54 | AN47: 5.094339623 | BA47: 0
Z48: 13.4 | AA48: 0.8880004084 | AC48: 53 | AD48: 4.888000408 | AL48: 53.5 | AN48: 5.056603774 | BA48: 0
Z49: 12.9 | AA49: 0.8505664368 | AC49: 52.5 | AD49: 4.850566437 | AL49: 53 | AN49: 5.018867925 | BA49: 0
Z50: 12.4 | AA50: 0.8134928824 | AC50: 52 | AD50: 4.813492882 | AG50: Schnitt: | AH50: =AVERAGE(AH21:AH48) -> 50.23809524 | AI50: =AVERAGE(AI21:AI48) -> 4.72322016 | AL50: 52.5 | AN50: 4.981132075 | BA50: 0
Z51: 11.9 | AA51: 0.7767762751 | AC51: 51.5 | AD51: 4.776776275 | AL51: 52 | AN51: 4.943396226
Z52: 11.4 | AA52: 0.7404131781 | AC52: 51 | AD52: 4.740413178 | AL52: 51.5 | AN52: 4.905660377
Z53: 10.9 | AA53: 0.7044001879 | AC53: 50.5 | AD53: 4.704400188 | AL53: 51 | AN53: 4.867924528
Z54: 10.4 | AA54: 0.6687339335 | AC54: 50 | AD54: 4.668733934 | AL54: 50.5 | AN54: 4.830188679 | AV54: Schnitt: | AW54: =AVERAGE(AW23:AW50) -> 50.23809524 | AX54: =AVERAGE(AX23:AX50) -> 4.804761905
Z55: 9.9 | AA55: 0.6334110766 | AC55: 49.5 | AD55: 4.633411077 | AL55: 50 | AN55: 4.79245283
Z56: 9.4 | AA56: 0.598428311 | AC56: 49 | AD56: 4.598428311 | AL56: 49.5 | AN56: 4.754716981
Z57: 8.9 | AA57: 0.5637823622 | AC57: 48.5 | AD57: 4.563782362 | AL57: 49 | AN57: 4.716981132
Z58: 8.4 | AA58: 0.5294699872 | AC58: 48 | AD58: 4.529469987 | AL58: 48.5 | AN58: 4.679245283
Z59: 7.9 | AA59: 0.4954879745 | AC59: 47.5 | AD59: 4.495487975 | AL59: 48 | AN59: 4.641509434
Z60: 7.4 | AA60: 0.4618331433 | AC60: 47 | AD60: 4.461833143 | AL60: 47.5 | AN60: 4.603773585
Z61: 6.9 | AA61: 0.4285023434 | AC61: 46.5 | AD61: 4.428502343 | AL61: 47 | AN61: 4.566037736
Z62: 6.4 | AA62: 0.395492455 | AC62: 46 | AD62: 4.395492455 | AL62: 46.5 | AN62: 4.528301887
Z63: 5.9 | AA63: 0.3628003885 | AC63: 45.5 | AD63: 4.362800388 | AL63: 46 | AN63: 4.490566038
Z64: 5.4 | AA64: 0.3304230837 | AC64: 45 | AD64: 4.330423084 | AL64: 45.5 | AN64: 4.452830189
Z65: 4.9 | AA65: 0.2983575101 | AC65: 44.5 | AD65: 4.29835751 | AL65: 45 | AN65: 4.41509434
Z66: 4.4 | AA66: 0.2666006664 | AC66: 44 | AD66: 4.266600666 | AL66: 44.5 | AN66: 4.377358491
Z67: 3.9 | AA67: 0.23514958 | AC67: 43.5 | AD67: 4.23514958 | AL67: 44 | AN67: 4.339622642
Z68: 3.4 | AA68: 0.2040013072 | AC68: 43 | AD68: 4.204001307 | AL68: 43.5 | AN68: 4.301886792
Z69: 2.9 | AA69: 0.1731529323 | AC69: 42.5 | AD69: 4.173152932 | AL69: 43 | AN69: 4.264150943
Z70: 2.4 | AA70: 0.142601568 | AC70: 42 | AD70: 4.142601568 | AL70: 42.5 | AN70: 4.226415094
Z71: 1.9 | AA71: 0.1123443547 | AC71: 41.5 | AD71: 4.112344355 | AL71: 42 | AN71: 4.188679245
Z72: 1.4 | AA72: 0.08237846015 | AC72: 41 | AD72: 4.08237846 | AL72: 41.5 | AN72: 4.150943396
Z73: 0.9 | AA73: 0.05270107958 | AC73: 40.5 | AD73: 4.05270108 | AL73: 41 | AN73: 4.113207547
Z74: 0.4 | AA74: 0.02330943515 | AC74: 40 | AD74: 4.023309435 | AL74: 40.5 | AN74: 4.075471698
Z75: -0.1 | AA75: -0.005799224233 | AC75: 39.5 | AD75: 3.994200776 | AL75: 40 | AN75: 4.037735849
Z76: -0.6 | AA76: -0.03462762317 | AC76: 39 | AD76: 3.965372377 | AL76: 39.5 | AN76: 4
Z77: -1.1 | AA77: -0.06317846003 | AC77: 38.5 | AD77: 3.93682154 | AL77: 39 | AN77: 3.962264151
Z78: -1.6 | AA78: -0.0914544072 | AC78: 38 | AD78: 3.908545593 | AL78: 38.5 | AN78: 3.924528302
Z79: -2.1 | AA79: -0.1194581113 | AC79: 37.5 | AD79: 3.880541889 | AL79: 38 | AN79: 3.886792453
Z80: -2.6 | AA80: -0.1471921936 | AC80: 37 | AD80: 3.852807806 | AL80: 37.5 | AN80: 3.849056604
Z81: -3.1 | AA81: -0.17465925 | AC81: 36.5 | AD81: 3.82534075 | AL81: 37 | AN81: 3.811320755
Z82: -3.6 | AA82: -0.2018618514 | AC82: 36 | AD82: 3.798138149 | AL82: 36.5 | AN82: 3.773584906
Z83: -4.1 | AA83: -0.2288025441 | AC83: 35.5 | AD83: 3.771197456 | AL83: 36 | AN83: 3.735849057
Z84: -4.6 | AA84: -0.2554838496 | AC84: 35 | AD84: 3.74451615 | AL84: 35.5 | AN84: 3.698113208
Z85: -5.1 | AA85: -0.2819082655 | AC85: 34.5 | AD85: 3.718091734 | AL85: 35 | AN85: 3.660377358
Z86: -5.6 | AA86: -0.308078265 | AC86: 34 | AD86: 3.691921735 | AL86: 34.5 | AN86: 3.622641509
Z87: =Z86-0.5 -> -6.1 | AA87: =(2/(1-$AA$16^(-1)))*(1-$AA$16^((-1*Z87)/($AA$18-$AB$15))) -> -0.3339962977 | AC87: 33.5 | AD87: 3.666003702 | AL87: 34 | AN87: 3.58490566
Z88: -6.6 | AA88: -0.3596647896 | AC88: =IF(OR(AC87=0,AC87=""),"",$AB$15+Z88) -> 33 | AD88: =IF(AC88="","",4+AA88) -> 3.64033521 | AL88: 33.5 | AN88: 3.547169811
Z89: -7.1 | AA89: -0.3850861433 | AC89: 32.5 | AD89: 3.614913857 | AL89: =IF(OR(AL88=0,AL88=""),"",AL88-0.5) -> 33 | AN89: =IF(AL89="","",6-($AM$17*(($AL$23-AL89)*2))) -> 3.509433962
Z90: -7.6 | AA90: -0.4102627381 | AC90: 32 | AD90: 3.589737262 | AL90: 32.5 | AN90: 3.471698113
Z91: -8.1 | AA91: -0.4351969307 | AC91: 31.5 | AD91: 3.564803069 | AL91: 32 | AN91: 3.433962264
Z92: -8.6 | AA92: -0.459891055 | AC92: 31 | AD92: 3.540108945 | AL92: 31.5 | AN92: 3.396226415
Z93: -9.1 | AA93: -0.4843474223 | AC93: 30.5 | AD93: 3.515652578 | AL93: 31 | AN93: 3.358490566
Z94: -9.6 | AA94: -0.5085683218 | AC94: 30 | AD94: 3.491431678 | AL94: 30.5 | AN94: 3.320754717
Z95: -10.1 | AA95: -0.5325560206 | AC95: 29.5 | AD95: 3.467443979 | AL95: 30 | AN95: 3.283018868
Z96: -10.6 | AA96: -0.556312764 | AC96: 29 | AD96: 3.443687236 | AL96: 29.5 | AN96: 3.245283019
Z97: -11.1 | AA97: -0.5798407756 | AC97: 28.5 | AD97: 3.420159224 | AL97: 29 | AN97: 3.20754717
Z98: -11.6 | AA98: -0.6031422576 | AC98: 28 | AD98: 3.396857742 | AL98: 28.5 | AN98: 3.169811321
Z99: -12.1 | AA99: -0.6262193912 | AC99: 27.5 | AD99: 3.373780609 | AL99: 28 | AN99: 3.132075472
Z100: -12.6 | AA100: -0.6490743363 | AC100: 27 | AD100: 3.350925664 | AL100: 27.5 | AN100: 3.094339623
Z101: -13.1 | AA101: -0.6717092322 | AC101: 26.5 | AD101: 3.328290768 | AL101: 27 | AN101: 3.056603774
Z102: -13.6 | AA102: -0.6941261976 | AC102: 26 | AD102: 3.305873802 | AL102: 26.5 | AN102: 3.018867925
Z103: -14.1 | AA103: -0.7163273306 | AC103: 25.5 | AD103: 3.283672669 | AL103: 26 | AN103: 2.981132075
Z104: -14.6 | AA104: -0.7383147095 | AC104: 25 | AD104: 3.261685291 | AL104: 25.5 | AN104: 2.943396226
Z105: -15.1 | AA105: -0.7600903921 | AC105: 24.5 | AD105: 3.239909608 | AL105: 25 | AN105: 2.905660377
Z106: -15.6 | AA106: -0.7816564168 | AC106: 24 | AD106: 3.218343583 | AL106: 24.5 | AN106: 2.867924528
Z107: -16.1 | AA107: -0.803014802 | AC107: 23.5 | AD107: 3.196985198 | AL107: 24 | AN107: 2.830188679
Z108: -16.6 | AA108: -0.8241675471 | AC108: 23 | AD108: 3.175832453 | AL108: 23.5 | AN108: 2.79245283
Z109: -17.1 | AA109: -0.8451166319 | AC109: 22.5 | AD109: 3.154883368 | AL109: 23 | AN109: 2.754716981
Z110: -17.6 | AA110: -0.8658640173 | AC110: 22 | AD110: 3.134135983 | AL110: 22.5 | AN110: 2.716981132
Z111: -18.1 | AA111: -0.8864116452 | AC111: 21.5 | AD111: 3.113588355 | AL111: 22 | AN111: 2.679245283
Z112: -18.6 | AA112: -0.906761439 | AC112: 21 | AD112: 3.093238561 | AL112: 21.5 | AN112: 2.641509434
Z113: -19.1 | AA113: -0.9269153034 | AC113: 20.5 | AD113: 3.073084697 | AL113: 21 | AN113: 2.603773585
Z114: -19.6 | AA114: -0.9468751247 | AC114: 20 | AD114: 3.053124875 | AL114: 20.5 | AN114: 2.566037736
Z115: -20.1 | AA115: -0.9666427714 | AC115: 19.5 | AD115: 3.033357229 | AL115: 20 | AN115: 2.528301887
Z116: -20.6 | AA116: -0.9862200936 | AC116: 19 | AD116: 3.013779906 | AL116: 19.5 | AN116: 2.490566038
Z117: -21.1 | AA117: -1.005608924 | AC117: 18.5 | AD117: 2.994391076 | AL117: 19 | AN117: 2.452830189
Z118: -21.6 | AA118: -1.024811077 | AC118: 18 | AD118: 2.975188923 | AL118: 18.5 | AN118: 2.41509434
Z119: -22.1 | AA119: -1.04382835 | AC119: 17.5 | AD119: 2.95617165 | AL119: 18 | AN119: 2.377358491
Z120: -22.6 | AA120: -1.062662524 | AC120: 17 | AD120: 2.937337476 | AL120: 17.5 | AN120: 2.339622642
Z121: -23.1 | AA121: -1.08131536 | AC121: 16.5 | AD121: 2.91868464 | AL121: 17 | AN121: 2.301886792
Z122: -23.6 | AA122: -1.099788606 | AC122: 16 | AD122: 2.900211394 | AL122: 16.5 | AN122: 2.264150943
Z123: -24.1 | AA123: -1.118083989 | AC123: 15.5 | AD123: 2.881916011 | AL123: 16 | AN123: 2.226415094
Z124: -24.6 | AA124: -1.136203224 | AC124: 15 | AD124: 2.863796776 | AL124: 15.5 | AN124: 2.188679245
D125: Aiyana | E125: 3.75 | Z125: =Z124-0.5 -> -25.1 | AA125: =(2/(1-$AA$16^(-1)))*(1-$AA$16^((-1*Z125)/($AA$18-$AB$15))) -> -1.154148005 | AC125: =IF(OR(AC124=0,AC124=""),"",$AB$15+Z125) -> 14.5 | AD125: =IF(AC125="","",4+AA125) -> 2.845851995 | AL125: =IF(OR(AL124=0,AL124=""),"",AL124-0.5) -> 15 | AN125: =IF(AL125="","",6-($AM$17*(($AL$23-AL125)*2))) -> 2.150943396
D126: Julian | E126: 4 | Z126: -25.6 | AA126: -1.171920012 | AC126: 14 | AD126: 2.828079988 | AL126: 14.5 | AN126: 2.113207547
D127: Kevin | E127: 4 | Z127: -26.1 | AA127: -1.189520909 | AC127: 13.5 | AD127: 2.810479091 | AL127: 14 | AN127: 2.075471698
D128: Maik | E128: 4 | Z128: -26.6 | AA128: -1.206952343 | AC128: 13 | AD128: 2.793047657 | AL128: 13.5 | AN128: 2.037735849
D129: Florian | E129: 4.5 | Z129: -27.1 | AA129: -1.224215946 | AC129: 12.5 | AD129: 2.775784054 | AL129: 13 | AN129: 2
D130: Jano | E130: 4.5 | Z130: -27.6 | AA130: -1.241313333 | AC130: 12 | AD130: 2.758686667 | AL130: 12.5 | AN130: 1.962264151
D131: Joel | E131: 4.5 | Z131: -28.1 | AA131: -1.258246106 | AC131: 11.5 | AD131: 2.741753894 | AL131: 12 | AN131: 1.924528302
D132: Sarina | E132: 4.5 | Z132: -28.6 | AA132: -1.275015848 | AC132: 11 | AD132: 2.724984152 | AL132: 11.5 | AN132: 1.886792453
D133: Emma | E133: 4.75 | Z133: -29.1 | AA133: -1.291624131 | AC133: 10.5 | AD133: 2.708375869 | AL133: 11 | AN133: 1.849056604
D134: Gabriel | E134: 4.75 | Z134: -29.6 | AA134: -1.308072507 | AC134: 10 | AD134: 2.691927493 | AL134: 10.5 | AN134: 1.811320755
D135: Julia | E135: 4.75 | Z135: -30.1 | AA135: -1.324362517 | AC135: 9.5 | AD135: 2.675637483 | AL135: 10 | AN135: 1.773584906
D136: Laura | E136: 4.75 | Z136: -30.6 | AA136: -1.340495686 | AC136: 9 | AD136: 2.659504314 | AL136: 9.5 | AN136: 1.735849057
D137: Leonel | E137: 4.75 | Z137: -31.1 | AA137: -1.356473523 | AC137: 8.5 | AD137: 2.643526477 | AL137: 9 | AN137: 1.698113208
D138: Samuel | E138: 4.75 | Z138: -31.6 | AA138: -1.372297524 | AC138: 8 | AD138: 2.627702476 | AL138: 8.5 | AN138: 1.660377358
D139: Amélie | E139: 5 | Z139: -32.1 | AA139: -1.387969171 | AC139: 7.5 | AD139: 2.612030829 | AL139: 8 | AN139: 1.622641509
D140: Lina | E140: 5 | Z140: -32.6 | AA140: -1.403489929 | AC140: 7 | AD140: 2.596510071 | AL140: 7.5 | AN140: 1.58490566
D141: Laurin | E141: 5 | Z141: -33.1 | AA141: -1.418861253 | AC141: 6.5 | AD141: 2.581138747 | AL141: 7 | AN141: 1.547169811
D142: Jessica | E142: 5.25 | Z142: -33.6 | AA142: -1.43408458 | AC142: 6 | AD142: 2.56591542 | AL142: 6.5 | AN142: 1.509433962
D143: Nahil | E143: 5.25 | Z143: -34.1 | AA143: -1.449161336 | AC143: 5.5 | AD143: 2.550838664 | AL143: 6 | AN143: 1.471698113
D144: Laila | E144: 5.5 | Z144: -34.6 | AA144: -1.464092932 | AC144: 5 | AD144: 2.535907068 | AL144: 5.5 | AN144: 1.433962264
D145: Jara | E145: 6 | Z145: -35.1 | AA145: -1.478880765 | AC145: 4.5 | AD145: 2.521119235 | AL145: 5 | AN145: 1.396226415
Z146: -35.6 | AA146: -1.49352622 | AC146: 4 | AD146: 2.50647378 | AL146: 4.5 | AN146: 1.358490566
Z147: -36.1 | AA147: -1.508030667 | AC147: 3.5 | AD147: 2.491969333 | AL147: 4 | AN147: 1.320754717
Z148: -36.6 | AA148: -1.522395465 | AC148: 3 | AD148: 2.477604535 | AL148: 3.5 | AN148: 1.283018868
Z149: -37.1 | AA149: -1.536621956 | AC149: 2.5 | AD149: 2.463378044 | AL149: 3 | AN149: 1.245283019
Z150: -37.6 | AA150: -1.550711475 | AC150: 2 | AD150: 2.449288525 | AL150: 2.5 | AN150: 1.20754717
Z151: -38.1 | AA151: -1.564665338 | AC151: 1.5 | AD151: 2.435334662 | AL151: 2 | AN151: 1.169811321
Z152: -38.6 | AA152: -1.578484852 | AC152: 1 | AD152: 2.421515148 | AL152: 1.5 | AN152: 1.132075472
Z153: =Z152-0.5 -> -39.1 | AA153: =(2/(1-$AA$16^(-1)))*(1-$AA$16^((-1*Z153)/($AA$18-$AB$15))) -> -1.592171311 | AC153: =IF(OR(AC152=0,AC152=""),"",$AB$15+Z153) -> 0.5 | AD153: =IF(AC153="","",4+AA153) -> 2.407828689 | AL153: =IF(OR(AL152=0,AL152=""),"",AL152-0.5) -> 1 | AN153: =IF(AL153="","",6-($AM$17*(($AL$23-AL153)*2))) -> 1.094339623
Z154: -39.6 | AA154: -1.605725995 | AC154: 0 | AD154: 2.394274005 | AL154: 0.5 | AN154: 1.056603774
Z155: -40.1 | AA155: -1.619150174 | AL155: 0 | AN155: 1.018867925
Z156: -40.6 | AA156: -1.632445104
Z157: -41.1 | AA157: -1.64561203
Z158: -41.6 | AA158: -1.658652183
Z159: -42.1 | AA159: -1.671566784
Z160: -42.6 | AA160: -1.684357043
Z161: -43.1 | AA161: -1.697024156
Z162: -43.6 | AA162: -1.70956931
Z163: -44.1 | AA163: -1.721993677
Z164: -44.6 | AA164: -1.734298422
Z165: -45.1 | AA165: -1.746484695
Z166: -45.6 | AA166: -1.758553639
Z167: -46.1 | AA167: -1.770506381
Z168: -46.6 | AA168: -1.782344042
Z169: -47.1 | AA169: -1.794067728
Z170: -47.6 | AA170: -1.805678539
Z171: -48.1 | AA171: -1.817177559
Z172: -48.6 | AA172: -1.828565866
Z173: -49.1 | AA173: -1.839844525
Z174: -49.6 | AA174: -1.851014593
Z175: -50.1 | AA175: -1.862077114
Z176: -50.6 | AA176: -1.873033124
Z177: -51.1 | AA177: -1.883883649
Z178: -51.6 | AA178: -1.894629705
Z179: -52.1 | AA179: -1.905272296
Z180: -52.6 | AA180: -1.91581242
Z181: -53.1 | AA181: -1.926251063
Z182: -53.6 | AA182: -1.936589201
Z183: -54.1 | AA183: -1.946827804
Z184: -54.6 | AA184: -1.956967828
Z185: -55.1 | AA185: -1.967010223
Z186: -55.6 | AA186: -1.976955929
Z187: -56.1 | AA187: -1.986805878
Z188: -56.6 | AA188: -1.99656099
Z189: -57.1 | AA189: -2.006222179
Z190: -57.6 | AA190: -2.015790349
Z191: -58.1 | AA191: -2.025266397
Z192: -58.6 | AA192: -2.034651208
Z193: -59.1 | AA193: -2.043945662
Z194: -59.6 | AA194: -2.053150627
Z195: -60.1 | AA195: -2.062266967
Z196: -60.6 | AA196: -2.071295534
Z197: -61.1 | AA197: -2.080237173
Z198: -61.6 | AA198: -2.089092721
Z199: -62.1 | AA199: -2.097863008
Z200: -62.6 | AA200: -2.106548853

Sheet Sportbewertung
A1: Sportbewertung | BV1: =Liste!I1&"_"&Liste!E1 &"_"&Liste!N1 -> . Klasse_0_/1
D3: Leichtathletik | M3: Geraeteturnen | T3: Spiele
D4: Weitsprung | F4: Weitwurf (200g) | H4: 60m-Lauf | J4: Dauerlauf | M4: Ringturnen | O4: Stangen-klettern | T4: Fussball | U4: Handball | V4: Hockey | W4: Volleyball | X4: Fairness | AW4: gerechneter Wertfaktor
B5: Gewichtung: | E5: 1 | G5: 1 | I5: 1 | K5: 1 | N5: 1 | P5: 1 | R5: 1 | T5: 1 | U5: 1 | V5: 1 | W5: 1 | X5: 1 | AW5: =IF(ISNUMBER(E5),E5,"-") -> 1 | AX5: - | AY5: 1 | AZ5: - | BA5: 1 | BB5: - | BC5: 1 | BD5: - | BE5: - | BF5: 1 | BG5: - | BH5: 1 | BI5: - | BJ5: 1 | BK5: - | BL5: 1 | BM5: 1 | BN5: 1 | BO5: 1 | BP5: 1 | BT5: Ø | BV5: Note
B7: Masseinheit | D7: m | E7: Note | F7: m | G7: Note | H7: s | I7: Note | J7: s | K7: Note | M7: p | N7: Note | O7: s | P7: Note | Q7: s | R7: Note | T7: Note | U7: Note | V7: Note | W7: Note | X7: Note | AU7: Summe | BR7: Anzahl
A9: =IF(Klasse!B13="","",Klasse!B13) ->  | B9: =IF(Klasse!C13="","",Klasse!C13) ->  | E9: =IF(D9="","",IF(AND(D$7="s",D9<=D$40),6,IF(AND(OR(D$7="m",D$7="p"),D9>=D$40),6,IF(ISTEXT(D9),D$44,VLOOKUP(D9,D$51:E$303,2,0))))) ->  | G9: =IF(F9="","",IF(AND(F$7="s",F9<=F$40),6,IF(AND(OR(F$7="m",F$7="p"),F9>=F$40),6,IF(ISTEXT(F9),F$44,VLOOKUP(F9,F$51:G$303,2,0))))) ->  | I9: =IF(H9="","",IF(AND(H$7="s",H9<=H$40),6,IF(AND(OR(H$7="m",H$7="p"),H9>=H$40),6,IF(ISTEXT(H9),H$44,VLOOKUP(H9,H$51:I$303,2,0))))) ->  | K9: =IF(J9="","",IF(AND(J$7="s",J9<=J$40),6,IF(AND(OR(J$7="m",J$7="p"),J9>=J$40),6,VLOOKUP(J9,J$51:K$303,2,0)))) ->  | N9: =IF(M9="","",IF(AND(M$7="s",M9<=M$40),6,IF(AND(OR(M$7="m",M$7="p"),M9>=M$40),6,IF(ISTEXT(M9),M$44,VLOOKUP(M9,M$51:N$303,2,0))))) ->  | P9: =IF(O9="","",IF(AND(O$7="s",O9<=O$40),6,IF(AND(OR(O$7="m",O$7="p"),O9>=O$40),6,IF(ISTEXT(O9),O$44,VLOOKUP(O9,O$51:P$303,2,0))))) ->  | Z9: =IF(ISNUMBER(E9),E9*E$5,"-") -> - | AB9: =IF(ISNUMBER(G9),G9*G$5,"-") -> - | AD9: =IF(ISNUMBER(I9),I9*I$5,"-") -> - | AF9: =IF(ISNUMBER(K9),K9*K$5,"-") -> - | AI9: =IF(ISNUMBER(N9),N9*N$5,"-") -> - | AK9: =IF(ISNUMBER(P9),P9*P$5,"-") -> - | AM9: =IF(ISNUMBER(R9),R9*R$5,"-") -> - | AO9: =IF(ISNUMBER(T9),T9*T$5,"-") -> - | AP9: =IF(ISNUMBER(U9),U9*U$5,"-") -> - | AQ9: =IF(ISNUMBER(V9),V9*V$5,"-") -> - | AR9: =IF(ISNUMBER(W9),W9*W$5,"-") -> - | AS9: =IF(ISNUMBER(X9),X9*X$5,"-") -> - | AU9: =IF(B9="","",SUM(Z9:AS9)) ->  | AV9: / | AW9: =IF(Z9="-","-",AW$5) -> - | AY9: =IF(AB9="-","-",AY$5) -> - | BA9: =IF(AD9="-","-",BA$5) -> - | BC9: =IF(AF9="-","-",BC$5) -> - | BF9: =IF(AI9="-","-",BF$5) -> - | BH9: =IF(AK9="-","-",BH$5) -> - | BJ9: =IF(AM9="-","-",BJ$5) -> - | BL9: =IF(AO9="-","-",BL$5) -> - | BM9: =IF(AP9="-","-",BM$5) -> - | BN9: =IF(AQ9="-","-",BN$5) -> - | BO9: =IF(AR9="-","-",BO$5) -> - | BP9: =IF(AS9="-","-",BP$5) -> - | BR9: =IF(B9="","",SUM(AW9:BP9)) ->  | BS9: ≈ | BT9: =IF(OR(AU9=0,AU9=""),"",AU9/BR9) -> 
A10: =IF(Klasse!B14="","",Klasse!B14) ->  | B10: =IF(Klasse!C14="","",Klasse!C14) ->  | G10: =IF(F10="","",IF(AND(F$7="s",F10<=F$40),6,IF(AND(OR(F$7="m",F$7="p"),F10>=F$40),6,IF(ISTEXT(F10),F$44,VLOOKUP(F10,F$51:G$303,2,0))))) ->  | I10: =IF(H10="","",IF(AND(H$7="s",H10<=H$40),6,IF(AND(OR(H$7="m",H$7="p"),H10>=H$40),6,IF(ISTEXT(H10),H$44,VLOOKUP(H10,H$51:I$303,2,0))))) ->  | R10: =IF(Q10="","",IF(AND(Q$7="s",Q10<=Q$40),6,IF(AND(OR(Q$7="m",Q$7="p"),Q10>=Q$40),6,IF(ISTEXT(Q10),Q$44,VLOOKUP(Q10,Q$51:R$303,2,0))))) ->  | Z10: - | AB10: - | AD10: - | AF10: - | AI10: - | AK10: - | AM10: - | AO10: - | AP10: - | AQ10: - | AR10: - | AS10: - | AV10: / | AW10: - | AY10: - | BA10: - | BC10: - | BF10: - | BH10: - | BJ10: - | BL10: - | BM10: - | BN10: - | BO10: - | BP10: - | BS10: ≈
A11: =IF(Klasse!B15="","",Klasse!B15) ->  | B11: =IF(Klasse!C15="","",Klasse!C15) ->  | Z11: - | AB11: - | AD11: - | AF11: - | AI11: - | AK11: - | AM11: - | AO11: - | AP11: - | AQ11: - | AR11: - | AS11: - | AV11: / | AW11: - | AY11: - | BA11: - | BC11: - | BF11: - | BH11: - | BJ11: - | BL11: - | BM11: - | BN11: - | BO11: - | BP11: - | BS11: ≈
A12: =IF(Klasse!B16="","",Klasse!B16) ->  | B12: =IF(Klasse!C16="","",Klasse!C16) ->  | Z12: - | AB12: - | AD12: - | AF12: - | AI12: - | AK12: - | AM12: - | AO12: - | AP12: - | AQ12: - | AR12: - | AS12: - | AV12: / | AW12: - | AY12: - | BA12: - | BC12: - | BF12: - | BH12: - | BJ12: - | BL12: - | BM12: - | BN12: - | BO12: - | BP12: - | BS12: ≈
A13: =IF(Klasse!B17="","",Klasse!B17) ->  | B13: =IF(Klasse!C17="","",Klasse!C17) ->  | Z13: - | AB13: - | AD13: - | AF13: - | AI13: - | AK13: - | AM13: - | AO13: - | AP13: - | AQ13: - | AR13: - | AS13: - | AV13: / | AW13: - | AY13: - | BA13: - | BC13: - | BF13: - | BH13: - | BJ13: - | BL13: - | BM13: - | BN13: - | BO13: - | BP13: - | BS13: ≈
A14: =IF(Klasse!B18="","",Klasse!B18) ->  | B14: =IF(Klasse!C18="","",Klasse!C18) ->  | Z14: - | AB14: - | AD14: - | AF14: - | AI14: - | AK14: - | AM14: - | AO14: - | AP14: - | AQ14: - | AR14: - | AS14: - | AV14: / | AW14: - | AY14: - | BA14: - | BC14: - | BF14: - | BH14: - | BJ14: - | BL14: - | BM14: - | BN14: - | BO14: - | BP14: - | BS14: ≈
A15: =IF(Klasse!B19="","",Klasse!B19) ->  | B15: =IF(Klasse!C19="","",Klasse!C19) ->  | Z15: - | AB15: - | AD15: - | AF15: - | AI15: - | AK15: - | AM15: - | AO15: - | AP15: - | AQ15: - | AR15: - | AS15: - | AV15: / | AW15: - | AY15: - | BA15: - | BC15: - | BF15: - | BH15: - | BJ15: - | BL15: - | BM15: - | BN15: - | BO15: - | BP15: - | BS15: ≈
A16: =IF(Klasse!B20="","",Klasse!B20) ->  | B16: =IF(Klasse!C20="","",Klasse!C20) ->  | Z16: - | AB16: - | AD16: - | AF16: - | AI16: - | AK16: - | AM16: - | AO16: - | AP16: - | AQ16: - | AR16: - | AS16: - | AV16: / | AW16: - | AY16: - | BA16: - | BC16: - | BF16: - | BH16: - | BJ16: - | BL16: - | BM16: - | BN16: - | BO16: - | BP16: - | BS16: ≈
A17: =IF(Klasse!B21="","",Klasse!B21) ->  | B17: =IF(Klasse!C21="","",Klasse!C21) ->  | I17: =IF(H17="","",IF(AND(H$7="s",H17<=H$40),6,IF(AND(OR(H$7="m",H$7="p"),H17>=H$40),6,IF(ISTEXT(H17),H$44,VLOOKUP(H17,H$51:I$303,2,0))))) ->  | Z17: - | AB17: - | AD17: - | AF17: - | AI17: - | AK17: - | AM17: - | AO17: - | AP17: - | AQ17: - | AR17: - | AS17: - | AV17: / | AW17: - | AY17: - | BA17: - | BC17: - | BF17: - | BH17: - | BJ17: - | BL17: - | BM17: - | BN17: - | BO17: - | BP17: - | BS17: ≈
A18: =IF(Klasse!B22="","",Klasse!B22) ->  | B18: =IF(Klasse!C22="","",Klasse!C22) ->  | I18: =IF(H18="","",IF(AND(H$7="s",H18<=H$40),6,IF(AND(OR(H$7="m",H$7="p"),H18>=H$40),6,IF(ISTEXT(H18),H$44,VLOOKUP(H18,H$51:I$303,2,0))))) ->  | Z18: - | AB18: - | AD18: - | AF18: - | AI18: - | AK18: - | AM18: - | AO18: - | AP18: - | AQ18: - | AR18: - | AS18: - | AV18: / | AW18: - | AY18: - | BA18: - | BC18: - | BF18: - | BH18: - | BJ18: - | BL18: - | BM18: - | BN18: - | BO18: - | BP18: - | BS18: ≈
A19: =IF(Klasse!B23="","",Klasse!B23) ->  | B19: =IF(Klasse!C23="","",Klasse!C23) ->  | Z19: - | AB19: - | AD19: - | AF19: - | AI19: - | AK19: - | AM19: - | AO19: - | AP19: - | AQ19: - | AR19: - | AS19: - | AV19: / | AW19: - | AY19: - | BA19: - | BC19: - | BF19: - | BH19: - | BJ19: - | BL19: - | BM19: - | BN19: - | BO19: - | BP19: - | BS19: ≈
A20: =IF(Klasse!B24="","",Klasse!B24) ->  | B20: =IF(Klasse!C24="","",Klasse!C24) ->  | Z20: - | AB20: - | AD20: - | AF20: - | AI20: - | AK20: - | AM20: - | AO20: - | AP20: - | AQ20: - | AR20: - | AS20: - | AV20: / | AW20: - | AY20: - | BA20: - | BC20: - | BF20: - | BH20: - | BJ20: - | BL20: - | BM20: - | BN20: - | BO20: - | BP20: - | BS20: ≈
A21: =IF(Klasse!B25="","",Klasse!B25) ->  | B21: =IF(Klasse!C25="","",Klasse!C25) ->  | Z21: - | AB21: - | AD21: - | AF21: - | AI21: - | AK21: - | AM21: - | AO21: - | AP21: - | AQ21: - | AR21: - | AS21: - | AV21: / | AW21: - | AY21: - | BA21: - | BC21: - | BF21: - | BH21: - | BJ21: - | BL21: - | BM21: - | BN21: - | BO21: - | BP21: - | BS21: ≈
A22: =IF(Klasse!B26="","",Klasse!B26) ->  | B22: =IF(Klasse!C26="","",Klasse!C26) ->  | Z22: - | AB22: - | AD22: - | AF22: - | AI22: - | AK22: - | AM22: - | AO22: - | AP22: - | AQ22: - | AR22: - | AS22: - | AV22: / | AW22: - | AY22: - | BA22: - | BC22: - | BF22: - | BH22: - | BJ22: - | BL22: - | BM22: - | BN22: - | BO22: - | BP22: - | BS22: ≈
A23: =IF(Klasse!B27="","",Klasse!B27) ->  | B23: =IF(Klasse!C27="","",Klasse!C27) ->  | I23: =IF(H23="","",IF(AND(H$7="s",H23<=H$40),6,IF(AND(OR(H$7="m",H$7="p"),H23>=H$40),6,IF(ISTEXT(H23),H$44,VLOOKUP(H23,H$51:I$303,2,0))))) ->  | Z23: - | AB23: - | AD23: - | AF23: - | AI23: - | AK23: - | AM23: - | AO23: - | AP23: - | AQ23: - | AR23: - | AS23: - | AV23: / | AW23: - | AY23: - | BA23: - | BC23: - | BF23: - | BH23: - | BJ23: - | BL23: - | BM23: - | BN23: - | BO23: - | BP23: - | BS23: ≈
A24: =IF(Klasse!B28="","",Klasse!B28) ->  | B24: =IF(Klasse!C28="","",Klasse!C28) ->  | Z24: - | AB24: - | AD24: - | AF24: - | AI24: - | AK24: - | AM24: - | AO24: - | AP24: - | AQ24: - | AR24: - | AS24: - | AV24: / | AW24: - | AY24: - | BA24: - | BC24: - | BF24: - | BH24: - | BJ24: - | BL24: - | BM24: - | BN24: - | BO24: - | BP24: - | BS24: ≈
A25: =IF(Klasse!B29="","",Klasse!B29) ->  | B25: =IF(Klasse!C29="","",Klasse!C29) ->  | Z25: - | AB25: - | AD25: - | AF25: - | AI25: - | AK25: - | AM25: - | AO25: - | AP25: - | AQ25: - | AR25: - | AS25: - | AV25: / | AW25: - | AY25: - | BA25: - | BC25: - | BF25: - | BH25: - | BJ25: - | BL25: - | BM25: - | BN25: - | BO25: - | BP25: - | BS25: ≈
A26: =IF(Klasse!B30="","",Klasse!B30) ->  | B26: =IF(Klasse!C30="","",Klasse!C30) ->  | Z26: - | AB26: - | AD26: - | AF26: - | AI26: - | AK26: - | AM26: - | AO26: - | AP26: - | AQ26: - | AR26: - | AS26: - | AV26: / | AW26: - | AY26: - | BA26: - | BC26: - | BF26: - | BH26: - | BJ26: - | BL26: - | BM26: - | BN26: - | BO26: - | BP26: - | BS26: ≈
A27: =IF(Klasse!B31="","",Klasse!B31) ->  | B27: =IF(Klasse!C31="","",Klasse!C31) ->  | Z27: - | AB27: - | AD27: - | AF27: - | AI27: - | AK27: - | AM27: - | AO27: - | AP27: - | AQ27: - | AR27: - | AS27: - | AV27: / | AW27: - | AY27: - | BA27: - | BC27: - | BF27: - | BH27: - | BJ27: - | BL27: - | BM27: - | BN27: - | BO27: - | BP27: - | BS27: ≈
A28: =IF(Klasse!B32="","",Klasse!B32) ->  | B28: =IF(Klasse!C32="","",Klasse!C32) ->  | Z28: - | AB28: - | AD28: - | AF28: - | AI28: - | AK28: - | AM28: - | AO28: - | AP28: - | AQ28: - | AR28: - | AS28: - | AV28: / | AW28: - | AY28: - | BA28: - | BC28: - | BF28: - | BH28: - | BJ28: - | BL28: - | BM28: - | BN28: - | BO28: - | BP28: - | BS28: ≈
A29: =IF(Klasse!B33="","",Klasse!B33) ->  | B29: =IF(Klasse!C33="","",Klasse!C33) ->  | Z29: - | AB29: - | AD29: - | AF29: - | AI29: - | AK29: - | AM29: - | AO29: - | AP29: - | AQ29: - | AR29: - | AS29: - | AV29: / | AW29: - | AY29: - | BA29: - | BC29: - | BF29: - | BH29: - | BJ29: - | BL29: - | BM29: - | BN29: - | BO29: - | BP29: - | BS29: ≈
A30: =IF(Klasse!B34="","",Klasse!B34) ->  | B30: =IF(Klasse!C34="","",Klasse!C34) ->  | Z30: - | AB30: - | AD30: - | AF30: - | AI30: - | AK30: - | AM30: - | AO30: - | AP30: - | AQ30: - | AR30: - | AS30: - | AV30: / | AW30: - | AY30: - | BA30: - | BC30: - | BF30: - | BH30: - | BJ30: - | BL30: - | BM30: - | BN30: - | BO30: - | BP30: - | BS30: ≈
A31: =IF(Klasse!B35="","",Klasse!B35) ->  | B31: =IF(Klasse!C35="","",Klasse!C35) ->  | Z31: - | AB31: - | AD31: - | AF31: - | AI31: - | AK31: - | AM31: - | AO31: - | AP31: - | AQ31: - | AR31: - | AS31: - | AV31: / | AW31: - | AY31: - | BA31: - | BC31: - | BF31: - | BH31: - | BJ31: - | BL31: - | BM31: - | BN31: - | BO31: - | BP31: - | BS31: ≈
A32: =IF(Klasse!B36="","",Klasse!B36) ->  | B32: =IF(Klasse!C36="","",Klasse!C36) ->  | Z32: - | AB32: - | AD32: - | AF32: - | AI32: - | AK32: - | AM32: - | AO32: - | AP32: - | AQ32: - | AR32: - | AS32: - | AV32: / | AW32: - | AY32: - | BA32: - | BC32: - | BF32: - | BH32: - | BJ32: - | BL32: - | BM32: - | BN32: - | BO32: - | BP32: - | BS32: ≈
A33: =IF(Klasse!B37="","",Klasse!B37) ->  | B33: =IF(Klasse!C37="","",Klasse!C37) ->  | Z33: - | AB33: - | AD33: - | AF33: - | AI33: - | AK33: - | AM33: - | AO33: - | AP33: - | AQ33: - | AR33: - | AS33: - | AV33: / | AW33: - | AY33: - | BA33: - | BC33: - | BF33: - | BH33: - | BJ33: - | BL33: - | BM33: - | BN33: - | BO33: - | BP33: - | BS33: ≈
A34: =IF(Klasse!B38="","",Klasse!B38) ->  | B34: =IF(Klasse!C38="","",Klasse!C38) ->  | Z34: - | AB34: - | AD34: - | AF34: - | AI34: - | AK34: - | AM34: - | AO34: - | AP34: - | AQ34: - | AR34: - | AS34: - | AV34: / | AW34: - | AY34: - | BA34: - | BC34: - | BF34: - | BH34: - | BJ34: - | BL34: - | BM34: - | BN34: - | BO34: - | BP34: - | BS34: ≈
A35: =IF(Klasse!B39="","",Klasse!B39) ->  | B35: =IF(Klasse!C39="","",Klasse!C39) ->  | Z35: - | AB35: - | AD35: - | AF35: - | AI35: - | AK35: - | AM35: - | AO35: - | AP35: - | AQ35: - | AR35: - | AS35: - | AV35: / | AW35: - | AY35: - | BA35: - | BC35: - | BF35: - | BH35: - | BJ35: - | BL35: - | BM35: - | BN35: - | BO35: - | BP35: - | BS35: ≈
A36: =IF(Klasse!B40="","",Klasse!B40) ->  | B36: =IF(Klasse!C40="","",Klasse!C40) ->  | Z36: - | AB36: - | AD36: - | AF36: - | AI36: - | AK36: - | AM36: - | AO36: - | AP36: - | AQ36: - | AR36: - | AS36: - | AV36: / | AW36: - | AY36: - | BA36: - | BC36: - | BF36: - | BH36: - | BJ36: - | BL36: - | BM36: - | BN36: - | BO36: - | BP36: - | BS36: ≈
D37: =IF(COUNT(D9:D33)=0,"",AVERAGE(D9:D33)) ->  | F37: =IF(COUNT(F9:F33)=0,"",AVERAGE(F9:F33)) ->  | M37: =IF(COUNT(M9:M33)=0,"",AVERAGE(M9:M33)) ->  | T37: =IF(COUNT(T9:T33)=0,"",AVERAGE(T9:T33)) ->  | U37: =IF(COUNT(U9:U33)=0,"",AVERAGE(U9:U33)) ->  | V37: =IF(COUNT(V9:V33)=0,"",AVERAGE(V9:V33)) ->  | W37: =IF(COUNT(W9:W33)=0,"",AVERAGE(W9:W33)) ->  | X37: =IF(COUNT(X9:X33)=0,"",AVERAGE(X9:X33)) ->  | BT37: =IF(COUNT(BT9:BT33)=0,"",AVERAGE(BT9:BT33)) ->  | BV37: =IF(COUNT(BV9:BV33)=0,"",AVERAGE(BV9:BV33)) -> 
B38: Messgenauigkeit: | D38: 0.05 | E38: =D7 -> m | F38: 0.1 | G38: =F7 -> m | H38: 0.1 | I38: =H7 -> s | J38: 0.1 | K38: =J7 -> s | M38: 0.5 | N38: =M7 -> p | O38: 0.1 | P38: =O7 -> s | Q38: 0.1 | R38: =Q7 -> s
B40: Bestnote bei | D40: 3.9 | E40: =E38 -> m | F40: 30 | G40: =G38 -> m | H40: 9.5 | I40: =I38 -> s | J40: 120 | K40: =K38 -> s | M40: 10 | N40: =N38 -> p | O40: 6 | P40: =P38 -> s | Q40: 6 | R40: =R38 -> s
B41: Genügend bei | D41: 2.5 | E41: =E38 -> m | F41: 15 | G41: =G38 -> m | H41: 16 | I41: =I38 -> s | J41: 160 | K41: =K38 -> s | M41: 6.5 | N41: =N38 -> p | O41: 25 | P41: =P38 -> s | Q41: 25 | R41: =R38 -> s
D42: =IF(D7="s",D40/D41,D41/D40) -> 0.641025641 | F42: =IF(F7="s",F40/F41,F41/F40) -> 0.5 | H42: =IF(H7="s",H40/H41,H41/H40) -> 0.59375 | J42: =IF(J7="s",J40/J41,J41/J40) -> 0.75 | M42: =IF(M7="s",M40/M41,M41/M40) -> 0.65 | O42: =IF(O7="s",O40/O41,O41/O40) -> 0.24 | Q42: =IF(Q7="s",Q40/Q41,Q41/Q40) -> 0.24
B44: tiefste Note: | D44: 3.5 | F44: 3.5 | H44: 3.5 | J44: 3.5 | M44: 3.5 | O44: 3.5 | Q44: 3.5
B47: rechnerischer Messschritt: | D47: =IF(E38="s",D38-D38-D38,D38) -> 0.05 | F47: =IF(G38="s",F38-F38-F38,F38) -> 0.1 | H47: =IF(I38="s",H38-H38-H38,H38) -> -0.1 | J47: =IF(K38="s",J38-J38-J38,J38) -> -0.1 | M47: =IF(N38="s",M38-M38-M38,M38) -> 0.5 | O47: =IF(P38="s",O38-O38-O38,O38) -> -0.1 | Q47: =IF(R38="s",Q38-Q38-Q38,Q38) -> -0.1
B48: Notenreduktion pro Messschritt: | D48: =IF(D7="s",2/((D41-D40)/D38),2/((D40-D41)/D38)) -> 0.07142857143 | F48: =IF(F7="s",2/((F41-F40)/F38),2/((F40-F41)/F38)) -> 0.01333333333 | H48: =IF(H7="s",2/((H41-H40)/H38),2/((H40-H41)/H38)) -> 0.03076923077 | J48: =IF(J7="s",2/((J41-J40)/J38),2/((J40-J41)/J38)) -> 0.005 | M48: =IF(M7="s",2/((M41-M40)/M38),2/((M40-M41)/M38)) -> 0.2857142857 | O48: =IF(O7="s",2/((O41-O40)/O38),2/((O40-O41)/O38)) -> 0.01052631579 | Q48: =IF(Q7="s",2/((Q41-Q40)/Q38),2/((Q40-Q41)/Q38)) -> 0.01052631579
D50: Berechnungen
D51: =D40 -> 3.9 | E51: 6 | F51: =F40 -> 30 | G51: 6 | H51: =H40 -> 9.5 | I51: 6 | J51: =J40 -> 120 | K51: 6 | M51: =M40 -> 10 | N51: 6 | O51: =O40 -> 6 | P51: 6 | Q51: =Q40 -> 6 | R51: 6
D52: =IF(D51="","",IF((D51-D$47)<0.05,"",ROUND((D51-D$47),2))) -> 3.85 | E52: =IF(E51="","",IF((E51-D$48)<D$44,$D$44,(E51-D$48))) -> 5.928571429 | F52: =IF(F51="","",IF((F51-F$47)<0.05,"",ROUND((F51-F$47),2))) -> 29.9 | G52: =IF(G51="","",IF((G51-F$48)<F$44,$F$44,(G51-F$48))) -> 5.986666667 | H52: =IF(H51="","",IF((H51-H$47)<0.05,"",ROUND((H51-H$47),2))) -> 9.6 | I52: =IF(I51="","",IF((I51-H$48)<H$44,$H$44,(I51-H$48))) -> 5.969230769 | J52: 120.1 | K52: =IF(K51="","",IF((K51-J$48)<J$44,$H$44,(K51-J$48))) -> 5.995 | M52: =IF(M51="","",IF((M51-M$47)<0.05,"",ROUND((M51-M$47),2))) -> 9.5 | N52: =IF(N51="","",IF((N51-M$48)<M$44,$M$44,(N51-M$48))) -> 5.714285714 | O52: =IF(O51="","",IF((O51-O$47)<0.05,"",ROUND((O51-O$47),2))) -> 6.1 | P52: =IF(P51="","",IF((P51-O$48)<O$44,$O$44,(P51-O$48))) -> 5.989473684 | Q52: =IF(Q51="","",IF((Q51-Q$47)<0.05,"",ROUND((Q51-Q$47),2))) -> 6.1 | R52: =IF(R51="","",IF((R51-Q$48)<Q$44,$Q$44,(R51-Q$48))) -> 5.989473684
D53: 3.8 | E53: =IF(E52="","",IF((E52-D$48)<D$44,$D$44,(E52-D$48))) -> 5.857142857 | F53: 29.8 | G53: =IF(G52="","",IF((G52-F$48)<F$44,$F$44,(G52-F$48))) -> 5.973333333 | H53: 9.7 | I53: =IF(I52="","",IF((I52-H$48)<H$44,$H$44,(I52-H$48))) -> 5.938461538 | J53: 120.2 | K53: =IF(K52="","",IF((K52-J$48)<J$44,$H$44,(K52-J$48))) -> 5.99 | M53: 9 | N53: =IF(N52="","",IF((N52-M$48)<M$44,$M$44,(N52-M$48))) -> 5.428571429 | O53: 6.2 | P53: =IF(P52="","",IF((P52-O$48)<O$44,$O$44,(P52-O$48))) -> 5.978947368 | Q53: 6.2 | R53: =IF(R52="","",IF((R52-Q$48)<Q$44,$Q$44,(R52-Q$48))) -> 5.978947368
D54: 3.75 | E54: 5.785714286 | F54: 29.7 | G54: 5.96 | H54: 9.8 | I54: 5.907692308 | J54: 120.3 | K54: 5.985 | M54: 8.5 | N54: 5.142857143 | O54: 6.3 | P54: 5.968421053 | Q54: 6.3 | R54: 5.968421053
D55: 3.7 | E55: 5.714285714 | F55: 29.6 | G55: 5.946666667 | H55: 9.9 | I55: 5.876923077 | J55: 120.4 | K55: 5.98 | M55: 8 | N55: 4.857142857 | O55: 6.4 | P55: 5.957894737 | Q55: 6.4 | R55: 5.957894737
D56: 3.65 | E56: 5.642857143 | F56: 29.5 | G56: 5.933333333 | H56: 10 | I56: 5.846153846 | J56: 120.5 | K56: 5.975 | M56: 7.5 | N56: 4.571428571 | O56: 6.5 | P56: 5.947368421 | Q56: 6.5 | R56: 5.947368421
D57: 3.6 | E57: 5.571428571 | F57: 29.4 | G57: 5.92 | H57: 10.1 | I57: 5.815384615 | J57: 120.6 | K57: 5.97 | M57: 7 | N57: 4.285714286 | O57: 6.6 | P57: 5.936842105 | Q57: 6.6 | R57: 5.936842105
D58: 3.55 | E58: 5.5 | F58: 29.3 | G58: 5.906666667 | H58: 10.2 | I58: 5.784615385 | J58: 120.7 | K58: 5.965 | M58: 6.5 | N58: 4 | O58: 6.7 | P58: 5.926315789 | Q58: 6.7 | R58: 5.926315789
D59: 3.5 | E59: 5.428571429 | F59: 29.2 | G59: 5.893333333 | H59: 10.3 | I59: 5.753846154 | J59: 120.8 | K59: 5.96 | M59: 6 | N59: 3.714285714 | O59: 6.8 | P59: 5.915789474 | Q59: 6.8 | R59: 5.915789474
D60: 3.45 | E60: 5.357142857 | F60: 29.1 | G60: 5.88 | H60: 10.4 | I60: 5.723076923 | J60: 120.9 | K60: 5.955 | M60: 5.5 | N60: 3.5 | O60: 6.9 | P60: 5.905263158 | Q60: 6.9 | R60: 5.905263158
D61: 3.4 | E61: 5.285714286 | F61: 29 | G61: 5.866666667 | H61: 10.5 | I61: 5.692307692 | J61: 121 | K61: 5.95 | M61: 5 | N61: 3.5 | O61: 7 | P61: 5.894736842 | Q61: 7 | R61: 5.894736842
D62: 3.35 | E62: 5.214285714 | F62: 28.9 | G62: 5.853333333 | H62: 10.6 | I62: 5.661538462 | J62: 121.1 | K62: 5.945 | M62: 4.5 | N62: 3.5 | O62: 7.1 | P62: 5.884210526 | Q62: 7.1 | R62: 5.884210526
D63: 3.3 | E63: 5.142857143 | F63: 28.8 | G63: 5.84 | H63: 10.7 | I63: 5.630769231 | J63: 121.2 | K63: 5.94 | M63: 4 | N63: 3.5 | O63: 7.2 | P63: 5.873684211 | Q63: 7.2 | R63: 5.873684211
D64: 3.25 | E64: 5.071428571 | F64: 28.7 | G64: 5.826666667 | H64: 10.8 | I64: 5.6 | J64: 121.3 | K64: 5.935 | M64: 3.5 | N64: 3.5 | O64: 7.3 | P64: 5.863157895 | Q64: 7.3 | R64: 5.863157895
D65: 3.2 | E65: 5 | F65: 28.6 | G65: 5.813333333 | H65: 10.9 | I65: 5.569230769 | J65: 121.4 | K65: 5.93 | M65: 3 | N65: 3.5 | O65: 7.4 | P65: 5.852631579 | Q65: 7.4 | R65: 5.852631579
D66: 3.15 | E66: 4.928571429 | F66: 28.5 | G66: 5.8 | H66: 11 | I66: 5.538461538 | J66: 121.5 | K66: 5.925 | M66: 2.5 | N66: 3.5 | O66: 7.5 | P66: 5.842105263 | Q66: 7.5 | R66: 5.842105263
D67: 3.1 | E67: 4.857142857 | F67: 28.4 | G67: 5.786666667 | H67: 11.1 | I67: 5.507692308 | J67: 121.6 | K67: 5.92 | M67: 2 | N67: 3.5 | O67: 7.6 | P67: 5.831578947 | Q67: 7.6 | R67: 5.831578947
D68: 3.05 | E68: 4.785714286 | F68: 28.3 | G68: 5.773333333 | H68: 11.2 | I68: 5.476923077 | J68: 121.7 | K68: 5.915 | M68: 1.5 | N68: 3.5 | O68: 7.7 | P68: 5.821052632 | Q68: 7.7 | R68: 5.821052632
D69: 3 | E69: 4.714285714 | F69: 28.2 | G69: 5.76 | H69: 11.3 | I69: 5.446153846 | J69: 121.8 | K69: 5.91 | M69: 1 | N69: 3.5 | O69: 7.8 | P69: 5.810526316 | Q69: 7.8 | R69: 5.810526316
D70: 2.95 | E70: 4.642857143 | F70: 28.1 | G70: 5.746666667 | H70: 11.4 | I70: 5.415384615 | J70: 121.9 | K70: 5.905 | M70: 0.5 | N70: 3.5 | O70: 7.9 | P70: 5.8 | Q70: 7.9 | R70: 5.8
D71: 2.9 | E71: 4.571428571 | F71: 28 | G71: 5.733333333 | H71: 11.5 | I71: 5.384615385 | J71: 122 | K71: 5.9 | N71: 3.5 | O71: 8 | P71: 5.789473684 | Q71: 8 | R71: 5.789473684
D72: 2.85 | E72: 4.5 | F72: 27.9 | G72: 5.72 | H72: 11.6 | I72: 5.353846154 | J72: 122.1 | K72: 5.895 | N72: 3.5 | O72: 8.1 | P72: 5.778947368 | Q72: 8.1 | R72: 5.778947368
D73: 2.8 | E73: 4.428571429 | F73: 27.8 | G73: 5.706666667 | H73: 11.7 | I73: 5.323076923 | J73: 122.2 | K73: 5.89 | N73: 3.5 | O73: 8.2 | P73: 5.768421053 | Q73: 8.2 | R73: 5.768421053
D74: 2.75 | E74: 4.357142857 | F74: 27.7 | G74: 5.693333333 | H74: 11.8 | I74: 5.292307692 | J74: 122.3 | K74: 5.885 | N74: 3.5 | O74: 8.3 | P74: 5.757894737 | Q74: 8.3 | R74: 5.757894737
D75: 2.7 | E75: 4.285714286 | F75: 27.6 | G75: 5.68 | H75: 11.9 | I75: 5.261538462 | J75: 122.4 | K75: 5.88 | N75: 3.5 | O75: 8.4 | P75: 5.747368421 | Q75: 8.4 | R75: 5.747368421
D76: 2.65 | E76: 4.214285714 | F76: 27.5 | G76: 5.666666667 | H76: 12 | I76: 5.230769231 | J76: 122.5 | K76: 5.875 | N76: 3.5 | O76: 8.5 | P76: 5.736842105 | Q76: 8.5 | R76: 5.736842105
D77: 2.6 | E77: 4.142857143 | F77: 27.4 | G77: 5.653333333 | H77: 12.1 | I77: 5.2 | J77: 122.6 | K77: 5.87 | N77: 3.5 | O77: 8.6 | P77: 5.726315789 | Q77: 8.6 | R77: 5.726315789
D78: 2.55 | E78: 4.071428571 | F78: 27.3 | G78: 5.64 | H78: 12.2 | I78: 5.169230769 | J78: 122.7 | K78: 5.865 | N78: 3.5 | O78: 8.7 | P78: 5.715789474 | Q78: 8.7 | R78: 5.715789474
D79: 2.5 | E79: 4 | F79: 27.2 | G79: 5.626666667 | H79: 12.3 | I79: 5.138461538 | J79: 122.8 | K79: 5.86 | N79: 3.5 | O79: 8.8 | P79: 5.705263158 | Q79: 8.8 | R79: 5.705263158
D80: 2.45 | E80: 3.928571429 | F80: 27.1 | G80: 5.613333333 | H80: 12.4 | I80: 5.107692308 | J80: 122.9 | K80: 5.855 | N80: 3.5 | O80: 8.9 | P80: 5.694736842 | Q80: 8.9 | R80: 5.694736842
D81: 2.4 | E81: 3.857142857 | F81: 27 | G81: 5.6 | H81: 12.5 | I81: 5.076923077 | J81: 123 | K81: 5.85 | N81: 3.5 | O81: 9 | P81: 5.684210526 | Q81: 9 | R81: 5.684210526
D82: 2.35 | E82: 3.785714286 | F82: 26.9 | G82: 5.586666667 | H82: 12.6 | I82: 5.046153846 | J82: 123.1 | K82: 5.845 | N82: 3.5 | O82: 9.1 | P82: 5.673684211 | Q82: 9.1 | R82: 5.673684211
D83: 2.3 | E83: 3.714285714 | F83: 26.8 | G83: 5.573333333 | H83: 12.7 | I83: 5.015384615 | J83: 123.2 | K83: 5.84 | N83: 3.5 | O83: 9.2 | P83: 5.663157895 | Q83: 9.2 | R83: 5.663157895
D84: 2.25 | E84: 3.642857143 | F84: 26.7 | G84: 5.56 | H84: 12.8 | I84: 4.984615385 | J84: 123.3 | K84: 5.835 | N84: 3.5 | O84: 9.3 | P84: 5.652631579 | Q84: 9.3 | R84: 5.652631579
D85: 2.2 | E85: 3.571428571 | F85: 26.6 | G85: 5.546666667 | H85: 12.9 | I85: 4.953846154 | J85: 123.4 | K85: 5.83 | N85: 3.5 | O85: 9.4 | P85: 5.642105263 | Q85: 9.4 | R85: 5.642105263
D86: 2.15 | E86: 3.5 | F86: 26.5 | G86: 5.533333333 | H86: 13 | I86: 4.923076923 | J86: 123.5 | K86: 5.825 | N86: 3.5 | O86: 9.5 | P86: 5.631578947 | Q86: 9.5 | R86: 5.631578947
D87: 2.1 | E87: 3.5 | F87: 26.4 | G87: 5.52 | H87: 13.1 | I87: 4.892307692 | J87: 123.6 | K87: 5.82 | N87: 3.5 | O87: 9.6 | P87: 5.621052632 | Q87: 9.6 | R87: 5.621052632
D88: 2.05 | E88: 3.5 | F88: 26.3 | G88: 5.506666667 | H88: 13.2 | I88: 4.861538462 | J88: 123.7 | K88: 5.815 | N88: 3.5 | O88: 9.7 | P88: 5.610526316 | Q88: 9.7 | R88: 5.610526316
D89: 2 | E89: 3.5 | F89: 26.2 | G89: 5.493333333 | H89: 13.3 | I89: 4.830769231 | J89: 123.8 | K89: 5.81 | N89: 3.5 | O89: 9.8 | P89: 5.6 | Q89: 9.8 | R89: 5.6
D90: 1.95 | E90: 3.5 | F90: 26.1 | G90: 5.48 | H90: 13.4 | I90: 4.8 | J90: 123.9 | K90: 5.805 | N90: 3.5 | O90: 9.9 | P90: 5.589473684 | Q90: 9.9 | R90: 5.589473684
D91: 1.9 | E91: 3.5 | F91: 26 | G91: 5.466666667 | H91: 13.5 | I91: 4.769230769 | J91: 124 | K91: 5.8 | N91: 3.5 | O91: 10 | P91: 5.578947368 | Q91: 10 | R91: 5.578947368
D92: 1.85 | E92: 3.5 | F92: 25.9 | G92: 5.453333333 | H92: 13.6 | I92: 4.738461538 | J92: 124.1 | K92: 5.795 | N92: 3.5 | O92: 10.1 | P92: 5.568421053 | Q92: 10.1 | R92: 5.568421053
D93: 1.8 | E93: 3.5 | F93: 25.8 | G93: 5.44 | H93: 13.7 | I93: 4.707692308 | J93: 124.2 | K93: 5.79 | N93: 3.5 | O93: 10.2 | P93: 5.557894737 | Q93: 10.2 | R93: 5.557894737
D94: 1.75 | E94: 3.5 | F94: 25.7 | G94: 5.426666667 | H94: 13.8 | I94: 4.676923077 | J94: 124.3 | K94: 5.785 | N94: 3.5 | O94: 10.3 | P94: 5.547368421 | Q94: 10.3 | R94: 5.547368421
D95: 1.7 | E95: 3.5 | F95: 25.6 | G95: 5.413333333 | H95: 13.9 | I95: 4.646153846 | J95: 124.4 | K95: 5.78 | N95: 3.5 | O95: 10.4 | P95: 5.536842105 | Q95: 10.4 | R95: 5.536842105
D96: 1.65 | E96: 3.5 | F96: 25.5 | G96: 5.4 | H96: 14 | I96: 4.615384615 | J96: 124.5 | K96: 5.775 | N96: 3.5 | O96: 10.5 | P96: 5.526315789 | Q96: 10.5 | R96: 5.526315789
D97: 1.6 | E97: 3.5 | F97: 25.4 | G97: 5.386666667 | H97: 14.1 | I97: 4.584615385 | J97: 124.6 | K97: 5.77 | N97: 3.5 | O97: 10.6 | P97: 5.515789474 | Q97: 10.6 | R97: 5.515789474
D98: 1.55 | E98: 3.5 | F98: 25.3 | G98: 5.373333333 | H98: 14.2 | I98: 4.553846154 | J98: 124.7 | K98: 5.765 | N98: 3.5 | O98: 10.7 | P98: 5.505263158 | Q98: 10.7 | R98: 5.505263158
D99: 1.5 | E99: 3.5 | F99: 25.2 | G99: 5.36 | H99: 14.3 | I99: 4.523076923 | J99: 124.8 | K99: 5.76 | N99: 3.5 | O99: 10.8 | P99: 5.494736842 | Q99: 10.8 | R99: 5.494736842
D100: 1.45 | E100: 3.5 | F100: 25.1 | G100: 5.346666667 | H100: 14.4 | I100: 4.492307692 | J100: 124.9 | K100: 5.755 | N100: 3.5 | O100: 10.9 | P100: 5.484210526 | Q100: 10.9 | R100: 5.484210526
D101: 1.4 | E101: 3.5 | F101: 25 | G101: 5.333333333 | H101: 14.5 | I101: 4.461538462 | J101: 125 | K101: 5.75 | N101: 3.5 | O101: 11 | P101: 5.473684211 | Q101: 11 | R101: 5.473684211
D102: 1.35 | E102: 3.5 | F102: 24.9 | G102: 5.32 | H102: 14.6 | I102: 4.430769231 | J102: 125.1 | K102: 5.745 | N102: 3.5 | O102: 11.1 | P102: 5.463157895 | Q102: 11.1 | R102: 5.463157895
D103: 1.3 | E103: 3.5 | F103: 24.8 | G103: 5.306666667 | H103: 14.7 | I103: 4.4 | J103: 125.2 | K103: 5.74 | N103: 3.5 | O103: 11.2 | P103: 5.452631579 | Q103: 11.2 | R103: 5.452631579
D104: 1.25 | E104: 3.5 | F104: 24.7 | G104: 5.293333333 | H104: 14.8 | I104: 4.369230769 | J104: 125.3 | K104: 5.735 | N104: 3.5 | O104: 11.3 | P104: 5.442105263 | Q104: 11.3 | R104: 5.442105263
D105: 1.2 | E105: 3.5 | F105: 24.6 | G105: 5.28 | H105: 14.9 | I105: 4.338461538 | J105: 125.4 | K105: 5.73 | N105: 3.5 | O105: 11.4 | P105: 5.431578947 | Q105: 11.4 | R105: 5.431578947
D106: 1.15 | E106: 3.5 | F106: 24.5 | G106: 5.266666667 | H106: 15 | I106: 4.307692308 | J106: 125.5 | K106: 5.725 | N106: 3.5 | O106: 11.5 | P106: 5.421052632 | Q106: 11.5 | R106: 5.421052632
D107: 1.1 | E107: 3.5 | F107: 24.4 | G107: 5.253333333 | H107: 15.1 | I107: 4.276923077 | J107: 125.6 | K107: 5.72 | N107: 3.5 | O107: 11.6 | P107: 5.410526316 | Q107: 11.6 | R107: 5.410526316
D108: 1.05 | E108: 3.5 | F108: 24.3 | G108: 5.24 | H108: 15.2 | I108: 4.246153846 | J108: 125.7 | K108: 5.715 | N108: 3.5 | O108: 11.7 | P108: 5.4 | Q108: 11.7 | R108: 5.4
D109: 1 | E109: 3.5 | F109: 24.2 | G109: 5.226666667 | H109: 15.3 | I109: 4.215384615 | J109: 125.8 | K109: 5.71 | N109: 3.5 | O109: 11.8 | P109: 5.389473684 | Q109: 11.8 | R109: 5.389473684
D110: 0.95 | E110: 3.5 | F110: 24.1 | G110: 5.213333333 | H110: 15.4 | I110: 4.184615385 | J110: 125.9 | K110: 5.705 | N110: 3.5 | O110: 11.9 | P110: 5.378947368 | Q110: 11.9 | R110: 5.378947368
D111: 0.9 | E111: 3.5 | F111: 24 | G111: 5.2 | H111: 15.5 | I111: 4.153846154 | J111: 126 | K111: 5.7 | N111: 3.5 | O111: 12 | P111: 5.368421053 | Q111: 12 | R111: 5.368421053
D112: 0.85 | E112: 3.5 | F112: 23.9 | G112: 5.186666667 | H112: 15.6 | I112: 4.123076923 | J112: 126.1 | K112: 5.695 | N112: 3.5 | O112: 12.1 | P112: 5.357894737 | Q112: 12.1 | R112: 5.357894737
D113: 0.8 | E113: 3.5 | F113: 23.8 | G113: 5.173333333 | H113: 15.7 | I113: 4.092307692 | J113: 126.2 | K113: 5.69 | N113: 3.5 | O113: 12.2 | P113: 5.347368421 | Q113: 12.2 | R113: 5.347368421
D114: 0.75 | E114: 3.5 | F114: 23.7 | G114: 5.16 | H114: 15.8 | I114: 4.061538462 | J114: 126.3 | K114: 5.685 | N114: 3.5 | O114: 12.3 | P114: 5.336842105 | Q114: 12.3 | R114: 5.336842105
D115: 0.7 | E115: 3.5 | F115: 23.6 | G115: 5.146666667 | H115: 15.9 | I115: 4.030769231 | J115: 126.4 | K115: 5.68 | N115: 3.5 | O115: 12.4 | P115: 5.326315789 | Q115: 12.4 | R115: 5.326315789
D116: =IF(D115="","",IF((D115-D$47)<0.05,"",ROUND((D115-D$47),2))) -> 0.65 | E116: 3.5 | F116: =IF(F115="","",IF((F115-F$47)<0.05,"",ROUND((F115-F$47),2))) -> 23.5 | G116: 5.133333333 | H116: =IF(H115="","",IF((H115-H$47)<0.05,"",ROUND((H115-H$47),2))) -> 16 | I116: 4 | J116: 126.5 | K116: 5.675 | M116: =IF(M115="","",IF((M115-M$47)<0.05,"",ROUND((M115-M$47),2))) ->  | N116: 3.5 | O116: =IF(O115="","",IF((O115-O$47)<0.05,"",ROUND((O115-O$47),2))) -> 12.5 | P116: 5.315789474 | Q116: =IF(Q115="","",IF((Q115-Q$47)<0.05,"",ROUND((Q115-Q$47),2))) -> 12.5 | R116: 5.315789474
D117: 0.6 | E117: =IF(E116="","",IF((E116-D$48)<D$44,$D$44,(E116-D$48))) -> 3.5 | F117: 23.4 | G117: =IF(G116="","",IF((G116-F$48)<F$44,$F$44,(G116-F$48))) -> 5.12 | H117: 16.1 | I117: =IF(I116="","",IF((I116-H$48)<H$44,$H$44,(I116-H$48))) -> 3.969230769 | J117: 126.6 | K117: =IF(K116="","",IF((K116-J$48)<J$44,$H$44,(K116-J$48))) -> 5.67 | N117: =IF(N116="","",IF((N116-M$48)<M$44,$M$44,(N116-M$48))) -> 3.5 | O117: 12.6 | P117: =IF(P116="","",IF((P116-O$48)<O$44,$O$44,(P116-O$48))) -> 5.305263158 | Q117: 12.6 | R117: =IF(R116="","",IF((R116-Q$48)<Q$44,$Q$44,(R116-Q$48))) -> 5.305263158
D118: 0.55 | E118: 3.5 | F118: 23.3 | G118: 5.106666667 | H118: 16.2 | I118: 3.938461538 | J118: 126.7 | K118: 5.665 | N118: 3.5 | O118: 12.7 | P118: 5.294736842 | Q118: 12.7 | R118: 5.294736842
D119: 0.5 | E119: 3.5 | F119: 23.2 | G119: 5.093333333 | H119: 16.3 | I119: 3.907692308 | J119: 126.8 | K119: 5.66 | N119: 3.5 | O119: 12.8 | P119: 5.284210526 | Q119: 12.8 | R119: 5.284210526
D120: 0.45 | E120: 3.5 | F120: 23.1 | G120: 5.08 | H120: 16.4 | I120: 3.876923077 | J120: 126.9 | K120: 5.655 | N120: 3.5 | O120: 12.9 | P120: 5.273684211 | Q120: 12.9 | R120: 5.273684211
D121: 0.4 | E121: 3.5 | F121: 23 | G121: 5.066666667 | H121: 16.5 | I121: 3.846153846 | J121: 127 | K121: 5.65 | N121: 3.5 | O121: 13 | P121: 5.263157895 | Q121: 13 | R121: 5.263157895
D122: 0.35 | E122: 3.5 | F122: 22.9 | G122: 5.053333333 | H122: 16.6 | I122: 3.815384615 | J122: 127.1 | K122: 5.645 | N122: 3.5 | O122: 13.1 | P122: 5.252631579 | Q122: 13.1 | R122: 5.252631579
D123: 0.3 | E123: 3.5 | F123: 22.8 | G123: 5.04 | H123: 16.7 | I123: 3.784615385 | J123: 127.2 | K123: 5.64 | N123: 3.5 | O123: 13.2 | P123: 5.242105263 | Q123: 13.2 | R123: 5.242105263
D124: 0.25 | E124: 3.5 | F124: 22.7 | G124: 5.026666667 | H124: 16.8 | I124: 3.753846154 | J124: 127.3 | K124: 5.635 | N124: 3.5 | O124: 13.3 | P124: 5.231578947 | Q124: 13.3 | R124: 5.231578947
D125: 0.2 | E125: 3.5 | F125: 22.6 | G125: 5.013333333 | H125: 16.9 | I125: 3.723076923 | J125: 127.4 | K125: 5.63 | N125: 3.5 | O125: 13.4 | P125: 5.221052632 | Q125: 13.4 | R125: 5.221052632
D126: 0.15 | E126: 3.5 | F126: 22.5 | G126: 5 | H126: 17 | I126: 3.692307692 | J126: 127.5 | K126: 5.625 | N126: 3.5 | O126: 13.5 | P126: 5.210526316 | Q126: 13.5 | R126: 5.210526316
D127: 0.1 | E127: 3.5 | F127: 22.4 | G127: 4.986666667 | H127: 17.1 | I127: 3.661538462 | J127: 127.6 | K127: 5.62 | N127: 3.5 | O127: 13.6 | P127: 5.2 | Q127: 13.6 | R127: 5.2
D128: 0.05 | E128: 3.5 | F128: 22.3 | G128: 4.973333333 | H128: 17.2 | I128: 3.630769231 | J128: 127.7 | K128: 5.615 | N128: 3.5 | O128: 13.7 | P128: 5.189473684 | Q128: 13.7 | R128: 5.189473684
E129: 3.5 | F129: 22.2 | G129: 4.96 | H129: 17.3 | I129: 3.6 | J129: 127.8 | K129: 5.61 | N129: 3.5 | O129: 13.8 | P129: 5.178947368 | Q129: 13.8 | R129: 5.178947368
E130: 3.5 | F130: 22.1 | G130: 4.946666667 | H130: 17.4 | I130: 3.569230769 | J130: 127.9 | K130: 5.605 | N130: 3.5 | O130: 13.9 | P130: 5.168421053 | Q130: 13.9 | R130: 5.168421053
E131: 3.5 | F131: 22 | G131: 4.933333333 | H131: 17.5 | I131: 3.538461538 | J131: 128 | K131: 5.6 | N131: 3.5 | O131: 14 | P131: 5.157894737 | Q131: 14 | R131: 5.157894737
E132: 3.5 | F132: 21.9 | G132: 4.92 | H132: 17.6 | I132: 3.507692308 | J132: 128.1 | K132: 5.595 | N132: 3.5 | O132: 14.1 | P132: 5.147368421 | Q132: 14.1 | R132: 5.147368421
E133: 3.5 | F133: 21.8 | G133: 4.906666667 | H133: 17.7 | I133: 3.5 | J133: 128.2 | K133: 5.59 | N133: 3.5 | O133: 14.2 | P133: 5.136842105 | Q133: 14.2 | R133: 5.136842105
E134: 3.5 | F134: 21.7 | G134: 4.893333333 | H134: 17.8 | I134: 3.5 | J134: 128.3 | K134: 5.585 | N134: 3.5 | O134: 14.3 | P134: 5.126315789 | Q134: 14.3 | R134: 5.126315789
E135: 3.5 | F135: 21.6 | G135: 4.88 | H135: 17.9 | I135: 3.5 | J135: 128.4 | K135: 5.58 | N135: 3.5 | O135: 14.4 | P135: 5.115789474 | Q135: 14.4 | R135: 5.115789474
E136: 3.5 | F136: 21.5 | G136: 4.866666667 | H136: 18 | I136: 3.5 | J136: 128.5 | K136: 5.575 | N136: 3.5 | O136: 14.5 | P136: 5.105263158 | Q136: 14.5 | R136: 5.105263158
E137: 3.5 | F137: 21.4 | G137: 4.853333333 | H137: 18.1 | I137: 3.5 | J137: 128.6 | K137: 5.57 | N137: 3.5 | O137: 14.6 | P137: 5.094736842 | Q137: 14.6 | R137: 5.094736842
E138: 3.5 | F138: 21.3 | G138: 4.84 | H138: 18.2 | I138: 3.5 | J138: 128.7 | K138: 5.565 | N138: 3.5 | O138: 14.7 | P138: 5.084210526 | Q138: 14.7 | R138: 5.084210526
E139: 3.5 | F139: 21.2 | G139: 4.826666667 | H139: 18.3 | I139: 3.5 | J139: 128.8 | K139: 5.56 | N139: 3.5 | O139: 14.8 | P139: 5.073684211 | Q139: 14.8 | R139: 5.073684211
E140: 3.5 | F140: 21.1 | G140: 4.813333333 | H140: 18.4 | I140: 3.5 | J140: 128.9 | K140: 5.555 | N140: 3.5 | O140: 14.9 | P140: 5.063157895 | Q140: 14.9 | R140: 5.063157895
E141: 3.5 | F141: 21 | G141: 4.8 | H141: 18.5 | I141: 3.5 | J141: 129 | K141: 5.55 | N141: 3.5 | O141: 15 | P141: 5.052631579 | Q141: 15 | R141: 5.052631579
E142: 3.5 | F142: 20.9 | G142: 4.786666667 | H142: 18.6 | I142: 3.5 | J142: 129.1 | K142: 5.545 | N142: 3.5 | O142: 15.1 | P142: 5.042105263 | Q142: 15.1 | R142: 5.042105263
E143: 3.5 | F143: 20.8 | G143: 4.773333333 | H143: 18.7 | I143: 3.5 | J143: 129.2 | K143: 5.54 | N143: 3.5 | O143: 15.2 | P143: 5.031578947 | Q143: 15.2 | R143: 5.031578947
E144: 3.5 | F144: 20.7 | G144: 4.76 | H144: 18.8 | I144: 3.5 | J144: 129.3 | K144: 5.535 | N144: 3.5 | O144: 15.3 | P144: 5.021052632 | Q144: 15.3 | R144: 5.021052632
E145: 3.5 | F145: 20.6 | G145: 4.746666667 | H145: 18.9 | I145: 3.5 | J145: 129.4 | K145: 5.53 | N145: 3.5 | O145: 15.4 | P145: 5.010526316 | Q145: 15.4 | R145: 5.010526316
E146: 3.5 | F146: 20.5 | G146: 4.733333333 | H146: 19 | I146: 3.5 | J146: 129.5 | K146: 5.525 | N146: 3.5 | O146: 15.5 | P146: 5 | Q146: 15.5 | R146: 5
E147: 3.5 | F147: 20.4 | G147: 4.72 | H147: 19.1 | I147: 3.5 | J147: 129.6 | K147: 5.52 | N147: 3.5 | O147: 15.6 | P147: 4.989473684 | Q147: 15.6 | R147: 4.989473684
E148: 3.5 | F148: 20.3 | G148: 4.706666667 | H148: 19.2 | I148: 3.5 | J148: 129.7 | K148: 5.515 | N148: 3.5 | O148: 15.7 | P148: 4.978947368 | Q148: 15.7 | R148: 4.978947368
E149: 3.5 | F149: 20.2 | G149: 4.693333333 | H149: 19.3 | I149: 3.5 | J149: 129.8 | K149: 5.51 | N149: 3.5 | O149: 15.8 | P149: 4.968421053 | Q149: 15.8 | R149: 4.968421053
E150: 3.5 | F150: 20.1 | G150: 4.68 | H150: 19.4 | I150: 3.5 | J150: 129.9 | K150: 5.505 | N150: 3.5 | O150: 15.9 | P150: 4.957894737 | Q150: 15.9 | R150: 4.957894737
E151: 3.5 | F151: 20 | G151: 4.666666667 | H151: 19.5 | I151: 3.5 | J151: 130 | K151: 5.5 | N151: 3.5 | O151: 16 | P151: 4.947368421 | Q151: 16 | R151: 4.947368421
E152: 3.5 | F152: 19.9 | G152: 4.653333333 | H152: 19.6 | I152: 3.5 | J152: 130.1 | K152: 5.495 | N152: 3.5 | O152: 16.1 | P152: 4.936842105 | Q152: 16.1 | R152: 4.936842105
E153: 3.5 | F153: 19.8 | G153: 4.64 | H153: 19.7 | I153: 3.5 | J153: 130.2 | K153: 5.49 | N153: 3.5 | O153: 16.2 | P153: 4.926315789 | Q153: 16.2 | R153: 4.926315789
E154: 3.5 | F154: 19.7 | G154: 4.626666667 | H154: 19.8 | I154: 3.5 | J154: 130.3 | K154: 5.485 | N154: 3.5 | O154: 16.3 | P154: 4.915789474 | Q154: 16.3 | R154: 4.915789474
E155: 3.5 | F155: 19.6 | G155: 4.613333333 | H155: 19.9 | I155: 3.5 | J155: 130.4 | K155: 5.48 | N155: 3.5 | O155: 16.4 | P155: 4.905263158 | Q155: 16.4 | R155: 4.905263158
E156: 3.5 | F156: 19.5 | G156: 4.6 | H156: 20 | I156: 3.5 | J156: 130.5 | K156: 5.475 | N156: 3.5 | O156: 16.5 | P156: 4.894736842 | Q156: 16.5 | R156: 4.894736842
E157: 3.5 | F157: 19.4 | G157: 4.586666667 | H157: 20.1 | I157: 3.5 | J157: 130.6 | K157: 5.47 | N157: 3.5 | O157: 16.6 | P157: 4.884210526 | Q157: 16.6 | R157: 4.884210526
E158: 3.5 | F158: 19.3 | G158: 4.573333333 | H158: 20.2 | I158: 3.5 | J158: 130.7 | K158: 5.465 | N158: 3.5 | O158: 16.7 | P158: 4.873684211 | Q158: 16.7 | R158: 4.873684211
E159: 3.5 | F159: 19.2 | G159: 4.56 | H159: 20.3 | I159: 3.5 | J159: 130.8 | K159: 5.46 | N159: 3.5 | O159: 16.8 | P159: 4.863157895 | Q159: 16.8 | R159: 4.863157895
E160: 3.5 | F160: 19.1 | G160: 4.546666667 | H160: 20.4 | I160: 3.5 | J160: 130.9 | K160: 5.455 | N160: 3.5 | O160: 16.9 | P160: 4.852631579 | Q160: 16.9 | R160: 4.852631579
E161: 3.5 | F161: 19 | G161: 4.533333333 | H161: 20.5 | I161: 3.5 | J161: 131 | K161: 5.45 | N161: 3.5 | O161: 17 | P161: 4.842105263 | Q161: 17 | R161: 4.842105263
E162: 3.5 | F162: 18.9 | G162: 4.52 | H162: 20.6 | I162: 3.5 | J162: 131.1 | K162: 5.445 | N162: 3.5 | O162: 17.1 | P162: 4.831578947 | Q162: 17.1 | R162: 4.831578947
E163: 3.5 | F163: 18.8 | G163: 4.506666667 | H163: 20.7 | I163: 3.5 | J163: 131.2 | K163: 5.44 | N163: 3.5 | O163: 17.2 | P163: 4.821052632 | Q163: 17.2 | R163: 4.821052632
E164: 3.5 | F164: 18.7 | G164: 4.493333333 | H164: 20.8 | I164: 3.5 | J164: 131.3 | K164: 5.435 | N164: 3.5 | O164: 17.3 | P164: 4.810526316 | Q164: 17.3 | R164: 4.810526316
E165: 3.5 | F165: 18.6 | G165: 4.48 | H165: 20.9 | I165: 3.5 | J165: 131.4 | K165: 5.43 | N165: 3.5 | O165: 17.4 | P165: 4.8 | Q165: 17.4 | R165: 4.8
E166: 3.5 | F166: 18.5 | G166: 4.466666667 | H166: 21 | I166: 3.5 | J166: 131.5 | K166: 5.425 | N166: 3.5 | O166: 17.5 | P166: 4.789473684 | Q166: 17.5 | R166: 4.789473684
E167: 3.5 | F167: 18.4 | G167: 4.453333333 | H167: 21.1 | I167: 3.5 | J167: 131.6 | K167: 5.42 | N167: 3.5 | O167: 17.6 | P167: 4.778947368 | Q167: 17.6 | R167: 4.778947368
E168: 3.5 | F168: 18.3 | G168: 4.44 | H168: 21.2 | I168: 3.5 | J168: 131.7 | K168: 5.415 | N168: 3.5 | O168: 17.7 | P168: 4.768421053 | Q168: 17.7 | R168: 4.768421053
E169: 3.5 | F169: 18.2 | G169: 4.426666667 | H169: 21.3 | I169: 3.5 | J169: 131.8 | K169: 5.41 | N169: 3.5 | O169: 17.8 | P169: 4.757894737 | Q169: 17.8 | R169: 4.757894737
E170: 3.5 | F170: 18.1 | G170: 4.413333333 | H170: 21.4 | I170: 3.5 | J170: 131.9 | K170: 5.405 | N170: 3.5 | O170: 17.9 | P170: 4.747368421 | Q170: 17.9 | R170: 4.747368421
E171: 3.5 | F171: 18 | G171: 4.4 | H171: 21.5 | I171: 3.5 | J171: 132 | K171: 5.4 | N171: 3.5 | O171: 18 | P171: 4.736842105 | Q171: 18 | R171: 4.736842105
E172: 3.5 | F172: 17.9 | G172: 4.386666667 | H172: 21.6 | I172: 3.5 | J172: 132.1 | K172: 5.395 | N172: 3.5 | O172: 18.1 | P172: 4.726315789 | Q172: 18.1 | R172: 4.726315789
E173: 3.5 | F173: 17.8 | G173: 4.373333333 | H173: 21.7 | I173: 3.5 | J173: 132.2 | K173: 5.39 | N173: 3.5 | O173: 18.2 | P173: 4.715789474 | Q173: 18.2 | R173: 4.715789474
E174: 3.5 | F174: 17.7 | G174: 4.36 | H174: 21.8 | I174: 3.5 | J174: 132.3 | K174: 5.385 | N174: 3.5 | O174: 18.3 | P174: 4.705263158 | Q174: 18.3 | R174: 4.705263158
E175: 3.5 | F175: 17.6 | G175: 4.346666667 | H175: 21.9 | I175: 3.5 | J175: 132.4 | K175: 5.38 | N175: 3.5 | O175: 18.4 | P175: 4.694736842 | Q175: 18.4 | R175: 4.694736842
E176: 3.5 | F176: 17.5 | G176: 4.333333333 | H176: 22 | I176: 3.5 | J176: 132.5 | K176: 5.375 | N176: 3.5 | O176: 18.5 | P176: 4.684210526 | Q176: 18.5 | R176: 4.684210526
E177: 3.5 | F177: 17.4 | G177: 4.32 | H177: 22.1 | I177: 3.5 | J177: 132.6 | K177: 5.37 | N177: 3.5 | O177: 18.6 | P177: 4.673684211 | Q177: 18.6 | R177: 4.673684211
E178: 3.5 | F178: 17.3 | G178: 4.306666667 | H178: 22.2 | I178: 3.5 | J178: 132.7 | K178: 5.365 | N178: 3.5 | O178: 18.7 | P178: 4.663157895 | Q178: 18.7 | R178: 4.663157895
E179: 3.5 | F179: 17.2 | G179: 4.293333333 | H179: 22.3 | I179: 3.5 | J179: 132.8 | K179: 5.36 | N179: 3.5 | O179: 18.8 | P179: 4.652631579 | Q179: 18.8 | R179: 4.652631579
D180: =IF(D179="","",IF((D179-D$47)<0.05,"",ROUND((D179-D$47),2))) ->  | E180: 3.5 | F180: =IF(F179="","",IF((F179-F$47)<0.05,"",ROUND((F179-F$47),2))) -> 17.1 | G180: 4.28 | H180: =IF(H179="","",IF((H179-H$47)<0.05,"",ROUND((H179-H$47),2))) -> 22.4 | I180: 3.5 | J180: 132.9 | K180: 5.355 | M180: =IF(M179="","",IF((M179-M$47)<0.05,"",ROUND((M179-M$47),2))) ->  | N180: 3.5 | O180: =IF(O179="","",IF((O179-O$47)<0.05,"",ROUND((O179-O$47),2))) -> 18.9 | P180: 4.642105263 | Q180: =IF(Q179="","",IF((Q179-Q$47)<0.05,"",ROUND((Q179-Q$47),2))) -> 18.9 | R180: 4.642105263
E181: =IF(E180="","",IF((E180-D$48)<D$44,$D$44,(E180-D$48))) -> 3.5 | F181: 17 | G181: =IF(G180="","",IF((G180-F$48)<F$44,$F$44,(G180-F$48))) -> 4.266666667 | H181: 22.5 | I181: =IF(I180="","",IF((I180-H$48)<H$44,$H$44,(I180-H$48))) -> 3.5 | J181: 133 | K181: =IF(K180="","",IF((K180-J$48)<J$44,$H$44,(K180-J$48))) -> 5.35 | N181: =IF(N180="","",IF((N180-M$48)<M$44,$M$44,(N180-M$48))) -> 3.5 | O181: 19 | P181: =IF(P180="","",IF((P180-O$48)<O$44,$O$44,(P180-O$48))) -> 4.631578947 | Q181: 19 | R181: =IF(R180="","",IF((R180-Q$48)<Q$44,$Q$44,(R180-Q$48))) -> 4.631578947
E182: 3.5 | F182: 16.9 | G182: 4.253333333 | H182: 22.6 | I182: 3.5 | J182: 133.1 | K182: 5.345 | N182: 3.5 | O182: 19.1 | P182: 4.621052632 | Q182: 19.1 | R182: 4.621052632
E183: 3.5 | F183: 16.8 | G183: 4.24 | H183: 22.7 | I183: 3.5 | J183: 133.2 | K183: 5.34 | N183: 3.5 | O183: 19.2 | P183: 4.610526316 | Q183: 19.2 | R183: 4.610526316
E184: 3.5 | F184: 16.7 | G184: 4.226666667 | H184: 22.8 | I184: 3.5 | J184: 133.3 | K184: 5.335 | N184: 3.5 | O184: 19.3 | P184: 4.6 | Q184: 19.3 | R184: 4.6
E185: 3.5 | F185: 16.6 | G185: 4.213333333 | H185: 22.9 | I185: 3.5 | J185: 133.4 | K185: 5.33 | N185: 3.5 | O185: 19.4 | P185: 4.589473684 | Q185: 19.4 | R185: 4.589473684
E186: 3.5 | F186: 16.5 | G186: 4.2 | H186: 23 | I186: 3.5 | J186: 133.5 | K186: 5.325 | N186: 3.5 | O186: 19.5 | P186: 4.578947368 | Q186: 19.5 | R186: 4.578947368
E187: 3.5 | F187: 16.4 | G187: 4.186666667 | H187: 23.1 | I187: 3.5 | J187: 133.6 | K187: 5.32 | N187: 3.5 | O187: 19.6 | P187: 4.568421053 | Q187: 19.6 | R187: 4.568421053
E188: 3.5 | F188: 16.3 | G188: 4.173333333 | H188: 23.2 | I188: 3.5 | J188: 133.7 | K188: 5.315 | N188: 3.5 | O188: 19.7 | P188: 4.557894737 | Q188: 19.7 | R188: 4.557894737
E189: 3.5 | F189: 16.2 | G189: 4.16 | H189: 23.3 | I189: 3.5 | J189: 133.8 | K189: 5.31 | N189: 3.5 | O189: 19.8 | P189: 4.547368421 | Q189: 19.8 | R189: 4.547368421
E190: 3.5 | F190: 16.1 | G190: 4.146666667 | H190: 23.4 | I190: 3.5 | J190: 133.9 | K190: 5.305 | N190: 3.5 | O190: 19.9 | P190: 4.536842105 | Q190: 19.9 | R190: 4.536842105
E191: 3.5 | F191: 16 | G191: 4.133333333 | H191: 23.5 | I191: 3.5 | J191: 134 | K191: 5.3 | N191: 3.5 | O191: 20 | P191: 4.526315789 | Q191: 20 | R191: 4.526315789
E192: 3.5 | F192: 15.9 | G192: 4.12 | H192: 23.6 | I192: 3.5 | J192: 134.1 | K192: 5.295 | N192: 3.5 | O192: 20.1 | P192: 4.515789474 | Q192: 20.1 | R192: 4.515789474
E193: 3.5 | F193: 15.8 | G193: 4.106666667 | H193: 23.7 | I193: 3.5 | J193: 134.2 | K193: 5.29 | N193: 3.5 | O193: 20.2 | P193: 4.505263158 | Q193: 20.2 | R193: 4.505263158
E194: 3.5 | F194: 15.7 | G194: 4.093333333 | H194: 23.8 | I194: 3.5 | J194: 134.3 | K194: 5.285 | N194: 3.5 | O194: 20.3 | P194: 4.494736842 | Q194: 20.3 | R194: 4.494736842
E195: 3.5 | F195: 15.6 | G195: 4.08 | H195: 23.9 | I195: 3.5 | J195: 134.4 | K195: 5.28 | N195: 3.5 | O195: 20.4 | P195: 4.484210526 | Q195: 20.4 | R195: 4.484210526
E196: 3.5 | F196: 15.5 | G196: 4.066666667 | H196: 24 | I196: 3.5 | J196: 134.5 | K196: 5.275 | N196: 3.5 | O196: 20.5 | P196: 4.473684211 | Q196: 20.5 | R196: 4.473684211
E197: 3.5 | F197: 15.4 | G197: 4.053333333 | H197: 24.1 | I197: 3.5 | J197: 134.6 | K197: 5.27 | N197: 3.5 | O197: 20.6 | P197: 4.463157895 | Q197: 20.6 | R197: 4.463157895
E198: 3.5 | F198: 15.3 | G198: 4.04 | H198: 24.2 | I198: 3.5 | J198: 134.7 | K198: 5.265 | N198: 3.5 | O198: 20.7 | P198: 4.452631579 | Q198: 20.7 | R198: 4.452631579
E199: 3.5 | F199: 15.2 | G199: 4.026666667 | H199: 24.3 | I199: 3.5 | J199: 134.8 | K199: 5.26 | N199: 3.5 | O199: 20.8 | P199: 4.442105263 | Q199: 20.8 | R199: 4.442105263
E200: 3.5 | F200: 15.1 | G200: 4.013333333 | H200: 24.4 | I200: 3.5 | J200: 134.9 | K200: 5.255 | N200: 3.5 | O200: 20.9 | P200: 4.431578947 | Q200: 20.9 | R200: 4.431578947
E201: 3.5 | F201: 15 | G201: 4 | H201: 24.5 | I201: 3.5 | J201: 135 | K201: 5.25 | N201: 3.5 | O201: 21 | P201: 4.421052632 | Q201: 21 | R201: 4.421052632
E202: 3.5 | F202: 14.9 | G202: 3.986666667 | H202: 24.6 | I202: 3.5 | J202: 135.1 | K202: 5.245 | N202: 3.5 | O202: 21.1 | P202: 4.410526316 | Q202: 21.1 | R202: 4.410526316
E203: 3.5 | F203: 14.8 | G203: 3.973333333 | H203: 24.7 | I203: 3.5 | J203: 135.2 | K203: 5.24 | N203: 3.5 | O203: 21.2 | P203: 4.4 | Q203: 21.2 | R203: 4.4
E204: 3.5 | F204: 14.7 | G204: 3.96 | H204: 24.8 | I204: 3.5 | J204: 135.3 | K204: 5.235 | N204: 3.5 | O204: 21.3 | P204: 4.389473684 | Q204: 21.3 | R204: 4.389473684
E205: 3.5 | F205: 14.6 | G205: 3.946666667 | H205: 24.9 | I205: 3.5 | J205: 135.4 | K205: 5.23 | N205: 3.5 | O205: 21.4 | P205: 4.378947368 | Q205: 21.4 | R205: 4.378947368
E206: 3.5 | F206: 14.5 | G206: 3.933333333 | H206: 25 | I206: 3.5 | J206: 135.5 | K206: 5.225 | N206: 3.5 | O206: 21.5 | P206: 4.368421053 | Q206: 21.5 | R206: 4.368421053
E207: 3.5 | F207: 14.4 | G207: 3.92 | H207: 25.1 | I207: 3.5 | J207: 135.6 | K207: 5.22 | N207: 3.5 | O207: 21.6 | P207: 4.357894737 | Q207: 21.6 | R207: 4.357894737
E208: 3.5 | F208: 14.3 | G208: 3.906666667 | H208: 25.2 | I208: 3.5 | J208: 135.7 | K208: 5.215 | N208: 3.5 | O208: 21.7 | P208: 4.347368421 | Q208: 21.7 | R208: 4.347368421
... 97 more rows

Sheet projektleuchtturm
B1: Titel: | S1: Bei individueller Projektarbeit: Die Leuchttürme...
S2: …schaffen Verbindlichkeit und Transparenz. …fördern Zielorientierung, Planungsbewusstsein und Reflektion. …ermöglichen Austausch. ...betonen eine positive "Vorwärts-Dynamik". ...helfen, das Klassenzimmer inhaltsbezogen zu gestalten.
B3: Sockel-Beschriftung
B4: Material
B5: Werkzeug | S5: Leuchttürme auf A3 ausdrucken und längs halbieren
B6: Produkt | S6: 1) Name(n) in die Fahne eintragen 2) Sockel-Informationen einfüllen 3) Turm ausmalen entsprechend dem Arbeitsstand 4) Präsentationsdatum ins Dach einfüllen
B7: Quellen
B8: Titel
F29: =B2 -> 0 | X29: =B2 -> 0
I57: Halbzeit | AA57: Halbzeit
F99: =$B4 -> Material | H99: =" "&$B4&":" -> Material: | X99: =$B4 -> Material | Z99: =" "&$B4&":" -> Material:
E103: =$B5 -> Werkzeug | G103: =" "&$B5&":" -> Werkzeug: | W103: =$B5 -> Werkzeug | Y103: =" "&$B5&":" -> Werkzeug:
D107: =B6 -> Produkt | V107: =$B6 -> Produkt
D111: =$B7 -> Quellen | V111: =$B7 -> Quellen
C115: =$B8 -> Titel | U115: =$B8 -> Titel
R118: schuelfix | AJ118: schuelfix

Sheet projektplan
I1: Figurenfilme 4.Klasse Neeser Frühling 2021 | N1: Projekt-Übersicht (Druckvorlage)
L2: < Titel | M2: Titel:
L3: < (Titel2)
L4: < Infos / Ziel Zeilenwechsel mit Alt+Enter | M4: Anzahl Gruppen [2-10]:
M5: Anzahl Spalten [2-10]:

Sheet projektplanE
J1: Mathe-Projekte 6.Klasse 2023 | AH1: Projekt-Übersicht (Druckvorlage)
AF2: < Titel | AG2: Titel:
AF3: < (Titel2)
AF4: < Beschreibung Zeilenwechsel mit Alt+Enter | AG4: Anzahl Personen [2-30]:
AG5: Anzahl Spalten [2-30]:

Sheet Spinne formativ
F1: =IF(Klasse!D7="","",Liste!I1&" "&Liste!K1) ->  | M1: =IF(Klasse!D9="","",Klasse!D9&"/"&Klasse!F9) ->  | P1: Anzahl Kriterien/ Netzlinien/Spalten: | V1: formativ | AC1: =MID(CELL("Dateiname",A97),FIND("]",CELL("Dateiname",A97),1)+1,100) -> Spinne formativ | AD1: =R1 -> 0 | AE1: =MATCH(0,A4:A31,-1) -> 
N2: bisher | O2: Notizen | P2: Schüler/in einzeln: | S2: ganze Klasse:
A4: =IF(OR(B4="",B4="-"),"",MAX(A$3:A3)+1) ->  | B4: =IF(Klasse!C13="","",Klasse!C13) ->  | N4: =N36 -> 0 | O4: =IF(AB4=0,"","ja") ->  | AB4: =COUNTA(AC4:AJ4) -> 0
A5: =IF(OR(B5="",B5="-"),"",MAX(A$3:A4)+1) ->  | B5: =IF(Klasse!C14="","",Klasse!C14) ->  | N5: =N37 -> 0 | O5: =IF(AB5=0,"","ja") ->  | AB5: =COUNTA(AC5:AJ5) -> 0
A6: =IF(OR(B6="",B6="-"),"",MAX(A$3:A5)+1) ->  | B6: =IF(Klasse!C15="","",Klasse!C15) ->  | N6: 0 | AB6: 0
A7: =IF(OR(B7="",B7="-"),"",MAX(A$3:A6)+1) ->  | B7: =IF(Klasse!C16="","",Klasse!C16) ->  | N7: 0 | AB7: 0
A8: =IF(OR(B8="",B8="-"),"",MAX(A$3:A7)+1) ->  | B8: =IF(Klasse!C17="","",Klasse!C17) ->  | N8: 0 | AB8: 0
A9: =IF(OR(B9="",B9="-"),"",MAX(A$3:A8)+1) ->  | B9: =IF(Klasse!C18="","",Klasse!C18) ->  | N9: 0 | AB9: 0
A10: =IF(OR(B10="",B10="-"),"",MAX(A$3:A9)+1) ->  | B10: =IF(Klasse!C19="","",Klasse!C19) ->  | N10: 0 | AB10: 0
A11: =IF(OR(B11="",B11="-"),"",MAX(A$3:A10)+1) ->  | B11: =IF(Klasse!C20="","",Klasse!C20) ->  | N11: 0 | AB11: 0
A12: =IF(OR(B12="",B12="-"),"",MAX(A$3:A11)+1) ->  | B12: =IF(Klasse!C21="","",Klasse!C21) ->  | N12: 0 | AB12: 0
A13: =IF(OR(B13="",B13="-"),"",MAX(A$3:A12)+1) ->  | B13: =IF(Klasse!C22="","",Klasse!C22) ->  | N13: 0 | AB13: 0
A14: =IF(OR(B14="",B14="-"),"",MAX(A$3:A13)+1) ->  | B14: =IF(Klasse!C23="","",Klasse!C23) ->  | N14: 0 | AB14: 0
A15: =IF(OR(B15="",B15="-"),"",MAX(A$3:A14)+1) ->  | B15: =IF(Klasse!C24="","",Klasse!C24) ->  | N15: 0 | AB15: 0
A16: =IF(OR(B16="",B16="-"),"",MAX(A$3:A15)+1) ->  | B16: =IF(Klasse!C25="","",Klasse!C25) ->  | N16: 0 | AB16: 0
A17: =IF(OR(B17="",B17="-"),"",MAX(A$3:A16)+1) ->  | B17: =IF(Klasse!C26="","",Klasse!C26) ->  | N17: 0 | AB17: 0
A18: =IF(OR(B18="",B18="-"),"",MAX(A$3:A17)+1) ->  | B18: =IF(Klasse!C27="","",Klasse!C27) ->  | N18: 0 | AB18: 0
A19: =IF(OR(B19="",B19="-"),"",MAX(A$3:A18)+1) ->  | B19: =IF(Klasse!C28="","",Klasse!C28) ->  | N19: 0 | AB19: 0
A20: =IF(OR(B20="",B20="-"),"",MAX(A$3:A19)+1) ->  | B20: =IF(Klasse!C29="","",Klasse!C29) ->  | N20: 0 | AB20: 0
A21: =IF(OR(B21="",B21="-"),"",MAX(A$3:A20)+1) ->  | B21: =IF(Klasse!C30="","",Klasse!C30) ->  | N21: 0 | AB21: 0
A22: =IF(OR(B22="",B22="-"),"",MAX(A$3:A21)+1) ->  | B22: =IF(Klasse!C31="","",Klasse!C31) ->  | N22: 0 | AB22: 0
A23: =IF(OR(B23="",B23="-"),"",MAX(A$3:A22)+1) ->  | B23: =IF(Klasse!C32="","",Klasse!C32) ->  | N23: 0 | AB23: 0
A24: =IF(OR(B24="",B24="-"),"",MAX(A$3:A23)+1) ->  | B24: =IF(Klasse!C33="","",Klasse!C33) ->  | N24: 0 | AB24: 0
A25: =IF(OR(B25="",B25="-"),"",MAX(A$3:A24)+1) ->  | B25: =IF(Klasse!C34="","",Klasse!C34) ->  | N25: 0 | AB25: 0
A26: =IF(OR(B26="",B26="-"),"",MAX(A$3:A25)+1) ->  | B26: =IF(Klasse!C35="","",Klasse!C35) ->  | N26: 0 | AB26: 0
A27: =IF(OR(B27="",B27="-"),"",MAX(A$3:A26)+1) ->  | B27: =IF(Klasse!C36="","",Klasse!C36) ->  | N27: 0 | AB27: 0
A28: =IF(OR(B28="",B28="-"),"",MAX(A$3:A27)+1) ->  | B28: =IF(Klasse!C37="","",Klasse!C37) ->  | N28: 0 | AB28: 0
A29: =IF(OR(B29="",B29="-"),"",MAX(A$3:A28)+1) ->  | B29: =IF(Klasse!C38="","",Klasse!C38) ->  | N29: 0 | AB29: 0
A30: =IF(OR(B30="",B30="-"),"",MAX(A$3:A29)+1) ->  | B30: =IF(Klasse!C39="","",Klasse!C39) ->  | N30: 0 | AB30: 0
A31: =IF(OR(B31="",B31="-"),"",MAX(A$3:A30)+1) ->  | B31: =IF(Klasse!C40="","",Klasse!C40) ->  | N31: 0 | AB31: 0
C32: Schnitt: | D32: =IF(COUNT(D4:D31)=0,"",AVERAGE(D4:D31)) ->  | E32: =IF(COUNT(E4:E31)=0,"",AVERAGE(E4:E31)) -> 
A34: bisher | N34: Anzahl Bewertungen
A36: =A4 ->  | B36: =B4 -> 
A37: =A5 -> 
A53: =A21 -> 
N64: =IF(SUM(N36:N63)=0,0,ROUND(AVERAGE(N36:N63),1)) -> 0 | O64: Mittelwert
B68: =A1 -> 0 | F68: =F1 ->  | M68: =M1 ->  | S68: formativ
D70: Beobachtungen formulieren | E70: Empatie zeigen | F70: Eigene Fortschritte beschreiben | G70: Schrift | H70: Formulierung/ Wortschatz | I70: Spontanes Fragen beantworten
B71: Lynn | C71: jetzt | D71: =D4 -> 0 | E71: =E4 -> 0 | F71: =F4 -> 0 | G71: =G5 -> 0 | H71: =H5 -> 0 | I71: =I4 -> 0 | AC71: 4
C72: bisher(0)
C73: Grundanspruch | D73: 4 | E73: 4 | F73: 4 | G73: 4 | H73: 4 | I73: 4 | J73: 4
D80: Beobachtungen formulieren | E80: Empatie zeigen | F80: Eigene Fortschritte beschreiben | G80: Schrift | H80: Formulierung/ Wortschatz | I80: Spontanes Fragen beantworten
B81: Lynn | C81: du | D81: =D4 -> 0 | E81: =E4 -> 0 | F81: =F4 -> 0 | G81: =G5 -> 0 | H81: =H5 -> 0 | K81: 0 | M81: =M4 -> 0
C82: Grundanspruch | D82: 4 | E82: 4 | F82: 4 | G82: 4 | H82: 4 | I82: 4 | J82: 4
AK110: Notizen | AM110: Schreiben_Aiyana
AK112: Inhalt: | AL112: Fantasievoll; schlüssige Idee von Anfang bis Ende;
AK114: Sprache/ Grammatik: | AL114: meistens richtige Vergangenheitsformen
AK116: Rechtschreibung: | AL116: noch Unsicherheiten bei Dehnungen und Schärfungen
AK118: Schrift: | AL118: klar und flüssig
AK120: Formulierung/ Wortschatz: | AL120: abwechslungsreich;

Sheet Spinne summativ
P1: Anzahl Netzlinien/Spalten | V1: summativ | AC1: =MID(CELL("Dateiname",A97),FIND("]",CELL("Dateiname",A97),1)+1,100) -> Spinne summativ | AD1: =R1 -> 0 | AE1: =MATCH(0,A4:A31,-1) -> 
L2: Vorschlag | M2: Bewertung | P2: Schüler/in einzeln: | S2: ganze Klasse
C3: Wert | P3: Fusszeile unter Spinne (optional)
A4: =IF(OR(B4="",B4="-"),"",MAX(A$3:A3)+1) ->  | B4: =IF(Klasse!C13="","",Klasse!C13) ->  | L4: =IF(SUM(D4:H4)=0,"",((IF(ISNUMBER(D4),D$3,0)*D4)+(IF(ISNUMBER(E4),E$3,0)*E4)+(IF(ISNUMBER(F4),F$3,0)*F4)+(IF(ISNUMBER(G4),G$3,0)*G4)+(IF(ISNUMBER(H4),H$3,0)*H4)+(IF(ISNUMBER(I4),I$3,0)*I4)+(IF(ISNUMBER(J4),J$3,0)*J4)+(IF(ISNUMBER(K4),K$3,0)*K4))/((IF(ISNUMBER(D4),D$3,0))+(IF(ISNUMBER(E4),E$3,0))+(IF(ISNUMBER(F4),F$3,0))+(IF(ISNUMBER(G4),G$3,0))+(IF(ISNUMBER(H4),H$3,0))+(IF(ISNUMBER(I4),I$3,0))+(IF(ISNUMBER(J4),J$3,0))+(IF(ISNUMBER(K4),K$3,0)))) -> 
A5: =IF(OR(B5="",B5="-"),"",MAX(A$3:A4)+1) ->  | B5: =IF(Klasse!C14="","",Klasse!C14) ->  | L5: =IF(SUM(D5:H5)=0,"",((IF(ISNUMBER(D5),D$3,0)*D5)+(IF(ISNUMBER(E5),E$3,0)*E5)+(IF(ISNUMBER(F5),F$3,0)*F5)+(IF(ISNUMBER(G5),G$3,0)*G5)+(IF(ISNUMBER(H5),H$3,0)*H5)+(IF(ISNUMBER(I5),I$3,0)*I5)+(IF(ISNUMBER(J5),J$3,0)*J5)+(IF(ISNUMBER(K5),K$3,0)*K5))/((IF(ISNUMBER(D5),D$3,0))+(IF(ISNUMBER(E5),E$3,0))+(IF(ISNUMBER(F5),F$3,0))+(IF(ISNUMBER(G5),G$3,0))+(IF(ISNUMBER(H5),H$3,0))+(IF(ISNUMBER(I5),I$3,0))+(IF(ISNUMBER(J5),J$3,0))+(IF(ISNUMBER(K5),K$3,0)))) -> 
A6: =IF(OR(B6="",B6="-"),"",MAX(A$3:A5)+1) ->  | B6: =IF(Klasse!C15="","",Klasse!C15) -> 
A7: =IF(OR(B7="",B7="-"),"",MAX(A$3:A6)+1) ->  | B7: =IF(Klasse!C16="","",Klasse!C16) -> 
A8: =IF(OR(B8="",B8="-"),"",MAX(A$3:A7)+1) ->  | B8: =IF(Klasse!C17="","",Klasse!C17) -> 
A9: =IF(OR(B9="",B9="-"),"",MAX(A$3:A8)+1) ->  | B9: =IF(Klasse!C18="","",Klasse!C18) -> 
A10: =IF(OR(B10="",B10="-"),"",MAX(A$3:A9)+1) ->  | B10: =IF(Klasse!C19="","",Klasse!C19) -> 
A11: =IF(OR(B11="",B11="-"),"",MAX(A$3:A10)+1) ->  | B11: =IF(Klasse!C20="","",Klasse!C20) -> 
A12: =IF(OR(B12="",B12="-"),"",MAX(A$3:A11)+1) ->  | B12: =IF(Klasse!C21="","",Klasse!C21) -> 
A13: =IF(OR(B13="",B13="-"),"",MAX(A$3:A12)+1) ->  | B13: =IF(Klasse!C22="","",Klasse!C22) -> 
A14: =IF(OR(B14="",B14="-"),"",MAX(A$3:A13)+1) ->  | B14: =IF(Klasse!C23="","",Klasse!C23) -> 
A15: =IF(OR(B15="",B15="-"),"",MAX(A$3:A14)+1) ->  | B15: =IF(Klasse!C24="","",Klasse!C24) -> 
A16: =IF(OR(B16="",B16="-"),"",MAX(A$3:A15)+1) ->  | B16: =IF(Klasse!C25="","",Klasse!C25) -> 
A17: =IF(OR(B17="",B17="-"),"",MAX(A$3:A16)+1) ->  | B17: =IF(Klasse!C26="","",Klasse!C26) -> 
A18: =IF(OR(B18="",B18="-"),"",MAX(A$3:A17)+1) ->  | B18: =IF(Klasse!C27="","",Klasse!C27) -> 
A19: =IF(OR(B19="",B19="-"),"",MAX(A$3:A18)+1) ->  | B19: =IF(Klasse!C28="","",Klasse!C28) -> 
A20: =IF(OR(B20="",B20="-"),"",MAX(A$3:A19)+1) ->  | B20: =IF(Klasse!C29="","",Klasse!C29) -> 
A21: =IF(OR(B21="",B21="-"),"",MAX(A$3:A20)+1) ->  | B21: =IF(Klasse!C30="","",Klasse!C30) -> 
A22: =IF(OR(B22="",B22="-"),"",MAX(A$3:A21)+1) ->  | B22: =IF(Klasse!C31="","",Klasse!C31) -> 
A23: =IF(OR(B23="",B23="-"),"",MAX(A$3:A22)+1) ->  | B23: =IF(Klasse!C32="","",Klasse!C32) -> 
A24: =IF(OR(B24="",B24="-"),"",MAX(A$3:A23)+1) ->  | B24: =IF(Klasse!C33="","",Klasse!C33) -> 
A25: =IF(OR(B25="",B25="-"),"",MAX(A$3:A24)+1) ->  | B25: =IF(Klasse!C34="","",Klasse!C34) -> 
A26: =IF(OR(B26="",B26="-"),"",MAX(A$3:A25)+1) ->  | B26: =IF(Klasse!C35="","",Klasse!C35) -> 
A27: =IF(OR(B27="",B27="-"),"",MAX(A$3:A26)+1) ->  | B27: =IF(Klasse!C36="","",Klasse!C36) -> 
A28: =IF(OR(B28="",B28="-"),"",MAX(A$3:A27)+1) ->  | B28: =IF(Klasse!C37="","",Klasse!C37) -> 
A29: =IF(OR(B29="",B29="-"),"",MAX(A$3:A28)+1) ->  | B29: =IF(Klasse!C38="","",Klasse!C38) -> 
A30: =IF(OR(B30="",B30="-"),"",MAX(A$3:A29)+1) ->  | B30: =IF(Klasse!C39="","",Klasse!C39) -> 
A31: =IF(OR(B31="",B31="-"),"",MAX(A$3:A30)+1) ->  | B31: =IF(Klasse!C40="","",Klasse!C40) -> 
C32: Schnitt: | D32: =IF(COUNT(D4:D31)=0,"",AVERAGE(D4:D31)) ->  | E32: =IF(COUNT(E4:E31)=0,"",AVERAGE(E4:E31)) -> 
A34: bisher | N34: Anzahl Bewertungen
A36: =A4 ->  | B36: =B4 -> 
A37: =A5 -> 
A53: =A21 -> 
N64: =IF(SUM(N36:N63)=0,0,ROUND(AVERAGE(N36:N63),1)) -> 0 | O64: Mittelwert
B68: =A1 -> 0 | F68: =F1 ->  | S68: summativ
D70: Inhalt | E70: Sprache, Grammatik | F70: Rechtschreibung | G70: Schrift | H70: Formulierung, Wortschatz | L70: Vorschlag | M70: Note
B71: Suela | C71: jetzt | D71: =D4 -> 0 | E71: =E4 -> 0 | F71: =F4 -> 0 | G71: =G4 -> 0 | H71: =H4 -> 0 | L71: =IF(SUM(D71:H71)=0,"",((IF(ISNUMBER(D71),D$3,0)*D71)+(IF(ISNUMBER(E71),E$3,0)*E71)+(IF(ISNUMBER(F71),F$3,0)*F71)+(IF(ISNUMBER(G71),G$3,0)*G71)+(IF(ISNUMBER(H71),H$3,0)*H71)+(IF(ISNUMBER(I71),I$3,0)*I71)+(IF(ISNUMBER(J71),J$3,0)*J71)+(IF(ISNUMBER(K71),K$3,0)*K71))/((IF(ISNUMBER(D71),D$3,0))+(IF(ISNUMBER(E71),E$3,0))+(IF(ISNUMBER(F71),F$3,0))+(IF(ISNUMBER(G71),G$3,0))+(IF(ISNUMBER(H71),H$3,0))+(IF(ISNUMBER(I71),I$3,0))+(IF(ISNUMBER(J71),J$3,0))+(IF(ISNUMBER(K71),K$3,0)))) ->  | AC71: 4
C72: bisher() | J72: 0
C73: Grundanspruch | D73: 4 | E73: 4 | F73: 4 | G73: 4 | H73: 4 | I73: 4 | J73: 4
D80: Inhalt | E80: Sprache, Grammatik | F80: Rechtschreibung | G80: Schrift | H80: Formulierung, Wortschatz | M80: Note
B81: Suela | C81: Deine Leistung | D81: =D4 -> 0 | E81: =E4 -> 0 | F81: =F4 -> 0 | G81: =G4 -> 0 | H81: =H4 -> 0 | K81: =K5 -> 0 | M81: =M4 -> 0
C82: Grundanspruch | D82: 4 | E82: 4 | F82: 4 | G82: 4 | H82: 4 | I82: 4 | J82: 4
D85: Wüstenwolf

Sheet Spinne smileys
F1: =IF(Klasse!D7="","",Liste!K1) ->  | M1: =IF(Klasse!D9="","",Klasse!D9&"/"&Klasse!F9) ->  | P1: Anzahl Netzlinien/Spalten | V1: smileys | AC1: =MID(CELL("Dateiname",A97),FIND("]",CELL("Dateiname",A97),1)+1,100) -> Spinne smileys | AD1: =R1 -> 0 | AE1: =MATCH(0,A4:A31,-1) -> 
O2: Notizen | P2: Schüler/in einzeln: | S2: ganze Klasse:
D3: 0 | E3: 0 | F3: 0 | G3: 0 | H3: 0 | I3: 0 | J3: 0 | K3: 0
A4: =IF(OR(B4="",B4="-"),"",MAX(A$3:A3)+1) ->  | B4: =IF(Klasse!C13="","",Klasse!C13) ->  | N4: =N36 -> 0 | O4: =IF(AB4=0,"","Ja") ->  | AB4: =COUNTA(AC4:AJ4) -> 0
A5: =IF(OR(B5="",B5="-"),"",MAX(A$3:A4)+1) ->  | B5: =IF(Klasse!C14="","",Klasse!C14) ->  | N5: =N37 -> 0 | O5: =IF(AB5=0,"","Ja") ->  | AB5: =COUNTA(AC5:AJ5) -> 0
A6: =IF(OR(B6="",B6="-"),"",MAX(A$3:A5)+1) ->  | B6: =IF(Klasse!C15="","",Klasse!C15) ->  | N6: 0 | AB6: 0
A7: =IF(OR(B7="",B7="-"),"",MAX(A$3:A6)+1) ->  | B7: =IF(Klasse!C16="","",Klasse!C16) ->  | N7: 0 | AB7: 0
A8: =IF(OR(B8="",B8="-"),"",MAX(A$3:A7)+1) ->  | B8: =IF(Klasse!C17="","",Klasse!C17) ->  | N8: 0 | AB8: 0
A9: =IF(OR(B9="",B9="-"),"",MAX(A$3:A8)+1) ->  | B9: =IF(Klasse!C18="","",Klasse!C18) ->  | N9: 0 | AB9: 0
A10: =IF(OR(B10="",B10="-"),"",MAX(A$3:A9)+1) ->  | B10: =IF(Klasse!C19="","",Klasse!C19) ->  | N10: 0 | AB10: 0
A11: =IF(OR(B11="",B11="-"),"",MAX(A$3:A10)+1) ->  | B11: =IF(Klasse!C20="","",Klasse!C20) ->  | N11: 0 | AB11: 0
A12: =IF(OR(B12="",B12="-"),"",MAX(A$3:A11)+1) ->  | B12: =IF(Klasse!C21="","",Klasse!C21) ->  | N12: 0 | AB12: 0
A13: =IF(OR(B13="",B13="-"),"",MAX(A$3:A12)+1) ->  | B13: =IF(Klasse!C22="","",Klasse!C22) ->  | N13: 0 | AB13: 0
A14: =IF(OR(B14="",B14="-"),"",MAX(A$3:A13)+1) ->  | B14: =IF(Klasse!C23="","",Klasse!C23) ->  | N14: 0 | AB14: 0
A15: =IF(OR(B15="",B15="-"),"",MAX(A$3:A14)+1) ->  | B15: =IF(Klasse!C24="","",Klasse!C24) ->  | N15: 0 | AB15: 0
A16: =IF(OR(B16="",B16="-"),"",MAX(A$3:A15)+1) ->  | B16: =IF(Klasse!C25="","",Klasse!C25) ->  | N16: 0 | AB16: 0
A17: =IF(OR(B17="",B17="-"),"",MAX(A$3:A16)+1) ->  | B17: =IF(Klasse!C26="","",Klasse!C26) ->  | N17: 0 | AB17: 0
A18: =IF(OR(B18="",B18="-"),"",MAX(A$3:A17)+1) ->  | B18: =IF(Klasse!C27="","",Klasse!C27) ->  | N18: 0 | AB18: 0
A19: =IF(OR(B19="",B19="-"),"",MAX(A$3:A18)+1) ->  | B19: =IF(Klasse!C28="","",Klasse!C28) ->  | N19: 0 | AB19: 0
A20: =IF(OR(B20="",B20="-"),"",MAX(A$3:A19)+1) ->  | B20: =IF(Klasse!C29="","",Klasse!C29) ->  | N20: 0 | AB20: 0
A21: =IF(OR(B21="",B21="-"),"",MAX(A$3:A20)+1) ->  | B21: =IF(Klasse!C30="","",Klasse!C30) ->  | N21: 0 | AB21: 0
A22: =IF(OR(B22="",B22="-"),"",MAX(A$3:A21)+1) ->  | B22: =IF(Klasse!C31="","",Klasse!C31) ->  | N22: 0 | AB22: 0
A23: =IF(OR(B23="",B23="-"),"",MAX(A$3:A22)+1) ->  | B23: =IF(Klasse!C32="","",Klasse!C32) ->  | N23: 0 | AB23: 0
A24: =IF(OR(B24="",B24="-"),"",MAX(A$3:A23)+1) ->  | B24: =IF(Klasse!C33="","",Klasse!C33) ->  | N24: 0 | AB24: 0
A25: =IF(OR(B25="",B25="-"),"",MAX(A$3:A24)+1) ->  | B25: =IF(Klasse!C34="","",Klasse!C34) ->  | N25: 0 | AB25: 0
A26: =IF(OR(B26="",B26="-"),"",MAX(A$3:A25)+1) ->  | B26: =IF(Klasse!C35="","",Klasse!C35) ->  | N26: 0 | AB26: 0
A27: =IF(OR(B27="",B27="-"),"",MAX(A$3:A26)+1) ->  | B27: =IF(Klasse!C36="","",Klasse!C36) ->  | N27: 0 | AB27: 0
A28: =IF(OR(B28="",B28="-"),"",MAX(A$3:A27)+1) ->  | B28: =IF(Klasse!C37="","",Klasse!C37) ->  | N28: 0 | AB28: 0
A29: =IF(OR(B29="",B29="-"),"",MAX(A$3:A28)+1) ->  | B29: =IF(Klasse!C38="","",Klasse!C38) ->  | N29: 0 | AB29: 0
A30: =IF(OR(B30="",B30="-"),"",MAX(A$3:A29)+1) ->  | B30: =IF(Klasse!C39="","",Klasse!C39) ->  | N30: 0 | AB30: 0
A31: =IF(OR(B31="",B31="-"),"",MAX(A$3:A30)+1) ->  | B31: =IF(Klasse!C40="","",Klasse!C40) ->  | N31: 0 | AB31: 0
C32: Schnitt: | D32: =IF(COUNT(D4:D31)=0,"",AVERAGE(D4:D31)) ->  | E32: =IF(COUNT(E4:E31)=0,"",AVERAGE(E4:E31)) ->  | AB32: 0
A34: in Zahlen | N34: Anzahl Bewertungen
A36: =A4 ->  | B36: =B4 -> 
A37: =A5 -> 
A53: =A21 -> 
N64: =IF(SUM(N36:N63)=0,0,ROUND(AVERAGE(N36:N63),1)) -> 0 | O64: Mittelwert
B68: =A1 -> 0 | F68: =F1 ->  | M68: =M1 ->  | S68: =V1 -> smileys
D70: Selbständigkeit | E70: Zuverlässigkeit | F70: Bemühen | G70: Antrieb | H70: Zeitgefühl | I70: gcxfg
B71: Aiyana | C71: jetzt | D71: =D4 -> 0 | E71: =E4 -> 0 | F71: =F4 -> 0 | G71: =G4 -> 0 | H71: =H4 -> 0 | I71: =I4 -> 0 | AC71: 4
C72: bisher(0)
C73: Grundanspruch | D73: 3 | E73: 3 | F73: 3 | G73: 3 | H73: 3 | I73: 3 | J73: 4 | K73: 4
D80: Selbständigkeit | E80: Zuverlässigkeit | F80: Bemühen | G80: Antrieb | H80: Zeitgefühl | I80: gcxfg
B81: Aiyana | C81: Aiyana | D81: =D4 -> 0 | E81: =E4 -> 0 | F81: =F4 -> 0 | G81: =G4 -> 0 | H81: =H4 -> 0 | M81: =M4 -> 0
C82: Grundanspruch | D82: 3 | E82: 3 | F82: 3 | G82: 3 | H82: 3 | I82: 3 | J82: 4 | K82: 4
AK110: Notizen | AM110: Schule_Aiyana
AK112: Wohlbefinden: | AL112: sadg
AK114: Umgang: | AL114: sdfg
AK116: Leistungen: | AL116: g
AK118: Mitarbeit: | AL118: dfg
AK120: Selbständigkeit: | AL120: jn

Sheet Vier Farben
M1: =IF(Klasse!D7="","",LEFT(Liste!I1,5)&". "&Klasse!D9&"/"&Klasse!F9) ->  | P1: Rückmeldungszeilen | V1: 4Farben | AC1: =MID(CELL("Dateiname",A97),FIND("]",CELL("Dateiname",A97),1)+1,100) -> Vier Farben | AD1: =R1 -> 0 | AE1: =MATCH(0,A4:A31,-1) -> 
O2: Schüler/in einzeln: | Q2: Titel | S2: ganze Klasse: | AL2: Auswahlliste | AO2: Standardtexte
D3: 1 | E3: 1 | F3: 0 | G3: 0 | H3: 0 | I3: 0 | J3: 0 | K3: 0
A4: =IF(OR(B4="",B4="-"),"",MAX(A$3:A3)+1) ->  | B4: =IF(Klasse!C13="","",Klasse!C13) ->  | S4: Du hast Grundlegendes noch nicht erreicht. | T4: Du hast das Grundlegende erreicht. | U4: Du hast das Grundlegende und teilweise auch Anspruchsvolles erreicht. | V4: Du hast Anspruchsvolles erreicht. | AL4: =AI66 -> 1 | AO4: Du hast Grundlegendes noch nicht erreicht. | AP4: Du hast das Grundlegende erreicht. | AQ4: Du hast das Grundlegende und teilweise auch Anspruchsvolles erreicht. | AR4: Du hast Anspruchsvolles erreicht.
A5: =IF(OR(B5="",B5="-"),"",MAX(A$3:A4)+1) ->  | B5: =IF(Klasse!C14="","",Klasse!C14) ->  | Q5: Text | AL5: =AH66 -> 2
A6: =IF(OR(B6="",B6="-"),"",MAX(A$3:A5)+1) ->  | B6: =IF(Klasse!C15="","",Klasse!C15) ->  | AL6: =AG66 -> 3
A7: =IF(OR(B7="",B7="-"),"",MAX(A$3:A6)+1) ->  | B7: =IF(Klasse!C16="","",Klasse!C16) ->  | AL7: =AF66 -> 4
A8: =IF(OR(B8="",B8="-"),"",MAX(A$3:A7)+1) ->  | B8: =IF(Klasse!C17="","",Klasse!C17) -> 
A9: =IF(OR(B9="",B9="-"),"",MAX(A$3:A8)+1) ->  | B9: =IF(Klasse!C18="","",Klasse!C18) -> 
A10: =IF(OR(B10="",B10="-"),"",MAX(A$3:A9)+1) ->  | B10: =IF(Klasse!C19="","",Klasse!C19) -> 
A11: =IF(OR(B11="",B11="-"),"",MAX(A$3:A10)+1) ->  | B11: =IF(Klasse!C20="","",Klasse!C20) -> 
A12: =IF(OR(B12="",B12="-"),"",MAX(A$3:A11)+1) ->  | B12: =IF(Klasse!C21="","",Klasse!C21) -> 
A13: =IF(OR(B13="",B13="-"),"",MAX(A$3:A12)+1) ->  | B13: =IF(Klasse!C22="","",Klasse!C22) -> 
A14: =IF(OR(B14="",B14="-"),"",MAX(A$3:A13)+1) ->  | B14: =IF(Klasse!C23="","",Klasse!C23) -> 
A15: =IF(OR(B15="",B15="-"),"",MAX(A$3:A14)+1) ->  | B15: =IF(Klasse!C24="","",Klasse!C24) -> 
A16: =IF(OR(B16="",B16="-"),"",MAX(A$3:A15)+1) ->  | B16: =IF(Klasse!C25="","",Klasse!C25) -> 
A17: =IF(OR(B17="",B17="-"),"",MAX(A$3:A16)+1) ->  | B17: =IF(Klasse!C26="","",Klasse!C26) ->  | N17: =N49 -> 0 | O17: =IF(AB17=0,"","ja") -> 
A18: =IF(OR(B18="",B18="-"),"",MAX(A$3:A17)+1) ->  | B18: =IF(Klasse!C27="","",Klasse!C27) ->  | N18: 0
A19: =IF(OR(B19="",B19="-"),"",MAX(A$3:A18)+1) ->  | B19: =IF(Klasse!C28="","",Klasse!C28) ->  | N19: 0
A20: =IF(OR(B20="",B20="-"),"",MAX(A$3:A19)+1) ->  | B20: =IF(Klasse!C29="","",Klasse!C29) ->  | N20: 0
A21: =IF(OR(B21="",B21="-"),"",MAX(A$3:A20)+1) ->  | B21: =IF(Klasse!C30="","",Klasse!C30) ->  | N21: 0
A22: =IF(OR(B22="",B22="-"),"",MAX(A$3:A21)+1) ->  | B22: =IF(Klasse!C31="","",Klasse!C31) ->  | N22: 0
A23: =IF(OR(B23="",B23="-"),"",MAX(A$3:A22)+1) ->  | B23: =IF(Klasse!C32="","",Klasse!C32) ->  | N23: 0
A24: =IF(OR(B24="",B24="-"),"",MAX(A$3:A23)+1) ->  | B24: =IF(Klasse!C33="","",Klasse!C33) ->  | N24: 0
A25: =IF(OR(B25="",B25="-"),"",MAX(A$3:A24)+1) ->  | B25: =IF(Klasse!C34="","",Klasse!C34) ->  | N25: 0
A26: =IF(OR(B26="",B26="-"),"",MAX(A$3:A25)+1) ->  | B26: =IF(Klasse!C35="","",Klasse!C35) ->  | N26: 0
A27: =IF(OR(B27="",B27="-"),"",MAX(A$3:A26)+1) ->  | B27: =IF(Klasse!C36="","",Klasse!C36) ->  | N27: 0
A28: =IF(OR(B28="",B28="-"),"",MAX(A$3:A27)+1) ->  | B28: =IF(Klasse!C37="","",Klasse!C37) ->  | N28: 0
A29: =IF(OR(B29="",B29="-"),"",MAX(A$3:A28)+1) ->  | B29: =IF(Klasse!C38="","",Klasse!C38) ->  | N29: 0
A30: =IF(OR(B30="",B30="-"),"",MAX(A$3:A29)+1) ->  | B30: =IF(Klasse!C39="","",Klasse!C39) ->  | N30: 0
A31: =IF(OR(B31="",B31="-"),"",MAX(A$3:A30)+1) ->  | B31: =IF(Klasse!C40="","",Klasse!C40) ->  | N31: 0
AD64: Suela
AF66: 4 | AG66: 3 | AH66: 2 | AI66: 1
BA68: Geometrie mit dem Zirkel | BE68: =M1 -> 
AD69: =O4 -> 0 | AF69: =S4 -> Du hast Grundlegendes noch nicht erreicht. | AG69: =T4 -> Du hast das Grundlegende erreicht. | AH69: =U4 -> Du hast das Grundlegende und teilweise auch Anspruchsvolles erreicht. | AI69: =V4 -> Du hast Anspruchsvolles erreicht.
AD70: =O6 -> 0 | BA70: Du hast auf ein leeres Blatt eine regelmässige Treppe konstruiert. Dabei hast du gezeigt, wie du den Zirkel beherrschst. Lineal oder Geodreieck hast du nur für das Zeichnen gerader Linien gebraucht. | BB70: Du hast Grundlegendes noch nicht erreicht. | BC70: Du hast das Grundlegende erreicht. | BD70: Du hast das Grundlegende und teilweise auch Anspruchsvolles erreicht. | BE70: Du hast Anspruchsvolles erreicht
B71: Suela | D71: 3 | E71: 4 | AD71: =D2 -> 0 | AF71: =IF($D$71=$AF$66,"x","") ->  | AG71: =IF($D$71=$AG$66,"x","") -> x | AH71: =IF($D$71=$AH$66,"x","") ->  | AI71: =IF($D$71=$AI$66,"x","") ->  | BA71: =D2 -> 0 | BC71: x
AD72: =E2 -> 0 | AF72: =IF($E$71=$AF$66,"x","") -> x | AG72: =IF($E$71=$AG$66,"x","") ->  | AH72: =IF($E$71=$AH$66,"x","") ->  | AI72: =IF($E$71=$AI$66,"x","") ->  | BC72: x
C73: Grundanspruch | D73: 4 | E73: 4 | F73: 4 | G73: 4 | H73: 4 | I73: 4 | J73: 4 | AD73: =F2 -> 0 | AF73: =IF($F$71=$AF$66,"x","") ->  | AG73: =IF($F$71=$AG$66,"x","") ->  | AH73: =IF($F$71=$AH$66,"x","") ->  | AI73: =IF($F$71=$AI$66,"x","") ->  | BC73: x
AD74: =G2 -> 0 | AF74: =IF($G$71=$AF$66,"x","") ->  | AG74: =IF($G$71=$AG$66,"x","") ->  | AH74: =IF($G$71=$AH$66,"x","") ->  | AI74: =IF($G$71=$AI$66,"x","") ->  | BC74: x
AD75: =H2 -> 0 | AF75: =IF($H$71=$AF$66,"x","") ->  | AG75: =IF($H$71=$AG$66,"x","") ->  | AH75: =IF($H$71=$AH$66,"x","") ->  | AI75: =IF($H$71=$AI$66,"x","") ->  | BC75: x
AD76: =I2 -> 0 | AF76: =IF($I$71=$AF$66,"x","") ->  | AG76: =IF($I$71=$AG$66,"x","") ->  | AH76: =IF($I$71=$AH$66,"x","") ->  | AI76: =IF($I$71=$AI$66,"x","") ->  | BC76: x
AD77: =J2 -> 0 | AF77: =IF($J$71=$AF$66,"x","") ->  | AG77: =IF($J$71=$AG$66,"x","") ->  | AH77: =IF($J$71=$AH$66,"x","") ->  | AI77: =IF($J$71=$AI$66,"x","") ->  | BC77: x
AD78: =K2 -> 0 | AF78: =IF($K$71=$AF$66,"x","") ->  | AG78: =IF($K$71=$AG$66,"x","") ->  | AH78: =IF($K$71=$AH$66,"x","") ->  | AI78: =IF($K$71=$AI$66,"x","") ->  | BC78: x
AI79: =B71&" "&M1 -> Suela | BE79: Suela 4.Kl. 2023/24

Sheet selbstsozial
C2: Selbständigkeit | E2: Ich bin an meiner Arbeit dran ohne durchwegs Kontakt mit anderen zu suchen. | H2: Rücksicht | J2: Ich verhalte mich so, dass auch andere ungestört arbeiten können.
C4: Zuverlässigkeit | E4: Meine Arbeit entspricht der Abmachung mit den Lehrpersonen. | H4: Zusammenarbeit | J4: Ich beteilige mich angemessen, ohne Chef zu spielen. | N4: Start: Jedes Kind bekommt einen "Pass" und 10 blassgrüne Smileys, die es nach dem Lesen der Sätze in die weissen Felder aufleimt. Dieser blassgrüne Smiley entspricht der Grunderwartung. Wenn die LP eine Beobachtung bewertet (siehe Spinnendiagramme zu Selbst-, Sozialkompetenzen) erhält das Kind den entsprechenden Smiley zum einkleben und weiss damit um die aktuelle Einschätzung der LP. Kommen im Unterricht Wahlmöglichkeiten vor (Arbeitsort etc.) können diese beispielsweise vom "Pass" abhängig gemacht werden. Idee: Wer alle Grunderwartungen erfüllt oder gar übertrifft, kann auch ohne enge Überwachung durch die LP individuell arbeiten - ein befreiender Umstand für alle Beteiligten mit grosser Ausstrahlungkraft. ---"Wieso darf sie/er und ich nicht?" "Schauen wir doch mal gemeinsam in deinen Arbeitspass."--- Ziel: Arbeit an Lernatmosphäre und Gerechtigkeitsempfinden. Vorbereitung für individualisierten Unterricht , z.B. Freiarbeit.
C6: Bemühen | E6: Ich bemühe mich erkennbar um eine gute Arbeitsqualität. | H6: Offenheit | J6: Ich kann mit allen Klassenkolleginnen und-Kollegen arbeiten
C8: Antrieb | E8: Ich schaffe es, Dinge anzupacken und sie durchzuziehen. | H8: Konflikte | J8: Ich bemühe mich um faire Lösungen zu einem passenden Zeitpunkt.
C10: Zeitgefühl | E10: Ich kann meine Zeit einteilen und komme voran. | H10: Umgangsformen | J10: Ich verhalte mich freundlich und anständig.

Sheet smileysdrucken

Sheet Lesebarometer
A1: Lesebarometer | N1: Schuljahr | O1: =Klasse!D9&"/"&Klasse!F9 -> /1
C2: Total | D2: Schnitt | F2: =T4 -> Mai | G2: Jun | H2: Jul | I2: Aug | J2: Sep | K2: Okt | L2: Nov | M2: Dez | N2: Jan | O2: Feb | P2: Mrz | Q2: Apr | S2: ab
A3: =IF(OR(B3="",B3="-"),"",MAX(A$2:A2)+1) ->  | B3: =IF(Klasse!C13="","",Klasse!C13) ->  | C3: =IF(A3="","",SUM(F3:Q3)) ->  | D3: =IF(A3="","",IF(C3=0,0,ROUND(SUM(F3:Q3)/COUNT(F3:Q3),0))) ->  | S3: Mai | U3: 2 | V3: 3 | W3: 4 | X3: 5 | Y3: 6 | Z3: 7 | AA3: 8 | AB3: 9 | AC3: 10 | AD3: 11 | AE3: 12
A4: =IF(OR(B4="",B4="-"),"",MAX(A$2:A3)+1) ->  | B4: =IF(Klasse!C14="","",Klasse!C14) ->  | C4: =IF(A4="","",SUM(F4:Q4)) ->  | D4: =IF(A4="","",IF(C4=0,0,ROUND(SUM(F4:Q4)/COUNT(F4:Q4),0))) ->  | T4: =S3 -> Mai | U4: =VLOOKUP($S$3,$T$5:$AE$16,U3,0) -> Jun | V4: =VLOOKUP($S$3,$T$5:$AE$16,V3,0) -> Jul | W4: Aug | X4: Sep | Y4: Okt | Z4: Nov | AA4: Dez | AB4: Jan | AC4: Feb | AD4: Mrz | AE4: Apr
A5: =IF(OR(B5="",B5="-"),"",MAX(A$2:A4)+1) ->  | B5: =IF(Klasse!C15="","",Klasse!C15) ->  | T5: Jan | U5: Feb | V5: Mrz | W5: Apr | X5: Mai | Y5: Jun | Z5: Jul | AA5: Aug | AB5: Sep | AC5: Okt | AD5: Nov | AE5: Dez | AF5: Jan | AG5: Feb | AH5: Mrz | AI5: Apr | AJ5: Mai | AK5: Jun | AL5: Jul | AM5: Aug | AN5: Sep | AO5: Okt | AP5: Nov | AQ5: Dez
A6: =IF(OR(B6="",B6="-"),"",MAX(A$2:A5)+1) ->  | B6: =IF(Klasse!C16="","",Klasse!C16) ->  | T6: =U5 -> Feb | U6: =V5 -> Mrz | V6: Apr | W6: Mai | X6: Jun | Y6: Jul | Z6: Aug | AA6: Sep | AB6: Okt | AC6: Nov | AD6: Dez | AE6: Jan
A7: =IF(OR(B7="",B7="-"),"",MAX(A$2:A6)+1) ->  | B7: =IF(Klasse!C17="","",Klasse!C17) ->  | T7: =V5 -> Mrz | U7: =W5 -> Apr | V7: Mai | W7: Jun | X7: Jul | Y7: Aug | Z7: Sep | AA7: Okt | AB7: Nov | AC7: Dez | AD7: Jan | AE7: Feb
A8: =IF(OR(B8="",B8="-"),"",MAX(A$2:A7)+1) ->  | B8: =IF(Klasse!C18="","",Klasse!C18) ->  | T8: =W5 -> Apr | U8: =X5 -> Mai | V8: Jun | W8: Jul | X8: Aug | Y8: Sep | Z8: Okt | AA8: Nov | AB8: Dez | AC8: Jan | AD8: Feb | AE8: Mrz
A9: =IF(OR(B9="",B9="-"),"",MAX(A$2:A8)+1) ->  | B9: =IF(Klasse!C19="","",Klasse!C19) ->  | T9: =X5 -> Mai | U9: =Y5 -> Jun | V9: Jul | W9: Aug | X9: Sep | Y9: Okt | Z9: Nov | AA9: Dez | AB9: Jan | AC9: Feb | AD9: Mrz | AE9: Apr
A10: =IF(OR(B10="",B10="-"),"",MAX(A$2:A9)+1) ->  | B10: =IF(Klasse!C20="","",Klasse!C20) ->  | T10: =Y5 -> Jun | U10: =Z5 -> Jul | V10: Aug | W10: Sep | X10: Okt | Y10: Nov | Z10: Dez | AA10: Jan | AB10: Feb | AC10: Mrz | AD10: Apr | AE10: Mai
A11: =IF(OR(B11="",B11="-"),"",MAX(A$2:A10)+1) ->  | B11: =IF(Klasse!C21="","",Klasse!C21) ->  | T11: =Z5 -> Jul | U11: =AA5 -> Aug | V11: Sep | W11: Okt | X11: Nov | Y11: Dez | Z11: Jan | AA11: Feb | AB11: Mrz | AC11: Apr | AD11: Mai | AE11: Jun
A12: =IF(OR(B12="",B12="-"),"",MAX(A$2:A11)+1) ->  | B12: =IF(Klasse!C22="","",Klasse!C22) ->  | T12: =AA5 -> Aug | U12: =AB5 -> Sep | V12: Okt | W12: Nov | X12: Dez | Y12: Jan | Z12: Feb | AA12: Mrz | AB12: Apr | AC12: Mai | AD12: Jun | AE12: Jul
A13: =IF(OR(B13="",B13="-"),"",MAX(A$2:A12)+1) ->  | B13: =IF(Klasse!C23="","",Klasse!C23) ->  | T13: =AB5 -> Sep | U13: =AC5 -> Okt | V13: Nov | W13: Dez | X13: Jan | Y13: Feb | Z13: Mrz | AA13: Apr | AB13: Mai | AC13: Jun | AD13: Jul | AE13: Aug
A14: =IF(OR(B14="",B14="-"),"",MAX(A$2:A13)+1) ->  | B14: =IF(Klasse!C24="","",Klasse!C24) ->  | T14: =AC5 -> Okt | U14: =AD5 -> Nov | V14: Dez | W14: Jan | X14: Feb | Y14: Mrz | Z14: Apr | AA14: Mai | AB14: Jun | AC14: Jul | AD14: Aug | AE14: Sep
A15: =IF(OR(B15="",B15="-"),"",MAX(A$2:A14)+1) ->  | B15: =IF(Klasse!C25="","",Klasse!C25) ->  | T15: =AD5 -> Nov | U15: =AE5 -> Dez | V15: Jan | W15: Feb | X15: Mrz | Y15: Apr | Z15: Mai | AA15: Jun | AB15: Jul | AC15: Aug | AD15: Sep | AE15: Okt
A16: =IF(OR(B16="",B16="-"),"",MAX(A$2:A15)+1) ->  | B16: =IF(Klasse!C26="","",Klasse!C26) ->  | T16: =AE5 -> Dez | U16: =AF5 -> Jan | V16: Feb | W16: Mrz | X16: Apr | Y16: Mai | Z16: Jun | AA16: Jul | AB16: Aug | AC16: Sep | AD16: Okt | AE16: Nov
A17: =IF(OR(B17="",B17="-"),"",MAX(A$2:A16)+1) ->  | B17: =IF(Klasse!C27="","",Klasse!C27) -> 
A18: =IF(OR(B18="",B18="-"),"",MAX(A$2:A17)+1) ->  | B18: =IF(Klasse!C28="","",Klasse!C28) -> 
A19: =IF(OR(B19="",B19="-"),"",MAX(A$2:A18)+1) ->  | B19: =IF(Klasse!C29="","",Klasse!C29) -> 
A20: =IF(OR(B20="",B20="-"),"",MAX(A$2:A19)+1) ->  | B20: =IF(Klasse!C30="","",Klasse!C30) -> 
A21: =IF(OR(B21="",B21="-"),"",MAX(A$2:A20)+1) ->  | B21: =IF(Klasse!C31="","",Klasse!C31) -> 
A22: =IF(OR(B22="",B22="-"),"",MAX(A$2:A21)+1) ->  | B22: =IF(Klasse!C32="","",Klasse!C32) -> 
A23: =IF(OR(B23="",B23="-"),"",MAX(A$2:A22)+1) ->  | B23: =IF(Klasse!C33="","",Klasse!C33) -> 
A24: =IF(OR(B24="",B24="-"),"",MAX(A$2:A23)+1) ->  | B24: =IF(Klasse!C34="","",Klasse!C34) -> 
A25: =IF(OR(B25="",B25="-"),"",MAX(A$2:A24)+1) ->  | B25: =IF(Klasse!C35="","",Klasse!C35) -> 
A26: =IF(OR(B26="",B26="-"),"",MAX(A$2:A25)+1) ->  | B26: =IF(Klasse!C36="","",Klasse!C36) -> 
A27: =IF(OR(B27="",B27="-"),"",MAX(A$2:A26)+1) ->  | B27: =IF(Klasse!C37="","",Klasse!C37) -> 
A28: =IF(OR(B28="",B28="-"),"",MAX(A$2:A27)+1) ->  | B28: =IF(Klasse!C38="","",Klasse!C38) -> 
A29: =IF(OR(B29="",B29="-"),"",MAX(A$2:A28)+1) ->  | B29: =IF(Klasse!C39="","",Klasse!C39) ->  | C29: =IF(A29="","",SUM(F29:Q29)) ->  | D29: =IF(A29="","",IF(C29=0,0,ROUND(SUM(F29:Q29)/COUNT(F29:Q29),0))) -> 
A30: =IF(OR(B30="",B30="-"),"",MAX(A$2:A29)+1) ->  | B30: =IF(Klasse!C40="","",Klasse!C40) ->  | C30: =IF(A30="","",SUM(F30:Q30)) ->  | D30: =IF(A30="","",IF(C30=0,0,ROUND(SUM(F30:Q30)/COUNT(F30:Q30),0))) -> 
C38: Lesetotal (Buchseiten)
B39: * | C39: 6664
B40: * | C40: 6622
B41: * | C41: 6451
B42: * | C42: 5439
B43: * | C43: 4837
B44: * | C44: 4157
B45: * | C45: 3173
B46: * | C46: 3164
B47: * | C47: 2878
B48: * | C48: 2841
B49: * | C49: 2515
B50: * | C50: 2450
B51: * | C51: 1973
B52: * | C52: 1496
B53: * | C53: 1154
B54: Suela | C54: 656
B55: * | C55: 0
B56: * | C56: 0
B57: * | C57: 0

Sheet Quartalsueberblick
A1: Start | B1: Ende | E1: Übersicht | G1: 1.Quartal | M1: ="Schuljahr "&P1 -> Schuljahr 2022/2023 | O1: Schuljahr | P1: 2022/2023 | AF1: =Ferien!L7&"/"&Ferien!N7 -> 2021/2022
A2: =IF(G1="1.Quartal",Q3,IF(G1="2.Quartal",Q7,IF(G1="3.Quartal",Q15,IF(G1="4.Quartal",Q19)))) -> 2022-08-15 | B2: =IF(G1="1.Quartal",Q6,IF(G1="2.Quartal",Q14,IF(G1="3.Quartal",Q18,IF(G1="4.Quartal",Q22)))) -> 2022-10-01 | S2: Ferien | U2: Schule | AF2: =Ferien!N7&"/"&Ferien!P7 -> 2022/2023
A3: letzte zeile | B3: =IF(AND(D3>=$Q$14,D3<$Q$15),$O$14,IF(AND(D3>=$Q$6,D3<$Q$7),$O$6,IF(AND(D3>=$Q$10,D3<$Q$11),$O$10,IF(AND(D3>=$Q$18,D3<$Q$19),$O$18,"")))) ->  | C3: 1 | D3: =A2 -> 2022-08-15 | E3: =TEXT(A2,"TTT") -> Mo | F3: =D3 -> 2022-08-15 | K3: =IF(AND(E3="Mo",B3<>""),B3,IF(C3="","","Woche "&C3)) -> Woche 1 | O3: Sommerferien | P3: Schulbeginn: | Q3: =IF(P1=AF1,Ferien!L19,Ferien!N19) -> 2022-08-15 | S3: 5 | T3: W
A4: =COUNT(D3:D200)+2 -> 49 | C4: =IF(B4="sportwoche","",IF(E4="mo",MAX($C$2:C3)+1,"")) ->  | D4: =IF(D3<$B$2-1,D3+1,"") -> 2022-08-16 | E4: =TEXT(D4,"TTT") -> Di | F4: =IF(E4="mo",D4,"") ->  | U4: =ROUND(DATEDIF(Q3,Q6,"D")/7,0) -> 7 | V4: W
C5: =IF(B5="sportwoche","",IF(E5="mo",MAX($C$2:C4)+1,"")) ->  | D5: 2022-08-17 | E5: Mi
C6: =IF(B6="sportwoche","",IF(E6="mo",MAX($C$2:C5)+1,"")) ->  | D6: 2022-08-18 | E6: Do | O6: Herbstferien | P6: Ferienanfang: | Q6: =IF(P1=AF1,Ferien!L21,Ferien!N21) -> 2022-10-01
C7: =IF(B7="sportwoche","",IF(E7="mo",MAX($C$2:C6)+1,"")) ->  | D7: 2022-08-19 | E7: Fr | P7: Schulbeginn: | Q7: =IF(P1=AF1,Ferien!L22,Ferien!N22) -> 2022-10-24 | S7: =TRUNC(DATEDIF(Q6,Q7,"D")/7,0) -> 3 | T7: W
C8: =IF(B8="sportwoche","",IF(E8="mo",MAX($C$2:C7)+1,"")) ->  | D8: 2022-08-20 | E8: Sa | U8: =ROUND(DATEDIF(Q7,Q10,"D")/7,0) -> 9 | V8: W
C9: =IF(B9="sportwoche","",IF(E9="mo",MAX($C$2:C8)+1,"")) ->  | D9: 2022-08-21 | E9: So
C10: =IF(B10="sportwoche","",IF(E10="mo",MAX($C$2:C9)+1,"")) -> 2 | D10: 2022-08-22 | E10: Mo | F10: 2022-08-22 | K10: Woche 2 | O10: Weihnachtsferien | P10: Ferienanfang: | Q10: =IF(P1=AF1,Ferien!L24,Ferien!N24) -> 2022-12-24
C11: =IF(B11="sportwoche","",IF(E11="mo",MAX($C$2:C10)+1,"")) ->  | D11: 2022-08-23 | E11: Di | P11: Schulbeginn: | Q11: =IF(P1=AF1,Ferien!N9,Ferien!P9) -> 2023-01-09 | S11: =TRUNC(DATEDIF(Q10,Q11,"D")/7,0) -> 2 | T11: W
C12: =IF(B12="sportwoche","",IF(E12="mo",MAX($C$2:C11)+1,"")) ->  | D12: 2022-08-24 | E12: Mi | U12: =ROUND(DATEDIF(Q11,Q14,"D")/7,0) -> 3 | V12: W
C13: =IF(B13="sportwoche","",IF(E13="mo",MAX($C$2:C12)+1,"")) ->  | D13: 2022-08-25 | E13: Do
C14: =IF(B14="sportwoche","",IF(E14="mo",MAX($C$2:C13)+1,"")) ->  | D14: 2022-08-26 | E14: Fr | O14: Winterferien | P14: Ferienanfang: | Q14: =IF(P1=AF1,Ferien!N12,Ferien!P12) -> 2023-01-28
C15: =IF(B15="sportwoche","",IF(E15="mo",MAX($C$2:C14)+1,"")) ->  | D15: 2022-08-27 | E15: Sa | O15: (Sportwoche) | P15: Schulbeginn: | Q15: =IF(P1=AF1,Ferien!N13,Ferien!P13) -> 2023-02-06 | S15: =TRUNC(DATEDIF(Q14,Q15,"D")/7,0) -> 1 | T15: W
C16: =IF(B16="sportwoche","",IF(E16="mo",MAX($C$2:C15)+1,"")) ->  | D16: 2022-08-28 | E16: So | U16: =ROUND(DATEDIF(Q15,Q18,"D")/7,0) -> 9 | V16: W
C17: =IF(B17="sportwoche","",IF(E17="mo",MAX($C$2:C16)+1,"")) -> 3 | D17: 2022-08-29 | E17: Mo | F17: 2022-08-29 | K17: Woche 3
C18: =IF(B18="sportwoche","",IF(E18="mo",MAX($C$2:C17)+1,"")) ->  | D18: 2022-08-30 | E18: Di | O18: Frühlingsferien | P18: Ferienanfang: | Q18: =IF(P1=AF1,Ferien!N15,Ferien!P15) -> 2023-04-07
C19: =IF(B19="sportwoche","",IF(E19="mo",MAX($C$2:C18)+1,"")) ->  | D19: 2022-08-31 | E19: Mi | P19: Schulbeginn: | Q19: =IF(P1=AF1,Ferien!N16,Ferien!P16) -> 2023-04-24 | S19: =TRUNC(DATEDIF(Q18,Q19,"D")/7,0) -> 2 | T19: W
C20: =IF(B20="sportwoche","",IF(E20="mo",MAX($C$2:C19)+1,"")) ->  | D20: 2022-09-01 | E20: Do | U20: =ROUND(DATEDIF(Q19,Q22,"D")/7,0) -> 11 | V20: W
C21: =IF(B21="sportwoche","",IF(E21="mo",MAX($C$2:C20)+1,"")) ->  | D21: 2022-09-02 | E21: Fr
C22: =IF(B22="sportwoche","",IF(E22="mo",MAX($C$2:C21)+1,"")) ->  | D22: 2022-09-03 | E22: Sa | O22: Sommerferien | P22: Ferienanfang: | Q22: =IF(P1=AF1,Ferien!N18,Ferien!P18) -> 2023-07-08
C23: =IF(B23="sportwoche","",IF(E23="mo",MAX($C$2:C22)+1,"")) ->  | D23: 2022-09-04 | E23: So | S23: =SUM(S3:S22) -> 13 | T23: W
C24: =IF(B24="sportwoche","",IF(E24="mo",MAX($C$2:C23)+1,"")) -> 4 | D24: 2022-09-05 | E24: Mo | F24: 2022-09-05 | K24: Woche 4
C25: =IF(B25="sportwoche","",IF(E25="mo",MAX($C$2:C24)+1,"")) ->  | D25: 2022-09-06 | E25: Di
C26: =IF(B26="sportwoche","",IF(E26="mo",MAX($C$2:C25)+1,"")) ->  | D26: 2022-09-07 | E26: Mi
C27: =IF(B27="sportwoche","",IF(E27="mo",MAX($C$2:C26)+1,"")) ->  | D27: 2022-09-08 | E27: Do
C28: =IF(B28="sportwoche","",IF(E28="mo",MAX($C$2:C27)+1,"")) ->  | D28: 2022-09-09 | E28: Fr
C29: =IF(B29="sportwoche","",IF(E29="mo",MAX($C$2:C28)+1,"")) ->  | D29: 2022-09-10 | E29: Sa
C30: =IF(B30="sportwoche","",IF(E30="mo",MAX($C$2:C29)+1,"")) ->  | D30: 2022-09-11 | E30: So
C31: =IF(B31="sportwoche","",IF(E31="mo",MAX($C$2:C30)+1,"")) -> 5 | D31: 2022-09-12 | E31: Mo | F31: 2022-09-12 | K31: Woche 5
C32: =IF(B32="sportwoche","",IF(E32="mo",MAX($C$2:C31)+1,"")) ->  | D32: 2022-09-13 | E32: Di
C33: =IF(B33="sportwoche","",IF(E33="mo",MAX($C$2:C32)+1,"")) ->  | D33: 2022-09-14 | E33: Mi
C34: =IF(B34="sportwoche","",IF(E34="mo",MAX($C$2:C33)+1,"")) ->  | D34: 2022-09-15 | E34: Do
B35: =IF(AND(D35>=$Q$14,D35<$Q$15),$O$14,IF(AND(D35>=$Q$6,D35<$Q$7),$O$6,IF(AND(D35>=$Q$10,D35<$Q$11),$O$10,IF(AND(D35>=$Q$18,D35<$Q$19),$O$18,"")))) ->  | C35: =IF(B35="sportwoche","",IF(E35="mo",MAX($C$2:C34)+1,"")) ->  | D35: 2022-09-16 | E35: Fr | K35: =IF(AND(E35="Mo",B35<>""),B35,IF(C35="","","Woche "&C35)) -> 
C36: =IF(B36="sportwoche","",IF(E36="mo",MAX($C$2:C35)+1,"")) ->  | D36: =IF(D35<$B$2-1,D35+1,"") -> 2022-09-17 | E36: =TEXT(D36,"TTT") -> Sa | F36: =IF(E36="mo",D36,"") -> 
C37: =IF(B37="sportwoche","",IF(E37="mo",MAX($C$2:C36)+1,"")) ->  | D37: 2022-09-18 | E37: So
C38: =IF(B38="sportwoche","",IF(E38="mo",MAX($C$2:C37)+1,"")) -> 6 | D38: 2022-09-19 | E38: Mo | F38: 2022-09-19 | K38: Woche 6
C39: =IF(B39="sportwoche","",IF(E39="mo",MAX($C$2:C38)+1,"")) ->  | D39: 2022-09-20 | E39: Di
C40: =IF(B40="sportwoche","",IF(E40="mo",MAX($C$2:C39)+1,"")) ->  | D40: 2022-09-21 | E40: Mi
C41: =IF(B41="sportwoche","",IF(E41="mo",MAX($C$2:C40)+1,"")) ->  | D41: 2022-09-22 | E41: Do
C42: =IF(B42="sportwoche","",IF(E42="mo",MAX($C$2:C41)+1,"")) ->  | D42: 2022-09-23 | E42: Fr
C43: =IF(B43="sportwoche","",IF(E43="mo",MAX($C$2:C42)+1,"")) ->  | D43: 2022-09-24 | E43: Sa
C44: =IF(B44="sportwoche","",IF(E44="mo",MAX($C$2:C43)+1,"")) ->  | D44: 2022-09-25 | E44: So
C45: =IF(B45="sportwoche","",IF(E45="mo",MAX($C$2:C44)+1,"")) -> 7 | D45: 2022-09-26 | E45: Mo | F45: 2022-09-26 | K45: Woche 7
C46: =IF(B46="sportwoche","",IF(E46="mo",MAX($C$2:C45)+1,"")) ->  | D46: 2022-09-27 | E46: Di
C47: =IF(B47="sportwoche","",IF(E47="mo",MAX($C$2:C46)+1,"")) ->  | D47: 2022-09-28 | E47: Mi
C48: =IF(B48="sportwoche","",IF(E48="mo",MAX($C$2:C47)+1,"")) ->  | D48: 2022-09-29 | E48: Do
C49: =IF(B49="sportwoche","",IF(E49="mo",MAX($C$2:C48)+1,"")) ->  | D49: 2022-09-30 | E49: Fr
C50: =IF(B50="sportwoche","",IF(E50="mo",MAX($C$2:C49)+1,"")) -> 
C51: =IF(B51="sportwoche","",IF(E51="mo",MAX($C$2:C50)+1,"")) -> 
C52: =IF(B52="sportwoche","",IF(E52="mo",MAX($C$2:C51)+1,"")) -> 
C53: =IF(B53="sportwoche","",IF(E53="mo",MAX($C$2:C52)+1,"")) -> 
C54: =IF(B54="sportwoche","",IF(E54="mo",MAX($C$2:C53)+1,"")) -> 
C55: =IF(B55="sportwoche","",IF(E55="mo",MAX($C$2:C54)+1,"")) -> 
C56: =IF(B56="sportwoche","",IF(E56="mo",MAX($C$2:C55)+1,"")) -> 
C57: =IF(B57="sportwoche","",IF(E57="mo",MAX($C$2:C56)+1,"")) -> 
C58: =IF(B58="sportwoche","",IF(E58="mo",MAX($C$2:C57)+1,"")) -> 
C59: =IF(B59="sportwoche","",IF(E59="mo",MAX($C$2:C58)+1,"")) -> 
C60: =IF(B60="sportwoche","",IF(E60="mo",MAX($C$2:C59)+1,"")) -> 
C61: =IF(B61="sportwoche","",IF(E61="mo",MAX($C$2:C60)+1,"")) -> 
C62: =IF(B62="sportwoche","",IF(E62="mo",MAX($C$2:C61)+1,"")) -> 
C63: =IF(B63="sportwoche","",IF(E63="mo",MAX($C$2:C62)+1,"")) -> 
C64: =IF(B64="sportwoche","",IF(E64="mo",MAX($C$2:C63)+1,"")) -> 
C65: =IF(B65="sportwoche","",IF(E65="mo",MAX($C$2:C64)+1,"")) -> 
C66: =IF(B66="sportwoche","",IF(E66="mo",MAX($C$2:C65)+1,"")) -> 
B67: =IF(AND(D67>=$Q$14,D67<$Q$15),$O$14,IF(AND(D67>=$Q$6,D67<$Q$7),$O$6,IF(AND(D67>=$Q$10,D67<$Q$11),$O$10,IF(AND(D67>=$Q$18,D67<$Q$19),$O$18,"")))) ->  | C67: =IF(B67="sportwoche","",IF(E67="mo",MAX($C$2:C66)+1,"")) ->  | K67: =IF(AND(E67="Mo",B67<>""),B67,IF(C67="","","Woche "&C67)) -> 
C68: =IF(B68="sportwoche","",IF(E68="mo",MAX($C$2:C67)+1,"")) ->  | D68: =IF(D67<$B$2-1,D67+1,"") ->  | E68: =TEXT(D68,"TTT") ->  | F68: =IF(E68="mo",D68,"") -> 
C69: =IF(B69="sportwoche","",IF(E69="mo",MAX($C$2:C68)+1,"")) -> 
C70: =IF(B70="sportwoche","",IF(E70="mo",MAX($C$2:C69)+1,"")) -> 
C71: =IF(B71="sportwoche","",IF(E71="mo",MAX($C$2:C70)+1,"")) -> 
C72: =IF(B72="sportwoche","",IF(E72="mo",MAX($C$2:C71)+1,"")) -> 
C73: =IF(B73="sportwoche","",IF(E73="mo",MAX($C$2:C72)+1,"")) -> 
C74: =IF(B74="sportwoche","",IF(E74="mo",MAX($C$2:C73)+1,"")) -> 
C75: =IF(B75="sportwoche","",IF(E75="mo",MAX($C$2:C74)+1,"")) -> 
C76: =IF(B76="sportwoche","",IF(E76="mo",MAX($C$2:C75)+1,"")) -> 
C77: =IF(B77="sportwoche","",IF(E77="mo",MAX($C$2:C76)+1,"")) -> 
C78: =IF(B78="sportwoche","",IF(E78="mo",MAX($C$2:C77)+1,"")) -> 
C79: =IF(B79="sportwoche","",IF(E79="mo",MAX($C$2:C78)+1,"")) -> 
C80: =IF(B80="sportwoche","",IF(E80="mo",MAX($C$2:C79)+1,"")) -> 
C81: =IF(B81="sportwoche","",IF(E81="mo",MAX($C$2:C80)+1,"")) -> 
C82: =IF(B82="sportwoche","",IF(E82="mo",MAX($C$2:C81)+1,"")) -> 
C83: =IF(B83="sportwoche","",IF(E83="mo",MAX($C$2:C82)+1,"")) -> 
C84: =IF(B84="sportwoche","",IF(E84="mo",MAX($C$2:C83)+1,"")) -> 
C85: =IF(B85="sportwoche","",IF(E85="mo",MAX($C$2:C84)+1,"")) -> 
C86: =IF(B86="sportwoche","",IF(E86="mo",MAX($C$2:C85)+1,"")) -> 
C87: =IF(B87="sportwoche","",IF(E87="mo",MAX($C$2:C86)+1,"")) -> 
C88: =IF(B88="sportwoche","",IF(E88="mo",MAX($C$2:C87)+1,"")) -> 
C89: =IF(B89="sportwoche","",IF(E89="mo",MAX($C$2:C88)+1,"")) -> 
C90: =IF(B90="sportwoche","",IF(E90="mo",MAX($C$2:C89)+1,"")) -> 
C91: =IF(B91="sportwoche","",IF(E91="mo",MAX($C$2:C90)+1,"")) -> 
C92: =IF(B92="sportwoche","",IF(E92="mo",MAX($C$2:C91)+1,"")) -> 
C93: =IF(B93="sportwoche","",IF(E93="mo",MAX($C$2:C92)+1,"")) -> 
C94: =IF(B94="sportwoche","",IF(E94="mo",MAX($C$2:C93)+1,"")) -> 
C95: =IF(B95="sportwoche","",IF(E95="mo",MAX($C$2:C94)+1,"")) -> 
C96: =IF(B96="sportwoche","",IF(E96="mo",MAX($C$2:C95)+1,"")) -> 
C97: =IF(B97="sportwoche","",IF(E97="mo",MAX($C$2:C96)+1,"")) -> 
C98: =IF(B98="sportwoche","",IF(E98="mo",MAX($C$2:C97)+1,"")) -> 
B99: =IF(AND(D99>=$Q$14,D99<$Q$15),$O$14,IF(AND(D99>=$Q$6,D99<$Q$7),$O$6,IF(AND(D99>=$Q$10,D99<$Q$11),$O$10,IF(AND(D99>=$Q$18,D99<$Q$19),$O$18,"")))) ->  | C99: =IF(B99="sportwoche","",IF(E99="mo",MAX($C$2:C98)+1,"")) ->  | K99: =IF(AND(E99="Mo",B99<>""),B99,IF(C99="","","Woche "&C99)) -> 
C100: =IF(B100="sportwoche","",IF(E100="mo",MAX($C$2:C99)+1,"")) ->  | D100: =IF(D99<$B$2-1,D99+1,"") ->  | E100: =TEXT(D100,"TTT") ->  | F100: =IF(E100="mo",D100,"") -> 
C101: =IF(B101="sportwoche","",IF(E101="mo",MAX($C$2:C100)+1,"")) -> 
C102: =IF(B102="sportwoche","",IF(E102="mo",MAX($C$2:C101)+1,"")) -> 
C103: =IF(B103="sportwoche","",IF(E103="mo",MAX($C$2:C102)+1,"")) -> 
C104: =IF(B104="sportwoche","",IF(E104="mo",MAX($C$2:C103)+1,"")) -> 
C105: =IF(B105="sportwoche","",IF(E105="mo",MAX($C$2:C104)+1,"")) -> 
C106: =IF(B106="sportwoche","",IF(E106="mo",MAX($C$2:C105)+1,"")) -> 
C107: =IF(B107="sportwoche","",IF(E107="mo",MAX($C$2:C106)+1,"")) -> 
C108: =IF(B108="sportwoche","",IF(E108="mo",MAX($C$2:C107)+1,"")) -> 
C109: =IF(B109="sportwoche","",IF(E109="mo",MAX($C$2:C108)+1,"")) -> 
C110: =IF(B110="sportwoche","",IF(E110="mo",MAX($C$2:C109)+1,"")) -> 
C111: =IF(B111="sportwoche","",IF(E111="mo",MAX($C$2:C110)+1,"")) -> 
C112: =IF(B112="sportwoche","",IF(E112="mo",MAX($C$2:C111)+1,"")) -> 
C113: =IF(B113="sportwoche","",IF(E113="mo",MAX($C$2:C112)+1,"")) -> 
C114: =IF(B114="sportwoche","",IF(E114="mo",MAX($C$2:C113)+1,"")) -> 
C115: =IF(B115="sportwoche","",IF(E115="mo",MAX($C$2:C114)+1,"")) -> 
C116: =IF(B116="sportwoche","",IF(E116="mo",MAX($C$2:C115)+1,"")) -> 
C117: =IF(B117="sportwoche","",IF(E117="mo",MAX($C$2:C116)+1,"")) -> 
C118: =IF(B118="sportwoche","",IF(E118="mo",MAX($C$2:C117)+1,"")) -> 
C119: =IF(B119="sportwoche","",IF(E119="mo",MAX($C$2:C118)+1,"")) -> 
C120: =IF(B120="sportwoche","",IF(E120="mo",MAX($C$2:C119)+1,"")) -> 
C121: =IF(B121="sportwoche","",IF(E121="mo",MAX($C$2:C120)+1,"")) -> 
C122: =IF(B122="sportwoche","",IF(E122="mo",MAX($C$2:C121)+1,"")) -> 
C123: =IF(B123="sportwoche","",IF(E123="mo",MAX($C$2:C122)+1,"")) -> 
C124: =IF(B124="sportwoche","",IF(E124="mo",MAX($C$2:C123)+1,"")) -> 
C125: =IF(B125="sportwoche","",IF(E125="mo",MAX($C$2:C124)+1,"")) -> 
C126: =IF(B126="sportwoche","",IF(E126="mo",MAX($C$2:C125)+1,"")) -> 
C127: =IF(B127="sportwoche","",IF(E127="mo",MAX($C$2:C126)+1,"")) -> 
C128: =IF(B128="sportwoche","",IF(E128="mo",MAX($C$2:C127)+1,"")) -> 
C129: =IF(B129="sportwoche","",IF(E129="mo",MAX($C$2:C128)+1,"")) -> 
C130: =IF(B130="sportwoche","",IF(E130="mo",MAX($C$2:C129)+1,"")) -> 
B131: =IF(AND(D131>=$Q$14,D131<$Q$15),$O$14,IF(AND(D131>=$Q$6,D131<$Q$7),$O$6,IF(AND(D131>=$Q$10,D131<$Q$11),$O$10,IF(AND(D131>=$Q$18,D131<$Q$19),$O$18,"")))) ->  | C131: =IF(B131="sportwoche","",IF(E131="mo",MAX($C$2:C130)+1,"")) ->  | K131: =IF(AND(E131="Mo",B131<>""),B131,IF(C131="","","Woche "&C131)) -> 
C132: =IF(B132="sportwoche","",IF(E132="mo",MAX($C$2:C131)+1,"")) ->  | D132: =IF(D131<$B$2-1,D131+1,"") ->  | E132: =TEXT(D132,"TTT") ->  | F132: =IF(E132="mo",D132,"") -> 
C133: =IF(B133="sportwoche","",IF(E133="mo",MAX($C$2:C132)+1,"")) -> 
C134: =IF(B134="sportwoche","",IF(E134="mo",MAX($C$2:C133)+1,"")) -> 
C135: =IF(B135="sportwoche","",IF(E135="mo",MAX($C$2:C134)+1,"")) -> 
C136: =IF(B136="sportwoche","",IF(E136="mo",MAX($C$2:C135)+1,"")) -> 
C137: =IF(B137="sportwoche","",IF(E137="mo",MAX($C$2:C136)+1,"")) -> 
C138: =IF(B138="sportwoche","",IF(E138="mo",MAX($C$2:C137)+1,"")) -> 
C139: =IF(B139="sportwoche","",IF(E139="mo",MAX($C$2:C138)+1,"")) -> 
C140: =IF(B140="sportwoche","",IF(E140="mo",MAX($C$2:C139)+1,"")) -> 
C141: =IF(B141="sportwoche","",IF(E141="mo",MAX($C$2:C140)+1,"")) -> 
C142: =IF(B142="sportwoche","",IF(E142="mo",MAX($C$2:C141)+1,"")) -> 
C143: =IF(B143="sportwoche","",IF(E143="mo",MAX($C$2:C142)+1,"")) -> 
C144: =IF(B144="sportwoche","",IF(E144="mo",MAX($C$2:C143)+1,"")) -> 
C145: =IF(B145="sportwoche","",IF(E145="mo",MAX($C$2:C144)+1,"")) -> 
C146: =IF(B146="sportwoche","",IF(E146="mo",MAX($C$2:C145)+1,"")) -> 
C147: =IF(B147="sportwoche","",IF(E147="mo",MAX($C$2:C146)+1,"")) -> 
C148: =IF(B148="sportwoche","",IF(E148="mo",MAX($C$2:C147)+1,"")) -> 
C149: =IF(B149="sportwoche","",IF(E149="mo",MAX($C$2:C148)+1,"")) -> 
C150: =IF(B150="sportwoche","",IF(E150="mo",MAX($C$2:C149)+1,"")) -> 
C151: =IF(B151="sportwoche","",IF(E151="mo",MAX($C$2:C150)+1,"")) -> 
C152: =IF(B152="sportwoche","",IF(E152="mo",MAX($C$2:C151)+1,"")) -> 
C153: =IF(B153="sportwoche","",IF(E153="mo",MAX($C$2:C152)+1,"")) -> 
C154: =IF(B154="sportwoche","",IF(E154="mo",MAX($C$2:C153)+1,"")) -> 
C155: =IF(B155="sportwoche","",IF(E155="mo",MAX($C$2:C154)+1,"")) -> 
C156: =IF(B156="sportwoche","",IF(E156="mo",MAX($C$2:C155)+1,"")) -> 
C157: =IF(B157="sportwoche","",IF(E157="mo",MAX($C$2:C156)+1,"")) -> 
C158: =IF(B158="sportwoche","",IF(E158="mo",MAX($C$2:C157)+1,"")) -> 
C159: =IF(B159="sportwoche","",IF(E159="mo",MAX($C$2:C158)+1,"")) -> 
C160: =IF(B160="sportwoche","",IF(E160="mo",MAX($C$2:C159)+1,"")) -> 
C161: =IF(B161="sportwoche","",IF(E161="mo",MAX($C$2:C160)+1,"")) -> 
C162: =IF(B162="sportwoche","",IF(E162="mo",MAX($C$2:C161)+1,"")) -> 
B163: =IF(AND(D163>=$Q$14,D163<$Q$15),$O$14,IF(AND(D163>=$Q$6,D163<$Q$7),$O$6,IF(AND(D163>=$Q$10,D163<$Q$11),$O$10,IF(AND(D163>=$Q$18,D163<$Q$19),$O$18,"")))) ->  | C163: =IF(B163="sportwoche","",IF(E163="mo",MAX($C$2:C162)+1,"")) ->  | K163: =IF(AND(E163="Mo",B163<>""),B163,IF(C163="","","Woche "&C163)) -> 
C164: =IF(B164="sportwoche","",IF(E164="mo",MAX($C$2:C163)+1,"")) ->  | D164: =IF(D163<$B$2-1,D163+1,"") ->  | E164: =TEXT(D164,"TTT") ->  | F164: =IF(E164="mo",D164,"") -> 
C165: =IF(B165="sportwoche","",IF(E165="mo",MAX($C$2:C164)+1,"")) -> 
C166: =IF(B166="sportwoche","",IF(E166="mo",MAX($C$2:C165)+1,"")) -> 
C167: =IF(B167="sportwoche","",IF(E167="mo",MAX($C$2:C166)+1,"")) -> 
C168: =IF(B168="sportwoche","",IF(E168="mo",MAX($C$2:C167)+1,"")) -> 
C169: =IF(B169="sportwoche","",IF(E169="mo",MAX($C$2:C168)+1,"")) -> 
C170: =IF(B170="sportwoche","",IF(E170="mo",MAX($C$2:C169)+1,"")) -> 
C171: =IF(B171="sportwoche","",IF(E171="mo",MAX($C$2:C170)+1,"")) -> 
C172: =IF(B172="sportwoche","",IF(E172="mo",MAX($C$2:C171)+1,"")) -> 
C173: =IF(B173="sportwoche","",IF(E173="mo",MAX($C$2:C172)+1,"")) -> 
C174: =IF(B174="sportwoche","",IF(E174="mo",MAX($C$2:C173)+1,"")) -> 
C175: =IF(B175="sportwoche","",IF(E175="mo",MAX($C$2:C174)+1,"")) -> 
C176: =IF(B176="sportwoche","",IF(E176="mo",MAX($C$2:C175)+1,"")) -> 
C177: =IF(B177="sportwoche","",IF(E177="mo",MAX($C$2:C176)+1,"")) -> 
C178: =IF(B178="sportwoche","",IF(E178="mo",MAX($C$2:C177)+1,"")) -> 
C179: =IF(B179="sportwoche","",IF(E179="mo",MAX($C$2:C178)+1,"")) -> 
C180: =IF(B180="sportwoche","",IF(E180="mo",MAX($C$2:C179)+1,"")) -> 
C181: =IF(B181="sportwoche","",IF(E181="mo",MAX($C$2:C180)+1,"")) -> 
C182: =IF(B182="sportwoche","",IF(E182="mo",MAX($C$2:C181)+1,"")) -> 
C183: =IF(B183="sportwoche","",IF(E183="mo",MAX($C$2:C182)+1,"")) -> 
C184: =IF(B184="sportwoche","",IF(E184="mo",MAX($C$2:C183)+1,"")) -> 
C185: =IF(B185="sportwoche","",IF(E185="mo",MAX($C$2:C184)+1,"")) -> 
C186: =IF(B186="sportwoche","",IF(E186="mo",MAX($C$2:C185)+1,"")) -> 
C187: =IF(B187="sportwoche","",IF(E187="mo",MAX($C$2:C186)+1,"")) -> 
C188: =IF(B188="sportwoche","",IF(E188="mo",MAX($C$2:C187)+1,"")) -> 
C189: =IF(B189="sportwoche","",IF(E189="mo",MAX($C$2:C188)+1,"")) -> 
C190: =IF(B190="sportwoche","",IF(E190="mo",MAX($C$2:C189)+1,"")) -> 
C191: =IF(B191="sportwoche","",IF(E191="mo",MAX($C$2:C190)+1,"")) -> 
C192: =IF(B192="sportwoche","",IF(E192="mo",MAX($C$2:C191)+1,"")) -> 
C193: =IF(B193="sportwoche","",IF(E193="mo",MAX($C$2:C192)+1,"")) -> 
C194: =IF(B194="sportwoche","",IF(E194="mo",MAX($C$2:C193)+1,"")) -> 
B195: =IF(AND(D195>=$Q$14,D195<$Q$15),$O$14,IF(AND(D195>=$Q$6,D195<$Q$7),$O$6,IF(AND(D195>=$Q$10,D195<$Q$11),$O$10,IF(AND(D195>=$Q$18,D195<$Q$19),$O$18,"")))) ->  | C195: =IF(B195="sportwoche","",IF(E195="mo",MAX($C$2:C194)+1,"")) ->  | K195: =IF(AND(E195="Mo",B195<>""),B195,IF(C195="","","Woche "&C195)) -> 
C196: =IF(B196="sportwoche","",IF(E196="mo",MAX($C$2:C195)+1,"")) ->  | E196: =TEXT(D196,"TTT") ->  | F196: =IF(E196="mo",D196,"") -> 
C197: =IF(B197="sportwoche","",IF(E197="mo",MAX($C$2:C196)+1,"")) ->  | E197: =TEXT(D197,"TTT") ->  | F197: =IF(E197="mo",D197,"") -> 
C198: =IF(B198="sportwoche","",IF(E198="mo",MAX($C$2:C197)+1,"")) ->  | E198: =TEXT(D198,"TTT") ->  | F198: =IF(E198="mo",D198,"") -> 
C199: =IF(B199="sportwoche","",IF(E199="mo",MAX($C$2:C198)+1,"")) ->  | E199: =TEXT(D199,"TTT") ->  | F199: =IF(E199="mo",D199,"") -> 
C200: =IF(B200="sportwoche","",IF(E200="mo",MAX($C$2:C199)+1,"")) ->  | D200: =IF(D199<$B$2+1,D199+1,"") ->  | E200: =TEXT(D200,"TTT") ->  | F200: =IF(E200="mo",D200,"") -> 

Sheet Wochenueberblick
L1: =IF(D2="","",12) -> 12 | W1: =IF(O2="","",L1+11) -> 23 | AH1: =IF(Z2="","",W1+11) -> 34 | AS1: =IF(AK2="","",AH1+11) -> 45 | BD1: =IF(AV2="","",AS1+11) -> 56 | BO1: =IF(BG2="","",BD1+11) -> 67 | BZ1: =IF(BR2="","",BO1+11) -> 78 | CK1: =IF(CC2="","",BZ1+11) ->  | CV1: =IF(CN2="","",CK1+11) ->  | DG1: =IF(CY2="","",CV1+11) ->  | DR1: =IF(DJ2="","",DG1+11) ->  | EC1: =IF(DU2="","",DR1+11) ->  | EN1: =IF(EF2="","",EC1+11) -> 
B2: 1 | D2: =A4 -> 2019-08-12 | M2: =B2+1 -> 2 | O2: =IF(D2="","",IF(D2+7>$A$5,"",D2+7)) -> 2019-08-19 | X2: =M2+1 -> 3 | Z2: =IF(O2="","",IF(O2+7>$A$5,"",O2+7)) -> 2019-08-26 | AI2: =X2+1 -> 4 | AK2: =IF(Z2="","",IF(Z2+7>$A$5,"",Z2+7)) -> 2019-09-02 | AT2: =AI2+1 -> 5 | AV2: =IF(AK2="","",IF(AK2+7>$A$5,"",AK2+7)) -> 2019-09-09 | BE2: =AT2+1 -> 6 | BG2: =IF(AV2="","",IF(AV2+7>$A$5,"",AV2+7)) -> 2019-09-16 | BP2: =BE2+1 -> 7 | BR2: =IF(BG2="","",IF(BG2+7>$A$5,"",BG2+7)) -> 2019-09-23 | CA2: =BP2+1 -> 8 | CC2: =IF(BR2="","",IF(BR2+7>$A$5,"",BR2+7)) ->  | CL2: =CA2+1 -> 9 | CN2: =IF(CC2="","",IF(CC2+7>$A$5,"",CC2+7)) ->  | CW2: =CL2+1 -> 10 | CY2: =IF(CN2="","",IF(CN2+7>$A$5,"",CN2+7)) ->  | DH2: =CW2+1 -> 11 | DJ2: =IF(CY2="","",IF(CY2+7>$A$5,"",CY2+7)) ->  | DS2: =DH2+1 -> 12 | DU2: =IF(DJ2="","",IF(DJ2+7>$A$5,"",DJ2+7)) ->  | ED2: =DS2+1 -> 13 | EF2: =IF(DU2="","",IF(DU2+7>$A$5,"",DU2+7)) -> 
D3: =WEEKNUM(D2) -> 33 | O3: =IF(O2="","",WEEKNUM(O2)) -> 34 | Z3: =IF(Z2="","",WEEKNUM(Z2)) -> 35 | AK3: =IF(AK2="","",WEEKNUM(AK2)) -> 36 | AV3: =IF(AV2="","",WEEKNUM(AV2)) -> 37 | BG3: =IF(BG2="","",WEEKNUM(BG2)) -> 38 | BR3: =IF(BR2="","",WEEKNUM(BR2)) -> 39 | CC3: =IF(CC2="","",WEEKNUM(CC2)) ->  | CN3: =IF(CN2="","",WEEKNUM(CN2)) ->  | CY3: =IF(CY2="","",WEEKNUM(CY2)) ->  | DJ3: =IF(DJ2="","",WEEKNUM(DJ2)) ->  | DU3: =IF(DU2="","",WEEKNUM(DU2)) ->  | EF3: =IF(EF2="","",WEEKNUM(EF2)) -> 
A4: 2019-08-12 | D4: ="Woche "&D3 -> Woche 33 | O4: =IF(O2="","","Woche "&O3) -> Woche 34 | Z4: =IF(Z2="","","Woche "&Z3) -> Woche 35 | AK4: =IF(AK2="","","Woche "&AK3) -> Woche 36 | AV4: =IF(AV2="","","Woche "&AV3) -> Woche 37 | BG4: =IF(BG2="","","Woche "&BG3) -> Woche 38 | BR4: =IF(BR2="","","Woche "&BR3) -> Woche 39 | CC4: =IF(CC2="","","Woche "&CC3) ->  | CN4: =IF(CN2="","","Woche "&CN3) ->  | CY4: =IF(CY2="","","Woche "&CY3) ->  | DJ4: =IF(DJ2="","","Woche "&DJ3) ->  | DU4: =IF(DU2="","","Woche "&DU3) ->  | EF4: =IF(EF2="","","Woche "&EF3) -> 
A5: 2019-09-28 | D5: =IF(WEEKDAY($A$4)=2,A4,"") -> 2019-08-12 | E5: =IF(WEEKDAY($A$4)=3,A4,D5+1) -> 2019-08-13 | F5: =E5+1 -> 2019-08-14 | H5: =F5+1 -> 2019-08-15 | I5: =H5+1 -> 2019-08-16 | J5: Notizen | O5: =IF(O2="","",I5+3) -> 2019-08-19 | P5: =IF(O2="","",O5+1) -> 2019-08-20 | Q5: =IF(O2="","",O5+2) -> 2019-08-21 | S5: =IF(O2="","",O5+3) -> 2019-08-22 | T5: =IF(O2="","",O5+4) -> 2019-08-23 | U5: =IF(O2="","","Notizen") -> Notizen | Z5: =IF(Z2="","",T5+3) -> 2019-08-26 | AA5: =IF(Z2="","",Z5+1) -> 2019-08-27 | AB5: =IF(Z2="","",Z5+2) -> 2019-08-28 | AD5: =IF(Z2="","",Z5+3) -> 2019-08-29 | AE5: =IF(Z2="","",Z5+4) -> 2019-08-30 | AF5: =IF(Z2="","","Notizen") -> Notizen | AK5: =IF(AK2="","",AE5+3) -> 2019-09-02 | AL5: =IF(AK2="","",AK5+1) -> 2019-09-03 | AM5: =IF(AK2="","",AK5+2) -> 2019-09-04 | AO5: =IF(AK2="","",AK5+3) -> 2019-09-05 | AP5: =IF(AK2="","",AK5+4) -> 2019-09-06 | AQ5: =IF(AK2="","","Notizen") -> Notizen | AV5: =IF(AV2="","",AP5+3) -> 2019-09-09 | AW5: =IF(AV2="","",AV5+1) -> 2019-09-10 | AX5: =IF(AV2="","",AV5+2) -> 2019-09-11 | AZ5: =IF(AV2="","",AV5+3) -> 2019-09-12 | BA5: =IF(AV2="","",AV5+4) -> 2019-09-13 | BB5: =IF(AV2="","","Notizen") -> Notizen | BG5: =IF(BG2="","",BA5+3) -> 2019-09-16 | BH5: =IF(BG2="","",BG5+1) -> 2019-09-17 | BI5: =IF(BG2="","",BG5+2) -> 2019-09-18 | BK5: =IF(BG2="","",BG5+3) -> 2019-09-19 | BL5: =IF(BG2="","",BG5+4) -> 2019-09-20 | BM5: =IF(BG2="","","Notizen") -> Notizen | BR5: =IF(BR2="","",BL5+3) -> 2019-09-23 | BS5: =IF(BR2="","",BR5+1) -> 2019-09-24 | BT5: =IF(BR2="","",BR5+2) -> 2019-09-25 | BV5: =IF(BR2="","",BR5+3) -> 2019-09-26 | BW5: =IF(BR2="","",BR5+4) -> 2019-09-27 | BX5: =IF(BR2="","","Notizen") -> Notizen | CC5: =IF(CC2="","",BW5+3) ->  | CD5: =IF(CC2="","",CC5+1) ->  | CE5: =IF(CC2="","",CC5+2) ->  | CG5: =IF(CC2="","",CC5+3) ->  | CH5: =IF(CC2="","",CC5+4) ->  | CI5: =IF(CC2="","","Notizen") ->  | CN5: =IF(CN2="","",CH5+3) ->  | CO5: =IF(CN2="","",CN5+1) ->  | CP5: =IF(CN2="","",CN5+2) ->  | CR5: =IF(CN2="","",CN5+3) ->  | CS5: =IF(CN2="","",CN5+4) ->  | CT5: =IF(CN2="","","Notizen") ->  | CY5: =IF(CY2="","",CS5+3) ->  | CZ5: =IF(CY2="","",CY5+1) ->  | DA5: =IF(CY2="","",CY5+2) ->  | DC5: =IF(CY2="","",CY5+3) ->  | DD5: =IF(CY2="","",CY5+4) ->  | DE5: =IF(CY2="","","Notizen") ->  | DJ5: =IF(DJ2="","",DD5+3) ->  | DK5: =IF(DJ2="","",DJ5+1) ->  | DL5: =IF(DJ2="","",DJ5+2) ->  | DN5: =IF(DJ2="","",DJ5+3) ->  | DO5: =IF(DJ2="","",DJ5+4) ->  | DP5: =IF(DJ2="","","Notizen") ->  | DU5: =IF(DU2="","",DO5+3) ->  | DV5: =IF(DU2="","",DU5+1) ->  | DW5: =IF(DU2="","",DU5+2) ->  | DY5: =IF(DU2="","",DU5+3) ->  | DZ5: =IF(DU2="","",DU5+4) ->  | EA5: =IF(DU2="","","Notizen") ->  | EF5: =IF(EF2="","",DZ5+3) ->  | EG5: =IF(EF2="","",EF5+1) ->  | EH5: =IF(EF2="","",EF5+2) ->  | EJ5: =IF(EF2="","",EF5+3) ->  | EK5: =IF(EF2="","",EF5+4) ->  | EL5: =IF(EF2="","","Notizen") -> 
A6: =MAX(A1:EN1) -> 78 | B6: =A4 -> 2019-08-12 | L6: =H5 -> 2019-08-15 | M6: =O5 -> 2019-08-19 | W6: =S5 -> 2019-08-22 | X6: =Z5 -> 2019-08-26 | AH6: =AD5 -> 2019-08-29 | AI6: =AK5 -> 2019-09-02 | AS6: =AO5 -> 2019-09-05 | AT6: =AV5 -> 2019-09-09 | BD6: =AZ5 -> 2019-09-12 | BE6: =BG5 -> 2019-09-16 | BO6: =BK5 -> 2019-09-19 | BP6: =BR5 -> 2019-09-23 | BZ6: =BV5 -> 2019-09-26 | CA6: =CC5 ->  | CK6: =CG5 ->  | CL6: =CN5 ->  | CV6: =CR5 ->  | CW6: =CY5 ->  | DG6: =DC5 ->  | DH6: =DJ5 ->  | DR6: =DN5 ->  | DS6: =DU5 ->  | EC6: =DY5 ->  | ED6: =EF5 ->  | EN6: =EJ5 -> 

Sheet Kalenderjahresueberblick
A1: Start | B1: Ende | C1: =COUNT(D2:D401)+1 -> 366 | E1: Übersicht | M1: ="Kalenderjahr "&YEAR(Q3) -> Kalenderjahr 2022 | O1: Kalenderjahr | P1: 2022 | X1: =Ferien!L7 -> 2021
A2: =Q3 -> 2022-01-01 | B2: =Q21 -> 2022-12-31 | D2: =A2-1 -> 2021-12-31 | X2: =Ferien!N7 -> 2022
A3: =TEXT(D3,"TTT") -> Sa | B3: =IF(AND(D3>=$Q$7,D3<$Q$8),$O$7,IF(AND(D3>=$Q$10,D3<$Q$11),$O$10,IF(AND(D3>=$Q$13,D3<$Q$14),$O$13,IF(AND(D3>=$Q$16,D3<$Q$17),$O$16,"")))) ->  | C3: 1 | D3: =IF(D2<$B$2-1,D2+1,"") -> 2022-01-01 | E3: =A3 -> Sa | F3: =IF(A3="mo",D3,"") ->  | K3: =IF(C3="","","Woche "&C3) -> Woche 1 | M3: =IF(AND(A3="Mo",B4<>""),B3,"") ->  | Q3: =DATE(P1,1,1) -> 2022-01-01 | X3: =Ferien!P7 -> 2023
A4: =TEXT(D4,"TTT") -> So | C4: =IF(A4="mo",MAX($C$2:C3)+1,"") ->  | D4: 2022-01-02 | E4: So
A5: Mo | C5: =IF(A5="mo",MAX($C$2:C4)+1,"") -> 2 | D5: 2022-01-03 | E5: Mo | F5: 2022-01-03 | K5: Woche 2 | P5: Schulbeginn: | Q5: =IF(P1=X2,Ferien!N9,IF(P1=X3,Ferien!P9,Ferien!L9)) -> 2022-01-03
A6: Di | C6: =IF(A6="mo",MAX($C$2:C5)+1,"") ->  | D6: 2022-01-04 | E6: Di
A7: Mi | C7: =IF(A7="mo",MAX($C$2:C6)+1,"") ->  | D7: 2022-01-05 | E7: Mi | M7: =IF(AND(A7="Mo",B8<>""),B7,"") ->  | O7: Sportwoche | P7: Ferienanfang: | Q7: =IF(P1=X2,Ferien!N12,IF(P1=X3,Ferien!P12,Ferien!L12)) -> 2022-01-29
A8: Do | C8: =IF(A8="mo",MAX($C$2:C7)+1,"") ->  | D8: 2022-01-06 | E8: Do | P8: Schulbeginn: | Q8: =IF(P1=X2,Ferien!N13,IF(P1=X3,Ferien!P13,Ferien!L13)) -> 2022-02-07
A9: Fr | C9: =IF(A9="mo",MAX($C$2:C8)+1,"") ->  | D9: 2022-01-07 | E9: Fr
A10: Sa | C10: =IF(A10="mo",MAX($C$2:C9)+1,"") ->  | D10: 2022-01-08 | E10: Sa | O10: Frühlingsferien | P10: Ferienanfang: | Q10: =IF(P1=X2,Ferien!N15,IF(P1=X3,Ferien!P15,Ferien!L15)) -> 2022-04-09
A11: So | C11: =IF(A11="mo",MAX($C$2:C10)+1,"") ->  | D11: 2022-01-09 | E11: So | P11: Schulbeginn: | Q11: =IF(P1=X2,Ferien!N16,IF(P1=X3,Ferien!P16,Ferien!L16)) -> 2022-04-25
A12: Mo | C12: =IF(A12="mo",MAX($C$2:C11)+1,"") -> 3 | D12: 2022-01-10 | E12: Mo | F12: 2022-01-10 | K12: Woche 3
A13: Di | C13: =IF(A13="mo",MAX($C$2:C12)+1,"") ->  | D13: 2022-01-11 | E13: Di | O13: Sommerferien | P13: Ferienanfang: | Q13: =IF(P1=X2,Ferien!N18,IF(P1=X3,Ferien!P18,Ferien!L18)) -> 2022-07-09
A14: Mi | C14: =IF(A14="mo",MAX($C$2:C13)+1,"") ->  | D14: 2022-01-12 | E14: Mi | P14: Schulbeginn: | Q14: =IF(P1=X2,Ferien!N19,IF(P1=X3,Ferien!P19,Ferien!L19)) -> 2022-08-15
A15: Do | C15: =IF(A15="mo",MAX($C$2:C14)+1,"") ->  | D15: 2022-01-13 | E15: Do
A16: Fr | C16: =IF(A16="mo",MAX($C$2:C15)+1,"") ->  | D16: 2022-01-14 | E16: Fr | O16: Herbstferien | P16: Ferienanfang: | Q16: =IF(P1=X2,Ferien!N21,IF(P1=X3,Ferien!P21,Ferien!L21)) -> 2022-10-01
A17: Sa | C17: =IF(A17="mo",MAX($C$2:C16)+1,"") ->  | D17: 2022-01-15 | E17: Sa | P17: Schulbeginn: | Q17: =IF(P1=X2,Ferien!N22,IF(P1=X3,Ferien!P22,Ferien!L22)) -> 2022-10-24
A18: So | C18: =IF(A18="mo",MAX($C$2:C17)+1,"") ->  | D18: 2022-01-16 | E18: So
A19: Mo | C19: =IF(A19="mo",MAX($C$2:C18)+1,"") -> 4 | D19: 2022-01-17 | E19: Mo | F19: 2022-01-17 | K19: Woche 4 | O19: Winterferien | P19: Ferienanfang: | Q19: =IF(P1=X2,Ferien!N24,IF(P1=X3,Ferien!P24,Ferien!L24)) -> 2022-12-24
A20: Di | C20: =IF(A20="mo",MAX($C$2:C19)+1,"") ->  | D20: 2022-01-18 | E20: Di
A21: Mi | C21: =IF(A21="mo",MAX($C$2:C20)+1,"") ->  | D21: 2022-01-19 | E21: Mi | P21: Ende: | Q21: =DATE(P1,12,31) -> 2022-12-31
A22: Do | C22: =IF(A22="mo",MAX($C$2:C21)+1,"") ->  | D22: 2022-01-20 | E22: Do
A23: Fr | C23: =IF(A23="mo",MAX($C$2:C22)+1,"") ->  | D23: 2022-01-21 | E23: Fr
A24: Sa | C24: =IF(A24="mo",MAX($C$2:C23)+1,"") ->  | D24: 2022-01-22 | E24: Sa
A25: So | C25: =IF(A25="mo",MAX($C$2:C24)+1,"") ->  | D25: 2022-01-23 | E25: So
A26: Mo | C26: =IF(A26="mo",MAX($C$2:C25)+1,"") -> 5 | D26: 2022-01-24 | E26: Mo | F26: 2022-01-24 | K26: Woche 5
A27: Di | C27: =IF(A27="mo",MAX($C$2:C26)+1,"") ->  | D27: 2022-01-25 | E27: Di
A28: Mi | C28: =IF(A28="mo",MAX($C$2:C27)+1,"") ->  | D28: 2022-01-26 | E28: Mi
A29: Do | C29: =IF(A29="mo",MAX($C$2:C28)+1,"") ->  | D29: 2022-01-27 | E29: Do
A30: Fr | C30: =IF(A30="mo",MAX($C$2:C29)+1,"") ->  | D30: 2022-01-28 | E30: Fr
A31: Sa | B31: Sportwoche | C31: =IF(A31="mo",MAX($C$2:C30)+1,"") ->  | D31: 2022-01-29 | E31: Sa
A32: So | B32: Sportwoche | C32: =IF(A32="mo",MAX($C$2:C31)+1,"") ->  | D32: 2022-01-30 | E32: So
A33: Mo | B33: Sportwoche | C33: =IF(A33="mo",MAX($C$2:C32)+1,"") -> 6 | D33: 2022-01-31 | E33: Mo | F33: 2022-01-31 | K33: Woche 6 | M33: Sportwoche
A34: Di | B34: Sportwoche | C34: =IF(A34="mo",MAX($C$2:C33)+1,"") ->  | D34: 2022-02-01 | E34: Di
A35: Mi | B35: Sportwoche | C35: =IF(A35="mo",MAX($C$2:C34)+1,"") ->  | D35: 2022-02-02 | E35: Mi
A36: Do | B36: Sportwoche | C36: =IF(A36="mo",MAX($C$2:C35)+1,"") ->  | D36: 2022-02-03 | E36: Do
A37: Fr | B37: Sportwoche | C37: =IF(A37="mo",MAX($C$2:C36)+1,"") ->  | D37: 2022-02-04 | E37: Fr
A38: Sa | B38: Sportwoche | C38: =IF(A38="mo",MAX($C$2:C37)+1,"") ->  | D38: 2022-02-05 | E38: Sa
A39: So | B39: Sportwoche | C39: =IF(A39="mo",MAX($C$2:C38)+1,"") ->  | D39: 2022-02-06 | E39: So
A40: Mo | C40: =IF(A40="mo",MAX($C$2:C39)+1,"") -> 7 | D40: 2022-02-07 | E40: Mo | F40: 2022-02-07 | K40: Woche 7
A41: Di | C41: =IF(A41="mo",MAX($C$2:C40)+1,"") ->  | D41: 2022-02-08 | E41: Di
A42: Mi | C42: =IF(A42="mo",MAX($C$2:C41)+1,"") ->  | D42: 2022-02-09 | E42: Mi
A43: Do | C43: =IF(A43="mo",MAX($C$2:C42)+1,"") ->  | D43: 2022-02-10 | E43: Do
A44: Fr | C44: =IF(A44="mo",MAX($C$2:C43)+1,"") ->  | D44: 2022-02-11 | E44: Fr
A45: Sa | C45: =IF(A45="mo",MAX($C$2:C44)+1,"") ->  | D45: 2022-02-12 | E45: Sa
A46: So | C46: =IF(A46="mo",MAX($C$2:C45)+1,"") ->  | D46: 2022-02-13 | E46: So
A47: Mo | C47: =IF(A47="mo",MAX($C$2:C46)+1,"") -> 8 | D47: 2022-02-14 | E47: Mo | F47: 2022-02-14 | K47: Woche 8
A48: Di | C48: =IF(A48="mo",MAX($C$2:C47)+1,"") ->  | D48: 2022-02-15 | E48: Di
A49: Mi | C49: =IF(A49="mo",MAX($C$2:C48)+1,"") ->  | D49: 2022-02-16 | E49: Mi
A50: Do | C50: =IF(A50="mo",MAX($C$2:C49)+1,"") ->  | D50: 2022-02-17 | E50: Do
A51: Fr | C51: =IF(A51="mo",MAX($C$2:C50)+1,"") ->  | D51: 2022-02-18 | E51: Fr
A52: Sa | C52: =IF(A52="mo",MAX($C$2:C51)+1,"") ->  | D52: 2022-02-19 | E52: Sa
A53: So | C53: =IF(A53="mo",MAX($C$2:C52)+1,"") ->  | D53: 2022-02-20 | E53: So
A54: Mo | C54: =IF(A54="mo",MAX($C$2:C53)+1,"") -> 9 | D54: 2022-02-21 | E54: Mo | F54: 2022-02-21 | K54: Woche 9
A55: Di | C55: =IF(A55="mo",MAX($C$2:C54)+1,"") ->  | D55: 2022-02-22 | E55: Di
A56: Mi | C56: =IF(A56="mo",MAX($C$2:C55)+1,"") ->  | D56: 2022-02-23 | E56: Mi
A57: Do | C57: =IF(A57="mo",MAX($C$2:C56)+1,"") ->  | D57: 2022-02-24 | E57: Do
A58: Fr | C58: =IF(A58="mo",MAX($C$2:C57)+1,"") ->  | D58: 2022-02-25 | E58: Fr
A59: Sa | C59: =IF(A59="mo",MAX($C$2:C58)+1,"") ->  | D59: 2022-02-26 | E59: Sa
A60: So | C60: =IF(A60="mo",MAX($C$2:C59)+1,"") ->  | D60: 2022-02-27 | E60: So
A61: Mo | C61: =IF(A61="mo",MAX($C$2:C60)+1,"") -> 10 | D61: 2022-02-28 | E61: Mo | F61: 2022-02-28 | K61: Woche 10
A62: Di | C62: =IF(A62="mo",MAX($C$2:C61)+1,"") ->  | D62: 2022-03-01 | E62: Di
A63: Mi | C63: =IF(A63="mo",MAX($C$2:C62)+1,"") ->  | D63: 2022-03-02 | E63: Mi
A64: Do | C64: =IF(A64="mo",MAX($C$2:C63)+1,"") ->  | D64: 2022-03-03 | E64: Do
A65: Fr | C65: =IF(A65="mo",MAX($C$2:C64)+1,"") ->  | D65: 2022-03-04 | E65: Fr
A66: Sa | C66: =IF(A66="mo",MAX($C$2:C65)+1,"") ->  | D66: 2022-03-05 | E66: Sa
A67: =TEXT(D67,"TTT") -> So | B67: =IF(AND(D67>=$Q$7,D67<$Q$8),$O$7,IF(AND(D67>=$Q$10,D67<$Q$11),$O$10,IF(AND(D67>=$Q$13,D67<$Q$14),$O$13,IF(AND(D67>=$Q$16,D67<$Q$17),$O$16,"")))) ->  | C67: =IF(A67="mo",MAX($C$2:C66)+1,"") ->  | D67: =IF(D66<$B$2-1,D66+1,"") -> 2022-03-06 | E67: =A67 -> So | F67: =IF(A67="mo",D67,"") ->  | K67: =IF(C67="","","Woche "&C67) ->  | M67: =IF(AND(A67="Mo",B68<>""),B67,"") -> 
A68: Mo | C68: =IF(A68="mo",MAX($C$2:C67)+1,"") -> 11 | D68: 2022-03-07 | E68: Mo | F68: 2022-03-07 | K68: Woche 11
A69: Di | C69: =IF(A69="mo",MAX($C$2:C68)+1,"") ->  | D69: 2022-03-08 | E69: Di
A70: Mi | C70: =IF(A70="mo",MAX($C$2:C69)+1,"") ->  | D70: 2022-03-09 | E70: Mi
A71: Do | C71: =IF(A71="mo",MAX($C$2:C70)+1,"") ->  | D71: 2022-03-10 | E71: Do
A72: Fr | C72: =IF(A72="mo",MAX($C$2:C71)+1,"") ->  | D72: 2022-03-11 | E72: Fr
A73: Sa | C73: =IF(A73="mo",MAX($C$2:C72)+1,"") ->  | D73: 2022-03-12 | E73: Sa
A74: So | C74: =IF(A74="mo",MAX($C$2:C73)+1,"") ->  | D74: 2022-03-13 | E74: So
A75: Mo | C75: =IF(A75="mo",MAX($C$2:C74)+1,"") -> 12 | D75: 2022-03-14 | E75: Mo | F75: 2022-03-14 | K75: Woche 12
A76: Di | C76: =IF(A76="mo",MAX($C$2:C75)+1,"") ->  | D76: 2022-03-15 | E76: Di
A77: Mi | C77: =IF(A77="mo",MAX($C$2:C76)+1,"") ->  | D77: 2022-03-16 | E77: Mi
A78: Do | C78: =IF(A78="mo",MAX($C$2:C77)+1,"") ->  | D78: 2022-03-17 | E78: Do
A79: Fr | C79: =IF(A79="mo",MAX($C$2:C78)+1,"") ->  | D79: 2022-03-18 | E79: Fr
A80: Sa | C80: =IF(A80="mo",MAX($C$2:C79)+1,"") ->  | D80: 2022-03-19 | E80: Sa
A81: So | C81: =IF(A81="mo",MAX($C$2:C80)+1,"") ->  | D81: 2022-03-20 | E81: So
A82: Mo | C82: =IF(A82="mo",MAX($C$2:C81)+1,"") -> 13 | D82: 2022-03-21 | E82: Mo | F82: 2022-03-21 | K82: Woche 13
A83: Di | C83: =IF(A83="mo",MAX($C$2:C82)+1,"") ->  | D83: 2022-03-22 | E83: Di
A84: Mi | C84: =IF(A84="mo",MAX($C$2:C83)+1,"") ->  | D84: 2022-03-23 | E84: Mi
A85: Do | C85: =IF(A85="mo",MAX($C$2:C84)+1,"") ->  | D85: 2022-03-24 | E85: Do
A86: Fr | C86: =IF(A86="mo",MAX($C$2:C85)+1,"") ->  | D86: 2022-03-25 | E86: Fr
A87: Sa | C87: =IF(A87="mo",MAX($C$2:C86)+1,"") ->  | D87: 2022-03-26 | E87: Sa
A88: So | C88: =IF(A88="mo",MAX($C$2:C87)+1,"") ->  | D88: 2022-03-27 | E88: So
A89: Mo | C89: =IF(A89="mo",MAX($C$2:C88)+1,"") -> 14 | D89: 2022-03-28 | E89: Mo | F89: 2022-03-28 | K89: Woche 14
A90: Di | C90: =IF(A90="mo",MAX($C$2:C89)+1,"") ->  | D90: 2022-03-29 | E90: Di
A91: Mi | C91: =IF(A91="mo",MAX($C$2:C90)+1,"") ->  | D91: 2022-03-30 | E91: Mi
A92: Do | C92: =IF(A92="mo",MAX($C$2:C91)+1,"") ->  | D92: 2022-03-31 | E92: Do
A93: Fr | C93: =IF(A93="mo",MAX($C$2:C92)+1,"") ->  | D93: 2022-04-01 | E93: Fr
A94: Sa | C94: =IF(A94="mo",MAX($C$2:C93)+1,"") ->  | D94: 2022-04-02 | E94: Sa
A95: So | C95: =IF(A95="mo",MAX($C$2:C94)+1,"") ->  | D95: 2022-04-03 | E95: So
A96: Mo | C96: =IF(A96="mo",MAX($C$2:C95)+1,"") -> 15 | D96: 2022-04-04 | E96: Mo | F96: 2022-04-04 | K96: Woche 15
A97: Di | C97: =IF(A97="mo",MAX($C$2:C96)+1,"") ->  | D97: 2022-04-05 | E97: Di
A98: Mi | C98: =IF(A98="mo",MAX($C$2:C97)+1,"") ->  | D98: 2022-04-06 | E98: Mi
A99: Do | C99: =IF(A99="mo",MAX($C$2:C98)+1,"") ->  | D99: 2022-04-07 | E99: Do
A100: Fr | C100: =IF(A100="mo",MAX($C$2:C99)+1,"") ->  | D100: 2022-04-08 | E100: Fr
A101: Sa | B101: Frühlingsferien | C101: =IF(A101="mo",MAX($C$2:C100)+1,"") ->  | D101: 2022-04-09 | E101: Sa
A102: So | B102: Frühlingsferien | C102: =IF(A102="mo",MAX($C$2:C101)+1,"") ->  | D102: 2022-04-10 | E102: So
A103: Mo | B103: Frühlingsferien | C103: =IF(A103="mo",MAX($C$2:C102)+1,"") -> 16 | D103: 2022-04-11 | E103: Mo | F103: 2022-04-11 | K103: Woche 16 | M103: Frühlingsferien
A104: Di | B104: Frühlingsferien | C104: =IF(A104="mo",MAX($C$2:C103)+1,"") ->  | D104: 2022-04-12 | E104: Di
A105: Mi | B105: Frühlingsferien | C105: =IF(A105="mo",MAX($C$2:C104)+1,"") ->  | D105: 2022-04-13 | E105: Mi
A106: Do | B106: Frühlingsferien | C106: =IF(A106="mo",MAX($C$2:C105)+1,"") ->  | D106: 2022-04-14 | E106: Do
A107: Fr | B107: Frühlingsferien | C107: =IF(A107="mo",MAX($C$2:C106)+1,"") ->  | D107: 2022-04-15 | E107: Fr
A108: Sa | B108: Frühlingsferien | C108: =IF(A108="mo",MAX($C$2:C107)+1,"") ->  | D108: 2022-04-16 | E108: Sa
A109: So | B109: Frühlingsferien | C109: =IF(A109="mo",MAX($C$2:C108)+1,"") ->  | D109: 2022-04-17 | E109: So
A110: Mo | B110: Frühlingsferien | C110: =IF(A110="mo",MAX($C$2:C109)+1,"") -> 17 | D110: 2022-04-18 | E110: Mo | F110: 2022-04-18 | K110: Woche 17 | M110: Frühlingsferien
A111: Di | B111: Frühlingsferien | C111: =IF(A111="mo",MAX($C$2:C110)+1,"") ->  | D111: 2022-04-19 | E111: Di
A112: Mi | B112: Frühlingsferien | C112: =IF(A112="mo",MAX($C$2:C111)+1,"") ->  | D112: 2022-04-20 | E112: Mi
A113: Do | B113: Frühlingsferien | C113: =IF(A113="mo",MAX($C$2:C112)+1,"") ->  | D113: 2022-04-21 | E113: Do
A114: Fr | B114: Frühlingsferien | C114: =IF(A114="mo",MAX($C$2:C113)+1,"") ->  | D114: 2022-04-22 | E114: Fr
A115: Sa | B115: Frühlingsferien | C115: =IF(A115="mo",MAX($C$2:C114)+1,"") ->  | D115: 2022-04-23 | E115: Sa
A116: So | B116: Frühlingsferien | C116: =IF(A116="mo",MAX($C$2:C115)+1,"") ->  | D116: 2022-04-24 | E116: So
A117: Mo | C117: =IF(A117="mo",MAX($C$2:C116)+1,"") -> 18 | D117: 2022-04-25 | E117: Mo | F117: 2022-04-25 | K117: Woche 18
A118: Di | C118: =IF(A118="mo",MAX($C$2:C117)+1,"") ->  | D118: 2022-04-26 | E118: Di
A119: Mi | C119: =IF(A119="mo",MAX($C$2:C118)+1,"") ->  | D119: 2022-04-27 | E119: Mi
A120: Do | C120: =IF(A120="mo",MAX($C$2:C119)+1,"") ->  | D120: 2022-04-28 | E120: Do
A121: Fr | C121: =IF(A121="mo",MAX($C$2:C120)+1,"") ->  | D121: 2022-04-29 | E121: Fr
A122: Sa | C122: =IF(A122="mo",MAX($C$2:C121)+1,"") ->  | D122: 2022-04-30 | E122: Sa
A123: So | C123: =IF(A123="mo",MAX($C$2:C122)+1,"") ->  | D123: 2022-05-01 | E123: So
A124: Mo | C124: =IF(A124="mo",MAX($C$2:C123)+1,"") -> 19 | D124: 2022-05-02 | E124: Mo | F124: 2022-05-02 | K124: Woche 19
A125: Di | C125: =IF(A125="mo",MAX($C$2:C124)+1,"") ->  | D125: 2022-05-03 | E125: Di
A126: Mi | C126: =IF(A126="mo",MAX($C$2:C125)+1,"") ->  | D126: 2022-05-04 | E126: Mi
A127: Do | C127: =IF(A127="mo",MAX($C$2:C126)+1,"") ->  | D127: 2022-05-05 | E127: Do
A128: Fr | C128: =IF(A128="mo",MAX($C$2:C127)+1,"") ->  | D128: 2022-05-06 | E128: Fr
A129: Sa | C129: =IF(A129="mo",MAX($C$2:C128)+1,"") ->  | D129: 2022-05-07 | E129: Sa
A130: So | C130: =IF(A130="mo",MAX($C$2:C129)+1,"") ->  | D130: 2022-05-08 | E130: So
A131: =TEXT(D131,"TTT") -> Mo | B131: =IF(AND(D131>=$Q$7,D131<$Q$8),$O$7,IF(AND(D131>=$Q$10,D131<$Q$11),$O$10,IF(AND(D131>=$Q$13,D131<$Q$14),$O$13,IF(AND(D131>=$Q$16,D131<$Q$17),$O$16,"")))) ->  | C131: =IF(A131="mo",MAX($C$2:C130)+1,"") -> 20 | D131: =IF(D130<$B$2-1,D130+1,"") -> 2022-05-09 | E131: =A131 -> Mo | F131: =IF(A131="mo",D131,"") -> 2022-05-09 | K131: =IF(C131="","","Woche "&C131) -> Woche 20 | M131: =IF(AND(A131="Mo",B132<>""),B131,"") -> 
A132: Di | C132: =IF(A132="mo",MAX($C$2:C131)+1,"") ->  | D132: 2022-05-10 | E132: Di
A133: Mi | C133: =IF(A133="mo",MAX($C$2:C132)+1,"") ->  | D133: 2022-05-11 | E133: Mi
A134: Do | C134: =IF(A134="mo",MAX($C$2:C133)+1,"") ->  | D134: 2022-05-12 | E134: Do
A135: Fr | C135: =IF(A135="mo",MAX($C$2:C134)+1,"") ->  | D135: 2022-05-13 | E135: Fr
A136: Sa | C136: =IF(A136="mo",MAX($C$2:C135)+1,"") ->  | D136: 2022-05-14 | E136: Sa
A137: So | C137: =IF(A137="mo",MAX($C$2:C136)+1,"") ->  | D137: 2022-05-15 | E137: So
A138: Mo | C138: =IF(A138="mo",MAX($C$2:C137)+1,"") -> 21 | D138: 2022-05-16 | E138: Mo | F138: 2022-05-16 | K138: Woche 21
A139: Di | C139: =IF(A139="mo",MAX($C$2:C138)+1,"") ->  | D139: 2022-05-17 | E139: Di
A140: Mi | C140: =IF(A140="mo",MAX($C$2:C139)+1,"") ->  | D140: 2022-05-18 | E140: Mi
A141: Do | C141: =IF(A141="mo",MAX($C$2:C140)+1,"") ->  | D141: 2022-05-19 | E141: Do
A142: Fr | C142: =IF(A142="mo",MAX($C$2:C141)+1,"") ->  | D142: 2022-05-20 | E142: Fr
A143: Sa | C143: =IF(A143="mo",MAX($C$2:C142)+1,"") ->  | D143: 2022-05-21 | E143: Sa
A144: So | C144: =IF(A144="mo",MAX($C$2:C143)+1,"") ->  | D144: 2022-05-22 | E144: So
A145: Mo | C145: =IF(A145="mo",MAX($C$2:C144)+1,"") -> 22 | D145: 2022-05-23 | E145: Mo | F145: 2022-05-23 | K145: Woche 22
A146: Di | C146: =IF(A146="mo",MAX($C$2:C145)+1,"") ->  | D146: 2022-05-24 | E146: Di
A147: Mi | C147: =IF(A147="mo",MAX($C$2:C146)+1,"") ->  | D147: 2022-05-25 | E147: Mi
A148: Do | C148: =IF(A148="mo",MAX($C$2:C147)+1,"") ->  | D148: 2022-05-26 | E148: Do
A149: Fr | C149: =IF(A149="mo",MAX($C$2:C148)+1,"") ->  | D149: 2022-05-27 | E149: Fr
A150: Sa | C150: =IF(A150="mo",MAX($C$2:C149)+1,"") ->  | D150: 2022-05-28 | E150: Sa
A151: So | C151: =IF(A151="mo",MAX($C$2:C150)+1,"") ->  | D151: 2022-05-29 | E151: So
A152: Mo | C152: =IF(A152="mo",MAX($C$2:C151)+1,"") -> 23 | D152: 2022-05-30 | E152: Mo | F152: 2022-05-30 | K152: Woche 23
A153: Di | C153: =IF(A153="mo",MAX($C$2:C152)+1,"") ->  | D153: 2022-05-31 | E153: Di
A154: Mi | C154: =IF(A154="mo",MAX($C$2:C153)+1,"") ->  | D154: 2022-06-01 | E154: Mi
A155: Do | C155: =IF(A155="mo",MAX($C$2:C154)+1,"") ->  | D155: 2022-06-02 | E155: Do
A156: Fr | C156: =IF(A156="mo",MAX($C$2:C155)+1,"") ->  | D156: 2022-06-03 | E156: Fr
A157: Sa | C157: =IF(A157="mo",MAX($C$2:C156)+1,"") ->  | D157: 2022-06-04 | E157: Sa
A158: So | C158: =IF(A158="mo",MAX($C$2:C157)+1,"") ->  | D158: 2022-06-05 | E158: So
A159: Mo | C159: =IF(A159="mo",MAX($C$2:C158)+1,"") -> 24 | D159: 2022-06-06 | E159: Mo | F159: 2022-06-06 | K159: Woche 24
A160: Di | C160: =IF(A160="mo",MAX($C$2:C159)+1,"") ->  | D160: 2022-06-07 | E160: Di
A161: Mi | C161: =IF(A161="mo",MAX($C$2:C160)+1,"") ->  | D161: 2022-06-08 | E161: Mi
A162: Do | C162: =IF(A162="mo",MAX($C$2:C161)+1,"") ->  | D162: 2022-06-09 | E162: Do
A163: Fr | C163: =IF(A163="mo",MAX($C$2:C162)+1,"") ->  | D163: 2022-06-10 | E163: Fr
A164: Sa | C164: =IF(A164="mo",MAX($C$2:C163)+1,"") ->  | D164: 2022-06-11 | E164: Sa
A165: So | C165: =IF(A165="mo",MAX($C$2:C164)+1,"") ->  | D165: 2022-06-12 | E165: So
A166: Mo | C166: =IF(A166="mo",MAX($C$2:C165)+1,"") -> 25 | D166: 2022-06-13 | E166: Mo | F166: 2022-06-13 | K166: Woche 25
A167: Di | C167: =IF(A167="mo",MAX($C$2:C166)+1,"") ->  | D167: 2022-06-14 | E167: Di
A168: Mi | C168: =IF(A168="mo",MAX($C$2:C167)+1,"") ->  | D168: 2022-06-15 | E168: Mi
A169: Do | C169: =IF(A169="mo",MAX($C$2:C168)+1,"") ->  | D169: 2022-06-16 | E169: Do
A170: Fr | C170: =IF(A170="mo",MAX($C$2:C169)+1,"") ->  | D170: 2022-06-17 | E170: Fr
A171: Sa | C171: =IF(A171="mo",MAX($C$2:C170)+1,"") ->  | D171: 2022-06-18 | E171: Sa
A172: So | C172: =IF(A172="mo",MAX($C$2:C171)+1,"") ->  | D172: 2022-06-19 | E172: So
A173: Mo | C173: =IF(A173="mo",MAX($C$2:C172)+1,"") -> 26 | D173: 2022-06-20 | E173: Mo | F173: 2022-06-20 | K173: Woche 26
A174: Di | C174: =IF(A174="mo",MAX($C$2:C173)+1,"") ->  | D174: 2022-06-21 | E174: Di
A175: Mi | C175: =IF(A175="mo",MAX($C$2:C174)+1,"") ->  | D175: 2022-06-22 | E175: Mi
A176: Do | C176: =IF(A176="mo",MAX($C$2:C175)+1,"") ->  | D176: 2022-06-23 | E176: Do
A177: Fr | C177: =IF(A177="mo",MAX($C$2:C176)+1,"") ->  | D177: 2022-06-24 | E177: Fr
A178: Sa | C178: =IF(A178="mo",MAX($C$2:C177)+1,"") ->  | D178: 2022-06-25 | E178: Sa
A179: So | C179: =IF(A179="mo",MAX($C$2:C178)+1,"") ->  | D179: 2022-06-26 | E179: So
A180: Mo | C180: =IF(A180="mo",MAX($C$2:C179)+1,"") -> 27 | D180: 2022-06-27 | E180: Mo | F180: 2022-06-27 | K180: Woche 27
A181: Di | C181: =IF(A181="mo",MAX($C$2:C180)+1,"") ->  | D181: 2022-06-28 | E181: Di
A182: Mi | C182: =IF(A182="mo",MAX($C$2:C181)+1,"") ->  | D182: 2022-06-29 | E182: Mi
A183: Do | C183: =IF(A183="mo",MAX($C$2:C182)+1,"") ->  | D183: 2022-06-30 | E183: Do
A184: Fr | C184: =IF(A184="mo",MAX($C$2:C183)+1,"") ->  | D184: 2022-07-01 | E184: Fr
A185: Sa | C185: =IF(A185="mo",MAX($C$2:C184)+1,"") ->  | D185: 2022-07-02 | E185: Sa
A186: So | C186: =IF(A186="mo",MAX($C$2:C185)+1,"") ->  | D186: 2022-07-03 | E186: So
A187: Mo | C187: =IF(A187="mo",MAX($C$2:C186)+1,"") -> 28 | D187: 2022-07-04 | E187: Mo | F187: 2022-07-04 | K187: Woche 28
A188: Di | C188: =IF(A188="mo",MAX($C$2:C187)+1,"") ->  | D188: 2022-07-05 | E188: Di
A189: Mi | C189: =IF(A189="mo",MAX($C$2:C188)+1,"") ->  | D189: 2022-07-06 | E189: Mi
A190: Do | C190: =IF(A190="mo",MAX($C$2:C189)+1,"") ->  | D190: 2022-07-07 | E190: Do
A191: Fr | C191: =IF(A191="mo",MAX($C$2:C190)+1,"") ->  | D191: 2022-07-08 | E191: Fr
A192: Sa | B192: Sommerferien | C192: =IF(A192="mo",MAX($C$2:C191)+1,"") ->  | D192: 2022-07-09 | E192: Sa
A193: So | B193: Sommerferien | C193: =IF(A193="mo",MAX($C$2:C192)+1,"") ->  | D193: 2022-07-10 | E193: So
A194: Mo | B194: Sommerferien | C194: =IF(A194="mo",MAX($C$2:C193)+1,"") -> 29 | D194: 2022-07-11 | E194: Mo | F194: 2022-07-11 | K194: Woche 29 | M194: Sommerferien
A195: =TEXT(D195,"TTT") -> Di | B195: =IF(AND(D195>=$Q$7,D195<$Q$8),$O$7,IF(AND(D195>=$Q$10,D195<$Q$11),$O$10,IF(AND(D195>=$Q$13,D195<$Q$14),$O$13,IF(AND(D195>=$Q$16,D195<$Q$17),$O$16,"")))) -> Sommerferien | C195: =IF(A195="mo",MAX($C$2:C194)+1,"") ->  | D195: =IF(D194<$B$2-1,D194+1,"") -> 2022-07-12 | E195: =A195 -> Di | F195: =IF(A195="mo",D195,"") ->  | K195: =IF(C195="","","Woche "&C195) ->  | M195: =IF(AND(A195="Mo",B196<>""),B195,"") -> 
A196: Mi | B196: Sommerferien | C196: =IF(A196="mo",MAX($C$2:C195)+1,"") ->  | D196: 2022-07-13 | E196: Mi
A197: Do | B197: Sommerferien | C197: =IF(A197="mo",MAX($C$2:C196)+1,"") ->  | D197: 2022-07-14 | E197: Do
A198: Fr | B198: Sommerferien | C198: =IF(A198="mo",MAX($C$2:C197)+1,"") ->  | D198: 2022-07-15 | E198: Fr
A199: Sa | B199: Sommerferien | C199: =IF(A199="mo",MAX($C$2:C198)+1,"") ->  | D199: 2022-07-16 | E199: Sa
A200: So | B200: Sommerferien | C200: =IF(A200="mo",MAX($C$2:C199)+1,"") ->  | D200: 2022-07-17 | E200: So
... 200 more rows

Sheet strichliste
A2: Strichliste | G2: =TODAY() -> 2024-01-08 | L2: Woche | M2: =TRUNC((G2-WEEKDAY(G2,2)-DATE(YEAR(G2+4-WEEKDAY(G2,2)),1,-10))/7) -> 2 | V2: Aktueller Stand nach Wochenschritt | W2: Start (alles neu) | X2: =MAX(A7:A34) -> 0
L3: Aktueller Stand
C4: -6 W. | D4: -5 W. | E4: -4 W. | F4: -3 W. | G4: -2 W. | H4: letzte Woche | J4: aktuelle Woche | O4: Strichlimit (Ärger): | P4: 5 | Q4: =IF(P4=1,"Strich","Striche") -> Striche
O5: Würdigung nach [1-6]: | P5: 2 | Q5: Wochen
C6: 10 | D6: 10 | E6: 10 | F6: 10 | G6: 10 | H6: 10 | J6: 10 | O6: Reduktion bei Woche ohne Strich: | P6: 2 | Q6: =IF(P6=1,"Strich","Striche") -> Striche
A7: =IF(Klasse!B$13="","",1) ->  | B7: =IF(A7="","",VLOOKUP(A7,Klasse!$B$13:$C$40,2,0)) ->  | V7: =IF(A7="","",IF(L7=0,0,IF(AND(J7>0,J7<100),L7,IF(L7-$P$6<0,0,L7-$P$6)))) ->  | W7: =IF(B7="","","Start") -> 
A8: =IF(A7="","",IF(A7+1>Klasse!$B$42,"",A7+1)) ->  | B8: =IF(A8="","",VLOOKUP(A8,Klasse!$B$13:$C$40,2,0)) ->  | N8: Funktionen: - Striche verschwinden nicht einfach. - Wer die aktuelle Woche ohne Strich schafft, reduziert seinen Strichstand. - Wer über eine bestimmte Wochenzahl keinen Strich hat, verdient eine Würdigung. (z.B. Briefli...) - Wer das Strichlimit erreicht, muss abarbeiten. | V8: =IF(A8="","",IF(L8=0,0,IF(AND(J8>0,J8<100),L8,IF(L8-$P$6<0,0,L8-$P$6)))) ->  | W8: =IF(B8="","","Start") -> 
A9: =IF(A8="","",IF(A8+1>Klasse!$B$42,"",A8+1)) ->  | B9: =IF(A9="","",VLOOKUP(A9,Klasse!$B$13:$C$40,2,0)) -> 
A10: =IF(A9="","",IF(A9+1>Klasse!$B$42,"",A9+1)) ->  | B10: =IF(A10="","",VLOOKUP(A10,Klasse!$B$13:$C$40,2,0)) -> 
A11: =IF(A10="","",IF(A10+1>Klasse!$B$42,"",A10+1)) ->  | B11: =IF(A11="","",VLOOKUP(A11,Klasse!$B$13:$C$40,2,0)) -> 
A12: =IF(A11="","",IF(A11+1>Klasse!$B$42,"",A11+1)) ->  | B12: =IF(A12="","",VLOOKUP(A12,Klasse!$B$13:$C$40,2,0)) -> 
A13: =IF(A12="","",IF(A12+1>Klasse!$B$42,"",A12+1)) ->  | B13: =IF(A13="","",VLOOKUP(A13,Klasse!$B$13:$C$40,2,0)) -> 
A14: =IF(A13="","",IF(A13+1>Klasse!$B$42,"",A13+1)) ->  | B14: =IF(A14="","",VLOOKUP(A14,Klasse!$B$13:$C$40,2,0)) -> 
A15: =IF(A14="","",IF(A14+1>Klasse!$B$42,"",A14+1)) ->  | B15: =IF(A15="","",VLOOKUP(A15,Klasse!$B$13:$C$40,2,0)) -> 
A16: =IF(A15="","",IF(A15+1>Klasse!$B$42,"",A15+1)) ->  | B16: =IF(A16="","",VLOOKUP(A16,Klasse!$B$13:$C$40,2,0)) ->  | N16: Anwendungsbeispiel: - z.B. Hausaufgaben-Zuverlässigkeit 4.Klasse
A17: =IF(A16="","",IF(A16+1>Klasse!$B$42,"",A16+1)) ->  | B17: =IF(A17="","",VLOOKUP(A17,Klasse!$B$13:$C$40,2,0)) -> 
A18: =IF(A17="","",IF(A17+1>Klasse!$B$42,"",A17+1)) ->  | B18: =IF(A18="","",VLOOKUP(A18,Klasse!$B$13:$C$40,2,0)) -> 
A19: =IF(A18="","",IF(A18+1>Klasse!$B$42,"",A18+1)) ->  | B19: =IF(A19="","",VLOOKUP(A19,Klasse!$B$13:$C$40,2,0)) ->  | N19: So funktioniert es: - Klassenliste definieren - Starten (Neustart-Knopf) - Markierung auf ein Feld der Zeile der/des betreffenden Sch., Taste klicken (z.B. neuer Strich) - Wochenschritt z.B. am Montagmorgen manuell klicken (Zum Nullstellen mehrfach den Wochenwechsel drücken)
A20: =IF(A19="","",IF(A19+1>Klasse!$B$42,"",A19+1)) ->  | B20: =IF(A20="","",VLOOKUP(A20,Klasse!$B$13:$C$40,2,0)) -> 
A21: =IF(A20="","",IF(A20+1>Klasse!$B$42,"",A20+1)) ->  | B21: =IF(A21="","",VLOOKUP(A21,Klasse!$B$13:$C$40,2,0)) -> 
A22: =IF(A21="","",IF(A21+1>Klasse!$B$42,"",A21+1)) ->  | B22: =IF(A22="","",VLOOKUP(A22,Klasse!$B$13:$C$40,2,0)) -> 
A23: =IF(A22="","",IF(A22+1>Klasse!$B$42,"",A22+1)) ->  | B23: =IF(A23="","",VLOOKUP(A23,Klasse!$B$13:$C$40,2,0)) -> 
A24: =IF(A23="","",IF(A23+1>Klasse!$B$42,"",A23+1)) ->  | B24: =IF(A24="","",VLOOKUP(A24,Klasse!$B$13:$C$40,2,0)) -> 
A25: =IF(A24="","",IF(A24+1>Klasse!$B$42,"",A24+1)) ->  | B25: =IF(A25="","",VLOOKUP(A25,Klasse!$B$13:$C$40,2,0)) -> 
A26: =IF(A25="","",IF(A25+1>Klasse!$B$42,"",A25+1)) ->  | B26: =IF(A26="","",VLOOKUP(A26,Klasse!$B$13:$C$40,2,0)) -> 
A27: =IF(A26="","",IF(A26+1>Klasse!$B$42,"",A26+1)) ->  | B27: =IF(A27="","",VLOOKUP(A27,Klasse!$B$13:$C$40,2,0)) -> 
A28: =IF(A27="","",IF(A27+1>Klasse!$B$42,"",A27+1)) ->  | B28: =IF(A28="","",VLOOKUP(A28,Klasse!$B$13:$C$40,2,0)) -> 
A29: =IF(A28="","",IF(A28+1>Klasse!$B$42,"",A28+1)) ->  | B29: =IF(A29="","",VLOOKUP(A29,Klasse!$B$13:$C$40,2,0)) -> 
A30: =IF(A29="","",IF(A29+1>Klasse!$B$42,"",A29+1)) ->  | B30: =IF(A30="","",VLOOKUP(A30,Klasse!$B$13:$C$40,2,0)) -> 
A31: =IF(A30="","",IF(A30+1>Klasse!$B$42,"",A30+1)) ->  | B31: =IF(A31="","",VLOOKUP(A31,Klasse!$B$13:$C$40,2,0)) -> 
A32: =IF(A31="","",IF(A31+1>Klasse!$B$42,"",A31+1)) ->  | B32: =IF(A32="","",VLOOKUP(A32,Klasse!$B$13:$C$40,2,0)) -> 
A33: =IF(A32="","",IF(A32+1>Klasse!$B$42,"",A32+1)) ->  | B33: =IF(A33="","",VLOOKUP(A33,Klasse!$B$13:$C$40,2,0)) -> 
A34: =IF(A33="","",IF(A33+1>Klasse!$B$42,"",A33+1)) ->  | B34: =IF(Klasse!C40="","",Klasse!C40) -> 

Sheet 4a
Z1: Serie | AA1: erste Blättli-Nr.
B2: ="Blitzrechnen "&$Z$2&"."&$AA$2 -> Blitzrechnen 2.1 | U2: ="L"&$Z$2&"."&$AA$2 -> L2.1 | Z2: 2 | AA2: 1
B4: =S4*D4 -> 36 | C4: : | D4: =INT(RAND()*(12-3)+3) -> 6 | E4: = | I4: =U4*K4 -> 80 | J4: : | K4: =INT(RAND()*(12-3)+3) -> 8 | L4: = | S4: =INT(RAND()*(12-3)+3) -> 6 | U4: =INT(RAND()*(12-3)+3) -> 10
B5: =S5*D5 -> 77 | C5: : | D5: =INT(RAND()*(12-3)+3) -> 7 | E5: = | I5: =U5*K5 -> 64 | J5: : | K5: =INT(RAND()*(12-3)+3) -> 8 | L5: = | S5: =INT(RAND()*(12-3)+3) -> 11 | U5: =INT(RAND()*(12-3)+3) -> 8
B6: =INT(RAND()*(10-3)+3) -> 7 | C6: * | D6: =INT(RAND()*(100-10)+10) -> 11 | E6: = | I6: =INT(RAND()*(10-3)+3) -> 4 | J6: * | K6: =INT(RAND()*(100-10)+10) -> 85 | L6: = | S6: =B6*D6 -> 77 | U6: =I6*K6 -> 340
B7: =INT(RAND()*(10-3)+3) -> 4 | C7: * | D7: =INT(RAND()*(100-10)+10) -> 84 | E7: = | I7: =INT(RAND()*(10-3)+3) -> 7 | J7: * | K7: =INT(RAND()*(100-10)+10) -> 19 | L7: = | S7: =B7*D7 -> 336 | U7: =I7*K7 -> 133 | Z7: ...für Fortgeschrittene, die die Formeln im gelben Bereich verändern möchten:
B8: =(INT(RAND()*(1000-500)+500)) -> 864 | C8: - | D8: =INT(RAND()*(500-100)+100) -> 358 | E8: = | I8: =(INT(RAND()*(1000-500)+500)) -> 700 | J8: - | K8: =INT(RAND()*(500-100)+100) -> 444 | L8: = | S8: =B8-D8 -> 506 | U8: =I8-K8 -> 256
B9: =(INT(RAND()*(1000-500)+500)) -> 594 | C9: - | D9: =INT(RAND()*(500-100)+100) -> 479 | E9: = | I9: =(INT(RAND()*(1000-500)+500)) -> 807 | J9: - | K9: =INT(RAND()*(500-100)+100) -> 468 | L9: = | S9: =B9-D9 -> 115 | U9: =I9-K9 -> 339
B11: ="Blitzrechnen "&$Z$2&"."&$AA$2+1 -> Blitzrechnen 2.2 | U11: ="L"&$Z$2&"."&$AA$2+1 -> L2.2
B13: =S13*D13 -> 42 | C13: : | D13: =INT(RAND()*(12-3)+3) -> 6 | E13: = | I13: =U13*K13 -> 36 | J13: : | K13: =INT(RAND()*(12-3)+3) -> 6 | L13: = | S13: =INT(RAND()*(12-3)+3) -> 7 | U13: =INT(RAND()*(12-3)+3) -> 6
B14: =S14*D14 -> 12 | C14: : | D14: =INT(RAND()*(12-3)+3) -> 3 | E14: = | I14: =U14*K14 -> 20 | J14: : | K14: =INT(RAND()*(12-3)+3) -> 4 | L14: = | S14: =INT(RAND()*(12-3)+3) -> 4 | U14: =INT(RAND()*(12-3)+3) -> 5
B15: =INT(RAND()*(10-3)+3) -> 9 | C15: * | D15: =INT(RAND()*(100-10)+10) -> 19 | E15: = | I15: =INT(RAND()*(10-3)+3) -> 8 | J15: * | K15: =INT(RAND()*(100-10)+10) -> 34 | L15: = | S15: =B15*D15 -> 171 | U15: =I15*K15 -> 272
B16: =INT(RAND()*(10-3)+3) -> 4 | C16: * | D16: =INT(RAND()*(100-10)+10) -> 18 | E16: = | I16: =INT(RAND()*(10-3)+3) -> 6 | J16: * | K16: =INT(RAND()*(100-10)+10) -> 85 | L16: = | S16: =B16*D16 -> 72 | U16: =I16*K16 -> 510
B17: =(INT(RAND()*(1000-500)+500)) -> 764 | C17: - | D17: =INT(RAND()*(500-100)+100) -> 381 | E17: = | I17: =(INT(RAND()*(1000-500)+500)) -> 514 | J17: - | K17: =INT(RAND()*(500-100)+100) -> 472 | L17: = | S17: =B17-D17 -> 383 | U17: =I17-K17 -> 42
B18: =(INT(RAND()*(1000-500)+500)) -> 510 | C18: - | D18: =INT(RAND()*(500-100)+100) -> 377 | E18: = | I18: =(INT(RAND()*(1000-500)+500)) -> 770 | J18: - | K18: =INT(RAND()*(500-100)+100) -> 302 | L18: = | S18: =B18-D18 -> 133 | U18: =I18-K18 -> 468
B20: ="Blitzrechnen "&$Z$2&"."&$AA$2+2 -> Blitzrechnen 2.3 | U20: ="L"&$Z$2&"."&$AA$2+2 -> L2.3
B22: =S22*D22 -> 55 | C22: : | D22: =INT(RAND()*(12-3)+3) -> 5 | E22: = | I22: =U22*K22 -> 27 | J22: : | K22: =INT(RAND()*(12-3)+3) -> 9 | L22: = | S22: =INT(RAND()*(12-3)+3) -> 11 | U22: =INT(RAND()*(12-3)+3) -> 3
B23: =S23*D23 -> 21 | C23: : | D23: =INT(RAND()*(12-3)+3) -> 3 | E23: = | I23: =U23*K23 -> 42 | J23: : | K23: =INT(RAND()*(12-3)+3) -> 6 | L23: = | S23: =INT(RAND()*(12-3)+3) -> 7 | U23: =INT(RAND()*(12-3)+3) -> 7
B24: =INT(RAND()*(10-3)+3) -> 6 | C24: * | D24: =INT(RAND()*(100-10)+10) -> 86 | E24: = | I24: =INT(RAND()*(10-3)+3) -> 9 | J24: * | K24: =INT(RAND()*(100-10)+10) -> 79 | L24: = | S24: =B24*D24 -> 516 | U24: =I24*K24 -> 711
B25: =INT(RAND()*(10-3)+3) -> 7 | C25: * | D25: =INT(RAND()*(100-10)+10) -> 51 | E25: = | I25: =INT(RAND()*(10-3)+3) -> 4 | J25: * | K25: =INT(RAND()*(100-10)+10) -> 91 | L25: = | S25: =B25*D25 -> 357 | U25: =I25*K25 -> 364
B26: =(INT(RAND()*(1000-500)+500)) -> 607 | C26: - | D26: =INT(RAND()*(500-100)+100) -> 431 | E26: = | I26: =(INT(RAND()*(1000-500)+500)) -> 988 | J26: - | K26: =INT(RAND()*(500-100)+100) -> 181 | L26: = | S26: =B26-D26 -> 176 | U26: =I26-K26 -> 807
B27: =(INT(RAND()*(1000-500)+500)) -> 925 | C27: - | D27: =INT(RAND()*(500-100)+100) -> 348 | E27: = | I27: =(INT(RAND()*(1000-500)+500)) -> 885 | J27: - | K27: =INT(RAND()*(500-100)+100) -> 416 | L27: = | S27: =B27-D27 -> 577 | U27: =I27-K27 -> 469

Sheet 4b
C1: Längenmasse | Q1: Längenmasse
J2: ="Nr. "&INT(RAND()*(10000-1000)+1000)&" " -> Nr. 4253 | M2: =J2 -> Nr. 4253 | X2: ="Nr. "&INT(RAND()*(10000-1000)+1000)&" " -> Nr. 8582 | AA2: =X2 -> Nr. 8582
A4: 10 | B4: =INT(RAND()*(100-1)+1) -> 22 | C4: 26 | D4: km | E4: =INT(RAND()*(100-1)+1) -> 19 | F4: m | G4: = | I4: m | L4: =C4*VLOOKUP(D4,$AD$25:$AT$40,VLOOKUP(I4,$AD$25:$AE$40,2,0),0)+E4 -> 26019 | M4: =I4 -> m | Q4: =INT(RAND()*(100-1)+1) -> 12 | R4: km | S4: =INT(RAND()*(100-1)+1) -> 59 | T4: m | U4: = | W4: m | Z4: =Q4*VLOOKUP(R4,$AD$25:$AT$40,VLOOKUP(W4,$AD$25:$AE$40,2,0),0)+S4 -> 12059 | AA4: =W4 -> m
A5: 19 | B5: 32 | C5: 64 | D5: m | E5: =INT(RAND()*(300-1)+1) -> 131 | F5: mm | G5: = | I5: mm | L5: =C5*VLOOKUP(D5,$AD$25:$AT$40,VLOOKUP(I5,$AD$25:$AE$40,2,0),0)+E5 -> 64131 | M5: mm | Q5: 39 | R5: m | S5: =INT(RAND()*(300-1)+1) -> 259 | T5: mm | U5: = | W5: mm | Z5: =Q5*VLOOKUP(R5,$AD$25:$AT$40,VLOOKUP(W5,$AD$25:$AE$40,2,0),0)+S5 -> 39259 | AA5: mm
A6: 7 | B6: 16 | C6: 49 | D6: km | E6: =INT(RAND()*(100-1)+1) -> 64 | F6: m | G6: = | I6: m | L6: =C6*VLOOKUP(D6,$AD$25:$AT$40,VLOOKUP(I6,$AD$25:$AE$40,2,0),0)+E6 -> 49064 | M6: m | Q6: 8 | R6: km | S6: =INT(RAND()*(100-1)+1) -> 96 | T6: m | U6: = | W6: m | Z6: =Q6*VLOOKUP(R6,$AD$25:$AT$40,VLOOKUP(W6,$AD$25:$AE$40,2,0),0)+S6 -> 8096 | AA6: m
A7: 17 | B7: 65 | C7: 20 | D7: m | E7: =INT(RAND()*(9-1)+1) -> 8 | F7: dm | G7: = | I7: dm | L7: =C7*VLOOKUP(D7,$AD$25:$AT$40,VLOOKUP(I7,$AD$25:$AE$40,2,0),0)+E7 -> 208 | M7: dm | Q7: 46 | R7: m | S7: =INT(RAND()*(9)+1) -> 8 | T7: dm | U7: = | W7: dm | Z7: =Q7*VLOOKUP(R7,$AD$25:$AT$40,VLOOKUP(W7,$AD$25:$AE$40,2,0),0)+S7 -> 468 | AA7: dm
A8: 12 | B8: 46 | C8: 39 | D8: m | G8: = | I8: cm | L8: =C8*VLOOKUP(D8,$AD$25:$AT$40,VLOOKUP(I8,$AD$25:$AE$40,2,0),0) -> 3900 | M8: cm | Q8: 92 | R8: m | U8: = | W8: cm | Z8: =Q8*VLOOKUP(R8,$AD$25:$AT$40,VLOOKUP(W8,$AD$25:$AE$40,2,0),0) -> 9200 | AA8: cm
A9: 9 | B9: 17 | C9: 22 | D9: m | E9: =INT(RAND()*(5-1)+1) -> 2 | F9: cm | G9: = | I9: cm | L9: =C9*VLOOKUP(D9,$AD$25:$AT$40,VLOOKUP(I9,$AD$25:$AE$40,2,0),0)+E9 -> 2202 | M9: cm | Q9: 82 | R9: m | S9: =INT(RAND()*(10-1)+1) -> 2 | T9: cm | U9: = | W9: cm | Z9: =Q9*VLOOKUP(R9,$AD$25:$AT$40,VLOOKUP(W9,$AD$25:$AE$40,2,0),0)+S9 -> 8202 | AA9: cm
A10: 13 | B10: 89 | C10: 36 | D10: cm | E10: =INT(RAND()*(9-1)+1) -> 4 | F10: mm | G10: = | I10: mm | L10: =C10*VLOOKUP(D10,$AD$25:$AT$40,VLOOKUP(I10,$AD$25:$AE$40,2,0),0)+E10 -> 364 | M10: mm | Q10: 16 | R10: cm | S10: =INT(RAND()*(15-1)+1) -> 9 | T10: mm | U10: = | W10: mm | Z10: =Q10*VLOOKUP(R10,$AD$25:$AT$40,VLOOKUP(W10,$AD$25:$AE$40,2,0),0)+S10 -> 169 | AA10: mm
A11: 14 | B11: 60 | C11: 50 | D11: km | E11: =INT(RAND()*(100-1)+1) -> 32 | F11: m | G11: = | I11: m | L11: =C11*VLOOKUP(D11,$AD$25:$AT$40,VLOOKUP(I11,$AD$25:$AE$40,2,0),0)+E11 -> 50032 | M11: m | Q11: 51 | R11: km | S11: =INT(RAND()*(100-1)+1) -> 45 | T11: m | U11: = | W11: m | Z11: =Q11*VLOOKUP(R11,$AD$25:$AT$40,VLOOKUP(W11,$AD$25:$AE$40,2,0),0)+S11 -> 51045 | AA11: m
A12: 15 | B12: 22 | C12: 91 | D12: km | G12: = | I12: m | L12: =C12*VLOOKUP(D12,$AD$25:$AT$40,VLOOKUP(I12,$AD$25:$AE$40,2,0),0) -> 91000 | M12: m | Q12: 30 | R12: km | U12: = | W12: m | Z12: =Q12*VLOOKUP(R12,$AD$25:$AT$40,VLOOKUP(W12,$AD$25:$AE$40,2,0),0) -> 30000 | AA12: m
A13: 3 | B13: 26 | C13: 34 | D13: km | E13: =INT(RAND()*(100-1)+1) -> 38 | F13: m | G13: = | I13: m | L13: =C13*VLOOKUP(D13,$AD$25:$AT$40,VLOOKUP(I13,$AD$25:$AE$40,2,0),0)+E13 -> 34038 | M13: m | Q13: 3 | R13: km | S13: =INT(RAND()*(100-1)+1) -> 59 | T13: m | U13: = | W13: m | Z13: =Q13*VLOOKUP(R13,$AD$25:$AT$40,VLOOKUP(W13,$AD$25:$AE$40,2,0),0)+S13 -> 3059 | AA13: m
A14: 6 | B14: =INT(RAND()*(100-1)+1) -> 82 | C14: =INT(RAND()*(100-1)+1)*1000 -> 9000 | D14: m | G14: = | I14: km | L14: =C14*VLOOKUP(D14,$AD$25:$AT$40,VLOOKUP(I14,$AD$25:$AE$40,2,0),0) -> 9 | M14: km | Q14: =INT(RAND()*(100-1)+1)*1000 -> 4000 | R14: m | U14: = | W14: km | Z14: =Q14*VLOOKUP(R14,$AD$25:$AT$40,VLOOKUP(W14,$AD$25:$AE$40,2,0),0) -> 4 | AA14: km
A15: 16 | B15: 13 | C15: =INT(RAND()*(100-1)+1) -> 94 | D15: dm | G15: = | I15: mm | L15: =C15*VLOOKUP(D15,$AD$25:$AT$40,VLOOKUP(I15,$AD$25:$AE$40,2,0),0) -> 9400 | M15: mm | Q15: =INT(RAND()*(100-1)+1) -> 27 | R15: dm | U15: = | W15: mm | Z15: =Q15*VLOOKUP(R15,$AD$25:$AT$40,VLOOKUP(W15,$AD$25:$AE$40,2,0),0) -> 2700 | AA15: mm
A16: 2 | B16: 20 | C16: =INT(RAND()*(100-1)+1)*1000 -> 3000 | D16: cm | G16: = | I16: m | L16: =C16*VLOOKUP(D16,$AD$25:$AT$40,VLOOKUP(I16,$AD$25:$AE$40,2,0),0) -> 30 | M16: m | Q16: =INT(RAND()*(100-1)+1)*1000 -> 77000 | R16: mm | U16: = | W16: m | Z16: =Q16*VLOOKUP(R16,$AD$25:$AT$40,VLOOKUP(W16,$AD$25:$AE$40,2,0),0) -> 77 | AA16: m
A17: 4 | B17: 53 | C17: =INT(RAND()*(100-1)+1) -> 63 | D17: cm | G17: = | I17: mm | L17: =C17*VLOOKUP(D17,$AD$25:$AT$40,VLOOKUP(I17,$AD$25:$AE$40,2,0),0) -> 630 | M17: mm | Q17: =INT(RAND()*(100-1)+1) -> 20 | R17: cm | U17: = | W17: mm | Z17: =Q17*VLOOKUP(R17,$AD$25:$AT$40,VLOOKUP(W17,$AD$25:$AE$40,2,0),0) -> 200 | AA17: mm
A18: 1 | B18: 85 | C18: =INT(RAND()*(100-1)+1)*1000 -> 99000 | D18: mm | G18: = | I18: m | L18: =C18*VLOOKUP(D18,$AD$25:$AT$40,VLOOKUP(I18,$AD$25:$AE$40,2,0),0) -> 99 | M18: m | Q18: =INT(RAND()*(100-1)+1)*1000 -> 30000 | R18: cm | U18: = | W18: m | Z18: =Q18*VLOOKUP(R18,$AD$25:$AT$40,VLOOKUP(W18,$AD$25:$AE$40,2,0),0) -> 300 | AA18: m
A19: 8 | B19: 36 | C19: =INT(RAND()*(100-1)+1) -> 64 | D19: m | E19: =INT(RAND()*(100-1)+1) -> 21 | F19: cm | G19: = | I19: cm | L19: =C19*VLOOKUP(D19,$AD$25:$AT$40,VLOOKUP(I19,$AD$25:$AE$40,2,0),0)+E19 -> 6421 | M19: cm | Q19: =INT(RAND()*(100-1)+1) -> 57 | R19: m | S19: =INT(RAND()*(100-1)+1) -> 62 | T19: cm | U19: = | W19: cm | Z19: =Q19*VLOOKUP(R19,$AD$25:$AT$40,VLOOKUP(W19,$AD$25:$AE$40,2,0),0)+S19 -> 5762 | AA19: cm
A20: 18 | B20: 50 | C20: =INT(RAND()*(100-1)+1)*1000 -> 76000 | D20: mm | G20: = | I20: m | L20: =C20*VLOOKUP(D20,$AD$25:$AT$40,VLOOKUP(I20,$AD$25:$AE$40,2,0),0) -> 76 | M20: m | Q20: =INT(RAND()*(100-1)+1)*1000 -> 34000 | R20: mm | U20: = | W20: m | Z20: =Q20*VLOOKUP(R20,$AD$25:$AT$40,VLOOKUP(W20,$AD$25:$AE$40,2,0),0) -> 34 | AA20: m
A21: 5 | B21: 43 | C21: =INT(RAND()*(100-1)+1)*1000 -> 91000 | D21: mm | G21: = | I21: dm | L21: =C21*VLOOKUP(D21,$AD$25:$AT$40,VLOOKUP(I21,$AD$25:$AE$40,2,0),0) -> 910 | M21: dm | Q21: =INT(RAND()*(100-1)+1)*1000 -> 95000 | R21: mm | U21: = | W21: dm | Z21: =Q21*VLOOKUP(R21,$AD$25:$AT$40,VLOOKUP(W21,$AD$25:$AE$40,2,0),0) -> 950 | AA21: dm
A22: 11 | B22: 41 | C22: =INT(RAND()*(100-1)+1) -> 61 | D22: m | E22: =INT(RAND()*(100-1)+1) -> 46 | F22: mm | G22: = | I22: mm | L22: =C22*VLOOKUP(D22,$AD$25:$AT$40,VLOOKUP(I22,$AD$25:$AE$40,2,0),0)+E22 -> 61046 | M22: mm | Q22: =INT(RAND()*(100-1)+1) -> 67 | R22: m | S22: =INT(RAND()*(100-1)+1) -> 66 | T22: mm | U22: = | W22: mm | Z22: =Q22*VLOOKUP(R22,$AD$25:$AT$40,VLOOKUP(W22,$AD$25:$AE$40,2,0),0)+S22 -> 67066 | AA22: mm
A23: 20 | B23: 37 | C23: =INT(RAND()*(100-1)+1) -> 38 | D23: cm | G23: = | I23: mm | L23: =C23*VLOOKUP(D23,$AD$25:$AT$40,VLOOKUP(I23,$AD$25:$AE$40,2,0),0) -> 380 | M23: mm | Q23: =INT(RAND()*(100-1)+1) -> 77 | R23: cm | U23: = | W23: mm | Z23: =Q23*VLOOKUP(R23,$AD$25:$AT$40,VLOOKUP(W23,$AD$25:$AE$40,2,0),0) -> 770 | AA23: mm
AF24: 10 | AG24: 10 | AH24: 10 | AI24: 1000
AF25: mm | AG25: cm | AH25: dm | AI25: m | AJ25: km
AD26: mm | AE26: 3 | AF26: 1 | AG26: =AF26/AF$24 -> 0.1 | AH26: 0.01 | AI26: 0.001 | AJ26: 1e-06
AD27: cm | AE27: 4 | AF27: 10 | AG27: 1 | AH27: 0.1 | AI27: 0.01 | AJ27: 1e-05
AD28: dm | AE28: 5 | AF28: 100 | AG28: 10 | AH28: 1 | AI28: 0.1 | AJ28: 0.0001
AD29: m | AE29: 6 | AF29: 1000 | AG29: 100 | AH29: 10 | AI29: 1 | AJ29: 0.001
AD30: km | AE30: 7 | AF30: 1000000 | AG30: 100000 | AH30: 10000 | AI30: 1000 | AJ30: 1

Sheet 4c
C1: Gewichte umrechnen | Q1: Gewichte umrechnen
J2: ="Nr. "&INT(RAND()*(10000-1000)+1000)&" " -> Nr. 6665 | M2: =J2 -> Nr. 6665 | X2: ="Nr. "&INT(RAND()*(10000-1000)+1000)&" " -> Nr. 3973 | AA2: =X2 -> Nr. 3973
A4: 7 | B4: =INT(RAND()*(100-1)+1) -> 20 | C4: 15 | D4: t | E4: =INT(RAND()*(100-1)+1) -> 27 | F4: kg | G4: = | I4: kg | L4: =C4*VLOOKUP(D4,$AD$25:$AT$40,VLOOKUP(I4,$AD$25:$AE$40,2,0),0)+E4 -> 15027 | M4: =I4 -> kg | Q4: =INT(RAND()*(100-1)+1) -> 17 | R4: t | S4: =INT(RAND()*(100-1)+1) -> 3 | T4: kg | U4: = | W4: kg | Z4: =Q4*VLOOKUP(R4,$AD$25:$AT$40,VLOOKUP(W4,$AD$25:$AE$40,2,0),0)+S4 -> 17003 | AA4: =W4 -> kg
A5: 20 | B5: 92 | C5: 54 | D5: kg | G5: = | I5: g | L5: =C5*VLOOKUP(D5,$AD$25:$AT$40,VLOOKUP(I5,$AD$25:$AE$40,2,0),0) -> 54000 | M5: g | Q5: =INT(RAND()*(100-1)+1) -> 78 | R5: kg | U5: = | W5: g | Z5: =Q5*VLOOKUP(R5,$AD$25:$AT$40,VLOOKUP(W5,$AD$25:$AE$40,2,0),0) -> 78000 | AA5: g
A6: 10 | B6: 77 | C6: 70 | D6: t | E6: =INT(RAND()*(100-1)+1) -> 91 | F6: kg | G6: = | I6: kg | L6: =C6*VLOOKUP(D6,$AD$25:$AT$40,VLOOKUP(I6,$AD$25:$AE$40,2,0),0)+E6 -> 70091 | M6: kg | Q6: =INT(RAND()*(100-1)+1) -> 8 | R6: t | S6: =INT(RAND()*(100-1)+1) -> 82 | T6: kg | U6: = | W6: kg | Z6: =Q6*VLOOKUP(R6,$AD$25:$AT$40,VLOOKUP(W6,$AD$25:$AE$40,2,0),0)+S6 -> 8082 | AA6: kg
A7: 14 | B7: 22 | C7: 45 | D7: t | E7: =INT(RAND()*(100-1)+1) -> 80 | F7: kg | G7: = | I7: kg | L7: =C7*VLOOKUP(D7,$AD$25:$AT$40,VLOOKUP(I7,$AD$25:$AE$40,2,0),0)+E7 -> 45080 | M7: kg | Q7: =INT(RAND()*(100-1)+1) -> 77 | R7: t | S7: =INT(RAND()*(100-1)+1) -> 16 | T7: kg | U7: = | W7: kg | Z7: =Q7*VLOOKUP(R7,$AD$25:$AT$40,VLOOKUP(W7,$AD$25:$AE$40,2,0),0)+S7 -> 77016 | AA7: kg
A8: 4 | B8: 81 | C8: 86 | D8: kg | G8: = | I8: g | L8: =C8*VLOOKUP(D8,$AD$25:$AT$40,VLOOKUP(I8,$AD$25:$AE$40,2,0),0) -> 86000 | M8: g | Q8: =INT(RAND()*(100-1)+1) -> 48 | R8: kg | U8: = | W8: g | Z8: =Q8*VLOOKUP(R8,$AD$25:$AT$40,VLOOKUP(W8,$AD$25:$AE$40,2,0),0) -> 48000 | AA8: g
A9: 18 | B9: =INT(RAND()*(100-1)+1) -> 28 | C9: =INT(RAND()*(100-1)+1)*1000 -> 56000 | D9: kg | G9: = | I9: t | L9: =C9*VLOOKUP(D9,$AD$25:$AT$40,VLOOKUP(I9,$AD$25:$AE$40,2,0),0) -> 56 | M9: t | Q9: =INT(RAND()*(100-1)+1)*1000 -> 48000 | R9: kg | U9: = | W9: t | Z9: =Q9*VLOOKUP(R9,$AD$25:$AT$40,VLOOKUP(W9,$AD$25:$AE$40,2,0),0) -> 48 | AA9: t
A10: 11 | B10: 14 | C10: =INT(RAND()*(100-1)+1) -> 59 | D10: t | E10: =INT(RAND()*(100-1)+1) -> 60 | F10: kg | G10: = | I10: kg | L10: =C10*VLOOKUP(D10,$AD$25:$AT$40,VLOOKUP(I10,$AD$25:$AE$40,2,0),0)+E10 -> 59060 | M10: kg | Q10: =INT(RAND()*(100-1)+1) -> 29 | R10: t | S10: =INT(RAND()*(100-1)+1) -> 13 | T10: kg | U10: = | W10: kg | Z10: =Q10*VLOOKUP(R10,$AD$25:$AT$40,VLOOKUP(W10,$AD$25:$AE$40,2,0),0)+S10 -> 29013 | AA10: kg
A11: 2 | B11: 7 | C11: =INT(RAND()*(100-1)+1)*1000 -> 72000 | D11: kg | G11: = | I11: t | L11: =C11*VLOOKUP(D11,$AD$25:$AT$40,VLOOKUP(I11,$AD$25:$AE$40,2,0),0) -> 72 | M11: t | Q11: =INT(RAND()*(100-1)+1)*1000 -> 3000 | R11: kg | U11: = | W11: t | Z11: =Q11*VLOOKUP(R11,$AD$25:$AT$40,VLOOKUP(W11,$AD$25:$AE$40,2,0),0) -> 3 | AA11: t
A12: 8 | B12: 33 | C12: =INT(RAND()*(100-1)+1) -> 87 | D12: kg | E12: =INT(RAND()*(200-1)+1) -> 112 | F12: g | G12: = | I12: g | L12: =C12*VLOOKUP(D12,$AD$25:$AT$40,VLOOKUP(I12,$AD$25:$AE$40,2,0),0)+E12 -> 87112 | M12: g | Q12: =INT(RAND()*(100-1)+1) -> 10 | R12: kg | S12: =INT(RAND()*(200-1)+1) -> 168 | T12: g | U12: = | W12: g | Z12: =Q12*VLOOKUP(R12,$AD$25:$AT$40,VLOOKUP(W12,$AD$25:$AE$40,2,0),0)+S12 -> 10168 | AA12: g
A13: 16 | B13: 61 | C13: 99 | D13: kg | G13: = | I13: g | L13: =C13*VLOOKUP(D13,$AD$25:$AT$40,VLOOKUP(I13,$AD$25:$AE$40,2,0),0) -> 99000 | M13: g | Q13: 65 | R13: kg | U13: = | W13: g | Z13: =Q13*VLOOKUP(R13,$AD$25:$AT$40,VLOOKUP(W13,$AD$25:$AE$40,2,0),0) -> 65000 | AA13: g
A14: 15 | B14: 85 | C14: 53 | D14: t | G14: = | I14: kg | L14: =C14*VLOOKUP(D14,$AD$25:$AT$40,VLOOKUP(I14,$AD$25:$AE$40,2,0),0) -> 53000 | M14: kg | Q14: 55 | R14: t | U14: = | W14: kg | Z14: =Q14*VLOOKUP(R14,$AD$25:$AT$40,VLOOKUP(W14,$AD$25:$AE$40,2,0),0) -> 55000 | AA14: kg
A15: 9 | B15: 58 | C15: 92 | D15: t | E15: =INT(RAND()*(5-1)+1) -> 2 | F15: kg | G15: = | I15: kg | L15: =C15*VLOOKUP(D15,$AD$25:$AT$40,VLOOKUP(I15,$AD$25:$AE$40,2,0),0)+E15 -> 92002 | M15: kg | Q15: 15 | R15: t | S15: =INT(RAND()*(10-1)+1) -> 1 | T15: kg | U15: = | W15: kg | Z15: =Q15*VLOOKUP(R15,$AD$25:$AT$40,VLOOKUP(W15,$AD$25:$AE$40,2,0),0)+S15 -> 15001 | AA15: kg
A16: 12 | B16: 60 | C16: 54 | D16: kg | G16: = | I16: g | L16: =C16*VLOOKUP(D16,$AD$25:$AT$40,VLOOKUP(I16,$AD$25:$AE$40,2,0),0) -> 54000 | M16: g | Q16: 28 | R16: kg | U16: = | W16: g | Z16: =Q16*VLOOKUP(R16,$AD$25:$AT$40,VLOOKUP(W16,$AD$25:$AE$40,2,0),0) -> 28000 | AA16: g
A17: 17 | B17: 27 | C17: 45 | D17: kg | E17: =INT(RAND()*(150-1)+1) -> 8 | F17: g | G17: = | I17: g | L17: =C17*VLOOKUP(D17,$AD$25:$AT$40,VLOOKUP(I17,$AD$25:$AE$40,2,0),0)+E17 -> 45008 | M17: g | Q17: 18 | R17: kg | S17: =INT(RAND()*(150-1)+1) -> 4 | T17: g | U17: = | W17: g | Z17: =Q17*VLOOKUP(R17,$AD$25:$AT$40,VLOOKUP(W17,$AD$25:$AE$40,2,0),0)+S17 -> 18004 | AA17: g
A18: 1 | B18: 57 | C18: =INT(RAND()*(100-1)+1)*1000 -> 70000 | D18: g | G18: = | I18: kg | L18: =C18*VLOOKUP(D18,$AD$25:$AT$40,VLOOKUP(I18,$AD$25:$AE$40,2,0),0) -> 70 | M18: kg | Q18: =INT(RAND()*(100-1)+1)*1000 -> 63000 | R18: g | U18: = | W18: kg | Z18: =Q18*VLOOKUP(R18,$AD$25:$AT$40,VLOOKUP(W18,$AD$25:$AE$40,2,0),0) -> 63 | AA18: kg
A19: 19 | B19: 37 | C19: =INT(RAND()*(100-1)+1) -> 98 | D19: kg | E19: =INT(RAND()*(300-1)+1) -> 13 | F19: g | G19: = | I19: g | L19: =C19*VLOOKUP(D19,$AD$25:$AT$40,VLOOKUP(I19,$AD$25:$AE$40,2,0),0)+E19 -> 98013 | M19: g | Q19: =INT(RAND()*(100-1)+1) -> 35 | R19: kg | S19: =INT(RAND()*(300-1)+1) -> 149 | T19: g | U19: = | W19: g | Z19: =Q19*VLOOKUP(R19,$AD$25:$AT$40,VLOOKUP(W19,$AD$25:$AE$40,2,0),0)+S19 -> 35149 | AA19: g
A20: 13 | B20: 87 | C20: =INT(RAND()*(100-1)+1) -> 59 | D20: kg | E20: =INT(RAND()*(15-1)+1) -> 1 | F20: g | G20: = | I20: g | L20: =C20*VLOOKUP(D20,$AD$25:$AT$40,VLOOKUP(I20,$AD$25:$AE$40,2,0),0)+E20 -> 59001 | M20: g | Q20: =INT(RAND()*(100-1)+1) -> 7 | R20: kg | S20: =INT(RAND()*(15-1)+1) -> 3 | T20: g | U20: = | W20: g | Z20: =Q20*VLOOKUP(R20,$AD$25:$AT$40,VLOOKUP(W20,$AD$25:$AE$40,2,0),0)+S20 -> 7003 | AA20: g
A21: 6 | B21: 33 | C21: =INT(RAND()*(100-1)+1)*1000 -> 76000 | D21: kg | G21: = | I21: t | L21: =C21*VLOOKUP(D21,$AD$25:$AT$40,VLOOKUP(I21,$AD$25:$AE$40,2,0),0) -> 76 | M21: t | Q21: =INT(RAND()*(100-1)+1)*1000 -> 80000 | R21: kg | U21: = | W21: t | Z21: =Q21*VLOOKUP(R21,$AD$25:$AT$40,VLOOKUP(W21,$AD$25:$AE$40,2,0),0) -> 80 | AA21: t
A22: 3 | B22: 47 | C22: =INT(RAND()*(100-1)+1) -> 42 | D22: t | E22: =INT(RAND()*(100-1)+1) -> 45 | F22: kg | G22: = | I22: kg | L22: =C22*VLOOKUP(D22,$AD$25:$AT$40,VLOOKUP(I22,$AD$25:$AE$40,2,0),0)+E22 -> 42045 | M22: kg | Q22: =INT(RAND()*(100-1)+1) -> 87 | R22: t | S22: =INT(RAND()*(100-1)+1) -> 50 | T22: kg | U22: = | W22: kg | Z22: =Q22*VLOOKUP(R22,$AD$25:$AT$40,VLOOKUP(W22,$AD$25:$AE$40,2,0),0)+S22 -> 87050 | AA22: kg
A23: 5 | B23: 30 | C23: =INT(RAND()*(100-1)+1)*1000 -> 50000 | D23: g | G23: = | I23: kg | L23: =C23*VLOOKUP(D23,$AD$25:$AT$40,VLOOKUP(I23,$AD$25:$AE$40,2,0),0) -> 50 | M23: kg | Q23: =INT(RAND()*(100-1)+1)*1000 -> 59000 | R23: g | U23: = | W23: kg | Z23: =Q23*VLOOKUP(R23,$AD$25:$AT$40,VLOOKUP(W23,$AD$25:$AE$40,2,0),0) -> 59 | AA23: kg
AF24: 1000 | AG24: 1000
AF25: g | AG25: kg | AH25: t
AD26: g | AE26: 3 | AF26: 1 | AG26: =AF26/AF$24 -> 0.001 | AH26: 1e-06
AD27: kg | AE27: 4 | AF27: 1000 | AG27: 1 | AH27: 0.001
AD28: t | AE28: 5 | AF28: 1000000 | AG28: 1000 | AH28: 1

Sheet 4d
B1: Einmaleins
B2: 2 | C2: 3 | D2: 4 | E2: 5 | F2: 6 | G2: 7 | H2: 8 | I2: 9
A3: 2 | B3: =B$2*$A3 -> 4 | C3: 6 | D3: 8 | E3: 10 | F3: 12 | G3: 14 | H3: 16 | I3: 18
A4: 3 | B4: 6 | C4: 9 | D4: 12 | E4: 15 | F4: 18 | G4: 21 | H4: 24 | I4: 27
A5: 4 | B5: 8 | C5: 12 | D5: 16 | E5: 20 | F5: 24 | G5: 28 | H5: 32 | I5: 36
A6: 5 | B6: 10 | C6: 15 | D6: 20 | E6: 25 | F6: 30 | G6: 35 | H6: 40 | I6: 45
A7: 6 | B7: 12 | C7: 18 | D7: 24 | E7: 30 | F7: 36 | G7: 42 | H7: 48 | I7: 54
A8: 7 | B8: 14 | C8: 21 | D8: 28 | E8: 35 | F8: 42 | G8: 49 | H8: 56 | I8: 63
A9: 8 | B9: 16 | C9: 24 | D9: 32 | E9: 40 | F9: 48 | G9: 56 | H9: 64 | I9: 72
A10: 9 | B10: 18 | C10: 27 | D10: 36 | E10: 45 | F10: 54 | G10: 63 | H10: 72 | I10: 81

Sheet 5a
A1: Kopfrechnungs-Maraton
A2: Name: | L2: Blatt-Nr.:
A4: =P4*C4 -> 570 | B4: : | C4: =INT(RAND()*(12-3)+3) -> 6 | D4: = | H4: =S4*J4 -> 324 | I4: : | J4: =INT(RAND()*(12-3)+3) -> 3 | K4: = | P4: =INT(RAND()*(110-30)+30) -> 95 | S4: =INT(RAND()*(110-30)+30) -> 108
A5: =(INT(RAND()*(20-5)+5))*1000 -> 12000 | B5: - | C5: =INT(RAND()*(5000-100)+100) -> 3474 | D5: = | H5: =(INT(RAND()*(20-5)+5))*1000 -> 17000 | I5: - | J5: =INT(RAND()*(5000-100)+100) -> 915 | K5: = | P5: =A5-C5 -> 8526 | S5: =H5-J5 -> 16085
A6: =INT(RAND()*(10-2)+2) -> 9 | B6: * | C6: =INT(RAND()*(100-10)+10) -> 86 | D6: = | H6: =INT(RAND()*(10-2)+2) -> 2 | I6: * | J6: =INT(RAND()*(100-10)+10) -> 55 | K6: = | P6: =A6*C6 -> 774 | S6: =H6*J6 -> 110
A7: =INT(RAND()*(10000-999)+999) -> 6703 | B7: + | C7: =INT(RAND()*(5000-100)+100) -> 3289 | D7: = | H7: =INT(RAND()*(10000-999)+999) -> 3271 | I7: + | J7: =INT(RAND()*(5000-100)+100) -> 2158 | K7: = | P7: =A7+C7 -> 9992 | S7: =H7+J7 -> 5429
A8: =(INT(RAND()*(20-5)+5))*1000 -> 13000 | B8: - | C8: =INT(RAND()*(5000-100)+100) -> 1416 | D8: = | H8: =(INT(RAND()*(20-5)+5))*1000 -> 17000 | I8: - | J8: =INT(RAND()*(5000-100)+100) -> 3387 | K8: = | P8: =A8-C8 -> 11584 | S8: =H8-J8 -> 13613
A9: =INT(RAND()*(99-30)+30) -> 78 | B9: : | C9: =INT(RAND()*(9-3)+3) -> 7 | D9: = | F9: =IF(R9=0,"","R") -> R | H9: =INT(RAND()*(99-30)+30) -> 95 | I9: : | J9: =INT(RAND()*(9-3)+3) -> 3 | K9: = | M9: =IF(U9=0,"","R") -> R | P9: =INT(A9/C9) -> 11 | Q9: R | R9: =A9-(P9*C9) -> 1 | S9: =INT(H9/J9) -> 31 | T9: R | U9: =H9-(S9*J9) -> 2
A10: =INT(RAND()*(10000-999)+999) -> 6283 | B10: + | C10: =INT(RAND()*(5000-100)+100) -> 2107 | D10: = | H10: =INT(RAND()*(10000-999)+999) -> 7836 | I10: + | J10: =INT(RAND()*(5000-100)+100) -> 4349 | K10: = | P10: =A10+C10 -> 8390 | S10: =H10+J10 -> 12185
A11: =INT(RAND()*(10-2)+2) -> 3 | B11: * | C11: =INT(RAND()*(100-10)+10) -> 94 | D11: = | H11: =INT(RAND()*(10-2)+2) -> 3 | I11: * | J11: =INT(RAND()*(100-10)+10) -> 89 | K11: = | P11: =A11*C11 -> 282 | S11: =H11*J11 -> 267
A12: =P12*C12 -> 316 | B12: : | C12: =INT(RAND()*(12-3)+3) -> 4 | D12: = | H12: =S12*J12 -> 385 | I12: : | J12: =INT(RAND()*(12-3)+3) -> 11 | K12: = | P12: =INT(RAND()*(110-30)+30) -> 79 | S12: =INT(RAND()*(110-30)+30) -> 35
A13: =(INT(RAND()*(20-5)+5))*1000 -> 6000 | B13: - | C13: =INT(RAND()*(5000-100)+100) -> 4000 | D13: = | H13: =(INT(RAND()*(20-5)+5))*1000 -> 12000 | I13: - | J13: =INT(RAND()*(5000-100)+100) -> 116 | K13: = | P13: =A13-C13 -> 2000 | S13: =H13-J13 -> 11884
A14: =INT(RAND()*(10-2)+2) -> 7 | B14: * | C14: =INT(RAND()*(100-10)+10) -> 39 | D14: = | H14: =INT(RAND()*(10-2)+2) -> 8 | I14: * | J14: =INT(RAND()*(100-10)+10) -> 18 | K14: = | P14: =A14*C14 -> 273 | S14: =H14*J14 -> 144
A15: =INT(RAND()*(10000-999)+999) -> 3313 | B15: + | C15: =INT(RAND()*(5000-100)+100) -> 4034 | D15: = | H15: =INT(RAND()*(10000-999)+999) -> 1838 | I15: + | J15: =INT(RAND()*(5000-100)+100) -> 3517 | K15: = | P15: =A15+C15 -> 7347 | S15: =H15+J15 -> 5355
A16: =INT(RAND()*(99-30)+30) -> 44 | B16: : | C16: =INT(RAND()*(9-3)+3) -> 5 | D16: = | F16: =IF(R16=0,"","R") -> R | H16: =INT(RAND()*(99-30)+30) -> 70 | I16: : | J16: =INT(RAND()*(9-3)+3) -> 3 | K16: = | M16: =IF(U16=0,"","R") -> R | P16: =INT(A16/C16) -> 8 | Q16: R | R16: =A16-(P16*C16) -> 4 | S16: =INT(H16/J16) -> 23 | T16: R | U16: =H16-(S16*J16) -> 1
A17: =(INT(RAND()*(20-5)+5))*1000 -> 15000 | B17: - | C17: =INT(RAND()*(5000-100)+100) -> 1371 | D17: = | H17: =(INT(RAND()*(20-5)+5))*1000 -> 15000 | I17: - | J17: =INT(RAND()*(5000-100)+100) -> 1697 | K17: = | P17: =A17-C17 -> 13629 | S17: =H17-J17 -> 13303
A18: =INT(RAND()*(10-2)+2) -> 3 | B18: * | C18: =INT(RAND()*(100-10)+10) -> 59 | D18: = | H18: =INT(RAND()*(10-2)+2) -> 5 | I18: * | J18: =INT(RAND()*(100-10)+10) -> 17 | K18: = | P18: =A18*C18 -> 177 | S18: =H18*J18 -> 85
A19: =INT(RAND()*(10000-999)+999) -> 2635 | B19: + | C19: =INT(RAND()*(5000-100)+100) -> 973 | D19: = | H19: =INT(RAND()*(10000-999)+999) -> 7282 | I19: + | J19: =INT(RAND()*(5000-100)+100) -> 2082 | K19: = | P19: =A19+C19 -> 3608 | S19: =H19+J19 -> 9364
A20: =(INT(RAND()*(20-5)+5))*1000 -> 5000 | B20: - | C20: =INT(RAND()*(5000-100)+100) -> 3320 | D20: = | H20: =(INT(RAND()*(20-5)+5))*1000 -> 10000 | I20: - | J20: =INT(RAND()*(5000-100)+100) -> 1690 | K20: = | P20: =A20-C20 -> 1680 | S20: =H20-J20 -> 8310
A21: =P21*C21 -> 244 | B21: : | C21: =INT(RAND()*(12-3)+3) -> 4 | D21: = | H21: =S21*J21 -> 546 | I21: : | J21: =INT(RAND()*(12-3)+3) -> 6 | K21: = | P21: =INT(RAND()*(110-30)+30) -> 61 | S21: =INT(RAND()*(110-30)+30) -> 91
A22: =INT(RAND()*(10000-999)+999) -> 6031 | B22: + | C22: =INT(RAND()*(5000-100)+100) -> 4095 | D22: = | H22: =INT(RAND()*(10000-999)+999) -> 5106 | I22: + | J22: =INT(RAND()*(5000-100)+100) -> 4947 | K22: = | P22: =A22+C22 -> 10126 | S22: =H22+J22 -> 10053
A23: =INT(RAND()*(10-2)+2) -> 7 | B23: * | C23: =INT(RAND()*(100-10)+10) -> 75 | D23: = | H23: =INT(RAND()*(10-2)+2) -> 7 | I23: * | J23: =INT(RAND()*(100-10)+10) -> 97 | K23: = | P23: =A23*C23 -> 525 | S23: =H23*J23 -> 679
A24: =INT(RAND()*(99-30)+30) -> 69 | B24: : | C24: =INT(RAND()*(9-3)+3) -> 4 | D24: = | F24: =IF(R24=0,"","R") -> R | H24: =INT(RAND()*(99-30)+30) -> 79 | I24: : | J24: =INT(RAND()*(9-3)+3) -> 8 | K24: = | M24: =IF(U24=0,"","R") -> R | P24: =INT(A24/C24) -> 17 | Q24: R | R24: =A24-(P24*C24) -> 1 | S24: =INT(H24/J24) -> 9 | T24: R | U24: =H24-(S24*J24) -> 7
A25: =(INT(RAND()*(20-5)+5))*1000 -> 15000 | B25: - | C25: =INT(RAND()*(5000-100)+100) -> 4984 | D25: = | H25: =(INT(RAND()*(20-5)+5))*1000 -> 12000 | I25: - | J25: =INT(RAND()*(5000-100)+100) -> 3064 | K25: = | P25: =A25-C25 -> 10016 | S25: =H25-J25 -> 8936
A26: =INT(RAND()*(10-2)+2) -> 5 | B26: * | C26: =INT(RAND()*(100-10)+10) -> 54 | D26: = | H26: =INT(RAND()*(10-2)+2) -> 8 | I26: * | J26: =INT(RAND()*(100-10)+10) -> 17 | K26: = | P26: =A26*C26 -> 270 | S26: =H26*J26 -> 136
A27: =INT(RAND()*(10000-999)+999) -> 1205 | B27: + | C27: =INT(RAND()*(5000-100)+100) -> 2182 | D27: = | H27: =INT(RAND()*(10000-999)+999) -> 1141 | I27: + | J27: =INT(RAND()*(5000-100)+100) -> 4407 | K27: = | P27: =A27+C27 -> 3387 | S27: =H27+J27 -> 5548
A28: =P28*C28 -> 738 | B28: : | C28: =INT(RAND()*(12-3)+3) -> 9 | D28: = | H28: =S28*J28 -> 440 | I28: : | J28: =INT(RAND()*(12-3)+3) -> 8 | K28: = | P28: =INT(RAND()*(110-30)+30) -> 82 | S28: =INT(RAND()*(110-30)+30) -> 55

Sheet 5b
A1: Schriftliches Rechnen
A2: Name: | L2: Blatt-Nr.:
A4: =P4*C4 -> 25236 | B4: : | C4: =INT(RAND()*(12-2)+2) -> 3 | D4: = | H4: =S4*J4 -> 43030 | I4: : | J4: =INT(RAND()*(12-3)+3) -> 10 | K4: = | P4: =INT(RAND()*(9900-3000)+3000) -> 8412 | S4: =INT(RAND()*(9900-3000)+3000) -> 4303
A5: =(INT(RAND()*(90000-40000)+40000)) -> 79967 | B5: - | C5: =INT(RAND()*(39000-9999)+9999) -> 15935 | D5: = | H5: =(INT(RAND()*(90000-40000)+40000)) -> 56473 | I5: - | J5: =INT(RAND()*(39000-9999)+9999) -> 24754 | K5: = | P5: =A5-C5 -> 64032 | S5: =H5-J5 -> 31719
A6: =INT(RAND()*(10-2)+2) -> 8 | B6: * | C6: =INT(RAND()*(50000-10000)+10000) -> 21030 | D6: = | H6: =INT(RAND()*(10-2)+2) -> 3 | I6: * | J6: =INT(RAND()*(50000-10000)+10000) -> 19082 | K6: = | P6: =A6*C6 -> 168240 | S6: =H6*J6 -> 57246
A7: =INT(RAND()*(99999-9999)+9999) -> 79796 | B7: + | C7: =INT(RAND()*(99999-9999)+9999) -> 23758 | D7: = | H7: =INT(RAND()*(99999-9999)+9999) -> 57592 | I7: + | J7: =INT(RAND()*(99999-9999)+9999) -> 37026 | K7: = | P7: =A7+C7 -> 103554 | S7: =H7+J7 -> 94618
A8: =(INT(RAND()*(90000-40000)+40000)) -> 74911 | B8: - | C8: =INT(RAND()*(39000-9999)+9999) -> 38998 | D8: = | H8: =(INT(RAND()*(90000-40000)+40000)) -> 84733 | I8: - | J8: =INT(RAND()*(39000-9999)+9999) -> 31216 | K8: = | P8: =A8-C8 -> 35913 | S8: =H8-J8 -> 53517
A9: =INT(RAND()*(99999-30000)+30000) -> 47400 | B9: : | C9: =INT(RAND()*(9-3)+2) -> 7 | D9: = | F9: =IF(R9=0,"","R") -> R | H9: =INT(RAND()*(99999-30000)+30000) -> 82363 | I9: : | J9: =INT(RAND()*(9-3)+3) -> 4 | K9: = | M9: =IF(U9=0,"","R") -> R | P9: =INT(A9/C9) -> 6771 | Q9: R | R9: =A9-(P9*C9) -> 3 | S9: =INT(H9/J9) -> 20590 | T9: R | U9: =H9-(S9*J9) -> 3
A10: =INT(RAND()*(99999-9999)+9999) -> 39641 | B10: + | C10: =INT(RAND()*(99999-9999)+9999) -> 31009 | D10: = | H10: =INT(RAND()*(99999-9999)+9999) -> 36583 | I10: + | J10: =INT(RAND()*(99999-9999)+9999) -> 36754 | K10: = | P10: =A10+C10 -> 70650 | S10: =H10+J10 -> 73337
A11: =INT(RAND()*(10-2)+2) -> 3 | B11: * | C11: =INT(RAND()*(50000-10000)+10000) -> 36385 | D11: = | H11: =INT(RAND()*(10-2)+2) -> 6 | I11: * | J11: =INT(RAND()*(50000-10000)+10000) -> 18473 | K11: = | P11: =A11*C11 -> 109155 | S11: =H11*J11 -> 110838
A12: =P12*C12 -> 70910 | B12: : | C12: =INT(RAND()*(12-2)+2) -> 10 | D12: = | H12: =S12*J12 -> 50834 | I12: : | J12: =INT(RAND()*(12-3)+3) -> 7 | K12: = | P12: =INT(RAND()*(9900-3000)+3000) -> 7091 | S12: =INT(RAND()*(9900-3000)+3000) -> 7262
A13: =(INT(RAND()*(90000-40000)+40000)) -> 83027 | B13: - | C13: =INT(RAND()*(39000-9999)+9999) -> 25331 | D13: = | H13: =(INT(RAND()*(90000-40000)+40000)) -> 79251 | I13: - | J13: =INT(RAND()*(39000-9999)+9999) -> 11429 | K13: = | P13: =A13-C13 -> 57696 | S13: =H13-J13 -> 67822
A15: Schriftliches Rechnen
A16: Name: | L16: Blatt-Nr.:
A18: =P18*C18 -> 41868 | B18: : | C18: =INT(RAND()*(12-2)+2) -> 9 | D18: = | H18: =S18*J18 -> 47814 | I18: : | J18: =INT(RAND()*(12-3)+3) -> 6 | K18: = | P18: =INT(RAND()*(9900-3000)+3000) -> 4652 | S18: =INT(RAND()*(9900-3000)+3000) -> 7969
A19: =(INT(RAND()*(90000-40000)+40000)) -> 81716 | B19: - | C19: =INT(RAND()*(39000-9999)+9999) -> 31242 | D19: = | H19: =(INT(RAND()*(90000-40000)+40000)) -> 56368 | I19: - | J19: =INT(RAND()*(39000-9999)+9999) -> 14753 | K19: = | P19: =A19-C19 -> 50474 | S19: =H19-J19 -> 41615
A20: =INT(RAND()*(10-2)+2) -> 8 | B20: * | C20: =INT(RAND()*(50000-10000)+10000) -> 35521 | D20: = | H20: =INT(RAND()*(10-2)+2) -> 3 | I20: * | J20: =INT(RAND()*(50000-10000)+10000) -> 49651 | K20: = | P20: =A20*C20 -> 284168 | S20: =H20*J20 -> 148953
A21: =INT(RAND()*(99999-9999)+9999) -> 54048 | B21: + | C21: =INT(RAND()*(99999-9999)+9999) -> 63726 | D21: = | H21: =INT(RAND()*(99999-9999)+9999) -> 33825 | I21: + | J21: =INT(RAND()*(99999-9999)+9999) -> 42891 | K21: = | P21: =A21+C21 -> 117774 | S21: =H21+J21 -> 76716
A22: =(INT(RAND()*(90000-40000)+40000)) -> 57816 | B22: - | C22: =INT(RAND()*(39000-9999)+9999) -> 34790 | D22: = | H22: =(INT(RAND()*(90000-40000)+40000)) -> 48836 | I22: - | J22: =INT(RAND()*(39000-9999)+9999) -> 22532 | K22: = | P22: =A22-C22 -> 23026 | S22: =H22-J22 -> 26304
A23: =INT(RAND()*(99999-30000)+30000) -> 55374 | B23: : | C23: =INT(RAND()*(9-3)+2) -> 6 | D23: = | F23: =IF(R23=0,"","R") ->  | H23: =INT(RAND()*(99999-30000)+30000) -> 93109 | I23: : | J23: =INT(RAND()*(9-3)+3) -> 4 | K23: = | M23: =IF(U23=0,"","R") -> R | P23: =INT(A23/C23) -> 9229 | Q23: R | R23: =A23-(P23*C23) -> 0 | S23: =INT(H23/J23) -> 23277 | T23: R | U23: =H23-(S23*J23) -> 1
A24: =INT(RAND()*(99999-9999)+9999) -> 62845 | B24: + | C24: =INT(RAND()*(99999-9999)+9999) -> 56197 | D24: = | H24: =INT(RAND()*(99999-9999)+9999) -> 66019 | I24: + | J24: =INT(RAND()*(99999-9999)+9999) -> 48691 | K24: = | P24: =A24+C24 -> 119042 | S24: =H24+J24 -> 114710
A25: =INT(RAND()*(10-2)+2) -> 2 | B25: * | C25: =INT(RAND()*(50000-10000)+10000) -> 26027 | D25: = | H25: =INT(RAND()*(10-2)+2) -> 5 | I25: * | J25: =INT(RAND()*(50000-10000)+10000) -> 29823 | K25: = | P25: =A25*C25 -> 52054 | S25: =H25*J25 -> 149115
A26: =P26*C26 -> 12896 | B26: : | C26: =INT(RAND()*(12-2)+2) -> 2 | D26: = | H26: =S26*J26 -> 56190 | I26: : | J26: =INT(RAND()*(12-3)+3) -> 6 | K26: = | P26: =INT(RAND()*(9900-3000)+3000) -> 6448 | S26: =INT(RAND()*(9900-3000)+3000) -> 9365
A27: =(INT(RAND()*(90000-40000)+40000)) -> 88912 | B27: - | C27: =INT(RAND()*(39000-9999)+9999) -> 36109 | D27: = | H27: =(INT(RAND()*(90000-40000)+40000)) -> 58230 | I27: - | J27: =INT(RAND()*(39000-9999)+9999) -> 14718 | K27: = | P27: =A27-C27 -> 52803 | S27: =H27-J27 -> 43512

Sheet 5c
C1: Gewichte umrechnen | Q1: Gewichte umrechnen
J2: ="Nr. "&INT(RAND()*(10000-1000)+1000)&" " -> Nr. 1022 | M2: =J2 -> Nr. 1022 | X2: ="Nr. "&INT(RAND()*(10000-1000)+1000)&" " -> Nr. 5590 | AA2: =X2 -> Nr. 5590
A4: 13 | B4: =INT(RAND()*(100-1)+1) -> 31 | C4: =INT(RAND()*(100-1)+1) -> 7 | D4: kg | E4: =INT(RAND()*(15-1)+1) -> 10 | F4: g | G4: = | I4: g | L4: =C4*VLOOKUP(D4,$AD$25:$AT$40,VLOOKUP(I4,$AD$25:$AE$40,2,0),0)+E4 -> 7010 | M4: =I4 -> g | Q4: =INT(RAND()*(100-1)+1) -> 70 | R4: kg | S4: =INT(RAND()*(15-1)+1) -> 2 | T4: g | U4: = | W4: g | Z4: =Q4*VLOOKUP(R4,$AD$25:$AT$40,VLOOKUP(W4,$AD$25:$AE$40,2,0),0)+S4 -> 70002 | AA4: =W4 -> g
A5: 18 | B5: =INT(RAND()*(100-1)+1) -> 57 | C5: =INT(RAND()*(100-1)+1)*1000 -> 11000 | D5: kg | G5: = | I5: t | L5: =C5*VLOOKUP(D5,$AD$25:$AT$40,VLOOKUP(I5,$AD$25:$AE$40,2,0),0) -> 11 | M5: t | Q5: =INT(RAND()*(100-1)+1)*1000 -> 40000 | R5: kg | U5: = | W5: t | Z5: =Q5*VLOOKUP(R5,$AD$25:$AT$40,VLOOKUP(W5,$AD$25:$AE$40,2,0),0) -> 40 | AA5: t
A6: 8 | B6: 38 | C6: =INT(RAND()*(100-1)+1) -> 29 | D6: kg | E6: =INT(RAND()*(200-1)+1) -> 166 | F6: g | G6: = | I6: g | L6: =C6*VLOOKUP(D6,$AD$25:$AT$40,VLOOKUP(I6,$AD$25:$AE$40,2,0),0)+E6 -> 29166 | M6: g | Q6: =INT(RAND()*(100-1)+1) -> 23 | R6: kg | S6: =INT(RAND()*(200-1)+1) -> 129 | T6: g | U6: = | W6: g | Z6: =Q6*VLOOKUP(R6,$AD$25:$AT$40,VLOOKUP(W6,$AD$25:$AE$40,2,0),0)+S6 -> 23129 | AA6: g
A7: 1 | B7: 11 | C7: =INT(RAND()*(100-1)+1)*1000 -> 42000 | D7: g | G7: = | I7: kg | L7: =C7*VLOOKUP(D7,$AD$25:$AT$40,VLOOKUP(I7,$AD$25:$AE$40,2,0),0) -> 42 | M7: kg | Q7: =INT(RAND()*(100-1)+1)*1000 -> 56000 | R7: g | U7: = | W7: kg | Z7: =Q7*VLOOKUP(R7,$AD$25:$AT$40,VLOOKUP(W7,$AD$25:$AE$40,2,0),0) -> 56 | AA7: kg
A8: 12 | B8: 5 | C8: 13 | D8: kg | G8: = | I8: g | L8: =C8*VLOOKUP(D8,$AD$25:$AT$40,VLOOKUP(I8,$AD$25:$AE$40,2,0),0) -> 13000 | M8: g | Q8: =INT(RAND()*(100-1)+1) -> 10 | R8: kg | U8: = | W8: g | Z8: =Q8*VLOOKUP(R8,$AD$25:$AT$40,VLOOKUP(W8,$AD$25:$AE$40,2,0),0) -> 10000 | AA8: g
A9: 11 | B9: 12 | C9: 23 | D9: t | E9: =INT(RAND()*(100-1)+1) -> 76 | F9: kg | G9: = | I9: kg | L9: =C9*VLOOKUP(D9,$AD$25:$AT$40,VLOOKUP(I9,$AD$25:$AE$40,2,0),0)+E9 -> 23076 | M9: kg | Q9: 40 | R9: t | S9: =INT(RAND()*(100-1)+1) -> 57 | T9: kg | U9: = | W9: kg | Z9: =Q9*VLOOKUP(R9,$AD$25:$AT$40,VLOOKUP(W9,$AD$25:$AE$40,2,0),0)+S9 -> 40057 | AA9: kg
A10: 14 | B10: 24 | C10: 3 | D10: t | E10: =INT(RAND()*(100-1)+1) -> 52 | F10: kg | G10: = | I10: kg | L10: =C10*VLOOKUP(D10,$AD$25:$AT$40,VLOOKUP(I10,$AD$25:$AE$40,2,0),0)+E10 -> 3052 | M10: kg | Q10: 54 | R10: t | S10: =INT(RAND()*(100-1)+1) -> 13 | T10: kg | U10: = | W10: kg | Z10: =Q10*VLOOKUP(R10,$AD$25:$AT$40,VLOOKUP(W10,$AD$25:$AE$40,2,0),0)+S10 -> 54013 | AA10: kg
A11: 3 | B11: 25 | C11: 83 | D11: t | E11: =INT(RAND()*(100-1)+1) -> 25 | F11: kg | G11: = | I11: kg | L11: =C11*VLOOKUP(D11,$AD$25:$AT$40,VLOOKUP(I11,$AD$25:$AE$40,2,0),0)+E11 -> 83025 | M11: kg | Q11: 71 | R11: t | S11: =INT(RAND()*(100-1)+1) -> 28 | T11: kg | U11: = | W11: kg | Z11: =Q11*VLOOKUP(R11,$AD$25:$AT$40,VLOOKUP(W11,$AD$25:$AE$40,2,0),0)+S11 -> 71028 | AA11: kg
A12: 15 | B12: 21 | C12: 66 | D12: t | G12: = | I12: kg | L12: =C12*VLOOKUP(D12,$AD$25:$AT$40,VLOOKUP(I12,$AD$25:$AE$40,2,0),0) -> 66000 | M12: kg | Q12: 53 | R12: t | U12: = | W12: kg | Z12: =Q12*VLOOKUP(R12,$AD$25:$AT$40,VLOOKUP(W12,$AD$25:$AE$40,2,0),0) -> 53000 | AA12: kg
A13: 19 | B13: 36 | C13: 23 | D13: kg | E13: =INT(RAND()*(300-1)+1) -> 176 | F13: g | G13: = | I13: g | L13: =C13*VLOOKUP(D13,$AD$25:$AT$40,VLOOKUP(I13,$AD$25:$AE$40,2,0),0)+E13 -> 23176 | M13: g | Q13: 40 | R13: kg | S13: =INT(RAND()*(300-1)+1) -> 221 | T13: g | U13: = | W13: g | Z13: =Q13*VLOOKUP(R13,$AD$25:$AT$40,VLOOKUP(W13,$AD$25:$AE$40,2,0),0)+S13 -> 40221 | AA13: g
A14: 7 | B14: 27 | C14: 22 | D14: t | E14: =INT(RAND()*(100-1)+1) -> 25 | F14: kg | G14: = | I14: kg | L14: =C14*VLOOKUP(D14,$AD$25:$AT$40,VLOOKUP(I14,$AD$25:$AE$40,2,0),0)+E14 -> 22025 | M14: kg | Q14: 24 | R14: t | S14: =INT(RAND()*(100-1)+1) -> 38 | T14: kg | U14: = | W14: kg | Z14: =Q14*VLOOKUP(R14,$AD$25:$AT$40,VLOOKUP(W14,$AD$25:$AE$40,2,0),0)+S14 -> 24038 | AA14: kg
A15: 17 | B15: 57 | C15: 31 | D15: kg | E15: =INT(RAND()*(150-1)+1) -> 116 | F15: g | G15: = | I15: g | L15: =C15*VLOOKUP(D15,$AD$25:$AT$40,VLOOKUP(I15,$AD$25:$AE$40,2,0),0)+E15 -> 31116 | M15: g | Q15: 82 | R15: kg | S15: =INT(RAND()*(150-1)+1) -> 94 | T15: g | U15: = | W15: g | Z15: =Q15*VLOOKUP(R15,$AD$25:$AT$40,VLOOKUP(W15,$AD$25:$AE$40,2,0),0)+S15 -> 82094 | AA15: g
A16: 9 | B16: 85 | C16: 7 | D16: t | E16: =INT(RAND()*(5-1)+1) -> 1 | F16: kg | G16: = | I16: kg | L16: =C16*VLOOKUP(D16,$AD$25:$AT$40,VLOOKUP(I16,$AD$25:$AE$40,2,0),0)+E16 -> 7001 | M16: kg | Q16: 13 | R16: t | S16: =INT(RAND()*(10-1)+1) -> 6 | T16: kg | U16: = | W16: kg | Z16: =Q16*VLOOKUP(R16,$AD$25:$AT$40,VLOOKUP(W16,$AD$25:$AE$40,2,0),0)+S16 -> 13006 | AA16: kg
A17: 2 | B17: 23 | C17: =INT(RAND()*(100-1)+1)*1000 -> 58000 | D17: kg | G17: = | I17: t | L17: =C17*VLOOKUP(D17,$AD$25:$AT$40,VLOOKUP(I17,$AD$25:$AE$40,2,0),0) -> 58 | M17: t | Q17: =INT(RAND()*(100-1)+1)*1000 -> 2000 | R17: kg | U17: = | W17: t | Z17: =Q17*VLOOKUP(R17,$AD$25:$AT$40,VLOOKUP(W17,$AD$25:$AE$40,2,0),0) -> 2 | AA17: t
A18: 4 | B18: 63 | C18: =INT(RAND()*(100-1)+1) -> 41 | D18: kg | G18: = | I18: g | L18: 41000 | M18: g | Q18: =INT(RAND()*(100-1)+1) -> 91 | R18: kg | U18: = | W18: g | Z18: 91000 | AA18: g
A19: 6 | B19: 39 | C19: =INT(RAND()*(100-1)+1)*1000 -> 58000 | D19: kg | G19: = | I19: t | L19: 58 | M19: t | Q19: =INT(RAND()*(100-1)+1)*1000 -> 71000 | R19: kg | U19: = | W19: t | Z19: 71 | AA19: t
A20: 20 | B20: 26 | C20: =INT(RAND()*(100-1)+1) -> 98 | D20: kg | G20: = | I20: g | L20: 98000 | M20: g | Q20: =INT(RAND()*(100-1)+1) -> 74 | R20: kg | U20: = | W20: g | Z20: 74000 | AA20: g
A21: 16 | B21: 51 | C21: =INT(RAND()*(100-1)+1) -> 83 | D21: kg | G21: = | I21: g | L21: 83000 | M21: g | Q21: =INT(RAND()*(100-1)+1) -> 45 | R21: kg | U21: = | W21: g | Z21: 45000 | AA21: g
A22: 5 | B22: 94 | C22: =INT(RAND()*(100-1)+1)*1000 -> 25000 | D22: g | G22: = | I22: kg | L22: 25 | M22: kg | Q22: =INT(RAND()*(100-1)+1)*1000 -> 13000 | R22: g | U22: = | W22: kg | Z22: 13 | AA22: kg
A23: 10 | B23: 98 | C23: =INT(RAND()*(100-1)+1) -> 91 | D23: t | E23: =INT(RAND()*(100-1)+1) -> 48 | F23: kg | G23: = | I23: kg | L23: =C23*VLOOKUP(D23,$AD$25:$AT$40,VLOOKUP(I23,$AD$25:$AE$40,2,0),0)+E23 -> 91048 | M23: kg | Q23: =INT(RAND()*(100-1)+1) -> 15 | R23: t | S23: =INT(RAND()*(100-1)+1) -> 49 | T23: kg | U23: = | W23: kg | Z23: =Q23*VLOOKUP(R23,$AD$25:$AT$40,VLOOKUP(W23,$AD$25:$AE$40,2,0),0)+S23 -> 15049 | AA23: kg
AF24: 1000 | AG24: 1000
AF25: g | AG25: kg | AH25: t
AD26: g | AE26: 3 | AF26: 1 | AG26: =AF26/AF$24 -> 0.001 | AH26: 1e-06
AD27: kg | AE27: 4 | AF27: 1000 | AG27: 1 | AH27: 0.001
AD28: t | AE28: 5 | AF28: 1000000 | AG28: 1000 | AH28: 1

Sheet 5d
C1: Längenmasse umrechnen | Q1: Längenmasse umrechnen
J2: ="Nr. "&INT(RAND()*(10000-1000)+1000)&" " -> Nr. 6475 | M2: =J2 -> Nr. 6475 | X2: ="Nr. "&INT(RAND()*(10000-1000)+1000)&" " -> Nr. 4393 | AA2: =X2 -> Nr. 4393
A4: 9 | B4: =INT(RAND()*(100-1)+1) -> 8 | C4: 44 | D4: km | E4: =INT(RAND()*(99-1)+1) -> 85 | F4: m | G4: = | I4: m | L4: =C4*VLOOKUP(D4,$AD$25:$AT$40,VLOOKUP(I4,$AD$25:$AE$40,2,0),0)+E4 -> 44085 | M4: =I4 -> m | Q4: =INT(RAND()*(100-1)+1) -> 15 | R4: km | S4: =INT(RAND()*(99-1)+1) -> 85 | T4: m | U4: = | W4: m | Z4: =Q4*VLOOKUP(R4,$AD$25:$AT$40,VLOOKUP(W4,$AD$25:$AE$40,2,0),0)+S4 -> 15085 | AA4: =W4 -> m
A5: 14 | B5: 76 | C5: 73 | D5: m | E5: =INT(RAND()*(100-1)+1) -> 69 | F5: cm | G5: = | I5: cm | L5: =C5*VLOOKUP(D5,$AD$25:$AT$40,VLOOKUP(I5,$AD$25:$AE$40,2,0),0)+E5 -> 7369 | M5: cm | Q5: 37 | R5: m | S5: =INT(RAND()*(100-1)+1) -> 48 | T5: cm | U5: = | W5: cm | Z5: =Q5*VLOOKUP(R5,$AD$25:$AT$40,VLOOKUP(W5,$AD$25:$AE$40,2,0),0)+S5 -> 3748 | AA5: cm
A6: 16 | B6: 32 | C6: 63 | D6: m | G6: = | I6: cm | L6: =C6*VLOOKUP(D6,$AD$25:$AT$40,VLOOKUP(I6,$AD$25:$AE$40,2,0),0) -> 6300 | M6: cm | Q6: 99 | R6: m | U6: = | W6: cm | Z6: =Q6*VLOOKUP(R6,$AD$25:$AT$40,VLOOKUP(W6,$AD$25:$AE$40,2,0),0) -> 9900 | AA6: cm
A7: 10 | B7: 71 | C7: 49 | D7: m | E7: =INT(RAND()*(30-1)+1) -> 26 | F7: cm | G7: = | I7: cm | L7: =C7*VLOOKUP(D7,$AD$25:$AT$40,VLOOKUP(I7,$AD$25:$AE$40,2,0),0)+E7 -> 4926 | M7: cm | Q7: 19 | R7: m | S7: =INT(RAND()*(30-1)+1) -> 1 | T7: cm | U7: = | W7: cm | Z7: =Q7*VLOOKUP(R7,$AD$25:$AT$40,VLOOKUP(W7,$AD$25:$AE$40,2,0),0)+S7 -> 1901 | AA7: cm
A8: 19 | B8: 48 | C8: 45 | D8: m | E8: =INT(RAND()*(9-1)+1) -> 1 | F8: cm | G8: = | I8: cm | L8: =C8*VLOOKUP(D8,$AD$25:$AT$40,VLOOKUP(I8,$AD$25:$AE$40,2,0),0)+E8 -> 4501 | M8: cm | Q8: 84 | R8: m | S8: =INT(RAND()*(9-1)+1) -> 2 | T8: cm | U8: = | W8: cm | Z8: =Q8*VLOOKUP(R8,$AD$25:$AT$40,VLOOKUP(W8,$AD$25:$AE$40,2,0),0)+S8 -> 8402 | AA8: cm
A9: 3 | B9: 36 | C9: 86 | D9: dm | E9: =INT(RAND()*(9-1)+1) -> 2 | F9: cm | G9: = | I9: cm | L9: =C9*VLOOKUP(D9,$AD$25:$AT$40,VLOOKUP(I9,$AD$25:$AE$40,2,0),0)+E9 -> 862 | M9: cm | Q9: 1 | R9: dm | S9: =INT(RAND()*(9-1)+1) -> 3 | T9: cm | U9: = | W9: cm | Z9: =Q9*VLOOKUP(R9,$AD$25:$AT$40,VLOOKUP(W9,$AD$25:$AE$40,2,0),0)+S9 -> 13 | AA9: cm
A10: 11 | B10: 30 | C10: 84 | D10: km | E10: =INT(RAND()*(999-1)+1) -> 715 | F10: m | G10: = | I10: m | L10: =C10*VLOOKUP(D10,$AD$25:$AT$40,VLOOKUP(I10,$AD$25:$AE$40,2,0),0)+E10 -> 84715 | M10: m | Q10: 55 | R10: km | S10: =INT(RAND()*(999-1)+1) -> 908 | T10: m | U10: = | W10: m | Z10: =Q10*VLOOKUP(R10,$AD$25:$AT$40,VLOOKUP(W10,$AD$25:$AE$40,2,0),0)+S10 -> 55908 | AA10: m
A11: 4 | B11: 44 | C11: 6 | D11: mm | G11: = | I11: cm | L11: =C11*VLOOKUP(D11,$AD$25:$AT$40,VLOOKUP(I11,$AD$25:$AE$40,2,0),0) -> 0.6 | M11: cm | Q11: 25 | R11: mm | U11: = | W11: cm | Z11: =Q11*VLOOKUP(R11,$AD$25:$AT$40,VLOOKUP(W11,$AD$25:$AE$40,2,0),0) -> 2.5 | AA11: cm
A12: 5 | B12: 95 | C12: =INT(RAND()*(100-1)+1)*10 -> 950 | D12: mm | G12: = | I12: cm | L12: =C12*VLOOKUP(D12,$AD$25:$AT$40,VLOOKUP(I12,$AD$25:$AE$40,2,0),0) -> 95 | M12: cm | Q12: =INT(RAND()*(100-1)+1)*10 -> 400 | R12: mm | U12: = | W12: cm | Z12: =Q12*VLOOKUP(R12,$AD$25:$AT$40,VLOOKUP(W12,$AD$25:$AE$40,2,0),0) -> 40 | AA12: cm
A13: 12 | B13: 82 | C13: =INT(RAND()*(100-1)+1)*10 -> 870 | D13: mm | G13: = | I13: cm | L13: =C13*VLOOKUP(D13,$AD$25:$AT$40,VLOOKUP(I13,$AD$25:$AE$40,2,0),0) -> 87 | M13: cm | Q13: =INT(RAND()*(100-1)+1)*10 -> 870 | R13: mm | U13: = | W13: cm | Z13: =Q13*VLOOKUP(R13,$AD$25:$AT$40,VLOOKUP(W13,$AD$25:$AE$40,2,0),0) -> 87 | AA13: cm
A14: 17 | B14: 25 | C14: =INT(RAND()*(100-1)+1) -> 33 | D14: km | E14: =INT(RAND()*(150-1)+1) -> 41 | F14: m | G14: = | I14: m | L14: =C14*VLOOKUP(D14,$AD$25:$AT$40,VLOOKUP(I14,$AD$25:$AE$40,2,0),0)+E14 -> 33041 | M14: m | Q14: =INT(RAND()*(100-1)+1) -> 13 | R14: km | S14: =INT(RAND()*(150-1)+1) -> 84 | T14: m | U14: = | W14: m | Z14: =Q14*VLOOKUP(R14,$AD$25:$AT$40,VLOOKUP(W14,$AD$25:$AE$40,2,0),0)+S14 -> 13084 | AA14: m
A15: 7 | B15: 42 | C15: =INT(RAND()*(100-1)+1) -> 24 | D15: m | E15: =INT(RAND()*(10-1)+1) -> 3 | F15: cm | G15: = | I15: cm | L15: =C15*VLOOKUP(D15,$AD$25:$AT$40,VLOOKUP(I15,$AD$25:$AE$40,2,0),0)+E15 -> 2403 | M15: cm | Q15: =INT(RAND()*(100-1)+1) -> 95 | R15: m | S15: =INT(RAND()*(10-1)+1) -> 9 | T15: cm | U15: = | W15: cm | Z15: =Q15*VLOOKUP(R15,$AD$25:$AT$40,VLOOKUP(W15,$AD$25:$AE$40,2,0),0)+S15 -> 9509 | AA15: cm
A16: 6 | B16: 79 | C16: =INT(RAND()*(100-1)+1)*1000 -> 13000 | D16: cm | G16: = | I16: m | L16: =C16*VLOOKUP(D16,$AD$25:$AT$40,VLOOKUP(I16,$AD$25:$AE$40,2,0),0) -> 130 | M16: m | Q16: =INT(RAND()*(100-1)+1)*1000 -> 39000 | R16: cm | U16: = | W16: m | Z16: =Q16*VLOOKUP(R16,$AD$25:$AT$40,VLOOKUP(W16,$AD$25:$AE$40,2,0),0) -> 390 | AA16: m
A17: 18 | B17: 69 | C17: =INT(RAND()*(100-1)+1)*1000 -> 67000 | D17: mm | G17: = | I17: m | L17: =C17*VLOOKUP(D17,$AD$25:$AT$40,VLOOKUP(I17,$AD$25:$AE$40,2,0),0) -> 67 | M17: m | Q17: =INT(RAND()*(100-1)+1)*1000 -> 48000 | R17: mm | U17: = | W17: m | Z17: =Q17*VLOOKUP(R17,$AD$25:$AT$40,VLOOKUP(W17,$AD$25:$AE$40,2,0),0) -> 48 | AA17: m
A18: 8 | B18: 91 | C18: =INT(RAND()*(100-1)+1) -> 53 | D18: km | E18: =INT(RAND()*(200-1)+1) -> 103 | F18: m | G18: = | I18: m | L18: =C18*VLOOKUP(D18,$AD$25:$AT$40,VLOOKUP(I18,$AD$25:$AE$40,2,0),0)+E18 -> 53103 | M18: m | Q18: =INT(RAND()*(100-1)+1) -> 80 | R18: km | S18: =INT(RAND()*(200-1)+1) -> 8 | T18: m | U18: = | W18: m | Z18: =Q18*VLOOKUP(R18,$AD$25:$AT$40,VLOOKUP(W18,$AD$25:$AE$40,2,0),0)+S18 -> 80008 | AA18: m
A19: 20 | B19: 27 | C19: =INT(RAND()*(1000-1)+1) -> 627 | D19: km | G19: = | I19: m | L19: =C19*VLOOKUP(D19,$AD$25:$AT$40,VLOOKUP(I19,$AD$25:$AE$40,2,0),0) -> 627000 | M19: m | Q19: =INT(RAND()*(1000-1)+1) -> 218 | R19: km | U19: = | W19: m | Z19: =Q19*VLOOKUP(R19,$AD$25:$AT$40,VLOOKUP(W19,$AD$25:$AE$40,2,0),0) -> 218000 | AA19: m
A20: 2 | B20: =INT(RAND()*(100-1)+1) -> 80 | C20: =INT(RAND()*(100-1)+1)*1000 -> 65000 | D20: m | G20: = | I20: km | L20: =C20*VLOOKUP(D20,$AD$25:$AT$40,VLOOKUP(I20,$AD$25:$AE$40,2,0),0) -> 65 | M20: km | Q20: =INT(RAND()*(100-1)+1)*1000 -> 29000 | R20: m | U20: = | W20: km | Z20: =Q20*VLOOKUP(R20,$AD$25:$AT$40,VLOOKUP(W20,$AD$25:$AE$40,2,0),0) -> 29 | AA20: km
A21: 15 | B21: =INT(RAND()*(100-1)+1) -> 7 | C21: =INT(RAND()*(10-1)+1) -> 9 | D21: m | G21: = | I21: mm | L21: =C21*VLOOKUP(D21,$AD$25:$AT$40,VLOOKUP(I21,$AD$25:$AE$40,2,0),0) -> 9000 | M21: mm | Q21: =INT(RAND()*(10-1)+1) -> 5 | R21: m | U21: = | W21: mm | Z21: =Q21*VLOOKUP(R21,$AD$25:$AT$40,VLOOKUP(W21,$AD$25:$AE$40,2,0),0) -> 5000 | AA21: mm
A22: 1 | B22: =INT(RAND()*(100-1)+1) -> 3 | C22: =INT(RAND()*(100-1)+1)*1000 -> 15000 | D22: mm | G22: = | I22: m | L22: =C22*VLOOKUP(D22,$AD$25:$AT$40,VLOOKUP(I22,$AD$25:$AE$40,2,0),0) -> 15 | M22: m | Q22: =INT(RAND()*(100-1)+1)*1000 -> 80000 | R22: mm | U22: = | W22: m | Z22: =Q22*VLOOKUP(R22,$AD$25:$AT$40,VLOOKUP(W22,$AD$25:$AE$40,2,0),0) -> 80 | AA22: m
A23: 13 | B23: =INT(RAND()*(100-1)+1) -> 44 | C23: =INT(RAND()*(100-1)+1) -> 75 | D23: dm | E23: =INT(RAND()*(9-1)+1) -> 6 | F23: cm | G23: = | I23: cm | L23: =C23*VLOOKUP(D23,$AD$25:$AT$40,VLOOKUP(I23,$AD$25:$AE$40,2,0),0)+E23 -> 756 | M23: cm | Q23: =INT(RAND()*(100-1)+1) -> 16 | R23: dm | S23: =INT(RAND()*(9-1)+1) -> 2 | T23: cm | U23: = | W23: cm | Z23: =Q23*VLOOKUP(R23,$AD$25:$AT$40,VLOOKUP(W23,$AD$25:$AE$40,2,0),0)+S23 -> 162 | AA23: cm
AF24: 10 | AG24: 10 | AH24: 10 | AI24: 1000
AF25: mm | AG25: cm | AH25: dm | AI25: m | AJ25: km
AD26: mm | AE26: 3 | AF26: 1 | AG26: =AF26/AF$24 -> 0.1 | AH26: 0.01 | AI26: 0.001 | AJ26: 1e-06
AD27: cm | AE27: 4 | AF27: 10 | AG27: 1 | AH27: 0.1 | AI27: 0.01 | AJ27: 1e-05
AD28: dm | AE28: 5 | AF28: 100 | AG28: 10 | AH28: 1 | AI28: 0.1 | AJ28: 0.0001
AD29: m | AE29: 6 | AF29: 1000 | AG29: 100 | AH29: 10 | AI29: 1 | AJ29: 0.001
AD30: km | AE30: 7 | AF30: 1000000 | AG30: 100000 | AH30: 10000 | AI30: 1000 | AJ30: 1

Sheet 5e
C1: Hohlmasse umrechnen | Q1: Hohlmasse umrechnen
J2: ="Nr. "&INT(RAND()*(10000-1000)+1000)&" " -> Nr. 3768 | M2: =J2 -> Nr. 3768 | X2: ="Nr. "&INT(RAND()*(10000-1000)+1000)&" " -> Nr. 5749 | AA2: =X2 -> Nr. 5749
A4: 20 | B4: =INT(RAND()*(100-1)+1) -> 36 | C4: =INT(RAND()*(100-1)+1) -> 69 | D4: l | E4: =INT(RAND()*(9-1)+1) -> 2 | F4: ml | G4: = | I4: ml | L4: =C4*VLOOKUP(D4,$AD$25:$AT$40,VLOOKUP(I4,$AD$25:$AE$40,2,0),0)+E4 -> 69002 | M4: =I4 -> ml | Q4: =INT(RAND()*(100-1)+1) -> 10 | R4: l | S4: =INT(RAND()*(9-1)+1) -> 4 | T4: ml | U4: = | W4: ml | Z4: =Q4*VLOOKUP(R4,$AD$25:$AT$40,VLOOKUP(W4,$AD$25:$AE$40,2,0),0)+S4 -> 10004 | AA4: =W4 -> ml
A5: 6 | B5: =INT(RAND()*(100-1)+1) -> 41 | C5: =INT(RAND()*(100-1)+1) -> 67 | D5: cl | G5: = | I5: ml | L5: =C5*VLOOKUP(D5,$AD$25:$AT$40,VLOOKUP(I5,$AD$25:$AE$40,2,0),0) -> 670 | M5: ml | Q5: =INT(RAND()*(100-1)+1) -> 24 | R5: cl | U5: = | W5: ml | Z5: =Q5*VLOOKUP(R5,$AD$25:$AT$40,VLOOKUP(W5,$AD$25:$AE$40,2,0),0) -> 240 | AA5: ml
A6: 15 | B6: =INT(RAND()*(100-1)+1) -> 14 | C6: =INT(RAND()*(100-1)+1)*10 -> 860 | D6: ml | G6: = | I6: cl | L6: =C6*VLOOKUP(D6,$AD$25:$AT$40,VLOOKUP(I6,$AD$25:$AE$40,2,0),0) -> 86 | M6: cl | Q6: =INT(RAND()*(100-1)+1)*10 -> 440 | R6: ml | U6: = | W6: cl | Z6: =Q6*VLOOKUP(R6,$AD$25:$AT$40,VLOOKUP(W6,$AD$25:$AE$40,2,0),0) -> 44 | AA6: cl
A7: 2 | B7: 44 | C7: 26 | D7: l | E7: =INT(RAND()*(999-100)+100) -> 190 | F7: ml | G7: = | I7: ml | L7: =C7*VLOOKUP(D7,$AD$25:$AT$40,VLOOKUP(I7,$AD$25:$AE$40,2,0),0)+E7 -> 26190 | M7: ml | Q7: =INT(RAND()*(100-1)+1) -> 38 | R7: l | S7: =INT(RAND()*(999-100)+100) -> 984 | T7: ml | U7: = | W7: ml | Z7: =Q7*VLOOKUP(R7,$AD$25:$AT$40,VLOOKUP(W7,$AD$25:$AE$40,2,0),0)+S7 -> 38984 | AA7: ml
A8: 16 | B8: 80 | C8: 46 | D8: cl | G8: = | I8: ml | L8: =C8*VLOOKUP(D8,$AD$25:$AT$40,VLOOKUP(I8,$AD$25:$AE$40,2,0),0) -> 460 | M8: ml | Q8: 88 | R8: cl | U8: = | W8: ml | Z8: =Q8*VLOOKUP(R8,$AD$25:$AT$40,VLOOKUP(W8,$AD$25:$AE$40,2,0),0) -> 880 | AA8: ml
A9: 1 | B9: 86 | C9: 62 | D9: dl | G9: = | I9: cl | L9: =C9*VLOOKUP(D9,$AD$25:$AT$40,VLOOKUP(I9,$AD$25:$AE$40,2,0),0) -> 620 | M9: cl | Q9: 13 | R9: dl | U9: = | W9: cl | Z9: =Q9*VLOOKUP(R9,$AD$25:$AT$40,VLOOKUP(W9,$AD$25:$AE$40,2,0),0) -> 130 | AA9: cl
A10: 19 | B10: 82 | C10: 8 | D10: l | E10: =INT(RAND()*(99-1)+1) -> 91 | F10: cl | G10: = | I10: cl | L10: =C10*VLOOKUP(D10,$AD$25:$AT$40,VLOOKUP(I10,$AD$25:$AE$40,2,0),0)+E10 -> 891 | M10: cl | Q10: 6 | R10: l | S10: =INT(RAND()*(99-1)+1) -> 87 | T10: cl | U10: = | W10: cl | Z10: =Q10*VLOOKUP(R10,$AD$25:$AT$40,VLOOKUP(W10,$AD$25:$AE$40,2,0),0)+S10 -> 687 | AA10: cl
A11: 11 | B11: 38 | C11: 63 | D11: l | E11: =INT(RAND()*(999-100)+100) -> 318 | F11: ml | G11: = | I11: ml | L11: 63318 | M11: ml | Q11: 36 | R11: l | S11: =INT(RAND()*(999-100)+100) -> 884 | T11: ml | U11: = | W11: ml | Z11: 36884 | AA11: ml
A12: 8 | B12: 50 | C12: 77 | D12: l | E12: =INT(RAND()*(99-1)+1) -> 45 | F12: cl | G12: = | I12: cl | L12: 7745 | M12: cl | Q12: 19 | R12: l | S12: =INT(RAND()*(99-1)+1) -> 49 | T12: cl | U12: = | W12: cl | Z12: 1949 | AA12: cl
A13: 17 | B13: 42 | C13: 39 | D13: l | E13: =INT(RAND()*(99-1)+1) -> 54 | F13: ml | G13: = | I13: ml | L13: 39054 | M13: ml | Q13: 99 | R13: l | S13: =INT(RAND()*(99-1)+1) -> 78 | T13: ml | U13: = | W13: ml | Z13: 99078 | AA13: ml
A14: 13 | B14: 35 | C14: 23 | D14: l | G14: = | I14: ml | L14: 23000 | M14: ml | Q14: 58 | R14: l | U14: = | W14: ml | Z14: 58000 | AA14: ml
A15: 18 | B15: 63 | C15: 85 | D15: dl | E15: =INT(RAND()*(15-1)+1) -> 4 | F15: ml | G15: = | I15: ml | L15: 8504 | M15: ml | Q15: 29 | R15: dl | S15: =INT(RAND()*(15-1)+1) -> 6 | T15: ml | U15: = | W15: ml | Z15: 2906 | AA15: ml
A16: 5 | B16: 40 | C16: 6 | D16: dl | G16: = | I16: cl | L16: =C16*VLOOKUP(D16,$AD$25:$AT$40,VLOOKUP(I16,$AD$25:$AE$40,2,0),0) -> 60 | M16: cl | Q16: 70 | R16: dl | U16: = | W16: cl | Z16: =Q16*VLOOKUP(R16,$AD$25:$AT$40,VLOOKUP(W16,$AD$25:$AE$40,2,0),0) -> 700 | AA16: cl
A17: 9 | B17: 95 | C17: 4 | D17: l | E17: =INT(RAND()*(99-1)+1) -> 41 | F17: ml | G17: = | I17: ml | L17: =C17*VLOOKUP(D17,$AD$25:$AT$40,VLOOKUP(I17,$AD$25:$AE$40,2,0),0)+E17 -> 4041 | M17: ml | Q17: 26 | R17: l | S17: =INT(RAND()*(99-1)+1) -> 27 | T17: ml | U17: = | W17: ml | Z17: =Q17*VLOOKUP(R17,$AD$25:$AT$40,VLOOKUP(W17,$AD$25:$AE$40,2,0),0)+S17 -> 26027 | AA17: ml
A18: 4 | B18: 82 | C18: =INT(RAND()*(100-1)+1)*10 -> 920 | D18: ml | G18: = | I18: cl | L18: =C18*VLOOKUP(D18,$AD$25:$AT$40,VLOOKUP(I18,$AD$25:$AE$40,2,0),0) -> 92 | M18: cl | Q18: =INT(RAND()*(100-1)+1)*10 -> 280 | R18: ml | U18: = | W18: cl | Z18: =Q18*VLOOKUP(R18,$AD$25:$AT$40,VLOOKUP(W18,$AD$25:$AE$40,2,0),0) -> 28 | AA18: cl
A19: 10 | B19: 10 | C19: =INT(RAND()*(100-1)+1) -> 65 | D19: dl | E19: =INT(RAND()*(15-1)+1) -> 1 | F19: ml | G19: = | I19: ml | L19: =C19*VLOOKUP(D19,$AD$25:$AT$40,VLOOKUP(I19,$AD$25:$AE$40,2,0),0)+E19 -> 6501 | M19: ml | Q19: =INT(RAND()*(100-1)+1) -> 79 | R19: dl | S19: =INT(RAND()*(15-1)+1) -> 2 | T19: ml | U19: = | W19: ml | Z19: =Q19*VLOOKUP(R19,$AD$25:$AT$40,VLOOKUP(W19,$AD$25:$AE$40,2,0),0)+S19 -> 7902 | AA19: ml
A20: 12 | B20: 94 | C20: =INT(RAND()*(100-1)+1) -> 38 | D20: l | G20: = | I20: ml | L20: =C20*VLOOKUP(D20,$AD$25:$AT$40,VLOOKUP(I20,$AD$25:$AE$40,2,0),0) -> 38000 | M20: ml | Q20: =INT(RAND()*(100-1)+1) -> 17 | R20: l | U20: = | W20: ml | Z20: =Q20*VLOOKUP(R20,$AD$25:$AT$40,VLOOKUP(W20,$AD$25:$AE$40,2,0),0) -> 17000 | AA20: ml
A21: 7 | B21: 6 | C21: =INT(RAND()*(100-1)+1) -> 76 | D21: hl | E21: =INT(RAND()*(100-1)+1) -> 29 | F21: l | G21: = | I21: l | L21: =C21*VLOOKUP(D21,$AD$25:$AT$40,VLOOKUP(I21,$AD$25:$AE$40,2,0),0)+E21 -> 7629 | M21: l | Q21: =INT(RAND()*(100-1)+1) -> 88 | R21: hl | S21: =INT(RAND()*(100-1)+1) -> 29 | T21: l | U21: = | W21: l | Z21: =Q21*VLOOKUP(R21,$AD$25:$AT$40,VLOOKUP(W21,$AD$25:$AE$40,2,0),0)+S21 -> 8829 | AA21: l
A22: 3 | B22: 52 | C22: =INT(RAND()*(100-1)+1) -> 78 | D22: l | E22: =INT(RAND()*(9-1)+1) -> 3 | F22: ml | G22: = | I22: ml | L22: =C22*VLOOKUP(D22,$AD$25:$AT$40,VLOOKUP(I22,$AD$25:$AE$40,2,0),0)+E22 -> 78003 | M22: ml | Q22: =INT(RAND()*(100-1)+1) -> 30 | R22: l | S22: =INT(RAND()*(9-1)+1) -> 5 | T22: ml | U22: = | W22: ml | Z22: =Q22*VLOOKUP(R22,$AD$25:$AT$40,VLOOKUP(W22,$AD$25:$AE$40,2,0),0)+S22 -> 30005 | AA22: ml
A23: 14 | B23: 12 | C23: =INT(RAND()*(100-1)+1) -> 99 | D23: hl | E23: =INT(RAND()*(100-1)+1) -> 10 | F23: l | G23: = | I23: l | L23: =C23*VLOOKUP(D23,$AD$25:$AT$40,VLOOKUP(I23,$AD$25:$AE$40,2,0),0)+E23 -> 9910 | M23: l | Q23: =INT(RAND()*(100-1)+1) -> 98 | R23: hl | S23: =INT(RAND()*(100-1)+1) -> 29 | T23: l | U23: = | W23: l | Z23: =Q23*VLOOKUP(R23,$AD$25:$AT$40,VLOOKUP(W23,$AD$25:$AE$40,2,0),0)+S23 -> 9829 | AA23: l
AF24: 10 | AG24: 10 | AH24: 10 | AI24: 100
AF25: ml | AG25: cl | AH25: dl | AI25: l | AJ25: hl
AD26: ml | AE26: 3 | AF26: 1 | AG26: =AF26/AF$24 -> 0.1 | AH26: 0.01 | AI26: 0.001 | AJ26: 1e-05
AD27: cl | AE27: 4 | AF27: 10 | AG27: 1 | AH27: 0.1 | AI27: 0.01 | AJ27: 0.0001
AD28: dl | AE28: 5 | AF28: 100 | AG28: 10 | AH28: 1 | AI28: 0.1 | AJ28: 0.001
AD29: l | AE29: 6 | AF29: 1000 | AG29: 100 | AH29: 10 | AI29: 1 | AJ29: 0.01
AD30: hl | AE30: 7 | AF30: 100000 | AG30: 10000 | AH30: 1000 | AI30: 100 | AJ30: 1

Sheet 6a
A1: Kopfrechnen | L1: ="Blatt Nr. "&INT(RAND()*(10000-1000)+1000)&" " -> Blatt Nr. 9974 | S1: =L1 -> Blatt Nr. 9974
A2: Name:
A4: =P4*C4 -> 288 | B4: : | C4: =INT(RAND()*(12-3)+3) -> 8 | D4: = | H4: =S4*J4 -> 270 | I4: : | J4: =INT(RAND()*(12-3)+3) -> 5 | K4: = | P4: =INT(RAND()*(110-30)+30) -> 36 | S4: =INT(RAND()*(110-30)+30) -> 54
A5: =(INT(RAND()*(1000-5)+5))*1000 -> 193000 | B5: - | C5: =INT(RAND()*(5000-100)+100) -> 366 | D5: = | H5: =(INT(RAND()*(1000-5)+5))*1000 -> 926000 | I5: - | J5: =INT(RAND()*(5000-100)+100) -> 1770 | K5: = | P5: =A5-C5 -> 192634 | S5: =H5-J5 -> 924230
A6: =INT(RAND()*(10-2)+2) -> 2 | B6: * | C6: =INT(RAND()*(100-10)+10) -> 35 | D6: = | H6: =INT(RAND()*(10-2)+2) -> 7 | I6: * | J6: =INT(RAND()*(100-10)+10) -> 42 | K6: = | P6: =A6*C6 -> 70 | S6: =H6*J6 -> 294
A7: =INT(RAND()*(1000000-999)+999) -> 438409 | B7: + | C7: =INT(RAND()*(5000-100)+100) -> 3539 | D7: = | H7: =INT(RAND()*(1000000-999)+999) -> 432331 | I7: + | J7: =INT(RAND()*(5000-100)+100) -> 742 | K7: = | P7: =A7+C7 -> 441948 | S7: =H7+J7 -> 433073
A8: =(INT(RAND()*(1000-5)+5))*1000 -> 306000 | B8: - | C8: =INT(RAND()*(5000-100)+100) -> 3945 | D8: = | H8: =(INT(RAND()*(1000-5)+5))*1000 -> 21000 | I8: - | J8: =INT(RAND()*(5000-100)+100) -> 2885 | K8: = | P8: =A8-C8 -> 302055 | S8: =H8-J8 -> 18115
A9: =INT(RAND()*(999-111)+111) -> 642 | B9: : | C9: =INT(RAND()*(9-3)+3) -> 4 | D9: = | F9: R | H9: =INT(RAND()*(999-111)+111) -> 578 | I9: : | J9: =INT(RAND()*(9-3)+3) -> 5 | K9: = | M9: R | P9: =INT(A9/C9) -> 160 | Q9: R | R9: =A9-(P9*C9) -> 2 | S9: =INT(H9/J9) -> 115 | T9: R | U9: =H9-(S9*J9) -> 3
A10: =INT(RAND()*(1000000-999)+999) -> 247636 | B10: + | C10: =INT(RAND()*(5000-100)+100) -> 2228 | D10: = | H10: =INT(RAND()*(1000000-999)+999) -> 297095 | I10: + | J10: =INT(RAND()*(5000-100)+100) -> 1378 | K10: = | P10: =A10+C10 -> 249864 | S10: =H10+J10 -> 298473
A11: =INT(RAND()*(10-2)+2) -> 3 | B11: * | C11: =INT(RAND()*(1000-10)+10) -> 336 | D11: = | H11: =INT(RAND()*(10-2)+2) -> 3 | I11: * | J11: =INT(RAND()*(1000-10)+10) -> 952 | K11: = | P11: =A11*C11 -> 1008 | S11: =H11*J11 -> 2856
A12: =P12*C12 -> 2044 | B12: : | C12: =INT(RAND()*(12-3)+3) -> 4 | D12: = | H12: =S12*J12 -> 9126 | I12: : | J12: =INT(RAND()*(12-3)+3) -> 9 | K12: = | P12: =INT(RAND()*(1100-30)+30) -> 511 | S12: =INT(RAND()*(1100-30)+30) -> 1014
A13: =(INT(RAND()*(1000-5)+5))*1000 -> 18000 | B13: - | C13: =INT(RAND()*(5000-100)+100) -> 4340 | D13: = | H13: =(INT(RAND()*(1000-5)+5))*1000 -> 582000 | I13: - | J13: =INT(RAND()*(5000-100)+100) -> 2604 | K13: = | P13: =A13-C13 -> 13660 | S13: =H13-J13 -> 579396
A14: =INT(RAND()*(10-2)+2) -> 9 | B14: * | C14: =INT(RAND()*(1000-10)+10) -> 89 | D14: = | H14: =INT(RAND()*(10-2)+2) -> 6 | I14: * | J14: =INT(RAND()*(1000-10)+10) -> 302 | K14: = | P14: =A14*C14 -> 801 | S14: =H14*J14 -> 1812
A15: =INT(RAND()*(1000000-999)+999) -> 748927 | B15: + | C15: =INT(RAND()*(5000-100)+100) -> 2263 | D15: = | H15: =INT(RAND()*(1000000-999)+999) -> 781180 | I15: + | J15: =INT(RAND()*(5000-100)+100) -> 764 | K15: = | P15: =A15+C15 -> 751190 | S15: =H15+J15 -> 781944
A16: =INT(RAND()*(999-111)+111) -> 157 | B16: : | C16: =INT(RAND()*(9-3)+3) -> 6 | D16: = | F16: R | H16: =INT(RAND()*(999-111)+111) -> 356 | I16: : | J16: =INT(RAND()*(9-3)+3) -> 5 | K16: = | M16: R | P16: =INT(A16/C16) -> 26 | Q16: R | R16: =A16-(P16*C16) -> 1 | S16: =INT(H16/J16) -> 71 | T16: R | U16: =H16-(S16*J16) -> 1
A17: =(INT(RAND()*(1000-5)+5))*1000 -> 688000 | B17: - | C17: =INT(RAND()*(5000-100)+100) -> 1520 | D17: = | H17: =(INT(RAND()*(1000-5)+5))*1000 -> 698000 | I17: - | J17: =INT(RAND()*(5000-100)+100) -> 4211 | K17: = | P17: =A17-C17 -> 686480 | S17: =H17-J17 -> 693789
A18: =INT(RAND()*(10-2)+2) -> 2 | B18: * | C18: =INT(RAND()*(100-10)+10) -> 79 | D18: = | H18: =INT(RAND()*(10-2)+2) -> 2 | I18: * | J18: =INT(RAND()*(100-10)+10) -> 16 | K18: = | P18: =A18*C18 -> 158 | S18: =H18*J18 -> 32
A19: =INT(RAND()*(10000-999)+999) -> 7056 | B19: + | C19: =INT(RAND()*(5000-100)+100) -> 3395 | D19: = | H19: =INT(RAND()*(10000-999)+999) -> 7524 | I19: + | J19: =INT(RAND()*(5000-100)+100) -> 2856 | K19: = | P19: =A19+C19 -> 10451 | S19: =H19+J19 -> 10380
A20: =(INT(RAND()*(1000-5)+5))*1000 -> 102000 | B20: - | C20: =INT(RAND()*(5000-100)+100) -> 1501 | D20: = | H20: =(INT(RAND()*(1000-5)+5))*1000 -> 990000 | I20: - | J20: =INT(RAND()*(5000-100)+100) -> 2600 | K20: = | P20: =A20-C20 -> 100499 | S20: =H20-J20 -> 987400
A21: =P21*C21 -> 224 | B21: : | C21: =INT(RAND()*(12-3)+3) -> 7 | D21: = | H21: =S21*J21 -> 264 | I21: : | J21: =INT(RAND()*(12-3)+3) -> 3 | K21: = | P21: =INT(RAND()*(110-30)+30) -> 32 | S21: =INT(RAND()*(110-30)+30) -> 88
A22: =INT(RAND()*(1000000-999)+999) -> 684599 | B22: + | C22: =INT(RAND()*(5000-100)+100) -> 1120 | D22: = | H22: =INT(RAND()*(1000000-999)+999) -> 158823 | I22: + | J22: =INT(RAND()*(5000-100)+100) -> 4796 | K22: = | P22: =A22+C22 -> 685719 | S22: =H22+J22 -> 163619
A23: =INT(RAND()*(10-2)+2) -> 3 | B23: * | C23: =INT(RAND()*(100-10)+10) -> 41 | D23: = | H23: =INT(RAND()*(10-2)+2) -> 3 | I23: * | J23: =INT(RAND()*(100-10)+10) -> 11 | K23: = | P23: =A23*C23 -> 123 | S23: =H23*J23 -> 33
A24: =INT(RAND()*(999-111)+111) -> 527 | B24: : | C24: =INT(RAND()*(9-3)+3) -> 8 | D24: = | F24: R | H24: =INT(RAND()*(999-111)+111) -> 273 | I24: : | J24: =INT(RAND()*(9-3)+3) -> 3 | K24: = | M24: R | P24: =INT(A24/C24) -> 65 | Q24: R | R24: =A24-(P24*C24) -> 7 | S24: =INT(H24/J24) -> 91 | T24: R | U24: =H24-(S24*J24) -> 0
A25: =(INT(RAND()*(1000-5)+5))*1000 -> 230000 | B25: - | C25: =INT(RAND()*(5000-100)+100) -> 1255 | D25: = | H25: =(INT(RAND()*(1000-5)+5))*1000 -> 600000 | I25: - | J25: =INT(RAND()*(5000-100)+100) -> 2760 | K25: = | P25: =A25-C25 -> 228745 | S25: =H25-J25 -> 597240
A26: =INT(RAND()*(10-2)+2) -> 9 | B26: * | C26: =INT(RAND()*(100-10)+10) -> 26 | D26: = | H26: =INT(RAND()*(10-2)+2) -> 6 | I26: * | J26: =INT(RAND()*(100-10)+10) -> 89 | K26: = | P26: =A26*C26 -> 234 | S26: =H26*J26 -> 534
A27: =INT(RAND()*(1000000-999)+999) -> 800919 | B27: + | C27: =INT(RAND()*(5000-100)+100) -> 2471 | D27: = | H27: =INT(RAND()*(1000000-999)+999) -> 619675 | I27: + | J27: =INT(RAND()*(5000-100)+100) -> 855 | K27: = | P27: =A27+C27 -> 803390 | S27: =H27+J27 -> 620530
A28: =INT(RAND()*(999-111)+111) -> 559 | B28: : | C28: =INT(RAND()*(9-3)+3) -> 6 | D28: = | F28: R | H28: =INT(RAND()*(999-111)+111) -> 446 | I28: : | J28: =INT(RAND()*(9-3)+3) -> 4 | K28: = | M28: R | P28: =INT(A28/C28) -> 93 | Q28: R | R28: =A28-(P28*C28) -> 1 | S28: =INT(H28/J28) -> 111 | T28: R | U28: =H28-(S28*J28) -> 2

Sheet 6b
A1: Halbschriftliches Rechnen | O1: ...mit Dezimalzahlen
A2: Name: | L2: ="Blatt Nr. "&INT(RAND()*(10000-1000)+1000)&" " -> Blatt Nr. 2208 | S2: =L2 -> Blatt Nr. 2208
A4: =P4*C4 -> 9 | B4: : | C4: =INT(RAND()*(12-3)+3) -> 3 | D4: = | H4: =S4*J4 -> 21.6 | I4: : | J4: =INT(RAND()*(12-3)+3) -> 4 | K4: = | P4: =(INT(RAND()*((110-30)+30)))/10 -> 3 | S4: =(INT(RAND()*((110-30)+30)))/10 -> 5.4
A5: =(INT(RAND()*(1000-5)+5))*1000 -> 425000 | B5: - | C5: =(INT(RAND()*(5000-100)+100)/10) -> 249.4 | D5: = | H5: =(INT(RAND()*(1000-5)+5))*1000 -> 234000 | I5: - | J5: =(INT(RAND()*(5000-100)+100)/10) -> 212.8 | K5: = | P5: =A5-C5 -> 424750.6 | S5: =H5-J5 -> 233787.2
A6: =INT(RAND()*(10-2)+2) -> 3 | B6: * | C6: =(INT(RAND()*(1000-100)+100))/10 -> 97.4 | D6: = | H6: =INT(RAND()*(10-2)+2) -> 8 | I6: * | J6: =(INT(RAND()*(1000-100)+100))/10 -> 38.6 | K6: = | P6: =A6*C6 -> 292.2 | S6: =H6*J6 -> 308.8
A7: =(INT(RAND()*(1000000-999)+999))/10 -> 29102.6 | B7: + | C7: =(INT(RAND()*(5000-100)+100))/10 -> 431.3 | D7: = | H7: =(INT(RAND()*(1000000-999)+999))/10 -> 3402.3 | I7: + | J7: =(INT(RAND()*(5000-100)+100))/10 -> 375.2 | K7: = | P7: =A7+C7 -> 29533.9 | S7: =H7+J7 -> 3777.5
A8: =(INT(RAND()*(1000-5)+5))*1000 -> 931000 | B8: - | C8: =(INT(RAND()*(5000-100)+100)/10) -> 281.4 | D8: = | H8: =(INT(RAND()*(1000-5)+5))*1000 -> 189000 | I8: - | J8: =(INT(RAND()*(5000-100)+100)/10) -> 131 | K8: = | P8: =A8-C8 -> 930718.6 | S8: =H8-J8 -> 188869
A9: =P9*C9 -> 92.4 | B9: : | C9: =INT(RAND()*(12-3)+3) -> 11 | D9: = | H9: =S9*J9 -> 6.8 | I9: : | J9: =INT(RAND()*(12-3)+3) -> 4 | K9: = | P9: =(INT(RAND()*((110-30)+30)))/10 -> 8.4 | S9: =(INT(RAND()*((110-30)+30)))/10 -> 1.7
A10: =(INT(RAND()*(1000000-999)+999))/10 -> 41084.9 | B10: + | C10: =(INT(RAND()*(5000-100)+100))/10 -> 448.4 | D10: = | H10: =(INT(RAND()*(1000000-999)+999))/10 -> 5826.1 | I10: + | J10: =(INT(RAND()*(5000-100)+100))/10 -> 124.2 | K10: = | P10: =A10+C10 -> 41533.3 | S10: =H10+J10 -> 5950.3
A11: =INT(RAND()*(10-2)+2) -> 5 | B11: * | C11: =(INT(RAND()*(1000-100)+100))/10 -> 36.2 | D11: = | H11: =INT(RAND()*(10-2)+2) -> 3 | I11: * | J11: =(INT(RAND()*(1000-100)+100))/10 -> 60 | K11: = | P11: =A11*C11 -> 181 | S11: =H11*J11 -> 180
A12: =P12*C12 -> 20.5 | B12: : | C12: =INT(RAND()*(12-3)+3) -> 5 | D12: = | H12: =S12*J12 -> 88 | I12: : | J12: =INT(RAND()*(12-3)+3) -> 11 | K12: = | P12: =(INT(RAND()*((110-30)+30)))/10 -> 4.1 | S12: =(INT(RAND()*((110-30)+30)))/10 -> 8
A13: =(INT(RAND()*(1000-5)+5))*1000 -> 626000 | B13: - | C13: =(INT(RAND()*(5000-100)+100)/10) -> 206.7 | D13: = | H13: =(INT(RAND()*(1000-5)+5))*1000 -> 735000 | I13: - | J13: =(INT(RAND()*(5000-100)+100)/10) -> 50.8 | K13: = | P13: =A13-C13 -> 625793.3 | S13: =H13-J13 -> 734949.2
A14: =INT(RAND()*(10-2)+2) -> 4 | B14: * | C14: =(INT(RAND()*(1000-100)+100))/10 -> 44.7 | D14: = | H14: =INT(RAND()*(10-2)+2) -> 4 | I14: * | J14: =(INT(RAND()*(1000-100)+100))/10 -> 19.1 | K14: = | P14: =A14*C14 -> 178.8 | S14: =H14*J14 -> 76.4
A15: =(INT(RAND()*(1000000-999)+999))/10 -> 14694.8 | B15: + | C15: =(INT(RAND()*(5000-100)+100))/10 -> 174.3 | D15: = | H15: =(INT(RAND()*(1000000-999)+999))/10 -> 13278.3 | I15: + | J15: =(INT(RAND()*(5000-100)+100))/10 -> 205.1 | K15: = | P15: =A15+C15 -> 14869.1 | S15: =H15+J15 -> 13483.4
A16: =P16*C16 -> 70.4 | B16: : | C16: =INT(RAND()*(12-3)+3) -> 11 | D16: = | H16: =S16*J16 -> 20.8 | I16: : | J16: =INT(RAND()*(12-3)+3) -> 4 | K16: = | P16: =(INT(RAND()*((110-30)+30)))/10 -> 6.4 | S16: =(INT(RAND()*((110-30)+30)))/10 -> 5.2
A17: =(INT(RAND()*(1000-5)+5))*1000 -> 709000 | B17: - | C17: =(INT(RAND()*(5000-100)+100)/10) -> 370.2 | D17: = | H17: =(INT(RAND()*(1000-5)+5))*1000 -> 726000 | I17: - | J17: =(INT(RAND()*(5000-100)+100)/10) -> 48.2 | K17: = | P17: =A17-C17 -> 708629.8 | S17: =H17-J17 -> 725951.8
A18: =INT(RAND()*(10-2)+2) -> 4 | B18: * | C18: =(INT(RAND()*(1000-100)+100))/10 -> 12.5 | D18: = | H18: =INT(RAND()*(10-2)+2) -> 8 | I18: * | J18: =(INT(RAND()*(1000-100)+100))/10 -> 79.6 | K18: = | P18: =A18*C18 -> 50 | S18: =H18*J18 -> 636.8
A19: =(INT(RAND()*(1000000-999)+999))/10 -> 64531.4 | B19: + | C19: =(INT(RAND()*(5000-100)+100))/10 -> 432.1 | D19: = | H19: =(INT(RAND()*(1000000-999)+999))/10 -> 75610 | I19: + | J19: =(INT(RAND()*(5000-100)+100))/10 -> 257.2 | K19: = | P19: =A19+C19 -> 64963.5 | S19: =H19+J19 -> 75867.2
A20: =(INT(RAND()*(1000-5)+5))*1000 -> 153000 | B20: - | C20: =(INT(RAND()*(5000-100)+100)/10) -> 189.7 | D20: = | H20: =(INT(RAND()*(1000-5)+5))*1000 -> 270000 | I20: - | J20: =(INT(RAND()*(5000-100)+100)/10) -> 190.3 | K20: = | P20: =A20-C20 -> 152810.3 | S20: =H20-J20 -> 269809.7
A21: =P21*C21 -> 24.8 | B21: : | C21: =INT(RAND()*(12-3)+3) -> 4 | D21: = | H21: =S21*J21 -> 30.1 | I21: : | J21: =INT(RAND()*(12-3)+3) -> 7 | K21: = | P21: =(INT(RAND()*((110-30)+30)))/10 -> 6.2 | S21: =(INT(RAND()*((110-30)+30)))/10 -> 4.3
A22: =(INT(RAND()*(1000000-999)+999))/10 -> 20050.9 | B22: + | C22: =(INT(RAND()*(5000-100)+100))/10 -> 264 | D22: = | H22: =(INT(RAND()*(1000000-999)+999))/10 -> 10095.5 | I22: + | J22: =(INT(RAND()*(5000-100)+100))/10 -> 139 | K22: = | P22: =A22+C22 -> 20314.9 | S22: =H22+J22 -> 10234.5
A23: =INT(RAND()*(10-2)+2) -> 5 | B23: * | C23: =(INT(RAND()*(1000-100)+100))/10 -> 63.8 | D23: = | H23: =INT(RAND()*(10-2)+2) -> 8 | I23: * | J23: =(INT(RAND()*(1000-100)+100))/10 -> 55 | K23: = | P23: =A23*C23 -> 319 | S23: =H23*J23 -> 440
A24: =P24*C24 -> 33.6 | B24: : | C24: =INT(RAND()*(12-3)+3) -> 7 | D24: = | H24: =S24*J24 -> 39.6 | I24: : | J24: =INT(RAND()*(12-3)+3) -> 11 | K24: = | P24: =(INT(RAND()*((110-30)+30)))/10 -> 4.8 | S24: =(INT(RAND()*((110-30)+30)))/10 -> 3.6
A25: =(INT(RAND()*(1000-5)+5))*1000 -> 989000 | B25: - | C25: =(INT(RAND()*(5000-100)+100)/10) -> 467.2 | D25: = | H25: =(INT(RAND()*(1000-5)+5))*1000 -> 458000 | I25: - | J25: =(INT(RAND()*(5000-100)+100)/10) -> 307.9 | K25: = | P25: =A25-C25 -> 988532.8 | S25: =H25-J25 -> 457692.1
A26: =INT(RAND()*(10-2)+2) -> 5 | B26: * | C26: =(INT(RAND()*(1000-100)+100))/10 -> 32.3 | D26: = | H26: =INT(RAND()*(10-2)+2) -> 5 | I26: * | J26: =(INT(RAND()*(1000-100)+100))/10 -> 93.7 | K26: = | P26: =A26*C26 -> 161.5 | S26: =H26*J26 -> 468.5
A27: =(INT(RAND()*(1000000-999)+999))/10 -> 69581.4 | B27: + | C27: =(INT(RAND()*(5000-100)+100))/10 -> 260.5 | D27: = | H27: =(INT(RAND()*(1000000-999)+999))/10 -> 86346.9 | I27: + | J27: =(INT(RAND()*(5000-100)+100))/10 -> 58.9 | K27: = | P27: =A27+C27 -> 69841.9 | S27: =H27+J27 -> 86405.8
A28: =P28*C28 -> 12.1 | B28: : | C28: =INT(RAND()*(12-3)+3) -> 11 | D28: = | H28: =S28*J28 -> 30.5 | I28: : | J28: =INT(RAND()*(12-3)+3) -> 5 | K28: = | P28: =(INT(RAND()*((110-30)+30)))/10 -> 1.1 | S28: =(INT(RAND()*((110-30)+30)))/10 -> 6.1

Sheet 6c
A1: Schriftliche Operationen | O1: ...mit Dezimalzahlen
A2: Name: | L2: ="Blatt Nr. "&INT(RAND()*(10000-1000)+1000)&" " -> Blatt Nr. 7134 | S2: =L2 -> Blatt Nr. 7134
A4: =P4*C4 -> 6733.17 | B4: : | C4: =IF(V4=ROUNDDOWN(V4,0),W4,V4) -> 7.9 | D4: = | H4: =S4*J4 -> 2145.6 | I4: : | J4: =IF(Y4=ROUNDDOWN(Y4,0),Z4,Y4) -> 3.2 | K4: = | P4: =(INT(RAND()*((11000-30)+30)))/10 -> 852.3 | S4: =(INT(RAND()*((11000-30)+30)))/10 -> 670.5 | V4: =(INT(RAND()*(120-30)+30))/10 -> 7.9 | W4: =(INT(RAND()*(120-30)+30))/10 -> 4.9 | Y4: =(INT(RAND()*(120-30)+30))/10 -> 7 | Z4: =(INT(RAND()*(120-30)+30))/10 -> 3.2
A5: =IF(V5>X5,V5,X5) -> 1023.1 | B5: - | C5: =IF(A5=V5,X5,V5) -> 684.7 | D5: = | H5: =IF(Y5>AA5,Y5,AA5) -> 1922.95 | I5: - | J5: =IF(H5=Y5,AA5,Y5) -> 205.8 | K5: = | P5: =A5-C5 -> 338.4 | S5: =H5-J5 -> 1717.15 | V5: =((INT(RAND()*(100000-999)+999))/100) -> 684.7 | W5: - | X5: =(INT(RAND()*(100000-999)+999)/10) -> 1023.1 | Y5: =((INT(RAND()*(1000000-999)+999))/100) -> 1922.95 | Z5: - | AA5: =(INT(RAND()*(5000-1000)+1000)/10) -> 205.8
A6: =IF(V6=ROUNDDOWN(V6,0),W6,V6) -> 7.5 | B6: * | C6: =(INT(RAND()*(10000-1000)+1000))/100 -> 75.19 | D6: = | H6: =IF(X6=ROUNDDOWN(X6,0),Y6,X6) -> 88.3 | I6: * | J6: =IF(AA6=ROUNDDOWN(AA6,0),AB6,AA6) -> 2.2 | K6: = | P6: =A6*C6 -> 563.925 | S6: =H6*J6 -> 194.26 | V6: =(INT(RAND()*(100-10)+10))/10 -> 7.5 | W6: =(INT(RAND()*(100-10)+10))/10 -> 5.1 | X6: =(INT(RAND()*(1000-100)+100))/10 -> 88.3 | Y6: =(INT(RAND()*(1000-100)+100))/10 -> 61.4 | AA6: =(INT(RAND()*(100-10)+10))/10 -> 2.2 | AB6: =(INT(RAND()*(100-10)+10))/10 -> 1.2
A7: =IF(V7=ROUNDDOWN(V7,0),W7,V7) -> 8446.9 | B7: + | C7: =(INT(RAND()*(50000-1000)+1000))/100 -> 188.42 | D7: = | H7: =(INT(RAND()*(1000000-999)+999))/100 -> 6131.68 | I7: + | J7: =IF(Y7=ROUNDDOWN(Y7,0),Z7,Y7) -> 458.7 | K7: = | P7: =A7+C7 -> 8635.32 | S7: =H7+J7 -> 6590.38 | V7: =(INT(RAND()*(1000000-999)+999))/10 -> 8446.9 | W7: =(INT(RAND()*(1000000-999)+999))/10 -> 66173 | Y7: =(INT(RAND()*(5000-100)+100))/10 -> 458.7 | Z7: =(INT(RAND()*(5000-100)+100))/10 -> 21.6
A8: =P8*C8 -> 6232.95 | B8: : | C8: =IF(V8=ROUNDDOWN(V8,0),W8,V8) -> 9.5 | D8: = | H8: =S8*J8 -> 1051.62 | I8: : | J8: =IF(Y8=ROUNDDOWN(Y8,0),Z8,Y8) -> 5.1 | K8: = | P8: =(INT(RAND()*((11000-30)+30)))/10 -> 656.1 | S8: =(INT(RAND()*((11000-30)+30)))/10 -> 206.2 | V8: =(INT(RAND()*(120-30)+30))/10 -> 9.5 | W8: =(INT(RAND()*(120-30)+30))/10 -> 11.2 | Y8: =(INT(RAND()*(120-30)+30))/10 -> 5.1 | Z8: =(INT(RAND()*(120-30)+30))/10 -> 3.6
A9: =IF(V9>X9,V9,X9) -> 8803.4 | B9: - | C9: =IF(A9=V9,X9,V9) -> 503.85 | D9: = | H9: =IF(Y9>AA9,Y9,AA9) -> 2563.69 | I9: - | J9: =IF(H9=Y9,AA9,Y9) -> 200.8 | K9: = | P9: =A9-C9 -> 8299.55 | S9: =H9-J9 -> 2362.89 | V9: =((INT(RAND()*(100000-999)+999))/100) -> 503.85 | W9: - | X9: =(INT(RAND()*(100000-999)+999)/10) -> 8803.4 | Y9: =((INT(RAND()*(1000000-999)+999))/100) -> 2563.69 | Z9: - | AA9: =(INT(RAND()*(5000-1000)+1000)/10) -> 200.8
A10: =IF(V10=ROUNDDOWN(V10,0),W10,V10) -> 8.1 | B10: * | C10: =(INT(RAND()*(10000-1000)+1000))/100 -> 57.56 | D10: = | H10: =IF(X10=ROUNDDOWN(X10,0),Y10,X10) -> 18.3 | I10: * | J10: =IF(AA10=ROUNDDOWN(AA10,0),AB10,AA10) -> 2.7 | K10: = | P10: =A10*C10 -> 466.236 | S10: =H10*J10 -> 49.41 | V10: =(INT(RAND()*(100-10)+10))/10 -> 8.1 | W10: =(INT(RAND()*(100-10)+10))/10 -> 2.4 | X10: =(INT(RAND()*(1000-100)+100))/10 -> 18.3 | Y10: =(INT(RAND()*(1000-100)+100))/10 -> 12.5 | AA10: =(INT(RAND()*(100-10)+10))/10 -> 2.7 | AB10: =(INT(RAND()*(100-10)+10))/10 -> 6.1
A11: =IF(V11=ROUNDDOWN(V11,0),W11,V11) -> 90994.3 | B11: + | C11: =(INT(RAND()*(50000-1000)+1000))/100 -> 112.66 | D11: = | H11: =(INT(RAND()*(1000000-999)+999))/100 -> 4844.78 | I11: + | J11: =IF(Y11=ROUNDDOWN(Y11,0),Z11,Y11) -> 327.9 | K11: = | P11: =A11+C11 -> 91106.96 | S11: =H11+J11 -> 5172.68 | V11: =(INT(RAND()*(1000000-999)+999))/10 -> 90994.3 | W11: =(INT(RAND()*(1000000-999)+999))/10 -> 31175.4 | Y11: =(INT(RAND()*(5000-100)+100))/10 -> 327.9 | Z11: =(INT(RAND()*(5000-100)+100))/10 -> 449.6
A12: =P12*C12 -> 2268.6 | B12: : | C12: =IF(V12=ROUNDDOWN(V12,0),W12,V12) -> 3.8 | D12: = | H12: =S12*J12 -> 2436.05 | I12: : | J12: =IF(Y12=ROUNDDOWN(Y12,0),Z12,Y12) -> 8.3 | K12: = | P12: =(INT(RAND()*((11000-30)+30)))/10 -> 597 | S12: =(INT(RAND()*((11000-30)+30)))/10 -> 293.5 | V12: =(INT(RAND()*(120-30)+30))/10 -> 3.8 | W12: =(INT(RAND()*(120-30)+30))/10 -> 4.8 | Y12: =(INT(RAND()*(120-30)+30))/10 -> 8.3 | Z12: =(INT(RAND()*(120-30)+30))/10 -> 5.1
A13: =IF(V13>X13,V13,X13) -> 8319.1 | B13: - | C13: =IF(A13=V13,X13,V13) -> 353.4 | D13: = | H13: =IF(Y13>AA13,Y13,AA13) -> 8019.71 | I13: - | J13: =IF(H13=Y13,AA13,Y13) -> 469.2 | K13: = | P13: =A13-C13 -> 7965.7 | S13: =H13-J13 -> 7550.51 | V13: =((INT(RAND()*(100000-999)+999))/100) -> 353.4 | W13: - | X13: =(INT(RAND()*(100000-999)+999)/10) -> 8319.1 | Y13: =((INT(RAND()*(1000000-999)+999))/100) -> 8019.71 | Z13: - | AA13: =(INT(RAND()*(5000-1000)+1000)/10) -> 469.2
A14: =IF(V14=ROUNDDOWN(V14,0),W14,V14) -> 5.7 | B14: * | C14: =(INT(RAND()*(10000-1000)+1000))/100 -> 59.22 | D14: = | H14: =IF(X14=ROUNDDOWN(X14,0),Y14,X14) -> 97.9 | I14: * | J14: =IF(AA14=ROUNDDOWN(AA14,0),AB14,AA14) -> 2.6 | K14: = | P14: =A14*C14 -> 337.554 | S14: =H14*J14 -> 254.54 | V14: =(INT(RAND()*(100-10)+10))/10 -> 5.7 | W14: =(INT(RAND()*(100-10)+10))/10 -> 9.2 | X14: =(INT(RAND()*(1000-100)+100))/10 -> 30 | Y14: =(INT(RAND()*(1000-100)+100))/10 -> 97.9 | AA14: =(INT(RAND()*(100-10)+10))/10 -> 2.6 | AB14: =(INT(RAND()*(100-10)+10))/10 -> 3
A15: =IF(V15=ROUNDDOWN(V15,0),W15,V15) -> 42558.9 | B15: + | C15: =(INT(RAND()*(50000-1000)+1000))/100 -> 356.45 | D15: = | H15: =(INT(RAND()*(1000000-999)+999))/100 -> 7108.35 | I15: + | J15: =IF(Y15=ROUNDDOWN(Y15,0),Z15,Y15) -> 436.7 | K15: = | P15: =A15+C15 -> 42915.35 | S15: =H15+J15 -> 7545.05 | V15: =(INT(RAND()*(1000000-999)+999))/10 -> 42558.9 | W15: =(INT(RAND()*(1000000-999)+999))/10 -> 40866.5 | Y15: =(INT(RAND()*(5000-100)+100))/10 -> 436.7 | Z15: =(INT(RAND()*(5000-100)+100))/10 -> 346.8
A16: =P16*C16 -> 3885 | B16: : | C16: =IF(V16=ROUNDDOWN(V16,0),W16,V16) -> 10.5 | D16: = | H16: =S16*J16 -> 6728.58 | I16: : | J16: =IF(Y16=ROUNDDOWN(Y16,0),Z16,Y16) -> 8.7 | K16: = | P16: =(INT(RAND()*((11000-30)+30)))/10 -> 370 | S16: =(INT(RAND()*((11000-30)+30)))/10 -> 773.4 | V16: =(INT(RAND()*(120-30)+30))/10 -> 10.5 | W16: =(INT(RAND()*(120-30)+30))/10 -> 11.6 | Y16: =(INT(RAND()*(120-30)+30))/10 -> 8.7 | Z16: =(INT(RAND()*(120-30)+30))/10 -> 4.8
A17: =IF(V17>X17,V17,X17) -> 7248.6 | B17: - | C17: =IF(A17=V17,X17,V17) -> 906.23 | D17: = | H17: =IF(Y17>AA17,Y17,AA17) -> 486 | I17: - | J17: =IF(H17=Y17,AA17,Y17) -> 442.45 | K17: = | P17: =A17-C17 -> 6342.37 | S17: =H17-J17 -> 43.55 | V17: =((INT(RAND()*(100000-999)+999))/100) -> 906.23 | W17: - | X17: =(INT(RAND()*(100000-999)+999)/10) -> 7248.6 | Y17: =((INT(RAND()*(1000000-999)+999))/100) -> 442.45 | Z17: - | AA17: =(INT(RAND()*(5000-1000)+1000)/10) -> 486
A18: =IF(V18=ROUNDDOWN(V18,0),W18,V18) -> 4.1 | B18: * | C18: =(INT(RAND()*(10000-1000)+1000))/100 -> 43.92 | D18: = | H18: =IF(X18=ROUNDDOWN(X18,0),Y18,X18) -> 63.2 | I18: * | J18: =IF(AA18=ROUNDDOWN(AA18,0),AB18,AA18) -> 2.4 | K18: = | P18: =A18*C18 -> 180.072 | S18: =H18*J18 -> 151.68 | V18: =(INT(RAND()*(100-10)+10))/10 -> 4.1 | W18: =(INT(RAND()*(100-10)+10))/10 -> 9.4 | X18: =(INT(RAND()*(1000-100)+100))/10 -> 63.2 | Y18: =(INT(RAND()*(1000-100)+100))/10 -> 73.3 | AA18: =(INT(RAND()*(100-10)+10))/10 -> 2.4 | AB18: =(INT(RAND()*(100-10)+10))/10 -> 8.4
A19: =IF(V19=ROUNDDOWN(V19,0),W19,V19) -> 99703.9 | B19: + | C19: =(INT(RAND()*(50000-1000)+1000))/100 -> 126.35 | D19: = | H19: =(INT(RAND()*(1000000-999)+999))/100 -> 2550.07 | I19: + | J19: =IF(Y19=ROUNDDOWN(Y19,0),Z19,Y19) -> 90.9 | K19: = | P19: =A19+C19 -> 99830.25 | S19: =H19+J19 -> 2640.97 | V19: =(INT(RAND()*(1000000-999)+999))/10 -> 99703.9 | W19: =(INT(RAND()*(1000000-999)+999))/10 -> 34886.2 | Y19: =(INT(RAND()*(5000-100)+100))/10 -> 90.9 | Z19: =(INT(RAND()*(5000-100)+100))/10 -> 76.1
A20: =P20*C20 -> 3189.44 | B20: : | C20: =IF(V20=ROUNDDOWN(V20,0),W20,V20) -> 3.2 | D20: = | H20: =S20*J20 -> 11337.44 | I20: : | J20: =IF(Y20=ROUNDDOWN(Y20,0),Z20,Y20) -> 11.8 | K20: = | P20: =(INT(RAND()*((11000-30)+30)))/10 -> 996.7 | S20: =(INT(RAND()*((11000-30)+30)))/10 -> 960.8 | V20: =(INT(RAND()*(120-30)+30))/10 -> 3.2 | W20: =(INT(RAND()*(120-30)+30))/10 -> 9.2 | Y20: =(INT(RAND()*(120-30)+30))/10 -> 11 | Z20: =(INT(RAND()*(120-30)+30))/10 -> 11.8
A21: =IF(V21>X21,V21,X21) -> 7718.4 | B21: - | C21: =IF(A21=V21,X21,V21) -> 787.88 | D21: = | H21: =IF(Y21>AA21,Y21,AA21) -> 6697.79 | I21: - | J21: =IF(H21=Y21,AA21,Y21) -> 163.4 | K21: = | P21: =A21-C21 -> 6930.52 | S21: =H21-J21 -> 6534.39 | V21: =((INT(RAND()*(100000-999)+999))/100) -> 787.88 | W21: - | X21: =(INT(RAND()*(100000-999)+999)/10) -> 7718.4 | Y21: =((INT(RAND()*(1000000-999)+999))/100) -> 6697.79 | Z21: - | AA21: =(INT(RAND()*(5000-1000)+1000)/10) -> 163.4
A22: =IF(V22=ROUNDDOWN(V22,0),W22,V22) -> 7.1 | B22: * | C22: =(INT(RAND()*(10000-1000)+1000))/100 -> 82.11 | D22: = | H22: =IF(X22=ROUNDDOWN(X22,0),Y22,X22) -> 97.7 | I22: * | J22: =IF(AA22=ROUNDDOWN(AA22,0),AB22,AA22) -> 7.9 | K22: = | P22: =A22*C22 -> 582.981 | S22: =H22*J22 -> 771.83 | V22: =(INT(RAND()*(100-10)+10))/10 -> 7 | W22: =(INT(RAND()*(100-10)+10))/10 -> 7.1 | X22: =(INT(RAND()*(1000-100)+100))/10 -> 97.7 | Y22: =(INT(RAND()*(1000-100)+100))/10 -> 81.9 | AA22: =(INT(RAND()*(100-10)+10))/10 -> 7.9 | AB22: =(INT(RAND()*(100-10)+10))/10 -> 9
A23: =IF(V23=ROUNDDOWN(V23,0),W23,V23) -> 15067.8 | B23: + | C23: =(INT(RAND()*(50000-1000)+1000))/100 -> 399.97 | D23: = | H23: =(INT(RAND()*(1000000-999)+999))/100 -> 3304.55 | I23: + | J23: =IF(Y23=ROUNDDOWN(Y23,0),Z23,Y23) -> 202.5 | K23: = | P23: =A23+C23 -> 15467.77 | S23: =H23+J23 -> 3507.05 | V23: =(INT(RAND()*(1000000-999)+999))/10 -> 15067.8 | W23: =(INT(RAND()*(1000000-999)+999))/10 -> 85098.7 | Y23: =(INT(RAND()*(5000-100)+100))/10 -> 202.5 | Z23: =(INT(RAND()*(5000-100)+100))/10 -> 400.6
A24: =P24*C24 -> 80.15 | B24: : | C24: =IF(V24=ROUNDDOWN(V24,0),W24,V24) -> 3.5 | D24: = | H24: =S24*J24 -> 1747.68 | I24: : | J24: =IF(Y24=ROUNDDOWN(Y24,0),Z24,Y24) -> 3.3 | K24: = | P24: =(INT(RAND()*((11000-30)+30)))/10 -> 22.9 | S24: =(INT(RAND()*((11000-30)+30)))/10 -> 529.6 | V24: =(INT(RAND()*(120-30)+30))/10 -> 3.5 | W24: =(INT(RAND()*(120-30)+30))/10 -> 3.7 | Y24: =(INT(RAND()*(120-30)+30))/10 -> 3.3 | Z24: =(INT(RAND()*(120-30)+30))/10 -> 11.9
A25: =IF(V25>X25,V25,X25) -> 7268.7 | B25: - | C25: =IF(A25=V25,X25,V25) -> 647.05 | D25: = | H25: =IF(Y25>AA25,Y25,AA25) -> 7591.76 | I25: - | J25: =IF(H25=Y25,AA25,Y25) -> 247.9 | K25: = | P25: =A25-C25 -> 6621.65 | S25: =H25-J25 -> 7343.86 | V25: =((INT(RAND()*(100000-999)+999))/100) -> 647.05 | W25: - | X25: =(INT(RAND()*(100000-999)+999)/10) -> 7268.7 | Y25: =((INT(RAND()*(1000000-999)+999))/100) -> 7591.76 | Z25: - | AA25: =(INT(RAND()*(5000-1000)+1000)/10) -> 247.9
A26: =IF(V26=ROUNDDOWN(V26,0),W26,V26) -> 2.1 | B26: * | C26: =(INT(RAND()*(10000-1000)+1000))/100 -> 67.69 | D26: = | H26: =IF(X26=ROUNDDOWN(X26,0),Y26,X26) -> 35.3 | I26: * | J26: =IF(AA26=ROUNDDOWN(AA26,0),AB26,AA26) -> 8.6 | K26: = | P26: =A26*C26 -> 142.149 | S26: =H26*J26 -> 303.58 | V26: =(INT(RAND()*(100-10)+10))/10 -> 2.1 | W26: =(INT(RAND()*(100-10)+10))/10 -> 1.3 | X26: =(INT(RAND()*(1000-100)+100))/10 -> 35.3 | Y26: =(INT(RAND()*(1000-100)+100))/10 -> 12.5 | AA26: =(INT(RAND()*(100-10)+10))/10 -> 8.6 | AB26: =(INT(RAND()*(100-10)+10))/10 -> 4.9
A27: =IF(V27=ROUNDDOWN(V27,0),W27,V27) -> 92344.9 | B27: + | C27: =(INT(RAND()*(50000-1000)+1000))/100 -> 321.72 | D27: = | H27: =(INT(RAND()*(1000000-999)+999))/100 -> 7399.76 | I27: + | J27: =IF(Y27=ROUNDDOWN(Y27,0),Z27,Y27) -> 398.4 | K27: = | P27: =A27+C27 -> 92666.62 | S27: =H27+J27 -> 7798.16 | V27: =(INT(RAND()*(1000000-999)+999))/10 -> 92344.9 | W27: =(INT(RAND()*(1000000-999)+999))/10 -> 73614.5 | Y27: =(INT(RAND()*(5000-100)+100))/10 -> 168 | Z27: =(INT(RAND()*(5000-100)+100))/10 -> 398.4
A28: =P28*C28 -> 6057.4 | B28: : | C28: =IF(V28=ROUNDDOWN(V28,0),W28,V28) -> 6.2 | D28: = | H28: =S28*J28 -> 3837.9 | I28: : | J28: =IF(Y28=ROUNDDOWN(Y28,0),Z28,Y28) -> 6.6 | K28: = | P28: =(INT(RAND()*((11000-30)+30)))/10 -> 977 | S28: =(INT(RAND()*((11000-30)+30)))/10 -> 581.5 | V28: =(INT(RAND()*(120-30)+30))/10 -> 3 | W28: =(INT(RAND()*(120-30)+30))/10 -> 6.2 | Y28: =(INT(RAND()*(120-30)+30))/10 -> 6.6 | Z28: =(INT(RAND()*(120-30)+30))/10 -> 9

Sheet 6d
A1: Rechnen mit Brüchen
A2: Name: | K2: ="Nr."&INT(RAND()*(100000-10000)+10000) -> Nr.79693 | Q2: =K2 -> Nr.79693
A4: =INT(RAND()*(10-1)+1) -> 7 | B4: + | C4: =INT(RAND()*(10-1)+1) -> 7 | D4: = | G4: =IF((U4/U5)>(W4/W5),U4,W4) -> 7 | H4: - | I4: =IF(G4=U4,W4,U4) -> 5 | J4: = | N4: =(A4/A5)+(C4/C5) -> 7 | Q4: =(G4/G5)-(I4/I5) -> 1.5 | U4: =INT(RAND()*(10-1)+1) -> 7 | V4: - | W4: =INT(RAND()*(10-1)+1) -> 5
A5: =INT(RAND()*(10-2)+2) -> 2 | C5: =INT(RAND()*(10-2)+2) -> 2 | G5: =IF((U4/U5)>(W4/W5),U5,W5) -> 3 | I5: =IF(G5=U5,W5,U5) -> 6 | U5: =INT(RAND()*(10-2)+2) -> 3 | W5: =INT(RAND()*(10-2)+2) -> 6
A7: =INT(RAND()*(10-1)+1) -> 2 | B7: + | C7: =INT(RAND()*(10-1)+1) -> 6 | D7: = | G7: =IF((U7/U8)>(W7/W8),U7,W7) -> 9 | H7: - | I7: =IF(G7=U7,W7,U7) -> 4 | J7: = | N7: =(A7/A8)+(C7/C8) -> 1.7 | Q7: =(G7/G8)-(I7/I8) -> 2.428571429 | U7: =INT(RAND()*(10-1)+1) -> 4 | V7: - | W7: =INT(RAND()*(10-1)+1) -> 9
A8: =INT(RAND()*(10-2)+2) -> 4 | C8: =INT(RAND()*(10-2)+2) -> 5 | G8: =IF((U7/U8)>(W7/W8),U8,W8) -> 3 | I8: =IF(G8=U8,W8,U8) -> 7 | U8: =INT(RAND()*(10-2)+2) -> 7 | W8: =INT(RAND()*(10-2)+2) -> 3
A10: =INT(RAND()*(10-1)+1) -> 7 | B10: + | C10: =INT(RAND()*(10-1)+1) -> 5 | D10: = | G10: =IF((U10/U11)>(W10/W11),U10,W10) -> 3 | H10: - | I10: =IF(G10=U10,W10,U10) -> 4 | J10: = | N10: =(A10/A11)+(C10/C11) -> 2.025 | Q10: =(G10/G11)-(I10/I11) -> 0.5555555556 | U10: =INT(RAND()*(10-1)+1) -> 3 | V10: - | W10: =INT(RAND()*(10-1)+1) -> 4
A11: =INT(RAND()*(10-2)+2) -> 5 | C11: =INT(RAND()*(10-2)+2) -> 8 | G11: =IF((U10/U11)>(W10/W11),U11,W11) -> 3 | I11: =IF(G11=U11,W11,U11) -> 9 | U11: =INT(RAND()*(10-2)+2) -> 3 | W11: =INT(RAND()*(10-2)+2) -> 9
A13: =INT(RAND()*(10-1)+1) -> 2 | B13: + | C13: =INT(RAND()*(10-1)+1) -> 7 | D13: = | G13: =IF((U13/U14)>(W13/W14),U13,W13) -> 5 | H13: - | I13: =IF(G13=U13,W13,U13) -> 8 | J13: = | N13: =(A13/A14)+(C13/C14) -> 4.5 | Q13: =(G13/G14)-(I13/I14) -> 1.5 | U13: =INT(RAND()*(10-1)+1) -> 8 | V13: - | W13: =INT(RAND()*(10-1)+1) -> 5
A14: =INT(RAND()*(10-2)+2) -> 2 | C14: =INT(RAND()*(10-2)+2) -> 2 | G14: =IF((U13/U14)>(W13/W14),U14,W14) -> 2 | I14: =IF(G14=U14,W14,U14) -> 8 | U14: =INT(RAND()*(10-2)+2) -> 8 | W14: =INT(RAND()*(10-2)+2) -> 2
A16: =INT(RAND()*(10-1)+1) -> 2 | B16: + | C16: =INT(RAND()*(10-1)+1) -> 3 | D16: = | G16: =IF((U16/U17)>(W16/W17),U16,W16) -> 6 | H16: - | I16: =IF(G16=U16,W16,U16) -> 1 | J16: = | N16: =(A16/A17)+(C16/C17) -> 1.5 | Q16: =(G16/G17)-(I16/I17) -> 1 | U16: =INT(RAND()*(10-1)+1) -> 6 | V16: - | W16: =INT(RAND()*(10-1)+1) -> 1
A17: =INT(RAND()*(10-2)+2) -> 4 | C17: =INT(RAND()*(10-2)+2) -> 3 | G17: =IF((U16/U17)>(W16/W17),U17,W17) -> 5 | I17: =IF(G17=U17,W17,U17) -> 5 | U17: =INT(RAND()*(10-2)+2) -> 5 | W17: =INT(RAND()*(10-2)+2) -> 5
A19: =INT(RAND()*(10-1)+1) -> 3 | B19: + | C19: =INT(RAND()*(10-1)+1) -> 2 | D19: = | G19: =IF((U19/U20)>(W19/W20),U19,W19) -> 2 | H19: - | I19: =IF(G19=U19,W19,U19) -> 5 | J19: = | N19: =(A19/A20)+(C19/C20) -> 1.75 | Q19: =(G19/G20)-(I19/I20) -> 0.375 | U19: =INT(RAND()*(10-1)+1) -> 5 | V19: - | W19: =INT(RAND()*(10-1)+1) -> 2
A20: =INT(RAND()*(10-2)+2) -> 2 | C20: =INT(RAND()*(10-2)+2) -> 8 | G20: =IF((U19/U20)>(W19/W20),U20,W20) -> 2 | I20: =IF(G20=U20,W20,U20) -> 8 | U20: =INT(RAND()*(10-2)+2) -> 8 | W20: =INT(RAND()*(10-2)+2) -> 2
A22: =INT(RAND()*(10-1)+1) -> 1 | B22: + | C22: =INT(RAND()*(10-1)+1) -> 4 | D22: = | G22: =IF((U22/U23)>(W22/W23),U22,W22) -> 9 | H22: - | I22: =IF(G22=U22,W22,U22) -> 6 | J22: = | N22: =(A22/A23)+(C22/C23) -> 0.6444444444 | Q22: =(G22/G23)-(I22/I23) -> 0.5357142857 | U22: =INT(RAND()*(10-1)+1) -> 9 | V22: - | W22: =INT(RAND()*(10-1)+1) -> 6
A23: =INT(RAND()*(10-2)+2) -> 5 | C23: =INT(RAND()*(10-2)+2) -> 9 | G23: =IF((U22/U23)>(W22/W23),U23,W23) -> 7 | I23: =IF(G23=U23,W23,U23) -> 8 | U23: =INT(RAND()*(10-2)+2) -> 7 | W23: =INT(RAND()*(10-2)+2) -> 8
A25: =INT(RAND()*(10-1)+1) -> 9 | B25: + | C25: =INT(RAND()*(10-1)+1) -> 4 | D25: = | G25: =IF((U25/U26)>(W25/W26),U25,W25) -> 3 | H25: - | I25: =IF(G25=U25,W25,U25) -> 1 | J25: = | N25: =(A25/A26)+(C25/C26) -> 2.285714286 | Q25: =(G25/G26)-(I25/I26) -> 1.3 | U25: =INT(RAND()*(10-1)+1) -> 3 | V25: - | W25: =INT(RAND()*(10-1)+1) -> 1
A26: =INT(RAND()*(10-2)+2) -> 7 | C26: =INT(RAND()*(10-2)+2) -> 4 | G26: =IF((U25/U26)>(W25/W26),U26,W26) -> 2 | I26: =IF(G26=U26,W26,U26) -> 5 | U26: =INT(RAND()*(10-2)+2) -> 2 | W26: =INT(RAND()*(10-2)+2) -> 5
A28: =INT(RAND()*(10-1)+1) -> 6 | B28: + | C28: =INT(RAND()*(10-1)+1) -> 9 | D28: = | G28: =IF((U28/U29)>(W28/W29),U28,W28) -> 6 | H28: - | I28: =IF(G28=U28,W28,U28) -> 1 | J28: = | N28: =(A28/A29)+(C28/C29) -> 3 | Q28: =(G28/G29)-(I28/I29) -> 0.3571428571 | U28: =INT(RAND()*(10-1)+1) -> 6 | V28: - | W28: =INT(RAND()*(10-1)+1) -> 1
A29: =INT(RAND()*(10-2)+2) -> 4 | C29: =INT(RAND()*(10-2)+2) -> 6 | G29: =IF((U28/U29)>(W28/W29),U29,W29) -> 7 | I29: =IF(G29=U29,W29,U29) -> 2 | U29: =INT(RAND()*(10-2)+2) -> 7 | W29: =INT(RAND()*(10-2)+2) -> 2
A31: =INT(RAND()*(10-1)+1) -> 1 | B31: + | C31: =INT(RAND()*(10-1)+1) -> 4 | D31: = | G31: =IF((U31/U32)>(W31/W32),U31,W31) -> 6 | H31: - | I31: =IF(G31=U31,W31,U31) -> 7 | J31: = | N31: =(A31/A32)+(C31/C32) -> 1.125 | Q31: =(G31/G32)-(I31/I32) -> 0.8333333333 | U31: =INT(RAND()*(10-1)+1) -> 7 | V31: - | W31: =INT(RAND()*(10-1)+1) -> 6
A32: =INT(RAND()*(10-2)+2) -> 8 | C32: =INT(RAND()*(10-2)+2) -> 4 | G32: =IF((U31/U32)>(W31/W32),U32,W32) -> 3 | I32: =IF(G32=U32,W32,U32) -> 6 | U32: =INT(RAND()*(10-2)+2) -> 6 | W32: =INT(RAND()*(10-2)+2) -> 3
A34: =INT(RAND()*(10-1)+1) -> 5 | B34: + | C34: =INT(RAND()*(10-1)+1) -> 1 | D34: = | G34: =IF((U34/U35)>(W34/W35),U34,W34) -> 8 | H34: - | I34: =IF(G34=U34,W34,U34) -> 5 | J34: = | N34: =(A34/A35)+(C34/C35) -> 1.25 | Q34: =(G34/G35)-(I34/I35) -> 0.6 | U34: =INT(RAND()*(10-1)+1) -> 5 | V34: - | W34: =INT(RAND()*(10-1)+1) -> 8
A35: =INT(RAND()*(10-2)+2) -> 5 | C35: =INT(RAND()*(10-2)+2) -> 4 | G35: =IF((U34/U35)>(W34/W35),U35,W35) -> 5 | I35: =IF(G35=U35,W35,U35) -> 5 | U35: =INT(RAND()*(10-2)+2) -> 5 | W35: =INT(RAND()*(10-2)+2) -> 5
A37: =INT(RAND()*(10-1)+1) -> 9 | B37: + | C37: =INT(RAND()*(10-1)+1) -> 5 | D37: = | G37: =IF((U37/U38)>(W37/W38),U37,W37) -> 9 | H37: - | I37: =IF(G37=U37,W37,U37) -> 3 | J37: = | N37: =(A37/A38)+(C37/C38) -> 4.75 | Q37: =(G37/G38)-(I37/I38) -> 0.7916666667 | U37: =INT(RAND()*(10-1)+1) -> 3 | V37: - | W37: =INT(RAND()*(10-1)+1) -> 9
A38: =INT(RAND()*(10-2)+2) -> 4 | C38: =INT(RAND()*(10-2)+2) -> 2 | G38: =IF((U37/U38)>(W37/W38),U38,W38) -> 8 | I38: =IF(G38=U38,W38,U38) -> 9 | U38: =INT(RAND()*(10-2)+2) -> 9 | W38: =INT(RAND()*(10-2)+2) -> 8

Sheet 6e
C1: Masseinheitenmix | O1: =C1 -> Masseinheitenmix
C2: Name: | H2: ="Nr. "&INT(RAND()*(10000-1000)+1000)&" " -> Nr. 8011 | K2: =H2 -> Nr. 8011 | O2: Name: | T2: ="Nr. "&INT(RAND()*(10000-1000)+1000)&" " -> Nr. 7129 | W2: =T2 -> Nr. 7129
A4: 10 | B4: =INT(RAND()*(100-1)+1) -> 62 | C4: =INT(RAND()*(1000-100)+100)*100 -> 21600 | D4: g | E4: = | G4: kg | J4: =C4*VLOOKUP(D4,$Z$24:$AQ$40,VLOOKUP(G4,$Z$24:$AA$40,2,0),0) -> 21.6 | K4: =G4 -> kg | O4: =INT(RAND()*(1000-100)+100)*100 -> 61300 | P4: g | Q4: = | S4: kg | V4: =O4*VLOOKUP(P4,$Z$24:$AQ$40,VLOOKUP(S4,$Z$24:$AA$40,2,0),0) -> 61.3 | W4: =S4 -> kg
A5: 3 | B5: 19 | C5: =INT(RAND()*(10000-1000)+1000) -> 7027 | D5: l | E5: = | G5: hl | J5: 70.27 | K5: hl | O5: =INT(RAND()*(10000-1000)+1000) -> 6190 | P5: l | Q5: = | S5: hl | V5: 61.9 | W5: hl
A6: 6 | B6: 92 | C6: =INT(RAND()*(1000-100)+100)*1000 -> 822000 | D6: g | E6: = | G6: kg | J6: 822 | K6: kg | O6: =INT(RAND()*(1000-100)+100)*100 -> 16600 | P6: g | Q6: = | S6: kg | V6: 16.6 | W6: kg
A7: 19 | B7: 67 | C7: =INT(RAND()*(1000-10)+10)/10 -> 16.6 | D7: km | E7: = | G7: m | J7: 16600 | K7: m | O7: =INT(RAND()*(1000-10)+10)/10 -> 16.3 | P7: km | Q7: = | S7: m | V7: 16300 | W7: m
A8: 11 | B8: 20 | C8: =INT(RAND()*(1000-100)+100) -> 207 | D8: kg | E8: = | G8: g | J8: 207000 | K8: g | O8: =INT(RAND()*(1000-100)+100) -> 233 | P8: kg | Q8: = | S8: g | V8: 233000 | W8: g
A9: 1 | B9: 95 | C9: =INT(RAND()*(10000-1000)+1000) -> 9519 | D9: cl | E9: = | G9: l | J9: 95.19 | K9: l | O9: =INT(RAND()*(10000-1000)+1000) -> 9536 | P9: cl | Q9: = | S9: l | V9: 95.36 | W9: l
A10: 14 | B10: 27 | C10: =INT(RAND()*(1000-100)+100)/10 -> 55.6 | D10: m | E10: = | G10: mm | J10: 55600 | K10: mm | O10: =INT(RAND()*(1000-100)+100)/10 -> 30.2 | P10: m | Q10: = | S10: mm | V10: 30200 | W10: mm
A11: 12 | B11: 43 | C11: =INT(RAND()*(10000-1000)+1000) -> 2213 | D11: dm | E11: = | G11: m | J11: 221.3 | K11: m | O11: =INT(RAND()*(10000-1000)+1000) -> 3343 | P11: dm | Q11: = | S11: m | V11: 334.3 | W11: m
A12: 5 | B12: 80 | C12: =INT(RAND()*(1000-100)+100)/10 -> 13.2 | D12: l | E12: = | G12: dl | J12: 132 | K12: dl | O12: =INT(RAND()*(999-100)+100)/10 -> 83.1 | P12: l | Q12: = | S12: dl | V12: 831 | W12: dl
A13: 8 | B13: 50 | C13: =INT(RAND()*(100-10)+10)/10 -> 3 | D13: kg | E13: = | G13: g | J13: 3000 | K13: g | O13: =INT(RAND()*(100-10)+10)/10 -> 7 | P13: kg | Q13: = | S13: g | V13: 7000 | W13: g
A14: 17 | B14: 89 | C14: =INT(RAND()*(1000-10)+10)/10 -> 19.5 | D14: km | E14: = | G14: m | J14: 19500 | K14: m | O14: =INT(RAND()*(1000-10)+10)/10 -> 39.5 | P14: km | Q14: = | S14: m | V14: 39500 | W14: m
A15: 15 | B15: 26 | C15: =INT(RAND()*(10000-1000)+1000) -> 3845 | D15: g | E15: = | G15: kg | J15: 3.845 | K15: kg | O15: =INT(RAND()*(10000-1000)+1000) -> 2509 | P15: m | Q15: = | S15: km | V15: 2.509 | W15: km
A16: 7 | B16: 50 | C16: =INT(RAND()*(1000-9)+9)/10 -> 36.4 | D16: t | E16: = | G16: kg | J16: 36400 | K16: kg | O16: =INT(RAND()*(1000-9)+9)/10 -> 6.8 | P16: t | Q16: = | S16: kg | V16: 6800 | W16: kg
A17: 4 | B17: 71 | C17: =INT(RAND()*(1000-10)+10)*100 -> 9400 | D17: ml | E17: = | G17: l | J17: 9.4 | K17: l | O17: =INT(RAND()*(1000-100)+100)*10 -> 8790 | P17: ml | Q17: = | S17: l | V17: 8.79 | W17: l
A18: 18 | B18: 41 | C18: =INT(RAND()*(100-10)+10)/10 -> 7.5 | D18: km | E18: = | G18: mm | J18: 7500000 | K18: mm | O18: =INT(RAND()*(100-10)+10)/10 -> 7.4 | P18: km | Q18: = | S18: mm | V18: 7400000 | W18: mm
A19: 13 | B19: 56 | C19: =INT(RAND()*(10000-1000)+1000) -> 8606 | D19: m | E19: = | G19: km | J19: 8.606 | K19: km | O19: =INT(RAND()*(10000-1000)+1000) -> 3007 | P19: m | Q19: = | S19: km | V19: 3.007 | W19: km
A20: 9 | B20: 4 | C20: =INT(RAND()*(1000-100)+100)*100 -> 36000 | D20: kg | E20: = | G20: t | J20: 36 | K20: t | O20: =INT(RAND()*(1000-100)+100)*100 -> 24700 | P20: kg | Q20: = | S20: t | V20: 24.7 | W20: t
A21: 2 | B21: 45 | C21: =INT(RAND()*(1000-10)+10)/10 -> 97.1 | D21: l | E21: = | G21: ml | J21: 97100 | K21: ml | O21: =INT(RAND()*(1000-10)+10)/10 -> 11.5 | P21: l | Q21: = | S21: ml | V21: 11500 | W21: ml
A22: 16 | B22: 77 | C22: =INT(RAND()*(1000-100)+100)/10 -> 41.4 | D22: m | E22: = | G22: cm | J22: 4140 | K22: cm | O22: =INT(RAND()*(1000-100)+100)/10 -> 97.8 | P22: m | Q22: = | S22: mm | V22: 97800 | W22: mm
AB23: 10 | AC23: 10 | AD23: 10 | AE23: 1000 | AG23: 1000 | AH23: 1000 | AJ23: 10 | AK23: 10 | AL23: 10 | AM23: 100
AB24: mm | AC24: cm | AD24: dm | AE24: m | AF24: km | AG24: g | AH24: kg | AI24: t | AJ24: ml | AK24: cl | AL24: dl | AM24: l | AN24: hl
Z25: mm | AA25: 3 | AB25: 1 | AC25: =AB25/AB$23 -> 0.1 | AD25: 0.01 | AE25: 0.001 | AF25: 1e-06
Z26: cm | AA26: 4 | AB26: 10 | AC26: 1 | AD26: 0.1 | AE26: 0.01 | AF26: 1e-05
Z27: dm | AA27: 5 | AB27: 100 | AC27: 10 | AD27: 1 | AE27: 0.1 | AF27: 0.0001
Z28: m | AA28: 6 | AB28: 1000 | AC28: 100 | AD28: 10 | AE28: 1 | AF28: 0.001
Z29: km | AA29: 7 | AB29: 1000000 | AC29: 100000 | AD29: 10000 | AE29: 1000 | AF29: 1
Z30: g | AA30: 8 | AG30: 1 | AH30: =AG30/AG$23 -> 0.001 | AI30: 1e-06
Z31: kg | AA31: 9 | AG31: 1000 | AH31: 1 | AI31: 0.001
Z32: t | AA32: 10 | AG32: 1000000 | AH32: 1000 | AI32: 1
